Workbook

Sheet LDC Info
Z3: 1 | AA3: Alectra Utilities Corporation-Brampton Rate Zone
Z4: 2 | AA4: Alectra Utilities Corporation-Enersource Rate Zone
Z5: 3 | AA5: Alectra Utilities Corporation-Horizon Utilities Rate Zone
Z6: 4 | AA6: Alectra Utilities Corporation-PowerStream Rate Zone
Z7: 5 | AA7: Alectra Utilities Corporation-Guelph Rate Zone
Z8: 6 | AA8: Algoma Power Inc.
Z9: 7 | AA9: Atikokan Hydro Inc.
Z10: 8 | AA10: Bluewater Power Distribution Corporation
Z11: 9 | AA11: Brantford Power Inc.
Z12: 10 | AA12: Burlington Hydro Inc.
Z13: 11 | AA13: Canadian Niagara Power Inc.
D14: Utility Name | E14: Halton Hills Hydro Inc. | Z14: 12 | AA14: Centre Wellington Hydro Ltd.
Z15: 13 | AA15: Chapleau Public Utilities Corporation
D16: Assigned EB Number | E16: EB-2020-0026 | Z16: 14 | AA16: Cooperative Hydro Embrun Inc.
Z17: 15 | AA17: E.L.K. Energy Inc.
D18: Name of Contact and Title | E18: David J. Smelsky, Chief Financial Officer | Z18: 16 | AA18: Elexicon Energy Inc.-Whitby Rate Zone
Z19: 17 | AA19: Elexicon Energy Inc.-Veridian Rate Zone
D20: Phone Number | E20: 519-853-3700 extension 208 | Z20: 18 | AA20: Energy+ Inc.
Z21: 19 | AA21: Entegrus Powerlines Inc.-For Entegrus-Main Rate Zone
D22: Email Address | E22: dsmelsky@haltonhillshydro.com | Z22: 20 | AA22: Entegrus Powerlines Inc.-For Former St. Thomas Energy Rate Zone
Z23: 21 | AA23: ENWIN Utilities Ltd.
D24: Test Year | E24: 2021 | Z24: 22 | AA24: EPCOR Electricity Distribution Ontario Inc.
Z25: 23 | AA25: ERTH Power Corporation - ERTH Power Main Rate Zone
D26: Bridge Year | E26: =IF(ISBLANK(E24), "", E24-1) -> 2020 | Z26: 24 | AA26: ERTH POWER CORPORATION – GODERICH RATE ZONE
Z27: 25 | AA27: Essex Powerlines Corporation
D28: Last Rebasing Year | E28: 2016 | Z28: 26 | AA28: Festival Hydro Inc.
Z29: 27 | AA29: Fort Frances Power Corporation
A30: Identify the accounting standard used for the test year | Z30: 28 | AA30: Greater Sudbury Hydro Inc.
E31: MIFRS | Z31: 29 | AA31: Grimsby Power Incorporated
Z32: 30 | AA32: Halton Hills Hydro Inc.
A33: ="Did "& E14 &" update its depreciation and capitalization policies?" -> Did Halton Hills Hydro Inc. update its depreciation and capitalization policies? | Z33: 31 | AA33: Hearst Power Distribution Co. Ltd.
E34: Yes | Z34: 32 | AA34: Hydro 2000 Inc.
Z35: 33 | AA35: Hydro Hawkesbury Inc.
A36: If "yes" to cell E34, were the changes in policies reflected in a prior rebasing application? | Z36: 34 | AA36: Hydro One Networks Inc.
E37: Yes | Z37: 35 | AA37: Hydro One Networks Inc.-Former Haldimand County Hydro Inc. Service Area
Z38: 36 | AA38: Hydro One Networks Inc.-Former Norfolk Power Distribution Inc. Service Area
A39: ="When did "&E14&" update its actual depreciation and capitalization policies?" -> When did Halton Hills Hydro Inc. update its actual depreciation and capitalization policies? | Z39: 37 | AA39: Hydro One Networks Inc.-Former Woodstock Hydro Services Inc. Service Area
E40: 2001-01-01 | F40: 2012 | Z40: 38 | AA40: Hydro One Remote Communites Inc.
Z41: 39 | AA41: Hydro Ottawa Limited
A42: Identify the year the applicant adopted IFRS for financial reporting purposes | Z42: 40 | AA42: InnPower Corporation
E43: 2015 | Z43: 41 | AA43: Kingston Hydro Corporation
Z44: 42 | AA44: Kitchener-Wilmot Hydro Inc.
Z45: 43 | AA45: Lakefront Utilities Inc.
A46: ="Is " & E14 & " applying for cost recovery for the test and/or future year(s) for Green Energy initiatives?" -> Is Halton Hills Hydro Inc. applying for cost recovery for the test and/or future year(s) for Green Energy initiatives? | Z46: 44 | AA46: Lakeland Power Distribution Ltd.
E47: No | Z47: 45 | AA47: Lakeland Power Distribution Ltd.-Parry Sound Service Area
Z48: 46 | AA48: London Hydro Inc.
A49: ="Is " & E14 & " an embedded distributor?" -> Is Halton Hills Hydro Inc. an embedded distributor? | E49: Partial | Z49: 47 | AA49: Milton Hydro Distribution Inc.
Z50: 48 | AA50: Newmarket-Tay Power Distribution Ltd.-For Former Midland Power Utility Rate Zone
Z51: 49 | AA51: Newmarket-Tay Power Distribution Ltd.-For Newmarket-Tay Power Main Rate Zone
B52: Notes | Z52: 50 | AA52: Niagara Peninsula Energy Inc.
Z53: 51 | AA53: Niagara-on-the-Lake Hydro Inc.
C54: Pale green cells represent input cells. | Z54: 52 | AA54: North Bay Hydro Distribution Limited - Espanola service territory
Z55: 53 | AA55: North Bay Hydro Distribution Limited - North Bay service territory
C56: Pale blue cells represent drop-down lists. The applicant should select the appropriate item from the drop-down list. | Z56: 54 | AA56: Northern Ontario Wires Inc.
Z57: 55 | AA57: Oakville Hydro Electricity Distribution Inc.
C58: White cells contain fixed values, automatically generated values or formulae. | N58: =IF(LEN($G58)>1, (SUMPRODUCT(--($C$81:$C$1003=$C58),--($A$81:$A$1003=$D58), --($B$81:$B$1003=$B58&"_TOTAL"), $L$1:$L$889)), "") ->  | O58: =IF(LEN($G58)>1, (SUMPRODUCT(--($C$81:$C$1003=$C58),--($A$81:$A$1003=$D58), --($B$81:$B$1003=$B58&"_TOTAL"), $M$1:$M$889)), "") ->  | Z58: 56 | AA58: Orangeville Hydro Limited
Z59: 57 | AA59: Orillia Power Distribution Corporation
Z60: 58 | AA60: Oshawa PUC Networks Inc.
Z61: 59 | AA61: Ottawa River Power Corporation
Z62: 60 | AA62: Peterborough Distribution Incorporated
Z63: 61 | AA63: PUC Distribution Inc.
Z64: 62 | AA64: Renfrew Hydro Inc.
Z65: 63 | AA65: Rideau St. Lawrence Distribution Inc.
Z66: 64 | AA66: Sioux Lookout Hydro Inc.
Z67: 65 | AA67: Synergy North Corporation-Kenora Rate Zone
Z68: 66 | AA68: Synergy North Corporation-Thunder Bay Rate Zone
Z69: 67 | AA69: Tillsonburg Hydro Inc.
Z70: 68 | AA70: Toronto Hydro-Electric System Limited
Z71: 69 | AA71: Wasaga Distribution Inc.
Z72: 70 | AA72: Waterloo North Hydro Inc.
Z73: 71 | AA73: Welland Hydro-Electric System Corp.
Z74: 72 | AA74: Wellington North Power Inc.
Z75: 73 | AA75: Westario Power Inc.

Sheet Index
A15: 1 | B15: LDC Information Sheet | E15: 20 | F15: App.2-G: Service Reliability Indicators
A16: 2 | B16: Index | E16: 21 | F16: App.2-H: Other Operating Revenue (TO BE UPDATED AT THE DRAFT RATE ORDER STAGE)
A17: 3 | B17: Cost of Service Application Flowchart | E17: 22 | F17: App.2-I: Load Forecast CDM Adjustment Workform
A18: 4 | B18: List of Key References | E18: 23 | F18: App.2-IA: Load Forecast Data Instructions
A19: 5 | B19: App.2-A: List of Requested Approvals | E19: 24 | F19: App.2-IB: Actual and Forecast Load and Customer Data
A20: 6 | B20: App.2-AA: Capital Projects Table | E20: 25 | F20: App.2-JA: OM&A Summary Analysis (TO BE UPDATED AT THE DRAFT RATE ORDER STAGE)
A21: 7 | B21: App.2-AB: Capital Expenditures (TO BE UPDATED AT THE DRAFT RATE ORDER STAGE) | E21: 26 | F21: App.2-JB: Recoverable OM&A Cost Driver Table
A22: 8 | B22: App. 2-AC: Customer Engagement Worksheet | E22: 27 | F22: App.2-JC: OM&A Programs Table
A23: 9 | B23: App.2-B: General Accounting Instructions | E23: 28 | F23: App.2-K: Employee Costs (TO BE UPDATED AT THE DRAFT RATE ORDER STAGE)
A24: 10 | B24: App.2-BA: Fixed Asset Continuity Schedule | E24: 29 | F24: App.2-L: Recoverable OM&A Cost per Customer and per FTE
A25: 11 | B25: Appendix 2-BB: Service Life Comparison | E25: 30 | F25: App.2-M: Regulatory Costs Schedule (TO BE UPDATED AT THE DRAFT RATE ORDER STAGE)
A26: 12 | B26: App.2-C_DepExp: Depreciation and Amortization Expense | E26: 31 | F26: App.2-N: Shared Services and Corporate Cost Allocation
A27: 13 | B27: App.2-D: Overhead Expenses | E27: 32 | F27: App.2-OA: Capital Structure and Cost of Capital
A28: 14 | B28: App.2-EA: Account 1575 PP&E Deferral Account (2015 IFRS Adopters) - CONTACT OEB STAFF IF TAB REQUIRED | E28: 33 | F28: App.2-OB: Debt Instruments
A29: 15 | B29: App.2-EB: Account 1576 - Accounting Changes Under CGAAP (2012 Changes) - CONTACT OEB STAFF IF TAB REQUIRED | E29: 34 | F29: App.2-Q: Cost of Serving Embedded Distributor(s)
A30: 16 | B30: App.2-EC: Account 1576 - Accounting Changes Under CGAAP (2013 Changes) - CONTACT OEB STAFF IF TAB REQUIRED | E30: 35 | F30: App.2-R: Loss Factors
A31: 17 | B31: App.2-FA: Renewable Generation Connection Investment Summary (TO BE UPDATED AT THE DRAFT RATE ORDER STAGE) | E31: 36 | F31: App.2-S: Stranded Meter Treatment- CONTACT OEB STAFF IF TAB REQUIRED
A32: 18 | B32: App.2-FB: Calculation of Renewable Generation Connection Direct Benefits/Provincial Amount: Renewable Enabling Improvement Investments (TO BE UPDATED AT THE DRAFT RATE ORDER STAGE) | E32: 37 | F32: App.2-Y: Transition to MIFRS Summary Impact - CONTACT OEB STAFF IF TAB REQUIRED
A33: 19 | B33: App.2-FC: Calculation of Renewable Generation Connection Direct Benefits/Provincial Amount: Renewable Expansion Investments (TO BE UPDATED AT THE DRAFT RATE ORDER STAGE) | E33: 38 | F33: App.2-YA: One-Time Incremental IFRS Transition Costs - CONTACT OEB STAFF IF TAB REQUIRED
E34: 39 | F34: App.2-ZA: Commodity Expense
E35: 40 | F35: App.2-ZB: Cost of Power
A42: Note: | B42: Appendices for the Tariff of Rates and Charges at Current and Proposed Rates, and for the Bill Impacts are now in a separate spreadsheet model. These appendices were formerly 2-Z and 2-W.

Sheet COS Flowchart
B4: Cost of Service Rate Application Schematic
B6: The Cost of Service Rate Application Schematic is a flowchart that is included as a guide for the components of an application. The schematic demonstrates how demand and costs interrelate to derive the revenue requirement and how the revenue requirement is allocated between classes and through fixed/variable splits to derive rates that will be compensatory for the annual revenue requirement, based on the the forecasted demand. There is no form to be filled out; therefore, this Schedule is not required to be filed.

Sheet List of Key References
B2: List of Key References
A4: A list of key references for understanding the Filing Requirements has been embedded in the document below. To access the list of references and associated hyperlinks double-click the icon below.

Sheet App.2-A_Requested_Approvals
G1: File Number: | H1: =EBNUMBER -> EB-2020-0026
G2: Exhibit:
G3: Tab:
G4: Schedule:
G5: Page: | H5: Settlement
G7: Date: | H7: 2021-02-08
B9: Appendix 2-A
B10: List of Requested Approvals
B12: The distributor must fill out the following sheet with the complete list of specific approvals requested and relevant section(s) of the legislation must be provided. All approvals, including accounting orders (deferral and variance accounts) new rate classes, revised specific service charges or retail service charges which the applicant is seeking, must be separately identified, as well being clearly documented in the appropriate sections of the application.
B14: Additional requests may be added by copying and pasting blank input rows, as needed.
B16: If additional requests arise, or requested approvals are removed, during the processing of the application, the distributor should update this list.
B18: =CONCATENATE('LDC Info'!E14," is seeking the following approvals in this application:") -> Halton Hills Hydro Inc. is seeking the following approvals in this application:
B20: 1 | F20: Approval to charge distribution rates effective May 1, 2021 to recover a service revenue requirement of $16,237,979 which includes a gross revenue deficiency of $4,241,848 as detailed in the Settlement Proposal.
B22: 2 | F22: Approval of the Distribution System Plan as outlined in Appendix 2-1 of Exhibit 2.
B24: 3 | F24: Approval to adjust the Retail Transmission Rates (Network and Connection) as detailed in the Settlement Proposal.
B26: 4 | F26: Approval to continue to charge Wholesale Market (including CBR) and Rural Rate Protection Charges as directed by the Board.
B28: 5 | F28: Approval to continue the Specific Service Charges and tranformer allowance approved in the Decision and Order in EB-2019-0039 (2020 IRM).
B30: 6 | F30: Approval of adjusted Deferral and Variance Account disposition amounts as presented in the 2021 DVA Continuity Schedule in the form of rate riders over two years as detailed in the Settlement Proposal.
B32: 7
B34: 8 | F34: Approval to deem the full cost (including incremental) of the Municipal Tranformer Station as a distribution asset.
B36: 9 | F36: Approval of a 1508 Sub-account to record any Ministry of Finance issued reassessment(s) relating to tax deduction(s) of Pole Replacement and/or the deduction of Burden related expenses the Parties agree that HHHI will be permitted to allocate any ‘PILs Tax consequence’ for 2015, 2016, 2017, 2018, 2019, 2020, 2021, 2022, 2023, 2024 and 2025 for future disposition. A ‘PILs Tax consequence’ would include any re-assessment interest and any other re-assessment penalties
B38: 10 | F38: Approval of Gross Load Billing for retail service transmission rates for customers who have load displacement and generation in the General Service (50 to 999 kW) and General Service (1000 to 4999 kW) rate classes.
B40: 11 | F40: 11. Approval for Low Voltage Rates as detailed in the Settlement Proposal.
B42: 12 | F42: Approval for a revised total loss factor as detailed in the Settlement Proposal.

Sheet App.2-AA_Capital Projects
G1: File Number: | H1: =EBNUMBER -> EB-2020-0026
G2: Exhibit:
G3: Tab:
G4: Schedule:
G5: Page: | H5: Settlement
G7: Date: | H7: 2021-02-08
A9: Appendix 2-AA
A10: Capital Projects Table
A13: Projects | B13: =C13-1 -> 2016 | C13: =D13-1 -> 2017 | D13: =E13-1 -> 2018 | E13: =BridgeYear - 1 -> 2019 | F13: =BridgeYear & " Bridge Year" -> 2020 Bridge Year | G13: =TestYear & " Test Year" -> 2021 Test Year
A14: Reporting Basis | B14: MIFRS | C14: MIFRS | D14: MIFRS | E14: MIFRS | F14: MIFRS | G14: MIFRS
A15: System Access
A16: Technical Service Layouts | B16: 498615 | C16: 27946 | D16: 516348 | E16: 278232 | F16: 372435 | G16: 147325
A17: Subdivisions | B17: 9685 | C17: -64875 | D17: -53594 | E17: -83035 | F17: 2000 | G17: 0
A18: Renewable Generation | B18: 84985 | C18: 27729 | D18: 50079 | E18: -419 | F18: 27000 | G18: -5525
A19: Wye-Delta Service Upgrades | C19: 0 | D19: 0 | E19: 3587 | F19: 80788 | G19: 79774
A20: Municipally Driven Projects | C20: 492 | D20: 40094 | E20: 21469 | F20: 148242 | G20: 939918
A21: Make Ready work | B21: 13865 | C21: 7122 | D21: 14000 | E21: -27509 | F21: 2697 | G21: 1622
A22: Metering | B22: 24252 | C22: 152049 | D22: 301016 | E22: 421185 | F22: 435914 | G22: 231685
A23: Substation Projects | C23: 0 | D23: 294865 | E23: 314998 | F23: 0 | G23: 0
A24: Miscellaneous | B24: 6324 | C24: 52500 | D24: 43177 | E24: 95215 | F24: 0 | G24: 0
A25: Contributed Capital | B25: 522959 | C25: 1384355 | D25: 976275.69 | E25: 772460.75 | F25: 1049738 | G25: 1135176
A26: Sub-Total | B26: =SUM(B16:B25) -> 1160685 | C26: 1587318 | D26: 2182260.69 | E26: 1796183.75 | F26: 2118814 | G26: 2529975
A27: System Renewal
A28: Pole Replacements | B28: 2141311 | C28: 1864536 | D28: 1947990 | E28: 1321301 | F28: 715864 | G28: 624199
A29: Poletrans Replacement Program | B29: 655716 | C29: 996718 | D29: 895811 | E29: 1640316 | F29: 776849 | G29: 809294
A30: Porcelain Insulator Replacement Program | B30: 20614 | C30: 44544 | D30: 8921 | E30: 62443 | F30: 49132 | G30: 51459
A31: Transformer Replacement Program | B31: 134640 | C31: 115133 | D31: 102772 | E31: 184143 | F31: 84716 | G31: 222791
A32: Pole Line Rebuild Program | B32: 0 | C32: 0 | D32: 0 | E32: 0 | F32: 0 | G32: 0
A33: Substation Equipment | B33: 677093 | C33: 524904 | D33: 0 | E33: 0 | F33: 78324 | G33: 615397
A34: Distribution Equipment Renewal | B34: 0 | C34: 2859 | D34: 18052 | E34: 22576 | F34: 33709 | G34: 38950
A35: Feeder Reinforcement | B35: 0 | C35: 196398 | D35: 0 | E35: 0 | F35: 0 | G35: 0
A36: Vintage Replacements | B36: 1135736 | C36: 664363 | D36: 958143 | E36: 0 | F36: 29656 | G36: 0
A37: Miscellaneous | B37: 131001 | C37: 124806 | D37: 217354.63 | E37: 114629.92 | F37: 290000 | G37: 0
A38: Contributed Capital | B38: 95306 | C38: 66572 | D38: 47172 | E38: 60999.08
A41: Sub-Total | B41: =SUM(B28:B40) -> 4991417 | C41: 4600833 | D41: 4196215.63 | E41: 3406408 | F41: 2058250 | G41: 2362090
A42: System Service
A43: Feeder Improvements | B43: 1027163 | C43: 618515 | D43: 854371 | E43: 363395 | F43: 270150 | G43: 0
A44: Voltage Conversion | B44: 402232 | C44: 340409 | D44: 431712 | E44: 607962 | F44: 939061 | G44: 463908
A45: Substation Upgrades | B45: 0 | C45: 94650 | D45: 83024 | E45: 274854 | F45: 67559 | G45: 186770
A46: Automated Switches & SCADA Integration | B46: 243887 | C46: 282226 | D46: 252088 | E46: 489670 | F46: 248475 | G46: 231194
A47: Arrestor Program | B47: 0 | C47: 0 | D47: 0 | E47: 0 | F47: 0 | G47: 0
A48: Miscellaneous | B48: 325226 | C48: 238070 | D48: 151301 | E48: 263907.75 | F48: 0 | G48: 0
A49: Contributed Capital | B49: 36638 | D49: -25767
A50: Sub-Total | B50: =SUM(B43:B49) -> 2035146 | C50: 1573870 | D50: 1746729 | E50: 1999788.75 | F50: 1525245 | G50: 881872
A51: General Plant
A52: Equipment & Tools | B52: 208845 | C52: 527523 | D52: 249768 | E52: 238686 | F52: 290000 | G52: 525000
A53: Software & Systems | B53: 177003 | C53: 164099 | D53: 95862 | E53: 207634 | F53: 266290 | G53: 233057
A54: Building Equipment | B54: 96013 | C54: 69864 | D54: 114023 | E54: 99582 | F54: 11476 | G54: 70000
A55: Miscellaneous | B55: 9047 | C55: 31621.75 | D55: 36711 | E55: 107831.75 | F55: 0 | G55: 0
A56: Sub-Total | B56: =SUM(B52:B55) -> 490908 | C56: 793107.75 | D56: 496364 | E56: 653733.75 | F56: 567766 | G56: 828057
A57: Miscellaneous
A58: Total | B58: =SUMPRODUCT(--($A15:$A57="Sub-Total"), B$15:B$57)+B57 -> 8678156 | C58: 8555128.75 | D58: 8621569.32 | E58: 7856114.25 | F58: 6270075 | G58: 6601994
A59: Less Renewable Generation Facility Assets and Other Non-Rate-Regulated Utility Assets (input as negative)
A60: Total | B60: =B58+B59 -> 8678156 | C60: 8555128.75 | D60: 8621569.32 | E60: 7856114.25 | F60: 6270075 | G60: 6601994
A62: Notes:
A64: 1 Please provide a breakdown of the major components of each capital project undertaken in each year. Please ensure that all projects below the materiality threshold are included in the miscellaneous line. Add more projects as required.
A65: 2 The applicant should group projects appropriately and avoid presentations that result in classification of significant components of the capital budget in the miscellaneous category.

Sheet App.2-AB_Capital Expenditures
AE1: File Number: | AG1: =EBNUMBER -> EB-2020-0026
AE2: Exhibit:
AE3: Tab:
AE4: Schedule:
A5: TO BE UPDATED AT THE DRAFT RATE ORDER STAGE | AE5: Page: | AG5: Settlement
AE7: Date: | AG7: 2021-02-08
A9: Appendix 2-AB
A10: Table 2 - Capital Expenditure Summary from Chapter 5 Consolidated Distribution System Plan Filing Requirements
A11: First year of Forecast Period:
A12: =TestYear -> 2021
A13: CATEGORY | B13: Historical Period (previous plan1 & actual) | AC13: Forecast Period (planned)
B14: =E14-1 -> 2012 | E14: =H14-1 -> 2013 | H14: =K14-1 -> 2014 | K14: =N14-1 -> 2015 | N14: =Q14-1 -> 2016 | Q14: =T14-1 -> 2017 | T14: =W14-1 -> 2018 | W14: =Z14-1 -> 2019 | Z14: =AC14-1 -> 2020 | AC14: =A12 -> 2021 | AD14: =AC14+1 -> 2022 | AE14: =AD14+1 -> 2023 | AF14: =AE14+1 -> 2024 | AG14: =AF14+1 -> 2025
B15: Plan | C15: Actual | D15: Var | E15: Plan | F15: Actual | G15: Var | H15: Plan | I15: Actual | J15: Var | K15: Plan | L15: Actual | M15: Var | N15: Plan | O15: Actual | P15: Var | Q15: Plan | R15: Actual | S15: Var | T15: Plan | U15: Actual | V15: Var | W15: Plan | X15: Actual | Y15: Var | Z15: Plan | AA15: Actual2 | AB15: Var
B16: $ '000 | D16: % | E16: $ '000 | G16: % | H16: $ '000 | J16: % | K16: $ '000 | M16: % | N16: $ '000 | P16: % | Q16: $ '000 | S16: % | T16: $ '000 | V16: % | W16: $ '000 | Y16: % | Z16: $ '000 | AB16: % | AC16: $ '000
A17: System Access | D17: =IF(ISERROR((C17-B17)/B17),"--",(C17-B17)/B17) -> -- | G17: =IF(ISERROR((F17-E17)/E17),"--",(F17-E17)/E17) -> -- | J17: =IF(ISERROR((I17-H17)/H17),"--",(I17-H17)/H17) -> -- | M17: =IF(ISERROR((L17-K17)/K17),"--",(L17-K17)/K17) -> -- | N17: 1161.03925 | O17: 1160.685 | P17: =IF(ISERROR((O17-N17)/N17),"--",(O17-N17)/N17) -> -0.0003051145773 | Q17: 886.3142421 | R17: 1587.318 | S17: =IF(ISERROR((R17-Q17)/Q17),"--",(R17-Q17)/Q17) -> 0.79092011 | T17: 3330.938421 | U17: 2182.26069 | V17: =IF(ISERROR((U17-T17)/T17),"--",(U17-T17)/T17) -> -0.3448510857 | W17: 967.1430738 | X17: 1796.18375 | Y17: =IF(ISERROR((X17-W17)/W17),"--",(X17-W17)/W17) -> 0.8572058247 | Z17: 2524.384 | AA17: 2118.814 | AB17: =IF(ISERROR((AA17-Z17)/Z17),"--",(AA17-Z17)/Z17) -> -0.1606609771 | AC17: 2529.975 | AD17: 1810.369985 | AE17: 3242.600155 | AF17: 2999.303919 | AG17: 2098.536871
A18: System Renewal | D18: =IF(ISERROR((C18-B18)/B18),"--",(C18-B18)/B18) -> -- | G18: =IF(ISERROR((F18-E18)/E18),"--",(F18-E18)/E18) -> -- | J18: =IF(ISERROR((I18-H18)/H18),"--",(I18-H18)/H18) -> -- | M18: =IF(ISERROR((L18-K18)/K18),"--",(L18-K18)/K18) -> -- | N18: 4119.55755 | O18: 4991.417 | P18: =IF(ISERROR((O18-N18)/N18),"--",(O18-N18)/N18) -> 0.2116390994 | Q18: 4226.85962 | R18: 4600.833 | S18: =IF(ISERROR((R18-Q18)/Q18),"--",(R18-Q18)/Q18) -> 0.08847546728 | T18: 2818.29234 | U18: 4196.21524 | V18: =IF(ISERROR((U18-T18)/T18),"--",(U18-T18)/T18) -> 0.4889212096 | W18: 3891.34633 | X18: 3406.408 | Y18: =IF(ISERROR((X18-W18)/W18),"--",(X18-W18)/W18) -> -0.1246196789 | Z18: 2070.408 | AA18: 2058.25 | AB18: =IF(ISERROR((AA18-Z18)/Z18),"--",(AA18-Z18)/Z18) -> -0.005872272518 | AC18: 2362.09 | AD18: 2668.76617 | AE18: 1427.270023 | AF18: 1775.779017 | AG18: 2425.405
A19: System Service | D19: -- | G19: -- | J19: -- | M19: -- | N19: 2302.791 | O19: 2035.146 | P19: -0.1162263532 | Q19: 2411.2866 | R19: 1573.87 | S19: -0.3472903636 | T19: 2958.83577 | U19: 1746.729 | V19: -0.4096566569 | W19: 3321.43025 | X19: 1999.78875 | Y19: -0.3979133688 | Z19: 1525.245 | AA19: 1525.245 | AB19: 0 | AC19: 881.872 | AD19: 1110.667 | AE19: 1424.209 | AF19: 967.525 | AG19: 1099.38
A20: General Plant | D20: -- | G20: -- | J20: -- | M20: -- | N20: 777.613 | O20: 490.908 | P20: -0.3686988258 | Q20: 479.416 | R20: 793.10775 | S20: 0.6543205692 | T20: 421 | U20: 496.364 | V20: 0.1790118765 | W20: 425 | X20: 653.73375 | Y20: 0.5381970588 | Z20: 621.29 | AA20: 567.766 | AB20: -0.08614978512 | AC20: 828.057 | AD20: 582.4 | AE20: 606.94 | AF20: 694.26 | AG20: 618.14
A21: TOTAL EXPENDITURE | B21: =SUM(B17:B20) -> 0 | C21: =SUM(C17:C20) -> 0 | D21: -- | E21: =SUM(E17:E20) -> 0 | F21: =SUM(F17:F20) -> 0 | G21: -- | H21: =SUM(H17:H20) -> 0 | I21: =SUM(I17:I20) -> 0 | J21: -- | K21: =SUM(K17:K20) -> 0 | L21: =SUM(L17:L20) -> 0 | M21: -- | N21: =SUM(N17:N20) -> 8361.0008 | O21: =SUM(O17:O20) -> 8678.156 | P21: 0.03793268385 | Q21: 8003.876462 | R21: 8555.12875 | S21: 0.06887316296 | T21: 9529.066531 | U21: 8621.56893 | V21: -0.09523467988 | W21: 8604.919654 | X21: 7856.11425 | Y21: -0.08702061541 | Z21: 6741.327 | AA21: 6270.075 | AB21: -0.06990493118 | AC21: 6601.994 | AD21: 6172.203155 | AE21: 6701.019178 | AF21: 6436.867936 | AG21: =SUM(AG17:AG20) -> 6241.461871
A22: Capital Contributions | D22: -- | G22: -- | J22: -- | M22: -- | N22: 652.39925 | O22: 654.903 | P22: 0.003837757324 | Q22: 595.5537621 | R22: 1450.927 | S22: 1.436265359 | T22: 1740.960491 | U22: 997.6803 | V22: -0.4269368516 | W22: 711.1025856 | X22: 833.45983 | Y22: 0.1720669378 | Z22: 1068.167 | AA22: 1049.738 | AB22: -0.01725292019 | AC22: 1135.176 | AD22: 885.391955 | AE22: 1479.195745 | AF22: 1391.127652 | AG22: 997.2803698
A23: Net Capital Expenditures | D23: -- | G23: -- | J23: -- | M23: -- | N23: 7708.60155 | O23: 8023.253 | P23: 0.04081822727 | Q23: 7408.3227 | R23: 7104.20175 | S23: -0.04105125577 | T23: 7788.10604 | U23: 7623.88863 | V23: -0.02108566693 | W23: 7893.817068 | X23: 7022.65442 | Y23: -0.1103601262 | Z23: 5673.16 | AA23: 5220.337 | AB23: -0.07981847859 | AC23: 5466.818 | AD23: 5286.8112 | AE23: 5221.823433 | AF23: 5045.740284 | AG23: 5244.181501
A24: System O&M | D24: -- | G24: -- | J24: -- | M24: -- | N24: 1729.772 | O24: 1904.896 | P24: 0.1012410884 | Q24: 1729.772 | R24: 1705.773 | S24: -0.01387408283 | T24: 1729.772 | U24: 1635.678 | V24: -0.05439676443 | W24: 1729.772 | X24: 1569.89 | Y24: -0.0924295225 | Z24: 1708 | AA24: 1708 | AB24: 0 | AC24: 1769 | AD24: 1769 | AE24: 1769 | AF24: 1769 | AG24: 1769
A26: Notes to the Table:
A27: 1. Historical “previous plan” data is not required unless a plan has previously been filed. However, use the last OEB-approved, at least on a Total (Capital) Expenditure basis for the last cost of service rebasing year, and the applicant should include their planned budget in each subsequent historical year up to and including the Bridge Year.
A28: 2. Indicate the number of months of 'actual' data included in the last year of the Historical Period (normally a 'bridge' year):
A30: Explanatory Notes on Variances (complete only if applicable)
A31: Notes on shifts in forecast vs. historical budgets by category
A34: Notes on year over year Plan vs. Actual variances for Total Expenditures
A37: Notes on Plan vs. Actual variance trends for individual expenditure categories

Sheet Hidden_CAPEX (hidden)
A1: Utility Name | B1: EB Number | C1: Test Year | D1: Bridge Year | E1: Last Rebasing Year | F1: Category | G1: Year | H1: Plan | I1: Actual
A2: ='LDC Info'!$E$14 -> Halton Hills Hydro Inc. | B2: =EBNUMBER -> EB-2020-0026 | C2: =TestYear -> 2021 | D2: =BridgeYear -> 2020 | E2: =RebaseYear -> 2016 | F2: System Access | G2: ='App.2-AB_Capital Expenditures'!B14 -> 2012 | H2: ='App.2-AB_Capital Expenditures'!B17 -> 0 | I2: ='App.2-AB_Capital Expenditures'!C17 -> 0
A3: ='LDC Info'!$E$14 -> Halton Hills Hydro Inc. | B3: EB-2020-0026 | C3: 2021 | D3: 2020 | E3: 2016 | F3: System Renewal | G3: ='App.2-AB_Capital Expenditures'!B14 -> 2012 | H3: ='App.2-AB_Capital Expenditures'!B18 -> 0 | I3: ='App.2-AB_Capital Expenditures'!C18 -> 0
A4: ='LDC Info'!$E$14 -> Halton Hills Hydro Inc. | B4: EB-2020-0026 | C4: 2021 | D4: 2020 | E4: 2016 | F4: System Service | G4: ='App.2-AB_Capital Expenditures'!B14 -> 2012 | H4: ='App.2-AB_Capital Expenditures'!B19 -> 0 | I4: ='App.2-AB_Capital Expenditures'!C19 -> 0
A5: ='LDC Info'!$E$14 -> Halton Hills Hydro Inc. | B5: EB-2020-0026 | C5: 2021 | D5: 2020 | E5: 2016 | F5: General Plant | G5: ='App.2-AB_Capital Expenditures'!B14 -> 2012 | H5: ='App.2-AB_Capital Expenditures'!B20 -> 0 | I5: ='App.2-AB_Capital Expenditures'!C20 -> 0
A6: ='LDC Info'!$E$14 -> Halton Hills Hydro Inc. | B6: EB-2020-0026 | C6: 2021 | D6: 2020 | E6: 2016 | F6: Total Expenditure | G6: ='App.2-AB_Capital Expenditures'!B14 -> 2012 | H6: ='App.2-AB_Capital Expenditures'!B21 -> 0 | I6: ='App.2-AB_Capital Expenditures'!C21 -> 0
A7: ='LDC Info'!$E$14 -> Halton Hills Hydro Inc. | B7: EB-2020-0026 | C7: 2021 | D7: 2020 | E7: 2016 | F7: Capital Contributions | G7: ='App.2-AB_Capital Expenditures'!B14 -> 2012 | H7: ='App.2-AB_Capital Expenditures'!B22 -> 0 | I7: ='App.2-AB_Capital Expenditures'!C22 -> 0
A8: ='LDC Info'!$E$14 -> Halton Hills Hydro Inc. | B8: EB-2020-0026 | C8: 2021 | D8: 2020 | E8: 2016 | F8: Net Capital Expenditures | G8: ='App.2-AB_Capital Expenditures'!B14 -> 2012 | H8: ='App.2-AB_Capital Expenditures'!B23 -> 0 | I8: ='App.2-AB_Capital Expenditures'!C23 -> 0
A9: ='LDC Info'!$E$14 -> Halton Hills Hydro Inc. | B9: EB-2020-0026 | C9: 2021 | D9: 2020 | E9: 2016 | F9: System O&M | G9: ='App.2-AB_Capital Expenditures'!B14 -> 2012 | H9: ='App.2-AB_Capital Expenditures'!B24 -> 0 | I9: ='App.2-AB_Capital Expenditures'!C24 -> 0
A10: ='LDC Info'!$E$14 -> Halton Hills Hydro Inc. | B10: EB-2020-0026 | C10: 2021 | D10: 2020 | E10: 2016 | F10: System Access | G10: ='App.2-AB_Capital Expenditures'!E14 -> 2013 | H10: ='App.2-AB_Capital Expenditures'!E17 -> 0 | I10: ='App.2-AB_Capital Expenditures'!F17 -> 0
A11: ='LDC Info'!$E$14 -> Halton Hills Hydro Inc. | B11: EB-2020-0026 | C11: 2021 | D11: 2020 | E11: 2016 | F11: System Renewal | G11: ='App.2-AB_Capital Expenditures'!E14 -> 2013 | H11: ='App.2-AB_Capital Expenditures'!E18 -> 0 | I11: ='App.2-AB_Capital Expenditures'!F18 -> 0
A12: ='LDC Info'!$E$14 -> Halton Hills Hydro Inc. | B12: EB-2020-0026 | C12: 2021 | D12: 2020 | E12: 2016 | F12: System Service | G12: ='App.2-AB_Capital Expenditures'!E14 -> 2013 | H12: ='App.2-AB_Capital Expenditures'!E19 -> 0 | I12: ='App.2-AB_Capital Expenditures'!F19 -> 0
A13: ='LDC Info'!$E$14 -> Halton Hills Hydro Inc. | B13: EB-2020-0026 | C13: 2021 | D13: 2020 | E13: 2016 | F13: General Plant | G13: ='App.2-AB_Capital Expenditures'!E14 -> 2013 | H13: ='App.2-AB_Capital Expenditures'!E20 -> 0 | I13: ='App.2-AB_Capital Expenditures'!F20 -> 0
A14: ='LDC Info'!$E$14 -> Halton Hills Hydro Inc. | B14: EB-2020-0026 | C14: 2021 | D14: 2020 | E14: 2016 | F14: Total Expenditure | G14: ='App.2-AB_Capital Expenditures'!E14 -> 2013 | H14: ='App.2-AB_Capital Expenditures'!E21 -> 0 | I14: ='App.2-AB_Capital Expenditures'!F21 -> 0
A15: ='LDC Info'!$E$14 -> Halton Hills Hydro Inc. | B15: EB-2020-0026 | C15: 2021 | D15: 2020 | E15: 2016 | F15: Capital Contributions | G15: ='App.2-AB_Capital Expenditures'!E14 -> 2013 | H15: ='App.2-AB_Capital Expenditures'!E22 -> 0 | I15: ='App.2-AB_Capital Expenditures'!F22 -> 0
A16: ='LDC Info'!$E$14 -> Halton Hills Hydro Inc. | B16: EB-2020-0026 | C16: 2021 | D16: 2020 | E16: 2016 | F16: Net Capital Expenditures | G16: ='App.2-AB_Capital Expenditures'!E14 -> 2013 | H16: ='App.2-AB_Capital Expenditures'!E23 -> 0 | I16: ='App.2-AB_Capital Expenditures'!F23 -> 0
A17: ='LDC Info'!$E$14 -> Halton Hills Hydro Inc. | B17: EB-2020-0026 | C17: 2021 | D17: 2020 | E17: 2016 | F17: System O&M | G17: ='App.2-AB_Capital Expenditures'!E14 -> 2013 | H17: ='App.2-AB_Capital Expenditures'!E24 -> 0 | I17: ='App.2-AB_Capital Expenditures'!F24 -> 0
A18: ='LDC Info'!$E$14 -> Halton Hills Hydro Inc. | B18: EB-2020-0026 | C18: 2021 | D18: 2020 | E18: 2016 | F18: System Access | G18: ='App.2-AB_Capital Expenditures'!H14 -> 2014 | H18: ='App.2-AB_Capital Expenditures'!H17 -> 0 | I18: ='App.2-AB_Capital Expenditures'!I17 -> 0
A19: ='LDC Info'!$E$14 -> Halton Hills Hydro Inc. | B19: EB-2020-0026 | C19: 2021 | D19: 2020 | E19: 2016 | F19: System Renewal | G19: ='App.2-AB_Capital Expenditures'!H14 -> 2014 | H19: ='App.2-AB_Capital Expenditures'!H18 -> 0 | I19: ='App.2-AB_Capital Expenditures'!I18 -> 0
A20: ='LDC Info'!$E$14 -> Halton Hills Hydro Inc. | B20: EB-2020-0026 | C20: 2021 | D20: 2020 | E20: 2016 | F20: System Service | G20: ='App.2-AB_Capital Expenditures'!H14 -> 2014 | H20: ='App.2-AB_Capital Expenditures'!H19 -> 0 | I20: ='App.2-AB_Capital Expenditures'!I19 -> 0
A21: ='LDC Info'!$E$14 -> Halton Hills Hydro Inc. | B21: EB-2020-0026 | C21: 2021 | D21: 2020 | E21: 2016 | F21: General Plant | G21: ='App.2-AB_Capital Expenditures'!H14 -> 2014 | H21: ='App.2-AB_Capital Expenditures'!H20 -> 0 | I21: ='App.2-AB_Capital Expenditures'!I20 -> 0
A22: ='LDC Info'!$E$14 -> Halton Hills Hydro Inc. | B22: EB-2020-0026 | C22: 2021 | D22: 2020 | E22: 2016 | F22: Total Expenditure | G22: ='App.2-AB_Capital Expenditures'!H14 -> 2014 | H22: ='App.2-AB_Capital Expenditures'!H21 -> 0 | I22: ='App.2-AB_Capital Expenditures'!I21 -> 0
A23: ='LDC Info'!$E$14 -> Halton Hills Hydro Inc. | B23: EB-2020-0026 | C23: 2021 | D23: 2020 | E23: 2016 | F23: Capital Contributions | G23: ='App.2-AB_Capital Expenditures'!H14 -> 2014 | H23: ='App.2-AB_Capital Expenditures'!H22 -> 0 | I23: ='App.2-AB_Capital Expenditures'!I22 -> 0
A24: ='LDC Info'!$E$14 -> Halton Hills Hydro Inc. | B24: EB-2020-0026 | C24: 2021 | D24: 2020 | E24: 2016 | F24: Net Capital Expenditures | G24: ='App.2-AB_Capital Expenditures'!H14 -> 2014 | H24: ='App.2-AB_Capital Expenditures'!H23 -> 0 | I24: ='App.2-AB_Capital Expenditures'!I23 -> 0
A25: ='LDC Info'!$E$14 -> Halton Hills Hydro Inc. | B25: EB-2020-0026 | C25: 2021 | D25: 2020 | E25: 2016 | F25: System O&M | G25: ='App.2-AB_Capital Expenditures'!H14 -> 2014 | H25: ='App.2-AB_Capital Expenditures'!H24 -> 0 | I25: ='App.2-AB_Capital Expenditures'!I24 -> 0
A26: ='LDC Info'!$E$14 -> Halton Hills Hydro Inc. | B26: EB-2020-0026 | C26: 2021 | D26: 2020 | E26: 2016 | F26: System Access | G26: ='App.2-AB_Capital Expenditures'!K14 -> 2015 | H26: ='App.2-AB_Capital Expenditures'!K17 -> 0 | I26: ='App.2-AB_Capital Expenditures'!L17 -> 0
A27: ='LDC Info'!$E$14 -> Halton Hills Hydro Inc. | B27: EB-2020-0026 | C27: 2021 | D27: 2020 | E27: 2016 | F27: System Renewal | G27: ='App.2-AB_Capital Expenditures'!K14 -> 2015 | H27: ='App.2-AB_Capital Expenditures'!K18 -> 0 | I27: ='App.2-AB_Capital Expenditures'!L18 -> 0
A28: ='LDC Info'!$E$14 -> Halton Hills Hydro Inc. | B28: EB-2020-0026 | C28: 2021 | D28: 2020 | E28: 2016 | F28: System Service | G28: ='App.2-AB_Capital Expenditures'!K14 -> 2015 | H28: ='App.2-AB_Capital Expenditures'!K19 -> 0 | I28: ='App.2-AB_Capital Expenditures'!L19 -> 0
A29: ='LDC Info'!$E$14 -> Halton Hills Hydro Inc. | B29: EB-2020-0026 | C29: 2021 | D29: 2020 | E29: 2016 | F29: General Plant | G29: ='App.2-AB_Capital Expenditures'!K14 -> 2015 | H29: ='App.2-AB_Capital Expenditures'!K20 -> 0 | I29: ='App.2-AB_Capital Expenditures'!L20 -> 0
A30: ='LDC Info'!$E$14 -> Halton Hills Hydro Inc. | B30: EB-2020-0026 | C30: 2021 | D30: 2020 | E30: 2016 | F30: Total Expenditure | G30: ='App.2-AB_Capital Expenditures'!K14 -> 2015 | H30: ='App.2-AB_Capital Expenditures'!K21 -> 0 | I30: ='App.2-AB_Capital Expenditures'!L21 -> 0
A31: ='LDC Info'!$E$14 -> Halton Hills Hydro Inc. | B31: EB-2020-0026 | C31: 2021 | D31: 2020 | E31: 2016 | F31: Capital Contributions | G31: ='App.2-AB_Capital Expenditures'!K14 -> 2015 | H31: ='App.2-AB_Capital Expenditures'!K22 -> 0 | I31: ='App.2-AB_Capital Expenditures'!L22 -> 0
A32: ='LDC Info'!$E$14 -> Halton Hills Hydro Inc. | B32: EB-2020-0026 | C32: 2021 | D32: 2020 | E32: 2016 | F32: Net Capital Expenditures | G32: ='App.2-AB_Capital Expenditures'!K14 -> 2015 | H32: ='App.2-AB_Capital Expenditures'!K23 -> 0 | I32: ='App.2-AB_Capital Expenditures'!L23 -> 0
A33: ='LDC Info'!$E$14 -> Halton Hills Hydro Inc. | B33: EB-2020-0026 | C33: 2021 | D33: 2020 | E33: 2016 | F33: System O&M | G33: ='App.2-AB_Capital Expenditures'!K14 -> 2015 | H33: ='App.2-AB_Capital Expenditures'!K24 -> 0 | I33: ='App.2-AB_Capital Expenditures'!L24 -> 0
A34: ='LDC Info'!$E$14 -> Halton Hills Hydro Inc. | B34: =EBNUMBER -> EB-2020-0026 | C34: =TestYear -> 2021 | D34: =BridgeYear -> 2020 | E34: =RebaseYear -> 2016 | F34: System Access | G34: ='App.2-AB_Capital Expenditures'!N14 -> 2016 | H34: ='App.2-AB_Capital Expenditures'!N17 -> 1161.03925 | I34: ='App.2-AB_Capital Expenditures'!O17 -> 1160.685
A35: ='LDC Info'!$E$14 -> Halton Hills Hydro Inc. | B35: EB-2020-0026 | C35: 2021 | D35: 2020 | E35: 2016 | F35: System Renewal | G35: ='App.2-AB_Capital Expenditures'!N14 -> 2016 | H35: ='App.2-AB_Capital Expenditures'!N18 -> 4119.55755 | I35: ='App.2-AB_Capital Expenditures'!O18 -> 4991.417
A36: ='LDC Info'!$E$14 -> Halton Hills Hydro Inc. | B36: EB-2020-0026 | C36: 2021 | D36: 2020 | E36: 2016 | F36: System Service | G36: ='App.2-AB_Capital Expenditures'!N14 -> 2016 | H36: ='App.2-AB_Capital Expenditures'!N19 -> 2302.791 | I36: ='App.2-AB_Capital Expenditures'!O19 -> 2035.146
A37: ='LDC Info'!$E$14 -> Halton Hills Hydro Inc. | B37: EB-2020-0026 | C37: 2021 | D37: 2020 | E37: 2016 | F37: General Plant | G37: ='App.2-AB_Capital Expenditures'!N14 -> 2016 | H37: ='App.2-AB_Capital Expenditures'!N20 -> 777.613 | I37: ='App.2-AB_Capital Expenditures'!O20 -> 490.908
A38: ='LDC Info'!$E$14 -> Halton Hills Hydro Inc. | B38: EB-2020-0026 | C38: 2021 | D38: 2020 | E38: 2016 | F38: Total Expenditure | G38: ='App.2-AB_Capital Expenditures'!N14 -> 2016 | H38: ='App.2-AB_Capital Expenditures'!N21 -> 8361.0008 | I38: ='App.2-AB_Capital Expenditures'!O21 -> 8678.156
A39: ='LDC Info'!$E$14 -> Halton Hills Hydro Inc. | B39: EB-2020-0026 | C39: 2021 | D39: 2020 | E39: 2016 | F39: Capital Contributions | G39: ='App.2-AB_Capital Expenditures'!N14 -> 2016 | H39: ='App.2-AB_Capital Expenditures'!N22 -> 652.39925 | I39: ='App.2-AB_Capital Expenditures'!O22 -> 654.903
A40: ='LDC Info'!$E$14 -> Halton Hills Hydro Inc. | B40: EB-2020-0026 | C40: 2021 | D40: 2020 | E40: 2016 | F40: Net Capital Expenditures | G40: ='App.2-AB_Capital Expenditures'!N14 -> 2016 | H40: ='App.2-AB_Capital Expenditures'!N23 -> 7708.60155 | I40: ='App.2-AB_Capital Expenditures'!O23 -> 8023.253
A41: ='LDC Info'!$E$14 -> Halton Hills Hydro Inc. | B41: EB-2020-0026 | C41: 2021 | D41: 2020 | E41: 2016 | F41: System O&M | G41: ='App.2-AB_Capital Expenditures'!N14 -> 2016 | H41: ='App.2-AB_Capital Expenditures'!N24 -> 1729.772 | I41: ='App.2-AB_Capital Expenditures'!O24 -> 1904.896
A42: ='LDC Info'!$E$14 -> Halton Hills Hydro Inc. | B42: EB-2020-0026 | C42: 2021 | D42: 2020 | E42: 2016 | F42: System Access | G42: ='App.2-AB_Capital Expenditures'!Q14 -> 2017 | H42: ='App.2-AB_Capital Expenditures'!Q17 -> 886.3142421 | I42: ='App.2-AB_Capital Expenditures'!R17 -> 1587.318
A43: ='LDC Info'!$E$14 -> Halton Hills Hydro Inc. | B43: EB-2020-0026 | C43: 2021 | D43: 2020 | E43: 2016 | F43: System Renewal | G43: ='App.2-AB_Capital Expenditures'!Q14 -> 2017 | H43: ='App.2-AB_Capital Expenditures'!Q18 -> 4226.85962 | I43: ='App.2-AB_Capital Expenditures'!R18 -> 4600.833
A44: ='LDC Info'!$E$14 -> Halton Hills Hydro Inc. | B44: EB-2020-0026 | C44: 2021 | D44: 2020 | E44: 2016 | F44: System Service | G44: ='App.2-AB_Capital Expenditures'!Q14 -> 2017 | H44: ='App.2-AB_Capital Expenditures'!Q19 -> 2411.2866 | I44: ='App.2-AB_Capital Expenditures'!R19 -> 1573.87
A45: ='LDC Info'!$E$14 -> Halton Hills Hydro Inc. | B45: EB-2020-0026 | C45: 2021 | D45: 2020 | E45: 2016 | F45: General Plant | G45: ='App.2-AB_Capital Expenditures'!Q14 -> 2017 | H45: ='App.2-AB_Capital Expenditures'!Q20 -> 479.416 | I45: ='App.2-AB_Capital Expenditures'!R20 -> 793.10775
A46: ='LDC Info'!$E$14 -> Halton Hills Hydro Inc. | B46: EB-2020-0026 | C46: 2021 | D46: 2020 | E46: 2016 | F46: Total Expenditure | G46: ='App.2-AB_Capital Expenditures'!Q14 -> 2017 | H46: ='App.2-AB_Capital Expenditures'!Q21 -> 8003.876462 | I46: ='App.2-AB_Capital Expenditures'!R21 -> 8555.12875
A47: ='LDC Info'!$E$14 -> Halton Hills Hydro Inc. | B47: EB-2020-0026 | C47: 2021 | D47: 2020 | E47: 2016 | F47: Capital Contributions | G47: ='App.2-AB_Capital Expenditures'!Q14 -> 2017 | H47: ='App.2-AB_Capital Expenditures'!Q22 -> 595.5537621 | I47: ='App.2-AB_Capital Expenditures'!R22 -> 1450.927
A48: ='LDC Info'!$E$14 -> Halton Hills Hydro Inc. | B48: EB-2020-0026 | C48: 2021 | D48: 2020 | E48: 2016 | F48: Net Capital Expenditures | G48: ='App.2-AB_Capital Expenditures'!Q14 -> 2017 | H48: ='App.2-AB_Capital Expenditures'!Q23 -> 7408.3227 | I48: ='App.2-AB_Capital Expenditures'!R23 -> 7104.20175
A49: ='LDC Info'!$E$14 -> Halton Hills Hydro Inc. | B49: EB-2020-0026 | C49: 2021 | D49: 2020 | E49: 2016 | F49: System O&M | G49: ='App.2-AB_Capital Expenditures'!Q14 -> 2017 | H49: ='App.2-AB_Capital Expenditures'!Q24 -> 1729.772 | I49: ='App.2-AB_Capital Expenditures'!R24 -> 1705.773
A50: ='LDC Info'!$E$14 -> Halton Hills Hydro Inc. | B50: EB-2020-0026 | C50: 2021 | D50: 2020 | E50: 2016 | F50: System Access | G50: ='App.2-AB_Capital Expenditures'!T14 -> 2018 | H50: ='App.2-AB_Capital Expenditures'!T17 -> 3330.938421 | I50: ='App.2-AB_Capital Expenditures'!U17 -> 2182.26069
A51: ='LDC Info'!$E$14 -> Halton Hills Hydro Inc. | B51: EB-2020-0026 | C51: 2021 | D51: 2020 | E51: 2016 | F51: System Renewal | G51: ='App.2-AB_Capital Expenditures'!T14 -> 2018 | H51: ='App.2-AB_Capital Expenditures'!T18 -> 2818.29234 | I51: ='App.2-AB_Capital Expenditures'!U18 -> 4196.21524
A52: ='LDC Info'!$E$14 -> Halton Hills Hydro Inc. | B52: EB-2020-0026 | C52: 2021 | D52: 2020 | E52: 2016 | F52: System Service | G52: ='App.2-AB_Capital Expenditures'!T14 -> 2018 | H52: ='App.2-AB_Capital Expenditures'!T19 -> 2958.83577 | I52: ='App.2-AB_Capital Expenditures'!U19 -> 1746.729
A53: ='LDC Info'!$E$14 -> Halton Hills Hydro Inc. | B53: EB-2020-0026 | C53: 2021 | D53: 2020 | E53: 2016 | F53: General Plant | G53: ='App.2-AB_Capital Expenditures'!T14 -> 2018 | H53: ='App.2-AB_Capital Expenditures'!T20 -> 421 | I53: ='App.2-AB_Capital Expenditures'!U20 -> 496.364
A54: ='LDC Info'!$E$14 -> Halton Hills Hydro Inc. | B54: EB-2020-0026 | C54: 2021 | D54: 2020 | E54: 2016 | F54: Total Expenditure | G54: ='App.2-AB_Capital Expenditures'!T14 -> 2018 | H54: ='App.2-AB_Capital Expenditures'!T21 -> 9529.066531 | I54: ='App.2-AB_Capital Expenditures'!U21 -> 8621.56893
A55: ='LDC Info'!$E$14 -> Halton Hills Hydro Inc. | B55: EB-2020-0026 | C55: 2021 | D55: 2020 | E55: 2016 | F55: Capital Contributions | G55: ='App.2-AB_Capital Expenditures'!T14 -> 2018 | H55: ='App.2-AB_Capital Expenditures'!T22 -> 1740.960491 | I55: ='App.2-AB_Capital Expenditures'!U22 -> 997.6803
A56: ='LDC Info'!$E$14 -> Halton Hills Hydro Inc. | B56: EB-2020-0026 | C56: 2021 | D56: 2020 | E56: 2016 | F56: Net Capital Expenditures | G56: ='App.2-AB_Capital Expenditures'!T14 -> 2018 | H56: ='App.2-AB_Capital Expenditures'!T23 -> 7788.10604 | I56: ='App.2-AB_Capital Expenditures'!U23 -> 7623.88863
A57: ='LDC Info'!$E$14 -> Halton Hills Hydro Inc. | B57: EB-2020-0026 | C57: 2021 | D57: 2020 | E57: 2016 | F57: System O&M | G57: ='App.2-AB_Capital Expenditures'!T14 -> 2018 | H57: ='App.2-AB_Capital Expenditures'!T24 -> 1729.772 | I57: ='App.2-AB_Capital Expenditures'!U24 -> 1635.678
A58: ='LDC Info'!$E$14 -> Halton Hills Hydro Inc. | B58: EB-2020-0026 | C58: 2021 | D58: 2020 | E58: 2016 | F58: System Access | G58: ='App.2-AB_Capital Expenditures'!W14 -> 2019 | H58: ='App.2-AB_Capital Expenditures'!W17 -> 967.1430738 | I58: ='App.2-AB_Capital Expenditures'!X17 -> 1796.18375
A59: ='LDC Info'!$E$14 -> Halton Hills Hydro Inc. | B59: EB-2020-0026 | C59: 2021 | D59: 2020 | E59: 2016 | F59: System Renewal | G59: ='App.2-AB_Capital Expenditures'!W14 -> 2019 | H59: ='App.2-AB_Capital Expenditures'!W18 -> 3891.34633 | I59: ='App.2-AB_Capital Expenditures'!X18 -> 3406.408
A60: ='LDC Info'!$E$14 -> Halton Hills Hydro Inc. | B60: EB-2020-0026 | C60: 2021 | D60: 2020 | E60: 2016 | F60: System Service | G60: ='App.2-AB_Capital Expenditures'!W14 -> 2019 | H60: ='App.2-AB_Capital Expenditures'!W19 -> 3321.43025 | I60: ='App.2-AB_Capital Expenditures'!X19 -> 1999.78875
A61: ='LDC Info'!$E$14 -> Halton Hills Hydro Inc. | B61: EB-2020-0026 | C61: 2021 | D61: 2020 | E61: 2016 | F61: General Plant | G61: ='App.2-AB_Capital Expenditures'!W14 -> 2019 | H61: ='App.2-AB_Capital Expenditures'!W20 -> 425 | I61: ='App.2-AB_Capital Expenditures'!X20 -> 653.73375
A62: ='LDC Info'!$E$14 -> Halton Hills Hydro Inc. | B62: EB-2020-0026 | C62: 2021 | D62: 2020 | E62: 2016 | F62: Total Expenditure | G62: ='App.2-AB_Capital Expenditures'!W14 -> 2019 | H62: ='App.2-AB_Capital Expenditures'!W21 -> 8604.919654 | I62: ='App.2-AB_Capital Expenditures'!X21 -> 7856.11425
A63: ='LDC Info'!$E$14 -> Halton Hills Hydro Inc. | B63: EB-2020-0026 | C63: 2021 | D63: 2020 | E63: 2016 | F63: Capital Contributions | G63: ='App.2-AB_Capital Expenditures'!W14 -> 2019 | H63: ='App.2-AB_Capital Expenditures'!W22 -> 711.1025856 | I63: ='App.2-AB_Capital Expenditures'!X22 -> 833.45983
A64: ='LDC Info'!$E$14 -> Halton Hills Hydro Inc. | B64: EB-2020-0026 | C64: 2021 | D64: 2020 | E64: 2016 | F64: Net Capital Expenditures | G64: ='App.2-AB_Capital Expenditures'!W14 -> 2019 | H64: ='App.2-AB_Capital Expenditures'!W23 -> 7893.817068 | I64: ='App.2-AB_Capital Expenditures'!X23 -> 7022.65442
A65: ='LDC Info'!$E$14 -> Halton Hills Hydro Inc. | B65: EB-2020-0026 | C65: 2021 | D65: 2020 | E65: 2016 | F65: System O&M | G65: ='App.2-AB_Capital Expenditures'!W14 -> 2019 | H65: ='App.2-AB_Capital Expenditures'!W24 -> 1729.772 | I65: ='App.2-AB_Capital Expenditures'!X24 -> 1569.89
A66: ='LDC Info'!$E$14 -> Halton Hills Hydro Inc. | B66: =EBNUMBER -> EB-2020-0026 | C66: =TestYear -> 2021 | D66: =BridgeYear -> 2020 | E66: =RebaseYear -> 2016 | F66: System Access | G66: ='App.2-AB_Capital Expenditures'!Z14 -> 2020 | H66: ='App.2-AB_Capital Expenditures'!Z17 -> 2524.384 | I66: ='App.2-AB_Capital Expenditures'!AA17 -> 2118.814
A67: ='LDC Info'!$E$14 -> Halton Hills Hydro Inc. | B67: EB-2020-0026 | C67: 2021 | D67: 2020 | E67: 2016 | F67: System Renewal | G67: ='App.2-AB_Capital Expenditures'!Z14 -> 2020 | H67: ='App.2-AB_Capital Expenditures'!Z18 -> 2070.408 | I67: ='App.2-AB_Capital Expenditures'!AA18 -> 2058.25
A68: ='LDC Info'!$E$14 -> Halton Hills Hydro Inc. | B68: EB-2020-0026 | C68: 2021 | D68: 2020 | E68: 2016 | F68: System Service | G68: ='App.2-AB_Capital Expenditures'!Z14 -> 2020 | H68: ='App.2-AB_Capital Expenditures'!Z19 -> 1525.245 | I68: ='App.2-AB_Capital Expenditures'!AA19 -> 1525.245
A69: ='LDC Info'!$E$14 -> Halton Hills Hydro Inc. | B69: EB-2020-0026 | C69: 2021 | D69: 2020 | E69: 2016 | F69: General Plant | G69: ='App.2-AB_Capital Expenditures'!Z14 -> 2020 | H69: ='App.2-AB_Capital Expenditures'!Z20 -> 621.29 | I69: ='App.2-AB_Capital Expenditures'!AA20 -> 567.766
A70: ='LDC Info'!$E$14 -> Halton Hills Hydro Inc. | B70: EB-2020-0026 | C70: 2021 | D70: 2020 | E70: 2016 | F70: Total Expenditure | G70: ='App.2-AB_Capital Expenditures'!Z14 -> 2020 | H70: ='App.2-AB_Capital Expenditures'!Z21 -> 6741.327 | I70: ='App.2-AB_Capital Expenditures'!AA21 -> 6270.075
A71: ='LDC Info'!$E$14 -> Halton Hills Hydro Inc. | B71: EB-2020-0026 | C71: 2021 | D71: 2020 | E71: 2016 | F71: Capital Contributions | G71: ='App.2-AB_Capital Expenditures'!Z14 -> 2020 | H71: ='App.2-AB_Capital Expenditures'!Z22 -> 1068.167 | I71: ='App.2-AB_Capital Expenditures'!AA22 -> 1049.738
A72: ='LDC Info'!$E$14 -> Halton Hills Hydro Inc. | B72: EB-2020-0026 | C72: 2021 | D72: 2020 | E72: 2016 | F72: Net Capital Expenditures | G72: ='App.2-AB_Capital Expenditures'!Z14 -> 2020 | H72: ='App.2-AB_Capital Expenditures'!Z23 -> 5673.16 | I72: ='App.2-AB_Capital Expenditures'!AA23 -> 5220.337
A73: ='LDC Info'!$E$14 -> Halton Hills Hydro Inc. | B73: EB-2020-0026 | C73: 2021 | D73: 2020 | E73: 2016 | F73: System O&M | G73: ='App.2-AB_Capital Expenditures'!Z14 -> 2020 | H73: ='App.2-AB_Capital Expenditures'!Z24 -> 1708 | I73: ='App.2-AB_Capital Expenditures'!AA24 -> 1708
A74: ='LDC Info'!$E$14 -> Halton Hills Hydro Inc. | B74: EB-2020-0026 | C74: 2021 | D74: 2020 | E74: 2016 | F74: System Access | G74: ='App.2-AB_Capital Expenditures'!AC14 -> 2021 | H74: ='App.2-AB_Capital Expenditures'!AC17 -> 2529.975
A75: ='LDC Info'!$E$14 -> Halton Hills Hydro Inc. | B75: EB-2020-0026 | C75: 2021 | D75: 2020 | E75: 2016 | F75: System Renewal | G75: ='App.2-AB_Capital Expenditures'!AC14 -> 2021 | H75: ='App.2-AB_Capital Expenditures'!AC18 -> 2362.09
A76: ='LDC Info'!$E$14 -> Halton Hills Hydro Inc. | B76: EB-2020-0026 | C76: 2021 | D76: 2020 | E76: 2016 | F76: System Service | G76: ='App.2-AB_Capital Expenditures'!AC14 -> 2021 | H76: ='App.2-AB_Capital Expenditures'!AC19 -> 881.872
A77: ='LDC Info'!$E$14 -> Halton Hills Hydro Inc. | B77: EB-2020-0026 | C77: 2021 | D77: 2020 | E77: 2016 | F77: General Plant | G77: ='App.2-AB_Capital Expenditures'!AC14 -> 2021 | H77: ='App.2-AB_Capital Expenditures'!AC20 -> 828.057
A78: ='LDC Info'!$E$14 -> Halton Hills Hydro Inc. | B78: EB-2020-0026 | C78: 2021 | D78: 2020 | E78: 2016 | F78: Total Expenditure | G78: ='App.2-AB_Capital Expenditures'!AC14 -> 2021 | H78: ='App.2-AB_Capital Expenditures'!AC21 -> 6601.994
A79: ='LDC Info'!$E$14 -> Halton Hills Hydro Inc. | B79: EB-2020-0026 | C79: 2021 | D79: 2020 | E79: 2016 | F79: Capital Contributions | G79: ='App.2-AB_Capital Expenditures'!AC14 -> 2021 | H79: ='App.2-AB_Capital Expenditures'!AC22 -> 1135.176
A80: ='LDC Info'!$E$14 -> Halton Hills Hydro Inc. | B80: EB-2020-0026 | C80: 2021 | D80: 2020 | E80: 2016 | F80: Net Capital Expenditures | G80: ='App.2-AB_Capital Expenditures'!AC14 -> 2021 | H80: ='App.2-AB_Capital Expenditures'!AC23 -> 5466.818
A81: ='LDC Info'!$E$14 -> Halton Hills Hydro Inc. | B81: EB-2020-0026 | C81: 2021 | D81: 2020 | E81: 2016 | F81: System O&M | G81: ='App.2-AB_Capital Expenditures'!AC14 -> 2021 | H81: ='App.2-AB_Capital Expenditures'!AC24 -> 1769
A82: ='LDC Info'!$E$14 -> Halton Hills Hydro Inc. | B82: EB-2020-0026 | C82: 2021 | D82: 2020 | E82: 2016 | F82: System Access | G82: ='App.2-AB_Capital Expenditures'!AD14 -> 2022 | H82: ='App.2-AB_Capital Expenditures'!AD17 -> 1810.369985
A83: ='LDC Info'!$E$14 -> Halton Hills Hydro Inc. | B83: EB-2020-0026 | C83: 2021 | D83: 2020 | E83: 2016 | F83: System Renewal | G83: ='App.2-AB_Capital Expenditures'!AD14 -> 2022 | H83: ='App.2-AB_Capital Expenditures'!AD18 -> 2668.76617
A84: ='LDC Info'!$E$14 -> Halton Hills Hydro Inc. | B84: EB-2020-0026 | C84: 2021 | D84: 2020 | E84: 2016 | F84: System Service | G84: ='App.2-AB_Capital Expenditures'!AD14 -> 2022 | H84: ='App.2-AB_Capital Expenditures'!AD19 -> 1110.667
A85: ='LDC Info'!$E$14 -> Halton Hills Hydro Inc. | B85: EB-2020-0026 | C85: 2021 | D85: 2020 | E85: 2016 | F85: General Plant | G85: ='App.2-AB_Capital Expenditures'!AD14 -> 2022 | H85: ='App.2-AB_Capital Expenditures'!AD20 -> 582.4
A86: ='LDC Info'!$E$14 -> Halton Hills Hydro Inc. | B86: EB-2020-0026 | C86: 2021 | D86: 2020 | E86: 2016 | F86: Total Expenditure | G86: ='App.2-AB_Capital Expenditures'!AD14 -> 2022 | H86: ='App.2-AB_Capital Expenditures'!AD21 -> 6172.203155
A87: ='LDC Info'!$E$14 -> Halton Hills Hydro Inc. | B87: EB-2020-0026 | C87: 2021 | D87: 2020 | E87: 2016 | F87: Capital Contributions | G87: ='App.2-AB_Capital Expenditures'!AD14 -> 2022 | H87: ='App.2-AB_Capital Expenditures'!AD22 -> 885.391955
A88: ='LDC Info'!$E$14 -> Halton Hills Hydro Inc. | B88: EB-2020-0026 | C88: 2021 | D88: 2020 | E88: 2016 | F88: Net Capital Expenditures | G88: ='App.2-AB_Capital Expenditures'!AD14 -> 2022 | H88: ='App.2-AB_Capital Expenditures'!AD23 -> 5286.8112
A89: ='LDC Info'!$E$14 -> Halton Hills Hydro Inc. | B89: EB-2020-0026 | C89: 2021 | D89: 2020 | E89: 2016 | F89: System O&M | G89: ='App.2-AB_Capital Expenditures'!AD14 -> 2022 | H89: ='App.2-AB_Capital Expenditures'!AD24 -> 1769
A90: ='LDC Info'!$E$14 -> Halton Hills Hydro Inc. | B90: EB-2020-0026 | C90: 2021 | D90: 2020 | E90: 2016 | F90: System Access | G90: ='App.2-AB_Capital Expenditures'!AE14 -> 2023 | H90: ='App.2-AB_Capital Expenditures'!AE17 -> 3242.600155
A91: ='LDC Info'!$E$14 -> Halton Hills Hydro Inc. | B91: EB-2020-0026 | C91: 2021 | D91: 2020 | E91: 2016 | F91: System Renewal | G91: ='App.2-AB_Capital Expenditures'!AE14 -> 2023 | H91: ='App.2-AB_Capital Expenditures'!AE18 -> 1427.270023
A92: ='LDC Info'!$E$14 -> Halton Hills Hydro Inc. | B92: EB-2020-0026 | C92: 2021 | D92: 2020 | E92: 2016 | F92: System Service | G92: ='App.2-AB_Capital Expenditures'!AE14 -> 2023 | H92: ='App.2-AB_Capital Expenditures'!AE19 -> 1424.209
A93: ='LDC Info'!$E$14 -> Halton Hills Hydro Inc. | B93: EB-2020-0026 | C93: 2021 | D93: 2020 | E93: 2016 | F93: General Plant | G93: ='App.2-AB_Capital Expenditures'!AE14 -> 2023 | H93: ='App.2-AB_Capital Expenditures'!AE20 -> 606.94
A94: ='LDC Info'!$E$14 -> Halton Hills Hydro Inc. | B94: EB-2020-0026 | C94: 2021 | D94: 2020 | E94: 2016 | F94: Total Expenditure | G94: ='App.2-AB_Capital Expenditures'!AE14 -> 2023 | H94: ='App.2-AB_Capital Expenditures'!AE21 -> 6701.019178
A95: ='LDC Info'!$E$14 -> Halton Hills Hydro Inc. | B95: EB-2020-0026 | C95: 2021 | D95: 2020 | E95: 2016 | F95: Capital Contributions | G95: ='App.2-AB_Capital Expenditures'!AE14 -> 2023 | H95: ='App.2-AB_Capital Expenditures'!AE22 -> 1479.195745
A96: ='LDC Info'!$E$14 -> Halton Hills Hydro Inc. | B96: EB-2020-0026 | C96: 2021 | D96: 2020 | E96: 2016 | F96: Net Capital Expenditures | G96: ='App.2-AB_Capital Expenditures'!AE14 -> 2023 | H96: ='App.2-AB_Capital Expenditures'!AE23 -> 5221.823433
A97: ='LDC Info'!$E$14 -> Halton Hills Hydro Inc. | B97: EB-2020-0026 | C97: 2021 | D97: 2020 | E97: 2016 | F97: System O&M | G97: ='App.2-AB_Capital Expenditures'!AE14 -> 2023 | H97: ='App.2-AB_Capital Expenditures'!AE24 -> 1769
A98: ='LDC Info'!$E$14 -> Halton Hills Hydro Inc. | B98: =EBNUMBER -> EB-2020-0026 | C98: =TestYear -> 2021 | D98: =BridgeYear -> 2020 | E98: =RebaseYear -> 2016 | F98: System Access | G98: ='App.2-AB_Capital Expenditures'!AF14 -> 2024 | H98: ='App.2-AB_Capital Expenditures'!AF17 -> 2999.303919
A99: ='LDC Info'!$E$14 -> Halton Hills Hydro Inc. | B99: EB-2020-0026 | C99: 2021 | D99: 2020 | E99: 2016 | F99: System Renewal | G99: ='App.2-AB_Capital Expenditures'!AF14 -> 2024 | H99: ='App.2-AB_Capital Expenditures'!AF18 -> 1775.779017
A100: ='LDC Info'!$E$14 -> Halton Hills Hydro Inc. | B100: EB-2020-0026 | C100: 2021 | D100: 2020 | E100: 2016 | F100: System Service | G100: ='App.2-AB_Capital Expenditures'!AF14 -> 2024 | H100: ='App.2-AB_Capital Expenditures'!AF19 -> 967.525
A101: ='LDC Info'!$E$14 -> Halton Hills Hydro Inc. | B101: EB-2020-0026 | C101: 2021 | D101: 2020 | E101: 2016 | F101: General Plant | G101: ='App.2-AB_Capital Expenditures'!AF14 -> 2024 | H101: ='App.2-AB_Capital Expenditures'!AF20 -> 694.26
A102: ='LDC Info'!$E$14 -> Halton Hills Hydro Inc. | B102: EB-2020-0026 | C102: 2021 | D102: 2020 | E102: 2016 | F102: Total Expenditure | G102: ='App.2-AB_Capital Expenditures'!AF14 -> 2024 | H102: ='App.2-AB_Capital Expenditures'!AF21 -> 6436.867936
A103: ='LDC Info'!$E$14 -> Halton Hills Hydro Inc. | B103: EB-2020-0026 | C103: 2021 | D103: 2020 | E103: 2016 | F103: Capital Contributions | G103: ='App.2-AB_Capital Expenditures'!AF14 -> 2024 | H103: ='App.2-AB_Capital Expenditures'!AF22 -> 1391.127652
A104: ='LDC Info'!$E$14 -> Halton Hills Hydro Inc. | B104: EB-2020-0026 | C104: 2021 | D104: 2020 | E104: 2016 | F104: Net Capital Expenditures | G104: ='App.2-AB_Capital Expenditures'!AF14 -> 2024 | H104: ='App.2-AB_Capital Expenditures'!AF23 -> 5045.740284
A105: ='LDC Info'!$E$14 -> Halton Hills Hydro Inc. | B105: EB-2020-0026 | C105: 2021 | D105: 2020 | E105: 2016 | F105: System O&M | G105: ='App.2-AB_Capital Expenditures'!AF14 -> 2024 | H105: ='App.2-AB_Capital Expenditures'!AF24 -> 1769
A106: ='LDC Info'!$E$14 -> Halton Hills Hydro Inc. | B106: EB-2020-0026 | C106: 2021 | D106: 2020 | E106: 2016 | F106: System Access | G106: ='App.2-AB_Capital Expenditures'!AG14 -> 2025 | H106: ='App.2-AB_Capital Expenditures'!AG17 -> 2098.536871
A107: ='LDC Info'!$E$14 -> Halton Hills Hydro Inc. | B107: EB-2020-0026 | C107: 2021 | D107: 2020 | E107: 2016 | F107: System Renewal | G107: ='App.2-AB_Capital Expenditures'!AG14 -> 2025 | H107: ='App.2-AB_Capital Expenditures'!AG18 -> 2425.405
A108: ='LDC Info'!$E$14 -> Halton Hills Hydro Inc. | B108: EB-2020-0026 | C108: 2021 | D108: 2020 | E108: 2016 | F108: System Service | G108: ='App.2-AB_Capital Expenditures'!AG14 -> 2025 | H108: ='App.2-AB_Capital Expenditures'!AG19 -> 1099.38
A109: ='LDC Info'!$E$14 -> Halton Hills Hydro Inc. | B109: EB-2020-0026 | C109: 2021 | D109: 2020 | E109: 2016 | F109: General Plant | G109: ='App.2-AB_Capital Expenditures'!AG14 -> 2025 | H109: ='App.2-AB_Capital Expenditures'!AG20 -> 618.14
A110: ='LDC Info'!$E$14 -> Halton Hills Hydro Inc. | B110: EB-2020-0026 | C110: 2021 | D110: 2020 | E110: 2016 | F110: Total Expenditure | G110: ='App.2-AB_Capital Expenditures'!AG14 -> 2025 | H110: ='App.2-AB_Capital Expenditures'!AG21 -> 6241.461871
A111: ='LDC Info'!$E$14 -> Halton Hills Hydro Inc. | B111: EB-2020-0026 | C111: 2021 | D111: 2020 | E111: 2016 | F111: Capital Contributions | G111: ='App.2-AB_Capital Expenditures'!AG14 -> 2025 | H111: ='App.2-AB_Capital Expenditures'!AG22 -> 997.2803698
A112: ='LDC Info'!$E$14 -> Halton Hills Hydro Inc. | B112: EB-2020-0026 | C112: 2021 | D112: 2020 | E112: 2016 | F112: Net Capital Expenditures | G112: ='App.2-AB_Capital Expenditures'!AG14 -> 2025 | H112: ='App.2-AB_Capital Expenditures'!AG23 -> 5244.181501
A113: ='LDC Info'!$E$14 -> Halton Hills Hydro Inc. | B113: EB-2020-0026 | C113: 2021 | D113: 2020 | E113: 2016 | F113: System O&M | G113: ='App.2-AB_Capital Expenditures'!AG14 -> 2025 | H113: ='App.2-AB_Capital Expenditures'!AG24 -> 1769

Sheet App.2-AC_Customer Engagement
B1: File Number: | C1: =EBNUMBER -> EB-2020-0026
B2: Exhibit:
B3: Tab:
B4: Schedule:
B5: Page: | C5: Settlement
B7: Date: | C7: 2021-02-08
A9: Appendix 2-AC
A10: Customer Engagement Activities Summary
A12: Provide a list of customer engagement activities | B12: Provide a list of customer needs and preferences identified through each engagement activity | C12: Actions taken to respond to identified needs and preferences. If no action was taken, explain why.
A13: Earth Day Sustainability Fair - 2017, 2018, 2019 | B13: Main customer focus is on Time of Use rates. Previous years focused on CDM programming. | C13: Providing information about Time of Use and HHHI's AccountOnline portal where customers can view their energy data. Until CDM programs ended, focus was on providing customers with program information and on the coupon program.
A14: Canada Day in Glen Williams - 2016, 2017, 2018 | B14: Main customer focus is on Time of Use rates. Previous years focused on CDM programming. | C14: Providing information about Time of Use and HHHI's AccountOnline portal where customers can view their energy data. Until CDM programs ended, focus was on providing customers with program information and on the coupon program.
A15: Leathertown Festival - 2016, 2017, 2018, 2019 | B15: 2019 focus was on customer engagement for distribution system plan. Customers interested in proactive replacement.Customers concerned about rates, particularly Time of Use. Main customer focus is on Time of Use rates. Previous years focused on CDM programming. | C15: 2019: Paper surveys provided for DSP engagement and input. Proactive replacement projects are a strong focus of this DSP.
A16: Acton Fall Fair - 2016 | B16: Focus was on CDM programming and coupon program. | C16: Until CDM programs ended, focus was on providing customers with program information and on the coupon program.
A17: Georgetown Fall Fair - 2016 | B17: Focus was on CDM programming and coupon program. | C17: Until CDM programs ended, focus was on providing customers with program information and on the coupon program.
A18: Halton Hills Hydro Community Open House - 2019 | B18: Customer engagement for distribution system plan. Customers interested in proactive replacement.Customers concerned about rates, particularly Time of Use. | C18: 2019: Paper surveys provided for DSP engagement and input. Proactive replacement projects are a strong focus of this DSP.
A19: Georgetown Santa Claus Parade - 2017, 2018 | B19: Community engagement - participated in the parade - brand awareness | C19: not applicable
A20: Acton Santa Claus Parade - 2017, 2018, 2019 | B20: Community engagement - participated in the parade - brand awareness | C20: not applicable
A21: Mayor's Bowl for Kids Sake - 2016, 2017, 2018, 2019 | B21: Community engagement - participated in the parade - brand awareness | C21: not applicable
A22: Halton Hills Home Show - 2016, 2017, 2018, 2019 | B22: Main customer focus is on Time of Use rates. Previous years focused on CDM programming. | C22: Providing information about Time of Use and HHHI's AccountOnline portal where customers can view their energy data. Until CDM programs ended, focus was on providing customers with program information and on the coupon program.
A23: School Education Program - Annual | B23: Safety education for children K-8 | C23: Focus on electrical safety, padmount transformer & overhead powerline safety
A24: Dig Safe Month - Annually in April | B24: Customer awareness of the importance of call before you dig still remains lower than optimal based on survey responses. | C24: Strong promotion of the importance of using Ontario1Call throughout the month of April and through the entire digging season to spread as much awareness as possible.
A25: Powerline Safety Week - Annually in May | B25: Safety awareness is improving, however, awareness around how close you can come to overhead powerlines is still less than optimal based on survey responses. | C25: Promotion of ESA messaging around powerline safety. Partnered with a number of LDCs on the creation of a series of short animated videos with powerline safety and call before you dig messaging.
A26: Halton Hills Hydro LinkedIn - since 2014 | B26: Customers want a source of information for coprorate updates and news releases. 2.5% of HHHI customers follow the HHHI LinkedIn page. | C26: News releases, updates, rate information and career information posted on LinkedIn
A27: Halton Hills Hydro Instagram - since 2018 | B27: Customers want information on holiday business hours, up to date sources of electricity safety information and information about accessing HHHI services. 3% of HHHI customers follow the Instagram page. | C27: HHHI regularly updates Instagram with holiday changes in office hours and updated links and information to utility services and on electrical safety informaiton.
A28: Halton Hills Hydro Facebook - since 2012 | B28: Customers trust HHHI's social media sites as the source for up to date power outage information and other updates from the utility. 14% of HHHI customers follow the Facebook page but activity on individual posts during larger power outages can be much higher than that. Customers are actively engaged with HHHI on social media, and particularly on Facebook. Individual non power outage related posts typically reach 300-1000 users, power outage posts can reach several thousand depending on the scale of outage. | C28: Power outage information is posted simultaneously to HHHI's power outage map on the corporate website and to Twitter and Facebook by the Control Room. Large scale outages are also managed on social media through additional staff to ensure timely responses to customer questions and concerns. The site is also used to provide information on customer self-service options, utility information, electrical safety information and community updates.
A29: Halton Hills Hydro Twitter - since 2013 | B29: Customers trust HHHI's social media sites as the source for up to date power outage information and other updates from the utility. 19% of HHHI customers follow the Twitter page but activity on individual posts during larger power outages can be much higher than that. Customers are actively engaged with HHHI on social media. Individual non power outage related posts typically reach 300-1000 users, power outage posts can reach several thousand depending on the scale of outage. | C29: Power outage information is posted simultaneously to HHHI's power outage map on the corporate website and to Twitter and Facebook by the Control Room. Large scale outages are also managed on social media through additional staff to ensure timely responses to customer questions and concerns. The site is also used to provide information on customer self-service options, utility information, electrical safety information and community updates.
A30: Customer Satisfaction Survey - 2016, 2018 | B30: Customers generally associate the entire bill with HHHI, not just the delivery portion and continue to express concern over the cost of electricity and TOU pricing. HHHI has received an overall A grade in the past 4 surveys and an A+ in reliability an doperational effectiveness. 2018 Satisfaction score was 95% and credibility and trust was 87%. Recommendations for service improvements are almost all focused on rates. | C30: HHHI continues to educate customers about the electricity bill and understanding of what part of the bill relates to HHHI. HHHI customers have a strong level of trust in the utility.
A31: Public Safety Awarenss Survey - 2016, 2018, 2020 | B31: Awareness is very good around what to do if your vehicle comes in contact with overhead powerlines, the dangers of tampering with equipment such as padmount transformers and the the danger of touching an overhead powerline. How close you can safety come to powerlines and the importance of calling before you dig are two areas where awareness in the general public needs to be increased. | C31: HHHI continues to focus public safety awareness messaging around areas where scores are lower. In particular, messaging focusing on the importance of calling before you dig is being ramped up.
A32: Have Your Say - customer engagement website - 2019-2020 | B32: Customer engagement campaign created specifically for the cost of service and distribution system plan customer engagement. Key messages: 1. Proactive replacement strategy 2. Balancing Reliability vs Cost 3. Accomodating renewable energy resources and addressing climate change 4. Customers trust HHHI to make th eright decisions. | C32: 1. Many of the projects within the DSP address a proactive replacement of aging assets strategy. 2. HHHI understands that balancing system reliability with affordable rates is a priority for the utiity's investment strategy 3. HHHI is well positioned to accomodate renewable energy projects. A number of system renewal projects and automation projects contribute to system hardening to adapt to climate change. Detailed report is attached as Appendix B of the DSP.
A33: Bill Inserts, monthly bill | B33: Monthly bill and periodic inserts issued to all customers | C33: Every HHHI customer is billed monthly. As such, this continues to be a good avenue to reach all customers. Periodic billing inserts provide current rate information and other important reminders such as call before you dig.
A34: Customer Care - telephone customer service | B34: An average of 1500 calls received per month. Highest volume of calls is around bill payment and payment arrangements. Moves and other account inquiries are the next highest number of calls. | C34: HHHI recognizes that many customers perfer to interact with their utility over the phone and continues to provide customers with information and assistance over the phone.
A35: Halton Hills Hydro website | B35: Web traffic - typically @ 1000 visitors per week. 44% of traffic is from mobile devices. The most visited pages are general inquiries, self-service moving forms and pre-authorized payment applications. Also, during power outages, the power outage map and power outage reporting form both see significant traffic. | C35: Customers rely on the HHHI website for up to date information and for self-service options for their account. The HHHI website is fully responsive so it works well on any device.
A36: Google online presence | B36: Customers use Google primarily to find website, phone number and address information for the utility. HHHI receives over 3000 direct searches per month on Google. | C36: The Google page for HHHI is kept up to date with hours of operation and regularly updated with HHHI services information.
A37: AccountOnline Customer Account Portal | B37: Typically @ 1000 visitors per week. Nearly 30% of these visitors are on mobile devices. | C37: Customers are interested in seeing their account information online. This iste is fully Green Button enabled which allows customers to download their energy data for use with third party energy management apps.
A38: E-bills | B38: Over 30% of HHHI customers receive their bills electronically. | C38: Customers want the convenience of electronic billing. Customer enrollment is steadily growning. HHHI continues to improve the email notifications customers receive to ensure they are receiving current, useful information in the e-mails they receive.
A39: Engineering Customer Engagement Activities | B39: Engineering staff regularly consult with, listen to and engage customers regarding specific projects such as pole replacements or padmount transformer locations. Customer concerns are considered and HHHI works with customers on a mutually agreeable solution. | C39: Some specific examples of customer preference affecting project outcomes: 1. Pole location on a pole line rebuild on Delrex Blvd. adjusted to address customer concerns over location. 2. A padmount transformer in a new subdivision on Danby Rd. was too close to a driveway due to incorrect driveway pabing. HHHI met with customer and agreed to install safety bollards around the transformer. 3. Acton Blvd. Poletrans replacement - HHHI staff met with customers to discuss location of new padmounted transformers and satisfied customer concerns.
A45: Note: Use "ALT-ENTER" to go to the next line within a cell

Sheet App.2-B_Acctg Instructions
A1: General Instructions to MIFRS Appendices
A2: Types of Schedules to File
A4: The purpose of this tab is to provide general instructions. The specific instructions to each appendix are listed in footnotes of each appendix.
A6: The typical applicant is expected to have made capitalization and depreciation policy changes under CGAAP as permitted by the OEB on January 1, 2012 or mandated by the OEB by January 1, 2013, and adopted IFRS for reporting purposes on January 1, 2015 (transition date January 1, 2014). Most distributors filing for 2021 rates have rebased with these accounting changes reflected in a prior rebasing application. If that is the case, information relating to pre-accounting policy changes is not generally required. Most distributors may have rebased under MIFRS. If that is the case, information related to the accounting standard used prior to IFRS is not generally required. The information to be provided by applicants will depend on when the accounting policy changes were made and when they last rebased. In general, applicants should provide the following information in the appendices:
E9: Reflecting Accounting Policy Changes in Current Application | G9: Reflected Accounting Policy Changes in Prior Application3 | H9: Rebased under MIFRS in Prior Application3
E10: Accounting Policy Changes in 2012 and Adopted IFRS in 2015 | F10: Accounting Policy Changes in 2013 and Adopted IFRS in 2015 | G10: Adopted IFRS in 2015 | H10: IFRS Since 2015
B11: 2021 | C11: Test | E11: MIFRS | F11: MIFRS | G11: MIFRS | H11: MIFRS
A12: Information to be filed in 2019 CoS Application | B12: 2020 | C12: Bridge | E12: MIFRS | F12: MIFRS | G12: MIFRS | H12: MIFRS
B13: 2019 | C13: Bridge | E13: MIFRS | F13: MIFRS | G13: MIFRS | H13: MIFRS
B14: 2018 | C14: Bridge | E14: MIFRS | F14: MIFRS | G14: MIFRS | H14: MIFRS
B15: 2017 | C15: Historical | E15: MIFRS | F15: MIFRS | G15: MIFRS | H15: MIFRS
B16: 2016 | C16: Historical | E16: MIFRS | F16: MIFRS | G16: MIFRS | H16: MIFRS
B17: 2015 | C17: Historical | E17: MIFRS and Revised CGAAP1 | F17: MIFRS and Revised CGAAP1 | G17: MIFRS and Revised CGAAP1 | H17: N/A
B18: 2014 | C18: Historical | E18: Revised CGAAP | F18: CGAAP and Revised CGAAP2 | G18: N/A | H18: N/A
B19: 2013 | C19: Historical | E19: CGAAP and Revised CGAAP2 | F19: N/A | G19: N/A | H19: N/A
A21: 1) For the transition year (2014), the applicant may file two appendices, one under Revised CGAAP and one under MIFRS, depending on the materiality of impacts. See the specific instructions under each appendix below for further details.
A22: 2) For applicants that are reflecting accounting policy changes for the first time in a rebasing application, the applicant must file two appendices in the year that the applicant implemented changes to its capitalization and depreciation policies (2012 or 2013), one before and one after the policy changes.
A23: 3) Applicants should provide CGAAP and Revised CGAAP schedules (i.e. as indicated in the first two columns of the above table) to support balances in Account 1576 if the account has yet to be disposed of.
A26: Appendix 2-BA - Fixed Asset Schedule
A28: Applicants are to provide Appendix 2-BA in accordance with the years and corresponding accounting standards noted in the above table to provide a year over year continuity in fixed assets.
A29: If this is the first application where the applicant is rebasing under MIFRS, the applicant should file two appendices, one under Revised CGAAP and one under MIFRS for the transition year (2014), if the change between Revised CGAAP and MIFRS is material. If the change from the accounting standards is not material, the applicant may choose to only provide one appendix under MIFRS. However, the applicant must also indicate the fixed asset net book value balance under Revised CGAAP, the total dollar value of the change and explain why it is not material.
A33: The applicant must establish the continuity of historical cost for gross assets and accumulated depreciation by asset class by ensuring that the opening balance in the year agrees to the closing balance in the prior year.
A36: Appendix 2-Cx - Depreciation and Amortization
A38: Applicants are to provide Appendix 2-C in accordance with the years and corresponding accounting standards listed in the above table.
A39: Appendix 2-C is to be used under all of the scenarios presented in the table above. In the appendix, the applicant will need to indicate which scenario applies. The appendix is to be duplicated for each year and for each accounting standard required as per the above table.
A40: Depreciation accounting policy changes were mandated by the OEB by January 1, 2013. In general, no further changes to an applicant's depreciation policy (i.e. assets' service lives) are expected after the OEB mandated changes by January 1, 2013, unless a change is determined to be necessary in accordance with the depreciation review required under IFRS. If the applicant has made any changes to its depreciation policy subsequent to the OEB mandated changes, for the year of the change, applicants must quantify the change in depreciation. If there are significant changes to multiple asset classes, the applicant must complete Appendix 2-C before and after the change. Applicants must also explain the nature of the change, the reason for the change, quantify the impact of the change.
A42: Appendix 2-E - Account 1575, IFRS-CGAAP Transitional PP&E Amounts (2-EA), Account 1576, Accounting Changes Under CGAAP (2-EB, 2-EC) CONTACT OEB STAFF IF TAB REQUIRED
A44: 1) For an applicant that has a balance in Account 1576 to dispose:
A45: · | B45: If an applicant changed capitalization and depreciation policies effective January 1, 2012, the applicant must complete Appendix 2-EB
A46: · | B46: If an applicant changed capitalization and depreciation policies effective January 1, 2013, the applicant must complete Appendix 2-EC
A48: 2) For an applicant that has a balance in Account 1575 to dispose:
A49: · | B49: The applicant must complete 2-EA
A50: If the applicant did not make any further PP&E accounting policy changes beyond the capitalization and depreciation policy changes as mandated by the OEB by January 1, 2013 (i.e. no further changes made on transition to IFRS), the applicant must indicate this and does not need to complete Appendix 2-EA.
A54: Appendix 2-Y - Summary of Impacts to Revenue Requirement from Transition to MIFRS CONTACT OEB STAFF IF TAB REQUIRED
A56: Applicants must complete Appendix 2-Y if this is the first rebasing application under MIFRS. An applicant must provide a summary of the dollar impacts of MIFRS to each component of the revenue requirement (e.g. rate base, operating costs, etc.), including the overall impact on the proposed revenue requirement. Accordingly, the applicant must identify financial differences and resulting revenue requirement impacts arising from the adoption of MIFRS as compared to CGAAP. If the applicant is reflecting the changes in capitalization and depreciation policies for the first time in a rebasing application as well, then a comparison between MIFRS and CGAAP before the change in accounting policies should be completed. If the applicant changed capitalization and depreciation policies and reflected these changes in a prior rebasing application, then a comparison between MIFRS and CGAAP after the change in accounting policies should be completed.

Sheet App.2-BA_Fixed Asset Cont
L1: File Number: | M1: =EBNUMBER -> EB-2020-0026 | Z1: File Number: | AA1: =EBNUMBER -> EB-2020-0026 | AN1: File Number: | AO1: =EBNUMBER -> EB-2020-0026 | BB1: File Number: | BC1: =EBNUMBER -> EB-2020-0026 | BP1: File Number: | BQ1: =EBNUMBER -> EB-2020-0026 | CD1: File Number: | CE1: =EBNUMBER -> EB-2020-0026
L2: Exhibit: | Z2: Exhibit: | AN2: Exhibit: | BB2: Exhibit: | BP2: Exhibit: | CD2: Exhibit:
L3: Tab: | Z3: Tab: | AN3: Tab: | BB3: Tab: | BP3: Tab: | CD3: Tab:
L4: Schedule: | Z4: Schedule: | AN4: Schedule: | BB4: Schedule: | BP4: Schedule: | CD4: Schedule:
L5: Page: | M5: Settlement | Z5: Page: | AA5: Settlement | AN5: Page: | AO5: Setlement | BB5: Page: | BC5: Settlement | BP5: Page: | BQ5: Settlement | CD5: Page: | CE5: Settlement
L7: Date: | M7: 2021-02-08 | Z7: Date: | AA7: 2021-02-08 | AN7: Date: | AO7: 2021-02-08 | BB7: Date: | BC7: 2021-02-08 | BP7: Date: | BQ7: 2021-02-08 | CD7: Date: | CE7: 2021-02-08
A9: Appendix 2-BA | O9: Appendix 2-BA | AC9: Appendix 2-BA | AQ9: Appendix 2-BA | BE9: Appendix 2-BA | BS9: Appendix 2-BA
A10: Fixed Asset Continuity Schedule 1 | O10: Fixed Asset Continuity Schedule 1 | AC10: Fixed Asset Continuity Schedule 1 | AQ10: Fixed Asset Continuity Schedule 1 | BE10: Fixed Asset Continuity Schedule 1 | BS10: Fixed Asset Continuity Schedule 1
E12: Accounting Standard | F12: MIFRS | S12: Accounting Standard | T12: MIFRS | AG12: Accounting Standard | AH12: MIFRS | AU12: Accounting Standard | AV12: MIFRS | BI12: Accounting Standard | BJ12: MIFRS | BW12: Accounting Standard | BX12: MIFRS
E13: Year | F13: 2016 | S13: Year | T13: 2017 | AG13: Year | AH13: 2018 | AU13: Year | AV13: 2019 | BI13: Year | BJ13: 2020 | BW13: Year | BX13: 2021
D15: Cost | J15: Accumulated Depreciation | R15: Cost | X15: Accumulated Depreciation | AF15: Cost | AL15: Accumulated Depreciation | AT15: Cost | AZ15: Accumulated Depreciation | BH15: Cost | BN15: Accumulated Depreciation | BV15: Cost | CB15: Accumulated Depreciation
A16: CCA Class 2 | B16: OEB Account 3 | C16: Description 3 | D16: Opening Balance | E16: Additions 4 | F16: Disposals 6 | G16: Closing Balance | I16: Opening Balance | J16: Additions | K16: Disposals 6 | L16: Closing Balance | M16: Net Book Value | O16: CCA Class 2 | P16: OEB Account 3 | Q16: Description 3 | R16: Opening Balance | S16: Additions 4 | T16: Disposals 6 | U16: Closing Balance | W16: Opening Balance | X16: Additions | Y16: Disposals 6 | Z16: Closing Balance | AA16: Net Book Value | AC16: CCA Class 2 | AD16: OEB Account 3 | AE16: Description 3 | AF16: Opening Balance | AG16: Additions 4 | AH16: Disposals 6 | AI16: Closing Balance | AK16: Opening Balance | AL16: Additions | AM16: Disposals 6 | AN16: Closing Balance | AO16: Net Book Value | AQ16: CCA Class 2 | AR16: OEB Account 3 | AS16: Description 3 | AT16: Opening Balance | AU16: Additions 4 | AV16: Disposals 6 | AW16: Closing Balance | AY16: Opening Balance | AZ16: Additions | BA16: Disposals 6 | BB16: Closing Balance | BC16: Net Book Value | BE16: CCA Class 2 | BF16: OEB Account 3 | BG16: Description 3 | BH16: Opening Balance | BI16: Additions 4 | BJ16: Disposals 6 | BK16: Closing Balance | BM16: Opening Balance | BN16: Additions | BO16: Disposals 6 | BP16: Closing Balance | BQ16: Net Book Value | BS16: CCA Class 2 | BT16: OEB Account 3 | BU16: Description 3 | BV16: Opening Balance | BW16: Additions 4 | BX16: Disposals 6 | BY16: Closing Balance | CA16: Opening Balance | CB16: Additions | CC16: Disposals 6 | CD16: Closing Balance | CE16: Net Book Value
B17: 1606 | C17: Organization Costs | E17: 0 | F17: 0 | G17: =D17+E17+F17 -> 0 | I17: 0 | J17: 0 | K17: 0 | L17: =I17+J17+K17 -> 0 | M17: =G17+L17 -> 0 | P17: 1606 | Q17: Organization Costs | R17: 0 | S17: 0 | U17: =R17+S17+T17 -> 0 | W17: 0 | X17: 0 | Z17: =W17+X17+Y17 -> 0 | AA17: =U17+Z17 -> 0 | AD17: 1606 | AE17: Organization Costs | AF17: =U17 -> 0 | AG17: 0 | AI17: =AF17+AG17+AH17 -> 0 | AK17: =Z17 -> 0 | AL17: 0 | AN17: =AK17+AL17+AM17 -> 0 | AO17: =AI17+AN17 -> 0 | AR17: 1606 | AS17: Organization Costs | AT17: 0 | AU17: 0 | AW17: =AT17+AU17+AV17 -> 0 | AY17: 0 | AZ17: 0 | BB17: =AY17+AZ17+BA17 -> 0 | BC17: =AW17+BB17 -> 0 | BF17: 1606 | BG17: Organization Costs | BH17: 0 | BI17: 0 | BK17: =BH17+BI17+BJ17 -> 0 | BM17: 0 | BN17: 0 | BP17: =BM17+BN17+BO17 -> 0 | BQ17: =BK17+BP17 -> 0 | BT17: 1606 | BU17: Organization Costs | BV17: 0 | BW17: 0 | BY17: =BV17+BW17+BX17 -> 0 | CA17: 0 | CB17: 0 | CD17: =CA17+CB17+CC17 -> 0 | CE17: =BY17+CD17 -> 0
B18: 1609 | C18: Capital Contributions Paid | D18: 0 | E18: 0 | F18: 0 | G18: =D18+E18+F18 -> 0 | I18: 0 | J18: 0 | K18: 0 | L18: =I18+J18+K18 -> 0 | M18: =G18+L18 -> 0 | P18: 1609 | Q18: Capital Contributions Paid | R18: 0 | S18: 0 | U18: =R18+S18+T18 -> 0 | W18: 0 | X18: 0 | Z18: =W18+X18+Y18 -> 0 | AA18: =U18+Z18 -> 0 | AD18: 1609 | AE18: Capital Contributions Paid | AF18: =U18 -> 0 | AG18: 0 | AI18: =AF18+AG18+AH18 -> 0 | AK18: =Z18 -> 0 | AL18: 0 | AN18: =AK18+AL18+AM18 -> 0 | AO18: =AI18+AN18 -> 0 | AR18: 1609 | AS18: Capital Contributions Paid | AT18: 0 | AU18: 0 | AW18: =AT18+AU18+AV18 -> 0 | AY18: 0 | AZ18: 0 | BB18: =AY18+AZ18+BA18 -> 0 | BC18: =AW18+BB18 -> 0 | BF18: 1609 | BG18: Capital Contributions Paid | BH18: 0 | BI18: 0 | BK18: =BH18+BI18+BJ18 -> 0 | BM18: 0 | BN18: 0 | BP18: =BM18+BN18+BO18 -> 0 | BQ18: =BK18+BP18 -> 0 | BT18: 1609 | BU18: Capital Contributions Paid | BV18: 0 | BW18: 0 | BY18: =BV18+BW18+BX18 -> 0 | CA18: 0 | CB18: 0 | CD18: =CA18+CB18+CC18 -> 0 | CE18: =BY18+CD18 -> 0
A19: 12 | B19: 1611 | C19: Computer Software (Formally known as Account 1925) | D19: 933451.73 | E19: 27789.24 | F19: 0 | G19: 961240.97 | I19: -671802.97 | J19: -89235 | K19: 0 | L19: -761037.97 | M19: 200203 | O19: 12 | P19: 1611 | Q19: Computer Software (Formally known as Account 1925) | R19: 961240.97 | S19: 123563.97 | U19: 1084804.94 | W19: -761037.97 | X19: -71320 | Z19: -832357.97 | AA19: 252446.97 | AC19: 12 | AD19: 1611 | AE19: Computer Software (Formally known as Account 1925) | AF19: 1084804.94 | AG19: 43495.86 | AI19: 1128300.8 | AK19: -832357.97 | AL19: -51306.37 | AN19: -883664.34 | AO19: 244636.46 | AQ19: 12 | AR19: 1611 | AS19: Computer Software (Formally known as Account 1925) | AT19: 1128300.8 | AU19: 179320.45 | AW19: 1307621.25 | AY19: -883664.34 | AZ19: -51211.2 | BB19: -934875.54 | BC19: 372745.71 | BE19: 12 | BF19: 1611 | BG19: Computer Software (Formally known as Account 1925) | BH19: 1307621.25 | BI19: 126895 | BK19: 1434516.25 | BM19: -934875.54 | BN19: -81833.5 | BP19: -1016709.04 | BQ19: 417807.21 | BS19: 12 | BT19: 1611 | BU19: Computer Software (Formally known as Account 1925) | BV19: 1434516.25 | BW19: 32000 | BY19: 1466516.25 | CA19: -1016709.04 | CB19: -97723 | CD19: -1114432.04 | CE19: 352084.21
A20: CEC | B20: 1612 | C20: Land Rights (Formally known as Account 1906) | D20: 4738.32 | E20: 0 | F20: 0 | G20: 4738.32 | I20: 0 | J20: 0 | K20: 0 | L20: 0 | M20: 4738.32 | O20: CEC | P20: 1612 | Q20: Land Rights (Formally known as Account 1906) | R20: 4738.32 | S20: 0 | U20: 4738.32 | W20: 0 | X20: 0 | Z20: 0 | AA20: 4738.32 | AC20: CEC | AD20: 1612 | AE20: Land Rights (Formally known as Account 1906) | AF20: 4738.32 | AG20: 0 | AI20: 4738.32 | AK20: 0 | AL20: 0 | AN20: 0 | AO20: 4738.32 | AQ20: CEC | AR20: 1612 | AS20: Land Rights (Formally known as Account 1906) | AT20: 4738.32 | AU20: 0 | AW20: 4738.32 | AY20: 0 | AZ20: 0 | BB20: 0 | BC20: 4738.32 | BE20: CEC | BF20: 1612 | BG20: Land Rights (Formally known as Account 1906) | BH20: 4738.32 | BI20: 0 | BK20: 4738.32 | BM20: 0 | BN20: 0 | BP20: 0 | BQ20: 4738.32 | BS20: CEC | BT20: 1612 | BU20: Land Rights (Formally known as Account 1906) | BV20: 4738.32 | BW20: 0 | BY20: 4738.32 | CA20: 0 | CB20: 0 | CD20: 0 | CE20: 4738.32
A21: N/A | B21: 1805 | C21: Land | D21: 0 | E21: 0 | F21: 0 | G21: 0 | I21: 0 | J21: 0 | K21: 0 | L21: 0 | M21: 0 | O21: N/A | P21: 1805 | Q21: Land | R21: 0 | S21: 0 | U21: 0 | W21: 0 | X21: 0 | Z21: 0 | AA21: 0 | AC21: N/A | AD21: 1805 | AE21: Land | AF21: 0 | AG21: 0 | AI21: 0 | AK21: 0 | AL21: 0 | AN21: 0 | AO21: 0 | AQ21: N/A | AR21: 1805 | AS21: Land | AT21: 0 | AU21: 980478.61 | AW21: 980478.61 | AY21: 0 | AZ21: 0 | BB21: 0 | BC21: 980478.61 | BE21: N/A | BF21: 1805 | BG21: Land | BH21: 980478.61 | BI21: 0 | BK21: 980478.61 | BM21: 0 | BN21: 0 | BP21: 0 | BQ21: 980478.61 | BS21: N/A | BT21: 1805 | BU21: Land | BV21: 980478.61 | BW21: 0 | BY21: 980478.61 | CA21: 0 | CB21: 0 | CD21: 0 | CE21: 980478.61
A22: 47 | B22: 1808 | C22: Buildings | D22: 0 | E22: 0 | F22: 0 | G22: 0 | I22: 0 | J22: 0 | K22: 0 | L22: 0 | M22: 0 | O22: 47 | P22: 1808 | Q22: Buildings | R22: 0 | S22: 0 | U22: 0 | W22: 0 | X22: 0 | Z22: 0 | AA22: 0 | AC22: 47 | AD22: 1808 | AE22: Buildings | AF22: 0 | AG22: 0 | AI22: 0 | AK22: 0 | AL22: 0 | AN22: 0 | AO22: 0 | AQ22: 47 | AR22: 1808 | AS22: Buildings | AT22: 0 | AU22: 0 | AW22: 0 | AY22: 0 | AZ22: 0 | BB22: 0 | BC22: 0 | BE22: 47 | BF22: 1808 | BG22: Buildings | BH22: 0 | BI22: 0 | BK22: 0 | BM22: 0 | BN22: 0 | BP22: 0 | BQ22: 0 | BS22: 47 | BT22: 1808 | BU22: Buildings | BV22: 0 | BW22: 0 | BY22: 0 | CA22: 0 | CB22: 0 | CD22: 0 | CE22: 0
A23: 13 | B23: 1810 | C23: Leasehold Improvements | D23: 0 | E23: 0 | F23: 0 | G23: 0 | I23: 0 | J23: 0 | K23: 0 | L23: 0 | M23: 0 | O23: 13 | P23: 1810 | Q23: Leasehold Improvements | R23: 0 | S23: 0 | U23: 0 | W23: 0 | X23: 0 | Z23: 0 | AA23: 0 | AC23: 13 | AD23: 1810 | AE23: Leasehold Improvements | AF23: 0 | AG23: 0 | AI23: 0 | AK23: 0 | AL23: 0 | AN23: 0 | AO23: 0 | AQ23: 13 | AR23: 1810 | AS23: Leasehold Improvements | AT23: 0 | AU23: 0 | AW23: 0 | AY23: 0 | AZ23: 0 | BB23: 0 | BC23: 0 | BE23: 13 | BF23: 1810 | BG23: Leasehold Improvements | BH23: 0 | BI23: 0 | BK23: 0 | BM23: 0 | BN23: 0 | BP23: 0 | BQ23: 0 | BS23: 13 | BT23: 1810 | BU23: Leasehold Improvements | BV23: 0 | BW23: 0 | BY23: 0 | CA23: 0 | CB23: 0 | CD23: 0 | CE23: 0
A24: 47 | B24: 1815 | C24: Transformer Station Equipment >50 kV | D24: 0 | E24: 0 | F24: 0 | G24: 0 | I24: 0 | J24: 0 | K24: 0 | L24: 0 | M24: 0 | O24: 47 | P24: 1815 | Q24: Transformer Station Equipment >50 kV | R24: 0 | S24: 0 | U24: 0 | W24: 0 | X24: 0 | Z24: 0 | AA24: 0 | AC24: 47 | AD24: 1815 | AE24: Transformer Station Equipment >50 kV | AF24: 0 | AG24: 0 | AI24: 0 | AK24: 0 | AL24: 0 | AN24: 0 | AO24: 0 | AQ24: 47 | AR24: 1815 | AS24: Transformer Station Equipment >50 kV | AT24: 0 | AU24: 23494533.01 | AW24: 23494533.01 | AY24: 0 | AZ24: -324926.24 | BB24: -324926.24 | BC24: 23169606.77 | BE24: 47 | BF24: 1815 | BG24: Transformer Station Equipment >50 kV | BH24: 23494533.01 | BI24: 0 | BK24: 23494533.01 | BM24: -324926.24 | BN24: -649848 | BP24: -974774.24 | BQ24: 22519758.77 | BS24: 47 | BT24: 1815 | BU24: Transformer Station Equipment >50 kV | BV24: 23494533.01 | BW24: 0 | BY24: 23494533.01 | CA24: -974774.24 | CB24: -649848 | CD24: -1624622.24 | CE24: 21869910.77
A25: 47 | B25: 1820 | C25: Distribution Station Equipment <50 kV | D25: 966717.79 | E25: 238560.14 | F25: 0 | G25: 1205277.93 | I25: -159619.34 | J25: -88515.48 | K25: 0 | L25: -248134.82 | M25: 957143.11 | O25: 47 | P25: 1820 | Q25: Distribution Station Equipment <50 kV | R25: 1205277.93 | S25: 970560.52 | U25: 2175838.45 | W25: -248134.82 | X25: -107275.72 | Z25: -355410.54 | AA25: 1820427.91 | AC25: 47 | AD25: 1820 | AE25: Distribution Station Equipment <50 kV | AF25: 2175838.45 | AG25: 17859.17 | AI25: 2193697.62 | AK25: -355410.54 | AL25: -120870.98 | AN25: -476281.52 | AO25: 1717416.1 | AQ25: 47 | AR25: 1820 | AS25: Distribution Station Equipment <50 kV | AT25: 2193697.62 | AU25: 598200.73 | AW25: 2791898.35 | AY25: -476281.52 | AZ25: -128804.13 | BB25: -605085.65 | BC25: 2186812.7 | BE25: 47 | BF25: 1820 | BG25: Distribution Station Equipment <50 kV | BH25: 2791898.35 | BI25: 209258.6432 | BK25: 3001156.993 | BM25: -605085.65 | BN25: -141587.4661 | BP25: -746673.1161 | BQ25: 2254483.877 | BS25: 47 | BT25: 1820 | BU25: Distribution Station Equipment <50 kV | BV25: 3001156.993 | BW25: 643025.62 | BY25: 3644182.613 | CA25: -746673.1161 | CB25: -155202.1067 | CD25: -901875.2227 | CE25: 2742307.39
A26: 47 | B26: 1825 | C26: Storage Battery Equipment | D26: 0 | E26: 0 | F26: 0 | G26: 0 | I26: 0 | J26: 0 | K26: 0 | L26: 0 | M26: 0 | O26: 47 | P26: 1825 | Q26: Storage Battery Equipment | R26: 0 | S26: 0 | U26: 0 | W26: 0 | X26: 0 | Z26: 0 | AA26: 0 | AC26: 47 | AD26: 1825 | AE26: Storage Battery Equipment | AF26: 0 | AG26: 0 | AI26: 0 | AK26: 0 | AL26: 0 | AN26: 0 | AO26: 0 | AQ26: 47 | AR26: 1825 | AS26: Storage Battery Equipment | AT26: 0 | AU26: 0 | AW26: 0 | AY26: 0 | AZ26: 0 | BB26: 0 | BC26: 0 | BE26: 47 | BF26: 1825 | BG26: Storage Battery Equipment | BH26: 0 | BI26: 0 | BK26: 0 | BM26: 0 | BN26: 0 | BP26: 0 | BQ26: 0 | BS26: 47 | BT26: 1825 | BU26: Storage Battery Equipment | BV26: 0 | BW26: 0 | BY26: 0 | CA26: 0 | CB26: 0 | CD26: 0 | CE26: 0
A27: 47 | B27: 1830 | C27: Poles, Towers & Fixtures | D27: 19460699.49 | E27: 3625313.82 | F27: -2363.75 | G27: 23083649.56 | I27: -809683.3 | J27: -516417.73 | K27: 232.97 | L27: -1325868.06 | M27: 21757781.5 | O27: 47 | P27: 1830 | Q27: Poles, Towers & Fixtures | R27: 23083649.56 | S27: 1882923.76 | U27: 24966573.32 | W27: -1325868.06 | X27: -556162.43 | Z27: -1882030.49 | AA27: 23084542.83 | AC27: 47 | AD27: 1830 | AE27: Poles, Towers & Fixtures | AF27: 24966573.32 | AG27: 1838091.16 | AI27: 26804664.48 | AK27: -1882030.49 | AL27: -582051.88 | AN27: -2464082.37 | AO27: 24340582.11 | AQ27: 47 | AR27: 1830 | AS27: Poles, Towers & Fixtures | AT27: 26804664.48 | AU27: 1289310.49 | AW27: 28093974.97 | AY27: -2464082.37 | AZ27: -614182.29 | BB27: -3078264.66 | BC27: 25015710.31 | BE27: 47 | BF27: 1830 | BG27: Poles, Towers & Fixtures | BH27: 28093974.97 | BI27: 1646588 | BK27: 29740562.97 | BM27: -3078264.66 | BN27: -644414 | BP27: -3722678.66 | BQ27: 26017884.31 | BS27: 47 | BT27: 1830 | BU27: Poles, Towers & Fixtures | BV27: 29740562.97 | BW27: 1751438.86 | BY27: 31492001.83 | CA27: -3722678.66 | CB27: -678394 | CD27: -4401072.66 | CE27: 27090929.17
A28: 47 | B28: 1835 | C28: Overhead Conductors & Devices | D28: 7382719.7 | E28: 136306.23 | F28: 0 | G28: 7519025.93 | I28: -408558.84 | J28: -212190.81 | K28: 0 | L28: -620749.65 | M28: 6898276.28 | O28: 47 | P28: 1835 | Q28: Overhead Conductors & Devices | R28: 7519025.93 | S28: 1075418.94 | U28: 8594444.87 | W28: -620749.65 | X28: -238392.49 | Z28: -859142.14 | AA28: 7735302.73 | AC28: 47 | AD28: 1835 | AE28: Overhead Conductors & Devices | AF28: 8594444.87 | AG28: 962688.21 | AI28: 9557133.08 | AK28: -859142.14 | AL28: -279169.56 | AN28: -1138311.7 | AO28: 8418821.38 | AQ28: 47 | AR28: 1835 | AS28: Overhead Conductors & Devices | AT28: 9557133.08 | AU28: 1625170.61 | AW28: 11182303.69 | AY28: -1138311.7 | AZ28: -309598.58 | BB28: -1447910.28 | BC28: 9734393.41 | BE28: 47 | BF28: 1835 | BG28: Overhead Conductors & Devices | BH28: 11182303.69 | BI28: 962358.5319 | BK28: 12144662.22 | BM28: -1447910.28 | BN28: -339149.76 | BP28: -1787060.04 | BQ28: 10357602.18 | BS28: 47 | BT28: 1835 | BU28: Overhead Conductors & Devices | BV28: 12144662.22 | BW28: 797171.854 | BY28: 12941834.08 | CA28: -1787060.04 | CB28: -358793.4639 | CD28: -2145853.504 | CE28: 10795980.57
A29: 47 | B29: 1840 | C29: Underground Conduit | D29: 1098446.12 | E29: 64037.9 | F29: 0 | G29: 1162484.02 | I29: -47142.58 | J29: -25817.82 | K29: 0 | L29: -72960.4 | M29: 1089523.62 | O29: 47 | P29: 1840 | Q29: Underground Conduit | R29: 1162484.02 | S29: 118808.28 | U29: 1281292.3 | W29: -72960.4 | X29: -64751.44 | Z29: -137711.84 | AA29: 1143580.46 | AC29: 47 | AD29: 1840 | AE29: Underground Conduit | AF29: 1281292.3 | AG29: 6985.34 | AI29: 1288277.64 | AK29: -137711.84 | AL29: -27112.11 | AN29: -164823.95 | AO29: 1123453.69 | AQ29: 47 | AR29: 1840 | AS29: Underground Conduit | AT29: 1288277.64 | AU29: 186911.54 | AW29: 1475189.18 | AY29: -164823.95 | AZ29: -29051.76 | BB29: -193875.71 | BC29: 1281313.47 | BE29: 47 | BF29: 1840 | BG29: Underground Conduit | BH29: 1475189.18 | BI29: 514440.591 | BK29: 1989629.771 | BM29: -193875.71 | BN29: -31659.45779 | BP29: -225535.1678 | BQ29: 1764094.603 | BS29: 47 | BT29: 1840 | BU29: Underground Conduit | BV29: 1989629.771 | BW29: 417830.197 | BY29: 2407459.968 | CA29: -225535.1678 | CB29: -36513.21756 | CD29: -262048.3854 | CE29: 2145411.583
A30: 47 | B30: 1845 | C30: Underground Conductors & Devices | D30: 8147791.33 | E30: 293762.61 | F30: 0 | G30: 8441553.94 | I30: -546399.27 | J30: -285154.21 | K30: 0 | L30: -831553.48 | M30: 7610000.46 | O30: 47 | P30: 1845 | Q30: Underground Conductors & Devices | R30: 8441553.94 | S30: 2205899.55 | U30: 10647453.49 | W30: -831553.48 | X30: -326712.66 | Z30: -1158266.14 | AA30: 9489187.35 | AC30: 47 | AD30: 1845 | AE30: Underground Conductors & Devices | AF30: 10647453.49 | AG30: 1743395.33 | AI30: 12390848.82 | AK30: -1158266.14 | AL30: -390520.72 | AN30: -1548786.86 | AO30: 10842061.96 | AQ30: 47 | AR30: 1845 | AS30: Underground Conductors & Devices | AT30: 12390848.82 | AU30: 1219797.52 | AW30: 13610646.34 | AY30: -1548786.86 | AZ30: -428558.5 | BB30: -1977345.36 | BC30: 11633300.98 | BE30: 47 | BF30: 1845 | BG30: Underground Conductors & Devices | BH30: 13610646.34 | BI30: 536830.958 | BK30: 14147477.3 | BM30: -1977345.36 | BN30: -451238.387 | BP30: -2428583.747 | BQ30: 11718893.55 | BS30: 47 | BT30: 1845 | BU30: Underground Conductors & Devices | BV30: 14147477.3 | BW30: 725099.7185 | BY30: 14872577.02 | CA30: -2428583.747 | CB30: -467012.5204 | CD30: -2895596.267 | CE30: 11976980.75
A31: 47 | B31: 1850 | C31: Line Transformers | D31: 11187369.7 | E31: 3619874.7 | F31: 0 | G31: 14807244.4 | I31: -536648.69 | J31: -371446.44 | K31: 0 | L31: -908095.13 | M31: 13899149.27 | O31: 47 | P31: 1850 | Q31: Line Transformers | R31: 14807244.4 | S31: 779722.52 | U31: 15586966.92 | W31: -908095.13 | X31: -398797.25 | Z31: -1306892.38 | AA31: 14280074.54 | AC31: 47 | AD31: 1850 | AE31: Line Transformers | AF31: 15586966.92 | AG31: 1961337.27 | AI31: 17548304.19 | AK31: -1306892.38 | AL31: -410908.27 | AN31: -1717800.65 | AO31: 15830503.54 | AQ31: 47 | AR31: 1850 | AS31: Line Transformers | AT31: 17548304.19 | AU31: 1217184.26 | AW31: 18765488.45 | AY31: -1717800.65 | AZ31: -454069.03 | BB31: -2171869.68 | BC31: 16593618.77 | BE31: 47 | BF31: 1850 | BG31: Line Transformers | BH31: 18765488.45 | BI31: 629303.7941 | BK31: 19394792.24 | BM31: -2171869.68 | BN31: -480078.2974 | BP31: -2651947.977 | BQ31: 16742844.27 | BS31: 47 | BT31: 1850 | BU31: Line Transformers | BV31: 19394792.24 | BW31: 895781.4173 | BY31: 20290573.66 | CA31: -2651947.977 | CB31: -503149.6337 | CD31: -3155097.611 | CE31: 17135476.05
A32: 47 | B32: 1855 | C32: Services (Overhead & Underground) | D32: 36954.94 | E32: 31708 | F32: 0 | G32: 68662.94 | I32: 0 | J32: -1056.22 | K32: 0 | L32: -1056.22 | M32: 67606.72 | O32: 47 | P32: 1855 | Q32: Services (Overhead & Underground) | R32: 68662.94 | S32: 325611.36 | U32: 394274.3 | W32: -1056.22 | X32: -11573.32 | Z32: -12629.54 | AA32: 381644.76 | AC32: 47 | AD32: 1855 | AE32: Services (Overhead & Underground) | AF32: 394274.3 | AG32: 233877.31 | AI32: 628151.61 | AK32: -12629.54 | AL32: -26366.91 | AN32: -38996.45 | AO32: 589155.16 | AQ32: 47 | AR32: 1855 | AS32: Services (Overhead & Underground) | AT32: 628151.61 | AU32: 168461.38 | AW32: 796612.99 | AY32: -38996.45 | AZ32: -30390.36 | BB32: -69386.81 | BC32: 727226.18 | BE32: 47 | BF32: 1855 | BG32: Services (Overhead & Underground) | BH32: 796612.99 | BI32: 508311.1351 | BK32: 1304924.125 | BM32: -69386.81 | BN32: -37159.11135 | BP32: -106545.9214 | BQ32: 1198378.204 | BS32: 47 | BT32: 1855 | BU32: Services (Overhead & Underground) | BV32: 1304924.125 | BW32: 216646.4385 | BY32: 1521570.564 | CA32: -106545.9214 | CB32: -44408.68709 | CD32: -150954.6084 | CE32: 1370615.955
A33: 47 | B33: 1860 | C33: Meters | D33: 3338613.67 | E33: 24252.17 | F33: 0 | G33: 3362865.84 | I33: -336168.17 | J33: -170579.44 | K33: 0 | L33: -506747.61 | M33: 2856118.23 | O33: 47 | P33: 1860 | Q33: Meters | R33: 3362865.84 | S33: 306657.1 | U33: 3669522.94 | W33: -506747.61 | X33: -181009.45 | Z33: -687757.06 | AA33: 2981765.88 | AC33: 47 | AD33: 1860 | AE33: Meters | AF33: 3669522.94 | AG33: 325705.33 | AI33: 3995228.27 | AK33: -687757.06 | AL33: -201377.04 | AN33: -889134.1 | AO33: 3106094.17 | AQ33: 47 | AR33: 1860 | AS33: Meters | AT33: 3995228.27 | AU33: 638312.7 | AW33: 4633540.97 | AY33: -889134.1 | AZ33: -232535.93 | BB33: -1121670.03 | BC33: 3511870.94 | BE33: 47 | BF33: 1860 | BG33: Meters | BH33: 4633540.97 | BI33: 531196.1241 | BK33: 5164737.094 | BM33: -1121670.03 | BN33: -267812.9923 | BP33: -1389483.022 | BQ33: 3775254.072 | BS33: 47 | BT33: 1860 | BU33: Meters | BV33: 5164737.094 | BW33: 326945.792 | BY33: 5491682.886 | CA33: -1389483.022 | CB33: -290356.3044 | CD33: -1679839.327 | CE33: 3811843.559
A34: 47 | B34: 1860 | C34: Meters (Smart Meters) | F34: 0 | G34: 0 | K34: 0 | L34: 0 | M34: 0 | O34: 47 | P34: 1860 | Q34: Meters (Smart Meters) | R34: 0 | U34: 0 | W34: 0 | Z34: 0 | AA34: 0 | AC34: 47 | AD34: 1860 | AE34: Meters (Smart Meters) | AF34: 0 | AI34: 0 | AK34: 0 | AN34: 0 | AO34: 0 | AQ34: 47 | AR34: 1860 | AS34: Meters (Smart Meters) | AT34: 0 | AW34: 0 | AY34: 0 | BB34: 0 | BC34: 0 | BE34: 47 | BF34: 1860 | BG34: Meters (Smart Meters) | BH34: 0 | BK34: 0 | BM34: 0 | BP34: 0 | BQ34: 0 | BS34: 47 | BT34: 1860 | BU34: Meters (Smart Meters) | BV34: 0 | BY34: 0 | CA34: 0 | CD34: 0 | CE34: 0
A35: N/A | B35: 1905 | C35: Land | D35: 1571819.41 | E35: 0 | F35: 0 | G35: 1571819.41 | I35: 0 | J35: 0 | K35: 0 | L35: 0 | M35: 1571819.41 | O35: N/A | P35: 1905 | Q35: Land | R35: 1571819.41 | S35: 0 | U35: 1571819.41 | W35: 0 | X35: 0 | Z35: 0 | AA35: 1571819.41 | AC35: N/A | AD35: 1905 | AE35: Land | AF35: 1571819.41 | AG35: 0 | AI35: 1571819.41 | AK35: 0 | AL35: 0 | AN35: 0 | AO35: 1571819.41 | AQ35: N/A | AR35: 1905 | AS35: Land | AT35: 1571819.41 | AU35: -980478.61 | AW35: 591340.8 | AY35: 0 | AZ35: 0 | BB35: 0 | BC35: 591340.8 | BE35: N/A | BF35: 1905 | BG35: Land | BH35: 591340.8 | BI35: 0 | BK35: 591340.8 | BM35: 0 | BN35: 0 | BP35: 0 | BQ35: 591340.8 | BS35: N/A | BT35: 1905 | BU35: Land | BV35: 591340.8 | BW35: 0 | BY35: 591340.8 | CA35: 0 | CB35: 0 | CD35: 0 | CE35: 591340.8
A36: 47 | B36: 1908 | C36: Buildings & Fixtures | D36: 2699426.01 | E36: 46742.49 | F36: 0 | G36: 2746168.5 | I36: -164588.02 | J36: -86450.56 | K36: 0 | L36: -251038.58 | M36: 2495129.92 | O36: 47 | P36: 1908 | Q36: Buildings & Fixtures | R36: 2746168.5 | S36: 58174.93 | U36: 2804343.43 | W36: -251038.58 | X36: -87476.25 | Z36: -338514.83 | AA36: 2465828.6 | AC36: 47 | AD36: 1908 | AE36: Buildings & Fixtures | AF36: 2804343.43 | AG36: 71249 | AI36: 2875592.43 | AK36: -338514.83 | AL36: -89017.01 | AN36: -427531.84 | AO36: 2448060.59 | AQ36: 47 | AR36: 1908 | AS36: Buildings & Fixtures | AT36: 2875592.43 | AU36: 100493.02 | AW36: 2976085.45 | AY36: -427531.84 | AZ36: -91061.56 | BB36: -518593.4 | BC36: 2457492.05 | BE36: 47 | BF36: 1908 | BG36: Buildings & Fixtures | BH36: 2976085.45 | BI36: 0 | BK36: 2976085.45 | BM36: -518593.4 | BN36: -92484 | BP36: -611077.4 | BQ36: 2365008.05 | BS36: 47 | BT36: 1908 | BU36: Buildings & Fixtures | BV36: 2976085.45 | BW36: 60000 | BY36: 3036085.45 | CA36: -611077.4 | CB36: -93198.28571 | CD36: -704275.6857 | CE36: 2331809.764
A37: 13 | B37: 1910 | C37: Leasehold Improvements | D37: 0 | E37: 0 | F37: 0 | G37: 0 | I37: 0 | J37: 0 | K37: 0 | L37: 0 | M37: 0 | O37: 13 | P37: 1910 | Q37: Leasehold Improvements | R37: 0 | S37: 0 | U37: 0 | W37: 0 | X37: 0 | Z37: 0 | AA37: 0 | AC37: 13 | AD37: 1910 | AE37: Leasehold Improvements | AF37: 0 | AG37: 0 | AI37: 0 | AK37: 0 | AL37: 0 | AN37: 0 | AO37: 0 | AQ37: 13 | AR37: 1910 | AS37: Leasehold Improvements | AT37: 0 | AU37: 0 | AW37: 0 | AY37: 0 | AZ37: 0 | BB37: 0 | BC37: 0 | BE37: 13 | BF37: 1910 | BG37: Leasehold Improvements | BH37: 0 | BI37: 0 | BK37: 0 | BM37: 0 | BN37: 0 | BP37: 0 | BQ37: 0 | BS37: 13 | BT37: 1910 | BU37: Leasehold Improvements | BV37: 0 | BW37: 0 | BY37: 0 | CA37: 0 | CB37: 0 | CD37: 0 | CE37: 0
A38: 8 | B38: 1915 | C38: Office Furniture & Equipment (10 years) | D38: 197290.04 | E38: 22642 | F38: 0 | G38: 219932.04 | I38: -88335.85 | J38: -42281.75 | K38: 0 | L38: -130617.6 | M38: 89314.44 | O38: 8 | P38: 1915 | Q38: Office Furniture & Equipment (10 years) | R38: 219932.04 | S38: 538 | U38: 220470.04 | W38: -130617.6 | X38: -25444.03 | Z38: -156061.63 | AA38: 64408.41 | AC38: 8 | AD38: 1915 | AE38: Office Furniture & Equipment (10 years) | AF38: 220470.04 | AG38: 2677 | AI38: 223147.04 | AK38: -156061.63 | AL38: -24325.66 | AN38: -180387.29 | AO38: 42759.75 | AQ38: 8 | AR38: 1915 | AS38: Office Furniture & Equipment (10 years) | AT38: 223147.04 | AU38: 472 | AW38: 223619.04 | AY38: -180387.29 | AZ38: -24355.01 | BB38: -204742.3 | BC38: 18876.74 | BE38: 8 | BF38: 1915 | BG38: Office Furniture & Equipment (10 years) | BH38: 223619.04 | BI38: 0 | BK38: 223619.04 | BM38: -204742.3 | BN38: -18877 | BP38: -223619.3 | BQ38: -0.26 | BS38: 8 | BT38: 1915 | BU38: Office Furniture & Equipment (10 years) | BV38: 223619.04 | BW38: 10000 | BY38: 233619.04 | CA38: -223619.3 | CB38: -1000 | CD38: -224619.3 | CE38: 8999.74
A39: 8 | B39: 1915 | C39: Office Furniture & Equipment (5 years) | F39: 0 | G39: 0 | K39: 0 | L39: 0 | M39: 0 | O39: 8 | P39: 1915 | Q39: Office Furniture & Equipment (5 years) | R39: 0 | U39: 0 | W39: 0 | Z39: 0 | AA39: 0 | AC39: 8 | AD39: 1915 | AE39: Office Furniture & Equipment (5 years) | AF39: 0 | AI39: 0 | AK39: 0 | AN39: 0 | AO39: 0 | AQ39: 8 | AR39: 1915 | AS39: Office Furniture & Equipment (5 years) | AT39: 0 | AW39: 0 | AY39: 0 | BB39: 0 | BC39: 0 | BE39: 8 | BF39: 1915 | BG39: Office Furniture & Equipment (5 years) | BH39: 0 | BI39: 0 | BK39: 0 | BM39: 0 | BP39: 0 | BQ39: 0 | BS39: 8 | BT39: 1915 | BU39: Office Furniture & Equipment (5 years) | BV39: 0 | BY39: 0 | CA39: 0 | CD39: 0 | CE39: 0
A40: 10 | B40: 1920 | C40: Computer Equipment - Hardware | D40: 214039.51 | E40: 76652.65 | F40: 0 | G40: 290692.16 | I40: -95172.02 | J40: -57461 | K40: 0 | L40: -152633.02 | M40: 138059.14 | O40: 10 | P40: 1920 | Q40: Computer Equipment - Hardware | R40: 290692.16 | S40: 24472.06 | U40: 315164.22 | W40: -152633.02 | X40: -60101 | Z40: -212734.02 | AA40: 102430.2 | AC40: 10 | AD40: 1920 | AE40: Computer Equipment - Hardware | AF40: 315164.22 | AG40: 57853 | AI40: 373017.22 | AK40: -212734.02 | AL40: -54422.03 | AN40: -267156.05 | AO40: 105861.17 | AQ40: 10 | AR40: 1920 | AS40: Computer Equipment - Hardware | AT40: 373017.22 | AU40: 79104.5 | AW40: 452121.72 | AY40: -267156.05 | AZ40: -55828.18 | BB40: -322984.23 | BC40: 129137.49 | BE40: 10 | BF40: 1920 | BG40: Computer Equipment - Hardware | BH40: 452121.72 | BI40: 204395 | BK40: 656516.72 | BM40: -322984.23 | BN40: -71883.5 | BP40: -394867.73 | BQ40: 261648.99 | BS40: 10 | BT40: 1920 | BU40: Computer Equipment - Hardware | BV40: 656516.72 | BW40: 151000 | BY40: 807516.72 | CA40: -394867.73 | CB40: -107423 | CD40: -502290.73 | CE40: 305225.99
A41: 45 | B41: 1920 | C41: Computer Equip.-Hardware(Post Mar. 22/04) | F41: 0 | G41: 0 | K41: 0 | L41: 0 | M41: 0 | O41: 45 | P41: 1920 | Q41: Computer Equip.-Hardware(Post Mar. 22/04) | R41: 0 | U41: 0 | W41: 0 | Z41: 0 | AA41: 0 | AC41: 45 | AD41: 1920 | AE41: Computer Equip.-Hardware(Post Mar. 22/04) | AF41: 0 | AI41: 0 | AK41: 0 | AN41: 0 | AO41: 0 | AQ41: 45 | AR41: 1920 | AS41: Computer Equip.-Hardware(Post Mar. 22/04) | AT41: 0 | AW41: 0 | AY41: 0 | BB41: 0 | BC41: 0 | BE41: 45 | BF41: 1920 | BG41: Computer Equip.-Hardware(Post Mar. 22/04) | BH41: 0 | BK41: 0 | BM41: 0 | BP41: 0 | BQ41: 0 | BS41: 45 | BT41: 1920 | BU41: Computer Equip.-Hardware(Post Mar. 22/04) | BV41: 0 | BY41: 0 | CA41: 0 | CD41: 0 | CE41: 0
A42: 50 | B42: 1920 | C42: Computer Equip.-Hardware(Post Mar. 19/07) | F42: 0 | G42: 0 | K42: 0 | L42: 0 | M42: 0 | O42: 50 | P42: 1920 | Q42: Computer Equip.-Hardware(Post Mar. 19/07) | R42: 0 | U42: 0 | W42: 0 | Z42: 0 | AA42: 0 | AC42: 50 | AD42: 1920 | AE42: Computer Equip.-Hardware(Post Mar. 19/07) | AF42: 0 | AI42: 0 | AK42: 0 | AN42: 0 | AO42: 0 | AQ42: 50 | AR42: 1920 | AS42: Computer Equip.-Hardware(Post Mar. 19/07) | AT42: 0 | AW42: 0 | AY42: 0 | BB42: 0 | BC42: 0 | BE42: 50 | BF42: 1920 | BG42: Computer Equip.-Hardware(Post Mar. 19/07) | BH42: 0 | BK42: 0 | BM42: 0 | BP42: 0 | BQ42: 0 | BS42: 50 | BT42: 1920 | BU42: Computer Equip.-Hardware(Post Mar. 19/07) | BV42: 0 | BY42: 0 | CA42: 0 | CD42: 0 | CE42: 0
A43: 10 | B43: 1930 | C43: Transportation Equipment | D43: 1628572.69 | E43: 72450 | F43: -35426 | G43: 1665596.69 | I43: -302278.07 | J43: -172464.63 | K43: 31366.77 | L43: -443375.93 | M43: 1222220.76 | O43: 10 | P43: 1930 | Q43: Transportation Equipment | R43: 1665596.69 | S43: 441145 | U43: 2106741.69 | W43: -443375.93 | X43: -193033.32 | Z43: -636409.25 | AA43: 1470332.44 | AC43: 10 | AD43: 1930 | AE43: Transportation Equipment | AF43: 2106741.69 | AG43: 175169 | AI43: 2281910.69 | AK43: -636409.25 | AL43: -216383.84 | AN43: -852793.09 | AO43: 1429117.6 | AQ43: 10 | AR43: 1930 | AS43: Transportation Equipment | AT43: 2281910.69 | AU43: 92120 | AW43: 2374030.69 | AY43: -852793.09 | AZ43: -219461.01 | BB43: -1072254.1 | BC43: 1301776.59 | BE43: 10 | BF43: 1930 | BG43: Transportation Equipment | BH43: 2374030.69 | BI43: 360498 | BK43: 2734528.69 | BM43: -1072254.1 | BN43: -268256 | BP43: -1340510.1 | BQ43: 1394018.59 | BS43: 10 | BT43: 1930 | BU43: Transportation Equipment | BV43: 2734528.69 | BW43: 495000 | BY43: 3229528.69 | CA43: -1340510.1 | CB43: -304840 | CD43: -1645350.1 | CE43: 1584178.59
A44: 8 | B44: 1935 | C44: Stores Equipment | D44: 0 | E44: 0 | F44: 0 | G44: 0 | I44: 0 | J44: 0 | K44: 0 | L44: 0 | M44: 0 | O44: 8 | P44: 1935 | Q44: Stores Equipment | R44: 0 | S44: 0 | U44: 0 | W44: 0 | X44: 0 | Z44: 0 | AA44: 0 | AC44: 8 | AD44: 1935 | AE44: Stores Equipment | AF44: 0 | AG44: 0 | AI44: 0 | AK44: 0 | AL44: 0 | AN44: 0 | AO44: 0 | AQ44: 8 | AR44: 1935 | AS44: Stores Equipment | AT44: 0 | AU44: 0 | AW44: 0 | AY44: 0 | AZ44: 0 | BB44: 0 | BC44: 0 | BE44: 8 | BF44: 1935 | BG44: Stores Equipment | BH44: 0 | BI44: 0 | BK44: 0 | BM44: 0 | BN44: 0 | BP44: 0 | BQ44: 0 | BS44: 8 | BT44: 1935 | BU44: Stores Equipment | BV44: 0 | BW44: 0 | BY44: 0 | CA44: 0 | CB44: 0 | CD44: 0 | CE44: 0
A45: 8 | B45: 1940 | C45: Tools, Shop & Garage Equipment | D45: 392751.97 | E45: 16729.93 | F45: 0 | G45: 409481.9 | I45: -83642.73 | J45: -56335.38 | K45: 0 | L45: -139978.11 | M45: 269503.79 | O45: 8 | P45: 1940 | Q45: Tools, Shop & Garage Equipment | R45: 409481.9 | S45: 86378 | U45: 495859.9 | W45: -139978.11 | X45: -50447 | Z45: -190425.11 | AA45: 305434.79 | AC45: 8 | AD45: 1940 | AE45: Tools, Shop & Garage Equipment | AF45: 495859.9 | AG45: 80577 | AI45: 576436.9 | AK45: -190425.11 | AL45: -55215.93 | AN45: -245641.04 | AO45: 330795.86 | AQ45: 8 | AR45: 1940 | AS45: Tools, Shop & Garage Equipment | AT45: 576436.9 | AU45: 36069 | AW45: 612505.9 | AY45: -245641.04 | AZ45: -58438.67 | BB45: -304079.71 | BC45: 308426.19 | BE45: 8 | BF45: 1940 | BG45: Tools, Shop & Garage Equipment | BH45: 612505.9 | BI45: 40000 | BK45: 652505.9 | BM45: -304079.71 | BN45: -60956 | BP45: -365035.71 | BQ45: 287470.19 | BS45: 8 | BT45: 1940 | BU45: Tools, Shop & Garage Equipment | BV45: 652505.9 | BW45: 30000 | BY45: 682505.9 | CA45: -365035.71 | CB45: -64456 | CD45: -429491.71 | CE45: 253014.19
A46: 8 | B46: 1945 | C46: Measurement & Testing Equipment | D46: 0 | E46: 0 | F46: 0 | G46: 0 | I46: 0 | J46: 0 | K46: 0 | L46: 0 | M46: 0 | O46: 8 | P46: 1945 | Q46: Measurement & Testing Equipment | R46: 0 | S46: 0 | U46: 0 | W46: 0 | X46: 0 | Z46: 0 | AA46: 0 | AC46: 8 | AD46: 1945 | AE46: Measurement & Testing Equipment | AF46: 0 | AG46: 0 | AI46: 0 | AK46: 0 | AL46: 0 | AN46: 0 | AO46: 0 | AQ46: 8 | AR46: 1945 | AS46: Measurement & Testing Equipment | AT46: 0 | AU46: 0 | AW46: 0 | AY46: 0 | AZ46: 0 | BB46: 0 | BC46: 0 | BE46: 8 | BF46: 1945 | BG46: Measurement & Testing Equipment | BH46: 0 | BI46: 0 | BK46: 0 | BM46: 0 | BN46: 0 | BP46: 0 | BQ46: 0 | BS46: 8 | BT46: 1945 | BU46: Measurement & Testing Equipment | BV46: 0 | BW46: 0 | BY46: 0 | CA46: 0 | CB46: 0 | CD46: 0 | CE46: 0
A47: 8 | B47: 1950 | C47: Power Operated Equipment | D47: 0 | E47: 0 | F47: 0 | G47: 0 | I47: 0 | J47: 0 | K47: 0 | L47: 0 | M47: 0 | O47: 8 | P47: 1950 | Q47: Power Operated Equipment | R47: 0 | S47: 0 | U47: 0 | W47: 0 | X47: 0 | Z47: 0 | AA47: 0 | AC47: 8 | AD47: 1950 | AE47: Power Operated Equipment | AF47: 0 | AG47: 0 | AI47: 0 | AK47: 0 | AL47: 0 | AN47: 0 | AO47: 0 | AQ47: 8 | AR47: 1950 | AS47: Power Operated Equipment | AT47: 0 | AU47: 0 | AW47: 0 | AY47: 0 | AZ47: 0 | BB47: 0 | BC47: 0 | BE47: 8 | BF47: 1950 | BG47: Power Operated Equipment | BH47: 0 | BI47: 0 | BK47: 0 | BM47: 0 | BN47: 0 | BP47: 0 | BQ47: 0 | BS47: 8 | BT47: 1950 | BU47: Power Operated Equipment | BV47: 0 | BW47: 0 | BY47: 0 | CA47: 0 | CB47: 0 | CD47: 0 | CE47: 0
A48: 8 | B48: 1955 | C48: Communications Equipment | D48: 12169.17 | E48: 0 | F48: 0 | G48: 12169.17 | I48: -5605.69 | J48: -1819.93 | K48: 0 | L48: -7425.62 | M48: 4743.55 | O48: 8 | P48: 1955 | Q48: Communications Equipment | R48: 12169.17 | S48: 300 | U48: 12469.17 | W48: -7425.62 | X48: -893.98 | Z48: -8319.6 | AA48: 4149.57 | AC48: 8 | AD48: 1955 | AE48: Communications Equipment | AF48: 12469.17 | AG48: 7256 | AI48: 19725.17 | AK48: -8319.6 | AL48: -1019.96 | AN48: -9339.56 | AO48: 10385.61 | AQ48: 8 | AR48: 1955 | AS48: Communications Equipment | AT48: 19725.17 | AU48: 26723.92 | AW48: 46449.09 | AY48: -9339.56 | AZ48: -2511.1 | BB48: -11850.66 | BC48: 34598.43 | BE48: 8 | BF48: 1955 | BG48: Communications Equipment | BH48: 46449.09 | BI48: 0 | BK48: 46449.09 | BM48: -11850.66 | BN48: -3852 | BP48: -15702.66 | BQ48: 30746.43 | BS48: 8 | BT48: 1955 | BU48: Communications Equipment | BV48: 46449.09 | BW48: 50057.6 | BY48: 96506.69 | CA48: -15702.66 | CB48: -6354.88 | CD48: -22057.54 | CE48: 74449.15
A49: 8 | B49: 1955 | C49: Communication Equipment (Smart Meters) | F49: 0 | G49: 0 | K49: 0 | L49: 0 | M49: 0 | O49: 8 | P49: 1955 | Q49: Communication Equipment (Smart Meters) | R49: 0 | U49: 0 | W49: 0 | Z49: 0 | AA49: 0 | AC49: 8 | AD49: 1955 | AE49: Communication Equipment (Smart Meters) | AF49: 0 | AI49: 0 | AK49: 0 | AN49: 0 | AO49: 0 | AQ49: 8 | AR49: 1955 | AS49: Communication Equipment (Smart Meters) | AT49: 0 | AW49: 0 | AY49: 0 | BB49: 0 | BC49: 0 | BE49: 8 | BF49: 1955 | BG49: Communication Equipment (Smart Meters) | BH49: 0 | BI49: 0 | BK49: 0 | BM49: 0 | BP49: 0 | BQ49: 0 | BS49: 8 | BT49: 1955 | BU49: Communication Equipment (Smart Meters) | BV49: 0 | BY49: 0 | CA49: 0 | CD49: 0 | CE49: 0
A50: 8 | B50: 1960 | C50: Miscellaneous Equipment | D50: 0 | E50: 0 | F50: 0 | G50: 0 | I50: 0 | J50: 0 | K50: 0 | L50: 0 | M50: 0 | O50: 8 | P50: 1960 | Q50: Miscellaneous Equipment | R50: 0 | S50: 0 | U50: 0 | W50: 0 | X50: 0 | Z50: 0 | AA50: 0 | AC50: 8 | AD50: 1960 | AE50: Miscellaneous Equipment | AF50: 0 | AG50: 0 | AI50: 0 | AK50: 0 | AL50: 0 | AN50: 0 | AO50: 0 | AQ50: 8 | AR50: 1960 | AS50: Miscellaneous Equipment | AT50: 0 | AU50: 0 | AW50: 0 | AY50: 0 | AZ50: 0 | BB50: 0 | BC50: 0 | BE50: 8 | BF50: 1960 | BG50: Miscellaneous Equipment | BH50: 0 | BI50: 0 | BK50: 0 | BM50: 0 | BN50: 0 | BP50: 0 | BQ50: 0 | BS50: 8 | BT50: 1960 | BU50: Miscellaneous Equipment | BV50: 0 | BW50: 0 | BY50: 0 | CA50: 0 | CB50: 0 | CD50: 0 | CE50: 0
A51: 47 | B51: 1970 | C51: Load Management Controls Customer Premises | D51: 0 | E51: 0 | F51: 0 | G51: 0 | I51: 0 | J51: 0 | K51: 0 | L51: 0 | M51: 0 | O51: 47 | P51: 1970 | Q51: Load Management Controls Customer Premises | R51: 0 | S51: 0 | U51: 0 | W51: 0 | X51: 0 | Z51: 0 | AA51: 0 | AC51: 47 | AD51: 1970 | AE51: Load Management Controls Customer Premises | AF51: 0 | AG51: 0 | AI51: 0 | AK51: 0 | AL51: 0 | AN51: 0 | AO51: 0 | AQ51: 47 | AR51: 1970 | AS51: Load Management Controls Customer Premises | AT51: 0 | AU51: 0 | AW51: 0 | AY51: 0 | AZ51: 0 | BB51: 0 | BC51: 0 | BE51: 47 | BF51: 1970 | BG51: Load Management Controls Customer Premises | BH51: 0 | BI51: 0 | BK51: 0 | BM51: 0 | BN51: 0 | BP51: 0 | BQ51: 0 | BS51: 47 | BT51: 1970 | BU51: Load Management Controls Customer Premises | BV51: 0 | BW51: 0 | BY51: 0 | CA51: 0 | CB51: 0 | CD51: 0 | CE51: 0
A52: 47 | B52: 1975 | C52: Load Management Controls Utility Premises | D52: 0 | E52: 0 | F52: 0 | G52: 0 | I52: 0 | J52: 0 | K52: 0 | L52: 0 | M52: 0 | O52: 47 | P52: 1975 | Q52: Load Management Controls Utility Premises | R52: 0 | S52: 0 | U52: 0 | W52: 0 | X52: 0 | Z52: 0 | AA52: 0 | AC52: 47 | AD52: 1975 | AE52: Load Management Controls Utility Premises | AF52: 0 | AG52: 0 | AI52: 0 | AK52: 0 | AL52: 0 | AN52: 0 | AO52: 0 | AQ52: 47 | AR52: 1975 | AS52: Load Management Controls Utility Premises | AT52: 0 | AU52: 0 | AW52: 0 | AY52: 0 | AZ52: 0 | BB52: 0 | BC52: 0 | BE52: 47 | BF52: 1975 | BG52: Load Management Controls Utility Premises | BH52: 0 | BI52: 0 | BK52: 0 | BM52: 0 | BN52: 0 | BP52: 0 | BQ52: 0 | BS52: 47 | BT52: 1975 | BU52: Load Management Controls Utility Premises | BV52: 0 | BW52: 0 | BY52: 0 | CA52: 0 | CB52: 0 | CD52: 0 | CE52: 0
A53: 47 | B53: 1980 | C53: System Supervisor Equipment | D53: 605830.38 | E53: 15960 | F53: 0 | G53: 621790.38 | I53: -90469.33 | J53: -45917.06 | K53: 0 | L53: -136386.39 | M53: 485403.99 | O53: 47 | P53: 1980 | Q53: System Supervisor Equipment | R53: 621790.38 | S53: 0 | U53: 621790.38 | W53: -136386.39 | X53: -46192.15 | Z53: -182578.54 | AA53: 439211.84 | AC53: 47 | AD53: 1980 | AE53: System Supervisor Equipment | AF53: 621790.38 | AG53: 0 | AI53: 621790.38 | AK53: -182578.54 | AL53: -46192.16 | AN53: -228770.7 | AO53: 393019.68 | AQ53: 47 | AR53: 1980 | AS53: System Supervisor Equipment | AT53: 621790.38 | AU53: 0 | AW53: 621790.38 | AY53: -228770.7 | AZ53: -46192.14 | BB53: -274962.84 | BC53: 346827.54 | BE53: 47 | BF53: 1980 | BG53: System Supervisor Equipment | BH53: 621790.38 | BI53: 0 | BK53: 621790.38 | BM53: -274962.84 | BN53: -46296 | BP53: -321258.84 | BQ53: 300531.54 | BS53: 47 | BT53: 1980 | BU53: System Supervisor Equipment | BV53: 621790.38 | BW53: 0 | BY53: 621790.38 | CA53: -321258.84 | CB53: -46296 | CD53: -367554.84 | CE53: 254235.54
A54: 47 | B54: 1985 | C54: Miscellaneous Fixed Assets | D54: 0 | E54: 0 | F54: 0 | G54: 0 | I54: 0 | J54: 0 | K54: 0 | L54: 0 | M54: 0 | O54: 47 | P54: 1985 | Q54: Miscellaneous Fixed Assets | R54: 0 | S54: 0 | U54: 0 | W54: 0 | X54: 0 | Z54: 0 | AA54: 0 | AC54: 47 | AD54: 1985 | AE54: Miscellaneous Fixed Assets | AF54: 0 | AG54: 0 | AI54: 0 | AK54: 0 | AL54: 0 | AN54: 0 | AO54: 0 | AQ54: 47 | AR54: 1985 | AS54: Miscellaneous Fixed Assets | AT54: 0 | AU54: 0 | AW54: 0 | AY54: 0 | AZ54: 0 | BB54: 0 | BC54: 0 | BE54: 47 | BF54: 1985 | BG54: Miscellaneous Fixed Assets | BH54: 0 | BI54: 0 | BK54: 0 | BM54: 0 | BN54: 0 | BP54: 0 | BQ54: 0 | BS54: 47 | BT54: 1985 | BU54: Miscellaneous Fixed Assets | BV54: 0 | BW54: 0 | BY54: 0 | CA54: 0 | CB54: 0 | CD54: 0 | CE54: 0
A55: 47 | B55: 1990 | C55: Other Tangible Property | D55: 0 | E55: 0 | F55: 0 | G55: 0 | I55: 0 | J55: 0 | K55: 0 | L55: 0 | M55: 0 | O55: 47 | P55: 1990 | Q55: Other Tangible Property | R55: 0 | S55: 0 | U55: 0 | W55: 0 | X55: 0 | Z55: 0 | AA55: 0 | AC55: 47 | AD55: 1990 | AE55: Other Tangible Property | AF55: 0 | AG55: 0 | AI55: 0 | AK55: 0 | AL55: 0 | AN55: 0 | AO55: 0 | AQ55: 47 | AR55: 1990 | AS55: Other Tangible Property | AT55: 0 | AU55: 0 | AW55: 0 | AY55: 0 | AZ55: 0 | BB55: 0 | BC55: 0 | BE55: 47 | BF55: 1990 | BG55: Other Tangible Property | BH55: 0 | BI55: 0 | BK55: 0 | BM55: 0 | BN55: 0 | BP55: 0 | BQ55: 0 | BS55: 47 | BT55: 1990 | BU55: Other Tangible Property | BV55: 0 | BW55: 0 | BY55: 0 | CA55: 0 | CB55: 0 | CD55: 0 | CE55: 0
A56: 47 | B56: 1995 | C56: Contributions & Grants | D56: 0 | E56: 0 | F56: 0 | G56: 0 | I56: 0 | J56: 0 | K56: 0 | L56: 0 | M56: 0 | O56: 47 | P56: 1995 | Q56: Contributions & Grants | R56: 0 | S56: 0 | U56: 0 | W56: 0 | X56: 0 | Z56: 0 | AA56: 0 | AC56: 47 | AD56: 1995 | AE56: Contributions & Grants | AF56: 0 | AG56: 0 | AI56: 0 | AK56: 0 | AL56: 0 | AN56: 0 | AO56: 0 | AQ56: 47 | AR56: 1995 | AS56: Contributions & Grants | AT56: 0 | AU56: 0 | AW56: 0 | AY56: 0 | AZ56: 0 | BB56: 0 | BC56: 0 | BE56: 47 | BF56: 1995 | BG56: Contributions & Grants | BH56: 0 | BI56: 0 | BK56: 0 | BM56: 0 | BN56: 0 | BP56: 0 | BQ56: 0 | BS56: 47 | BT56: 1995 | BU56: Contributions & Grants | BV56: 0 | BW56: 0 | BY56: 0 | CA56: 0 | CB56: 0 | CD56: 0 | CE56: 0
B57: 2005 | C57: Property Under Finance Lease7 | D57: 0 | G57: 0 | L57: 0 | M57: 0 | P57: 2005 | Q57: Property Under Finance Lease7 | R57: 0 | S57: 0 | U57: 0 | W57: 0 | X57: 0 | Z57: 0 | AA57: 0 | AD57: 2005 | AE57: Property Under Finance Lease7 | AF57: 0 | AG57: 0 | AI57: 0 | AK57: 0 | AL57: 0 | AN57: 0 | AO57: 0 | AR57: 2005 | AS57: Property Under Finance Lease7 | AT57: 0 | AU57: 0 | AW57: 0 | AY57: 0 | AZ57: 0 | BB57: 0 | BC57: 0 | BF57: 2005 | BG57: Property Under Finance Lease7 | BH57: 0 | BI57: 0 | BK57: 0 | BM57: 0 | BN57: 0 | BP57: 0 | BQ57: 0 | BT57: 2005 | BU57: Property Under Finance Lease7 | BV57: 0 | BW57: 0 | BY57: 0 | CA57: 0 | CB57: 0 | CD57: 0 | CE57: 0
A58: 47 | B58: 2440 | C58: Deferred Revenue5 | D58: -1839299.99 | E58: -654903.31 | F58: 0 | G58: -2494203.3 | I58: 0 | J58: 249423 | K58: 0 | L58: 249423 | M58: -2244780.3 | O58: 47 | P58: 2440 | Q58: Deferred Revenue5 | R58: -2494203.3 | S58: -1480244.59 | U58: -3974447.89 | W58: 249423 | X58: 275609 | Z58: 525032 | AA58: -3449415.89 | AC58: 47 | AD58: 2440 | AE58: Deferred Revenue5 | AF58: -3974447.89 | AG58: -979444.66 | AI58: -4953892.55 | AK58: 525032 | AL58: 306583 | AN58: 831615 | AO58: -4122277.55 | AQ58: 47 | AR58: 2440 | AS58: Deferred Revenue5 | AT58: -4953892.55 | AU58: -833460.55 | AW58: -5787353.1 | AY58: 831615 | AZ58: 329196 | BB58: 1160811 | BC58: -4626542.1 | BE58: 47 | BF58: 2440 | BG58: Deferred Revenue5 | BH58: -5787353.1 | BI58: -1049738.268 | BK58: -6837091.368 | BM58: 1160811 | BN58: 352681 | BP58: 1513492 | BQ58: -5323599.368 | BS58: 47 | BT58: 2440 | BU58: Deferred Revenue5 | BV58: -6837091.368 | BW58: -1165529.255 | BY58: -8002620.623 | CA58: 1513492 | CB58: 380273.1599 | CD58: 1893765.16 | CE58: -6108855.463
G59: 0 | L59: 0 | M59: 0 | R59: 0 | U59: 0 | W59: 0 | Z59: 0 | AA59: 0 | AI59: 0 | AK59: 0 | AN59: 0 | AO59: 0 | AW59: 0 | AY59: 0 | BB59: 0 | BC59: 0 | BH59: 0 | BK59: 0 | BM59: 0 | BP59: 0 | BQ59: 0 | BY59: 0 | CA59: 0 | CD59: 0 | CE59: 0
G60: 0 | L60: 0 | M60: 0 | U60: 0 | W60: 0 | Z60: 0 | AA60: 0 | AI60: 0 | AK60: 0 | AN60: 0 | AO60: 0 | AW60: 0 | BB60: 0 | BC60: 0 | BK60: 0 | BP60: 0 | BQ60: 0 | BY60: 0 | CD60: 0 | CE60: 0
C61: Sub-Total | D61: =SUM(D17:D60) -> 58040101.98 | E61: =SUM(E17:E60) -> 7657878.57 | F61: =SUM(F17:F60) -> -37789.75 | G61: =SUM(G17:G60) -> 65660190.8 | I61: =SUM(I17:I60) -> -4346114.87 | J61: =SUM(J17:J60) -> -1973720.46 | K61: =SUM(K17:K60) -> 31599.74 | L61: =SUM(L17:L60) -> -6288235.59 | M61: =SUM(M17:M60) -> 59371955.21 | Q61: Sub-Total | R61: =SUM(R17:R60) -> 65660190.8 | S61: =SUM(S17:S60) -> 6919929.4 | T61: =SUM(T17:T60) -> 0 | U61: =SUM(U17:U60) -> 72580120.2 | W61: =SUM(W17:W60) -> -6288235.59 | X61: =SUM(X17:X60) -> -2143973.49 | Y61: =SUM(Y17:Y60) -> 0 | Z61: =SUM(Z17:Z60) -> -8432209.08 | AA61: =SUM(AA17:AA60) -> 64147911.12 | AE61: Sub-Total | AF61: =SUM(AF17:AF60) -> 72580120.2 | AG61: =SUM(AG17:AG60) -> 6548771.32 | AH61: =SUM(AH17:AH60) -> 0 | AI61: =SUM(AI17:AI60) -> 79128891.52 | AK61: =SUM(AK17:AK60) -> -8432209.08 | AL61: =SUM(AL17:AL60) -> -2269677.43 | AM61: =SUM(AM17:AM60) -> 0 | AN61: =SUM(AN17:AN60) -> -10701886.51 | AO61: =SUM(AO17:AO60) -> 68427005.01 | AS61: Sub-Total | AT61: =SUM(AT17:AT60) -> 79128891.52 | AU61: =SUM(AU17:AU60) -> 30118724.58 | AV61: =SUM(AV17:AV60) -> 0 | AW61: =SUM(AW17:AW60) -> 109247616.1 | AY61: =SUM(AY17:AY60) -> -10701886.51 | AZ61: =SUM(AZ17:AZ60) -> -2771979.69 | BA61: =SUM(BA17:BA60) -> 0 | BB61: =SUM(BB17:BB60) -> -13473866.2 | BC61: =SUM(BC17:BC60) -> 95773749.9 | BG61: Sub-Total | BH61: =SUM(BH17:BH60) -> 109247616.1 | BI61: =SUM(BI17:BI60) -> 5220337.509 | BJ61: =SUM(BJ17:BJ60) -> 0 | BK61: =SUM(BK17:BK60) -> 114467953.6 | BM61: =SUM(BM17:BM60) -> -13473866.2 | BN61: =SUM(BN17:BN60) -> -3334704.472 | BO61: =SUM(BO17:BO60) -> 0 | BP61: =SUM(BP17:BP60) -> -16808570.67 | BQ61: =SUM(BQ17:BQ60) -> 97659382.94 | BU61: Sub-Total | BV61: =SUM(BV17:BV60) -> 114467953.6 | BW61: =SUM(BW17:BW60) -> 5436468.243 | BX61: =SUM(BX17:BX60) -> 0 | BY61: =SUM(BY17:BY60) -> 119904421.9 | CA61: =SUM(CA17:CA60) -> -16808570.67 | CB61: =SUM(CB17:CB60) -> -3524695.94 | CC61: =SUM(CC17:CC60) -> 0 | CD61: =SUM(CD17:CD60) -> -20333266.61 | CE61: =SUM(CE17:CE60) -> 99571155.24
C62: Less Socialized Renewable Energy Generation Investments (input as negative) | G62: =D62+E62+F62 -> 0 | L62: =I62+J62+K62 -> 0 | M62: =G62+L62 -> 0 | Q62: Less Socialized Renewable Energy Generation Investments (input as negative) | U62: =R62+S62+T62 -> 0 | Z62: =W62+X62+Y62 -> 0 | AA62: =U62+Z62 -> 0 | AE62: Less Socialized Renewable Energy Generation Investments (input as negative) | AI62: =AF62+AG62+AH62 -> 0 | AN62: =AK62+AL62+AM62 -> 0 | AO62: =AI62+AN62 -> 0 | AS62: Less Socialized Renewable Energy Generation Investments (input as negative) | AW62: =AT62+AU62+AV62 -> 0 | BB62: =AY62+AZ62+BA62 -> 0 | BC62: =AW62+BB62 -> 0 | BG62: Less Socialized Renewable Energy Generation Investments (input as negative) | BK62: =BH62+BI62+BJ62 -> 0 | BP62: =BM62+BN62+BO62 -> 0 | BQ62: =BK62+BP62 -> 0 | BU62: Less Socialized Renewable Energy Generation Investments (input as negative) | BY62: =BV62+BW62+BX62 -> 0 | CD62: =CA62+CB62+CC62 -> 0 | CE62: =BY62+CD62 -> 0
C63: Less Other Non Rate-Regulated Utility Assets (input as negative) | G63: =D63+E63+F63 -> 0 | L63: =I63+J63+K63 -> 0 | M63: =G63+L63 -> 0 | Q63: Less Other Non Rate-Regulated Utility Assets (input as negative) | U63: =R63+S63+T63 -> 0 | Z63: =W63+X63+Y63 -> 0 | AA63: =U63+Z63 -> 0 | AE63: Less Other Non Rate-Regulated Utility Assets (input as negative) | AI63: =AF63+AG63+AH63 -> 0 | AN63: =AK63+AL63+AM63 -> 0 | AO63: =AI63+AN63 -> 0 | AS63: Less Other Non Rate-Regulated Utility Assets (input as negative) | AW63: =AT63+AU63+AV63 -> 0 | BB63: =AY63+AZ63+BA63 -> 0 | BC63: =AW63+BB63 -> 0 | BG63: Less Other Non Rate-Regulated Utility Assets (input as negative) | BK63: =BH63+BI63+BJ63 -> 0 | BP63: =BM63+BN63+BO63 -> 0 | BQ63: =BK63+BP63 -> 0 | BU63: Less Other Non Rate-Regulated Utility Assets (input as negative) | BY63: =BV63+BW63+BX63 -> 0 | CD63: =CA63+CB63+CC63 -> 0 | CE63: =BY63+CD63 -> 0
B64: 2055 | C64: Work in Progress | D64: 3393936 | E64: 1227216 | G64: 4621152 | L64: =I64+J64+K64 -> 0 | M64: =G64+L64 -> 4621152 | P64: 2055 | Q64: Work in Progress | R64: =G64 -> 4621152 | S64: 2695765 | U64: 7316917 | Z64: =W64+X64+Y64 -> 0 | AA64: 7316917 | AD64: 2055 | AE64: Work in Progress | AF64: =U64 -> 7316917 | AG64: 17674750.53 | AI64: 24991667.53 | AN64: =AK64+AL64+AM64 -> 0 | AO64: 24991667.53 | AR64: 2055 | AS64: Work in Progress | AT64: =AI64 -> 24991667.53 | AU64: -20123088.78 | AW64: 4868578.75 | BB64: =AY64+AZ64+BA64 -> 0 | BC64: 4868578.75 | BF64: 2055 | BG64: Work in Progress | BH64: =AW64 -> 4868578.75 | BI64: 0 | BK64: 4868578.75 | BP64: =BM64+BN64+BO64 -> 0 | BQ64: 4868578.75 | BT64: 2055 | BU64: Work in Progress | BV64: =BK64 -> 4868578.75 | BY64: 4868578.75 | CD64: =CA64+CB64+CC64 -> 0 | CE64: 4868578.75
C65: Total PP&E | D65: =SUM(D61:D64) -> 61434037.98 | E65: =SUM(E61:E64) -> 8885094.57 | F65: -37789.75 | G65: 70281342.8 | I65: =SUM(I61:I64) -> -4346114.87 | J65: -1973720.46 | K65: 31599.74 | L65: -6288235.59 | M65: 63993107.21 | Q65: Total PP&E | R65: =SUM(R61:R64) -> 70281342.8 | S65: 9615694.4 | T65: 0 | U65: 79897037.2 | W65: =SUM(W61:W64) -> -6288235.59 | X65: -2143973.49 | Y65: 0 | Z65: -8432209.08 | AA65: 71464828.12 | AE65: Total PP&E | AF65: =SUM(AF61:AF64) -> 79897037.2 | AG65: 24223521.85 | AH65: 0 | AI65: 104120559.1 | AK65: =SUM(AK61:AK64) -> -8432209.08 | AL65: -2269677.43 | AM65: 0 | AN65: -10701886.51 | AO65: 93418672.54 | AS65: Total PP&E | AT65: =SUM(AT61:AT64) -> 104120559.1 | AU65: 9995635.8 | AV65: 0 | AW65: 114116194.9 | AY65: =SUM(AY61:AY64) -> -10701886.51 | AZ65: -2771979.69 | BA65: 0 | BB65: -13473866.2 | BC65: 100642328.7 | BG65: Total PP&E | BH65: =SUM(BH61:BH64) -> 114116194.9 | BI65: 5220337.509 | BJ65: 0 | BK65: 119336532.4 | BM65: =SUM(BM61:BM64) -> -13473866.2 | BN65: -3334704.472 | BO65: 0 | BP65: -16808570.67 | BQ65: 102527961.7 | BU65: Total PP&E | BV65: =SUM(BV61:BV64) -> 119336532.4 | BW65: 5436468.243 | BX65: 0 | BY65: 124773000.6 | CA65: =SUM(CA61:CA64) -> -16808570.67 | CB65: -3524695.94 | CC65: 0 | CD65: -20333266.61 | CE65: 104439734
C66: Depreciation Expense adj. from gain or loss on the retirement of assets (pool of like assets), if applicable6 | Q66: Depreciation Expense adj. from gain or loss on the retirement of assets (pool of like assets), if applicable6 | AE66: Depreciation Expense adj. from gain or loss on the retirement of assets (pool of like assets), if applicable6 | AS66: Depreciation Expense adj. from gain or loss on the retirement of assets (pool of like assets), if applicable6 | BG66: Depreciation Expense adj. from gain or loss on the retirement of assets (pool of like assets), if applicable6 | BU66: Depreciation Expense adj. from gain or loss on the retirement of assets (pool of like assets), if applicable6
C67: Total | J67: =J65+J66 -> -1973720.46 | Q67: Total | X67: =X65+X66 -> -2143973.49 | AE67: Total | AL67: =AL65+AL66 -> -2269677.43 | AS67: Total | AZ67: =AZ65+AZ66 -> -2771979.69 | BG67: Total | BN67: =BN65+BN66 -> -3334704.472 | BU67: Total | CB67: =CB65+CB66 -> -3524695.94
I69: Less: Fully Allocated Depreciation | W69: Less: Fully Allocated Depreciation | AK69: Less: Fully Allocated Depreciation | AY69: Less: Fully Allocated Depreciation | BM69: Less: Fully Allocated Depreciation | CA69: Less: Fully Allocated Depreciation
A70: 10 | C70: Transportation | I70: Transportation | K70: =J43 -> -172464.63 | O70: 10 | Q70: Transportation | W70: Transportation | Y70: =X43 -> -193033.32 | AC70: 10 | AE70: Transportation | AK70: Transportation | AM70: =AL43 -> -216383.84 | AQ70: 10 | AS70: Transportation | AY70: Transportation | BA70: =AZ43 -> -219461.01 | BE70: 10 | BG70: Transportation | BM70: Transportation | BO70: =BN43 -> -268256 | BS70: 10 | BU70: Transportation | CA70: Transportation | CC70: =CB43 -> -304840
A71: 8 | C71: Stores Equipment | I71: Other Adj | K71: -5400 | O71: 8 | Q71: Stores Equipment | W71: Stores Equipment | AC71: 8 | AE71: Stores Equipment | AK71: Stores Equipment | AQ71: 8 | AS71: Trans Station Dep Expense recorded in Account 1508 | BA71: =AZ24 -> -324926.24 | BE71: 8 | BG71: Trans Station Dep Expense recorded in Account 1508 | BO71: =BN24 -> -649848 | BS71: 8 | BU71: Stores Equipment | CA71: Stores Equipment
A72: 47 | C72: Deferred Revenue | I72: Deferred Revenue | K72: =J58 -> 249423 | O72: 47 | Q72: Deferred Revenue | W72: Deferred Revenue | Y72: =X58 -> 275609 | AC72: 47 | AE72: Deferred Revenue | AK72: Deferred Revenue | AM72: =AL58 -> 306583 | AQ72: 47 | AS72: Deferred Revenue | AY72: Deferred Revenue | BA72: =AZ58 -> 329196 | BE72: 47 | BG72: Deferred Revenue | BM72: Deferred Revenue | BO72: =BN58 -> 352681 | BS72: 47 | BU72: Deferred Revenue | CA72: Deferred Revenue | CC72: =CB58 -> 380273.1599
I73: Net Depreciation | K73: =J67-K70-K71-K72 -> -2045278.83 | W73: Net Depreciation | Y73: =X67-Y70-Y71-Y72 -> -2226549.17 | AK73: Net Depreciation | AM73: =AL67-AM70-AM71-AM72 -> -2359876.59 | AY73: Net Depreciation | BA73: =AZ67-BA70-BA71-BA72 -> -2556788.44 | BM73: Net Depreciation | BO73: =BN67-BO70-BO71-BO72 -> -2769281.472 | CA73: Net Depreciation | CC73: =CB67-CC70-CC71-CC72 -> -3600129.099
A75: Notes: | O75: Notes: | AC75: Notes: | AQ75: Notes: | BE75: Notes: | BS75: Notes:
A77: 1 | B77: Tables in the format outlined above covering all fixed asset accounts should be submitted for the Test Year, Bridge Year and all relevant historical years. At a minimum , the applicant must provide data for the earlier of: 1) all historical years back to its last rebasing; or 2) at least three years of historical actuals, in addition to Bridge Year and Test Year forecasts. | O77: 1 | P77: Tables in the format outlined above covering all fixed asset accounts should be submitted for the Test Year, Bridge Year and all relevant historical years. At a minimum , the applicant must provide data for the earlier of: 1) all historical years back to its last rebasing; or 2) at least three years of historical actuals, in addition to Bridge Year and Test Year forecasts. | AC77: 1 | AD77: Tables in the format outlined above covering all fixed asset accounts should be submitted for the Test Year, Bridge Year and all relevant historical years. At a minimum , the applicant must provide data for the earlier of: 1) all historical years back to its last rebasing; or 2) at least three years of historical actuals, in addition to Bridge Year and Test Year forecasts. | AQ77: 1 | AR77: Tables in the format outlined above covering all fixed asset accounts should be submitted for the Test Year, Bridge Year and all relevant historical years. At a minimum , the applicant must provide data for the earlier of: 1) all historical years back to its last rebasing; or 2) at least three years of historical actuals, in addition to Bridge Year and Test Year forecasts. | BE77: 1 | BF77: Tables in the format outlined above covering all fixed asset accounts should be submitted for the Test Year, Bridge Year and all relevant historical years. At a minimum , the applicant must provide data for the earlier of: 1) all historical years back to its last rebasing; or 2) at least three years of historical actuals, in addition to Bridge Year and Test Year forecasts. | BS77: 1 | BT77: Tables in the format outlined above covering all fixed asset accounts should be submitted for the Test Year, Bridge Year and all relevant historical years. At a minimum , the applicant must provide data for the earlier of: 1) all historical years back to its last rebasing; or 2) at least three years of historical actuals, in addition to Bridge Year and Test Year forecasts.
A80: 2 | B80: The "CCA Class" for fixed assets should generally agree with the CCA Class used for tax purposes in Tax Returns. Fixed Assets sub-components may be used where the underlying asset components are classified under multiple CCA Classes for tax purposes. If an applicant uses any different classes from those shown in the table, an explanation should be provided. (also see note 3). | O80: 2 | P80: The "CCA Class" for fixed assets should generally agree with the CCA Class used for tax purposes in Tax Returns. Fixed Assets sub-components may be used where the underlying asset components are classified under multiple CCA Classes for tax purposes. If an applicant uses any different classes from those shown in the table, an explanation should be provided. (also see note 3). | AC80: 2 | AD80: The "CCA Class" for fixed assets should generally agree with the CCA Class used for tax purposes in Tax Returns. Fixed Assets sub-components may be used where the underlying asset components are classified under multiple CCA Classes for tax purposes. If an applicant uses any different classes from those shown in the table, an explanation should be provided. (also see note 3). | AQ80: 2 | AR80: The "CCA Class" for fixed assets should generally agree with the CCA Class used for tax purposes in Tax Returns. Fixed Assets sub-components may be used where the underlying asset components are classified under multiple CCA Classes for tax purposes. If an applicant uses any different classes from those shown in the table, an explanation should be provided. (also see note 3). | BE80: 2 | BF80: The "CCA Class" for fixed assets should generally agree with the CCA Class used for tax purposes in Tax Returns. Fixed Assets sub-components may be used where the underlying asset components are classified under multiple CCA Classes for tax purposes. If an applicant uses any different classes from those shown in the table, an explanation should be provided. (also see note 3). | BS80: 2 | BT80: The "CCA Class" for fixed assets should generally agree with the CCA Class used for tax purposes in Tax Returns. Fixed Assets sub-components may be used where the underlying asset components are classified under multiple CCA Classes for tax purposes. If an applicant uses any different classes from those shown in the table, an explanation should be provided. (also see note 3).
A83: 3 | B83: The table may need to be customized for a utility's asset categories or for any new asset accounts announced or authorized by the OEB. | O83: 3 | P83: The table may need to be customized for a utility's asset categories or for any new asset accounts announced or authorized by the OEB. | AC83: 3 | AD83: The table may need to be customized for a utility's asset categories or for any new asset accounts announced or authorized by the OEB. | AQ83: 3 | AR83: The table may need to be customized for a utility's asset categories or for any new asset accounts announced or authorized by the OEB. | BE83: 3 | BF83: The table may need to be customized for a utility's asset categories or for any new asset accounts announced or authorized by the OEB. | BS83: 3 | BT83: The table may need to be customized for a utility's asset categories or for any new asset accounts announced or authorized by the OEB.
A85: 4 | B85: The additions in column (E) must not include construction work in progress (CWIP). | O85: 4 | P85: The additions in column (E) must not include construction work in progress (CWIP). | AC85: 4 | AD85: The additions in column (E) must not include construction work in progress (CWIP). | AQ85: 4 | AR85: The additions in column (E) must not include construction work in progress (CWIP). | BE85: 4 | BF85: The additions in column (E) must not include construction work in progress (CWIP). | BS85: 4 | BT85: The additions in column (E) must not include construction work in progress (CWIP).
A87: 5 | B87: Effective on the date of IFRS adoption, customer contributions will no longer be recorded in Account 1995 Contributions & Grants, but will be recorded in Account 2440, Deferred Revenues. Amortization of deferred revenue will be removed from the depreciation expense shown on this fixed asset continuity schedule as it should be included as income in Appendix 2-H Other Revenues. | O87: 5 | P87: Effective on the date of IFRS adoption, customer contributions will no longer be recorded in Account 1995 Contributions & Grants, but will be recorded in Account 2440, Deferred Revenues. Amortization of deferred revenue will be removed from the depreciation expense shown on this fixed asset continuity schedule as it should be included as income in Appendix 2-H Other Revenues. | AC87: 5 | AD87: Effective on the date of IFRS adoption, customer contributions will no longer be recorded in Account 1995 Contributions & Grants, but will be recorded in Account 2440, Deferred Revenues. Amortization of deferred revenue will be removed from the depreciation expense shown on this fixed asset continuity schedule as it should be included as income in Appendix 2-H Other Revenues. | AQ87: 5 | AR87: Effective on the date of IFRS adoption, customer contributions will no longer be recorded in Account 1995 Contributions & Grants, but will be recorded in Account 2440, Deferred Revenues. Amortization of deferred revenue will be removed from the depreciation expense shown on this fixed asset continuity schedule as it should be included as income in Appendix 2-H Other Revenues. | BE87: 5 | BF87: Effective on the date of IFRS adoption, customer contributions will no longer be recorded in Account 1995 Contributions & Grants, but will be recorded in Account 2440, Deferred Revenues. Amortization of deferred revenue will be removed from the depreciation expense shown on this fixed asset continuity schedule as it should be included as income in Appendix 2-H Other Revenues. | BS87: 5 | BT87: Effective on the date of IFRS adoption, customer contributions will no longer be recorded in Account 1995 Contributions & Grants, but will be recorded in Account 2440, Deferred Revenues. Amortization of deferred revenue will be removed from the depreciation expense shown on this fixed asset continuity schedule as it should be included as income in Appendix 2-H Other Revenues.
A89: 6 | B89: The applicant must ensure that all asset disposals have been clearly identified in the Chapter 2 Appendices for all historic, bridge and test years. Where a distributor for general financial reporting purposes under IFRS has accounted for the amount of gain or loss on the retirement of assets in a pool of like assets as a charge or credit to income, for reporting and rate application filings, the distributor shall reclassify such gains and losses as depreciation expense, and disclose the amount separately. | O89: 6 | P89: The applicant must ensure that all asset disposals have been clearly identified in the Chapter 2 Appendices for all historic, bridge and test years. Where a distributor for general financial reporting purposes under IFRS has accounted for the amount of gain or loss on the retirement of assets in a pool of like assets as a charge or credit to income, for reporting and rate application filings, the distributor shall reclassify such gains and losses as depreciation expense, and disclose the amount separately. | AC89: 6 | AD89: The applicant must ensure that all asset disposals have been clearly identified in the Chapter 2 Appendices for all historic, bridge and test years. Where a distributor for general financial reporting purposes under IFRS has accounted for the amount of gain or loss on the retirement of assets in a pool of like assets as a charge or credit to income, for reporting and rate application filings, the distributor shall reclassify such gains and losses as depreciation expense, and disclose the amount separately. | AQ89: 6 | AR89: The applicant must ensure that all asset disposals have been clearly identified in the Chapter 2 Appendices for all historic, bridge and test years. Where a distributor for general financial reporting purposes under IFRS has accounted for the amount of gain or loss on the retirement of assets in a pool of like assets as a charge or credit to income, for reporting and rate application filings, the distributor shall reclassify such gains and losses as depreciation expense, and disclose the amount separately. | BE89: 6 | BF89: The applicant must ensure that all asset disposals have been clearly identified in the Chapter 2 Appendices for all historic, bridge and test years. Where a distributor for general financial reporting purposes under IFRS has accounted for the amount of gain or loss on the retirement of assets in a pool of like assets as a charge or credit to income, for reporting and rate application filings, the distributor shall reclassify such gains and losses as depreciation expense, and disclose the amount separately. | BS89: 6 | BT89: The applicant must ensure that all asset disposals have been clearly identified in the Chapter 2 Appendices for all historic, bridge and test years. Where a distributor for general financial reporting purposes under IFRS has accounted for the amount of gain or loss on the retirement of assets in a pool of like assets as a charge or credit to income, for reporting and rate application filings, the distributor shall reclassify such gains and losses as depreciation expense, and disclose the amount separately.
A93: 7 | B93: This account includes the amount recorded under finance leases for plant leased from others and used by the utility in its utility operations. | O93: 7 | P93: This account includes the amount recorded under finance leases for plant leased from others and used by the utility in its utility operations. | AC93: 7 | AD93: This account includes the amount recorded under finance leases for plant leased from others and used by the utility in its utility operations. | AQ93: 7 | AR93: This account includes the amount recorded under finance leases for plant leased from others and used by the utility in its utility operations. | BE93: 7 | BF93: This account includes the amount recorded under finance leases for plant leased from others and used by the utility in its utility operations. | BS93: 7 | BT93: This account includes the amount recorded under finance leases for plant leased from others and used by the utility in its utility operations.

Sheet Appendix 2-BB Service Life
N1: File Number: | P1: ='LDC Info'!E16 -> EB-2020-0026
N2: Exhibit:
N3: Tab:
N4: Schedule:
N5: Page: | P5: Settlement
N7: Date: | P7: 2021-02-08
A9: Appendix 2-BB
A10: Service Life Comparison
A11: Table F-1 from Kinetrics Report1
C15: Asset Details | F15: Useful Life | J15: USoA Account Number | K15: USoA Account Description | L15: Current | N15: Proposed | P15: Outside Range of Min, Max TUL?
A16: Parent* | B16: # | C16: Category| Component | Type | F16: MIN UL | G16: TUL | H16: MAX UL | L16: Years | M16: Rate | N16: Years | O16: Rate | P16: Below Min TUL | Q16: Above Max TUL
A17: OH | B17: 1 | C17: Fully Dressed Wood Poles | D17: Overall | F17: 40 | G17: 44 | H17: 50 | J17: 1830 | K17: Poles, Towers and Fixtures | L17: 50 | M17: =IF(ISERROR(1/L17), "", 1/L17) -> 0.02 | N17: 50 | O17: =IF(ISERROR(1/N17), "", 1/N17) -> 0.02 | P17: =IF(ISBLANK(N17),"",IF(N17<F17,"Yes","No")) -> No | Q17: =IF(ISBLANK(N17),"",IF(N17>H17,"Yes","No")) -> No
D18: Cross Arm | E18: Wood | F18: 20 | G18: 40 | H18: 55 | M18: =IF(ISERROR(1/L18), "", 1/L18) ->  | O18: =IF(ISERROR(1/N18), "", 1/N18) ->  | P18: =IF(ISBLANK(N18),"",IF(N18<F18,"Yes","No")) ->  | Q18: =IF(ISBLANK(N18),"",IF(N18>H18,"Yes","No")) -> 
E19: Steel | F19: 30 | G19: 70 | H19: 95
B20: 2 | C20: Fully Dressed Concrete Poles | D20: Overall | F20: 50 | G20: 60 | H20: 80
D21: Cross Arm | E21: Wood | F21: 20 | G21: 40 | H21: 55
E22: Steel | F22: 30 | G22: 70 | H22: 95
B23: 3 | C23: Fully Dressed Steel Poles | D23: Overall | F23: 60 | G23: 60 | H23: 80
D24: Cross Arm | E24: Wood | F24: 20 | G24: 40 | H24: 55
E25: Steel | F25: 30 | G25: 70 | H25: 95
B26: 4 | C26: OH Line Switch | F26: 30 | G26: 50 | H26: 60 | J26: 1835 | K26: Overhead Conductors and Devices | L26: 40 | M26: 0.025 | N26: 40 | O26: 0.025 | P26: No | Q26: No
B27: 5 | C27: OH Line Switch Motor | F27: 15 | G27: 25 | H27: 25
B28: 6 | C28: OH Line Switch RTU | F28: 15 | G28: 20 | H28: 20
B29: 7 | C29: OH Integral Switches | F29: 35 | G29: 45 | H29: 60
B30: 8 | C30: OH Conductors | F30: 50 | G30: 60 | H30: 77 | J30: 1835 | K30: Overhead Conductors and Devices | L30: 50 | M30: 0.02 | N30: 50 | O30: 0.02 | P30: No | Q30: No
B31: 9 | C31: OH Transformers & Voltage Regulators | F31: 30 | G31: 40 | H31: 60 | J31: 1850 | K31: Line Transformers | L31: 40 | M31: 0.025 | N31: 40 | O31: 0.025 | P31: No | Q31: No
B32: 10 | C32: OH Shunt Capacitor Banks | F32: 25 | G32: 30 | H32: 40
B33: 11 | C33: Reclosers | F33: 25 | G33: 40 | H33: 55
A34: TS & MS | B34: 12 | C34: Power Transformers | D34: Overall | F34: 30 | G34: 45 | H34: 60 | J34: 1815 | K34: Transformer Station Equipment - Normally Primary above 50 kV | L34: 35 | M34: 0.02857142857 | N34: 35 | O34: 0.02857142857 | P34: No | Q34: No
D35: Bushing | F35: 10 | G35: 20 | H35: 30 | J35: 1815 | K35: Transformer Station Equipment - Normally Primary above 50 kV | L35: 20 | M35: 0.05 | N35: 20 | O35: 0.05 | P35: No | Q35: No
D36: Tap Changer | F36: 20 | G36: 30 | H36: 60 | J36: 1815 | K36: Transformer Station Equipment - Normally Primary above 50 kV | L36: 20 | M36: 0.05 | N36: 20 | O36: 0.05 | P36: No | Q36: No
B37: 13 | C37: Station Service Transformer | F37: 30 | G37: 45 | H37: 55 | J37: 1815 | K37: Transformer Station Equipment - Normally Primary above 50 kV | L37: 45 | M37: 0.02222222222 | N37: 45 | O37: 0.02222222222 | P37: No | Q37: No
B38: 14 | C38: Station Grounding Transformer | F38: 30 | G38: 40 | H38: 40 | J38: 1815 | K38: Transformer Station Equipment - Normally Primary above 50 kV | L38: 40 | M38: 0.025 | N38: 40 | O38: 0.025 | P38: No | Q38: No
B39: 15 | C39: Station DC System | D39: Overall | F39: 10 | G39: 20 | H39: 30 | J39: 1820 | K39: Distribution Station Equipment - Normally Primary below 50 kV | L39: 20 | M39: 0.05 | N39: 20 | O39: 0.05 | P39: No | Q39: No
D40: Battery Bank | F40: 10 | G40: 15 | H40: 15
D41: Charger | F41: 20 | G41: 20 | H41: 30
B42: 16 | C42: Station Metal Clad Switchgear | D42: Overall | F42: 30 | G42: 40 | H42: 60 | J42: 1815 | K42: Transformer Station Equipment - Normally Primary above 50 kV | L42: 50 | M42: 0.02 | N42: 50 | O42: 0.02 | P42: No | Q42: No
D43: Removable Breaker | F43: 25 | G43: 40 | H43: 60
B44: 17 | C44: Station Independent Breakers | F44: 35 | G44: 45 | H44: 65 | J44: 1815 | K44: Transformer Station Equipment - Normally Primary above 50 kV | L44: 45 | M44: 0.02222222222 | N44: 45 | O44: 0.02222222222 | P44: No | Q44: No
B45: 18 | C45: Station Switch | F45: 30 | G45: 50 | H45: 60 | J45: 1815 | K45: Transformer Station Equipment - Normally Primary above 50 kV | L45: 50 | M45: 0.02 | N45: 50 | O45: 0.02 | P45: No | Q45: No
B46: 19 | C46: Electromechanical Relays | F46: 25 | G46: 35 | H46: 50
B47: 20 | C47: Solid State Relays | F47: 10 | G47: 30 | H47: 45
B48: 21 | C48: Digital & Numeric Relays | F48: 15 | G48: 20 | H48: 20 | J48: 1815 | K48: Transformer Station Equipment - Normally Primary above 50 kV | L48: 20 | M48: 0.05 | N48: 20 | O48: 0.05 | P48: No | Q48: No
B49: 22 | C49: Rigid Busbars | F49: 30 | G49: 55 | H49: 60 | J49: 1815 | K49: Transformer Station Equipment - Normally Primary above 50 kV | L49: 55 | M49: 0.01818181818 | N49: 55 | O49: 0.01818181818 | P49: No | Q49: No
B50: 23 | C50: Steel Structure | F50: 35 | G50: 50 | H50: 90 | J50: 1815 | K50: Transformer Station Equipment - Normally Primary above 50 kV | L50: 20 | M50: 0.05 | N50: 20 | O50: 0.05 | P50: Yes | Q50: No
A51: UG | B51: 24 | C51: UG Primary Cables | F51: 30 | G51: 40 | H51: 60 | J51: 1845 | K51: Underground Conductors and Devices | L51: 40 | M51: 0.025 | N51: 40 | O51: 0.025 | P51: No | Q51: No
B52: 25 | C52: Primary Ethylene-Propylene Rubber (EPR) Cables | F52: 20 | G52: 25 | H52: 25
B53: 26 | C53: Primary Non-Tree Retardant (TR) Cross Linked Polyethylene (XLPE) Cables Direct Buried | F53: 20 | G53: 25 | H53: 30
B54: 27 | C54: Primary Non-TR XLPE Cables in Duct | F54: 20 | G54: 25 | H54: 30
B55: 30 | C55: Secondary PILC Cables | F55: 70 | G55: 75 | H55: 80
B56: 31 | C56: Secondary Cables Direct Buried | F56: 25 | G56: 35 | H56: 40
B57: 32 | C57: Secondary Cables in Duct | F57: 40 | G57: 40 | H57: 60 | J57: 1845 | K57: Underground Conductors and Devices | L57: 40 | M57: 0.025 | N57: 40 | O57: 0.025 | P57: No | Q57: No
B58: 33 | C58: Network Tranformers | D58: Overall | F58: 20 | G58: 35 | H58: 50
D59: Protector | F59: 20 | G59: 35 | H59: 40
B60: 34 | C60: Pad-Mounted Transformers | F60: 30 | G60: 40 | H60: 40 | J60: 1850 | K60: Line Transformers | L60: 40 | M60: 0.025 | N60: 40 | O60: 0.025 | P60: No | Q60: No
B61: 35 | C61: Submersible/Vault Transformers | F61: 25 | G61: 35 | H61: 45
B62: 36 | C62: UG Foundation | F62: 35 | G62: 55 | H62: 70
B63: 37 | C63: UG Vaults | D63: Overall | F63: 40 | G63: 60 | H63: 80
D64: Roof | F64: 20 | G64: 30 | H64: 45
B65: 38 | C65: UG Vault Switches | F65: 20 | G65: 35 | H65: 50
B66: 39 | C66: Pad-Mounted Switchgear | F66: 20 | G66: 30 | H66: 40 | J66: 1845 | K66: Underground Conductors and Devices | L66: 30 | M66: 0.03333333333 | N66: 30 | O66: 0.03333333333 | P66: No | Q66: No
B67: 40 | C67: Ducts | F67: 30 | G67: 50 | H67: 80 | J67: 1840 | K67: Underground Conduit | L67: 50 | M67: 0.02 | N67: 50 | O67: 0.02 | P67: No | Q67: No
B68: 41 | C68: Concrete Encased Duct Banks | F68: 35 | G68: 55 | H68: 80 | J68: 1815 | K68: Transformer Station Equipment - Normally Primary above 50 kV | L68: 55 | M68: 0.01818181818 | N68: 55 | O68: 0.01818181818 | P68: No | Q68: No
B69: 42 | C69: Cable Chambers | F69: 50 | G69: 60 | H69: 80
A70: S | B70: 43 | C70: Remote SCADA | F70: 15 | G70: 20 | H70: 30
A73: Table F-2 from Kinetrics Report1
C75: Asset Details | F75: Useful Life Range | J75: USoA Account Number | K75: USoA Account Description | L75: Current | N75: Proposed | P75: Outside Range of Min, Max TUL?
B76: # | C76: Category| Component | Type | L76: Years | M76: Rate | N76: Years | O76: Rate | P76: Below Min Range | Q76: Above Max Range
B77: 1 | C77: Office Equipment | F77: 5 | G77: 15 | J77: 1915 | K77: Office Furniture and Equipment | L77: 5 | M77: =IF(ISERROR(1/L77), "", 1/L77) -> 0.2 | N77: 5 | O77: =IF(ISERROR(1/N77), "", 1/N77) -> 0.2 | P77: =IF(ISBLANK(N77),"",IF(N77<F77,"Yes","No")) -> No | Q77: =IF(ISBLANK(N77),"",IF(N77>G77,"Yes","No")) -> No
B78: 2 | C78: Vehicles | D78: Trucks & Buckets | F78: 5 | G78: 15 | J78: 1930 | K78: Transportation Equipment | L78: 12 | M78: =IF(ISERROR(1/L78), "", 1/L78) -> 0.08333333333 | N78: 12 | O78: =IF(ISERROR(1/N78), "", 1/N78) -> 0.08333333333 | P78: =IF(ISBLANK(N78),"",IF(N78<F78,"Yes","No")) -> No | Q78: =IF(ISBLANK(N78),"",IF(N78>G78,"Yes","No")) -> No
D79: Trailers | F79: 5 | G79: 20 | J79: 1930 | K79: Transportation Equipment | L79: 15 | M79: 0.06666666667 | N79: 15 | O79: 0.06666666667 | P79: No | Q79: No
D80: Vans | F80: 5 | G80: 10 | J80: 1930 | K80: Transportation Equipment | L80: 8 | M80: 0.125 | N80: 8 | O80: 0.125 | P80: No | Q80: No
B81: 3 | C81: Administrative Buildings | F81: 50 | G81: 75 | L81: 42 | M81: 0.02380952381 | N81: 42 | O81: 0.02380952381 | P81: Yes | Q81: No
B82: 4 | C82: Leasehold Improvements | F82: Lease dependent | P82: =IF(ISBLANK(N82),"",IF(N82<F82,"Yes","No")) ->  | Q82: =IF(ISBLANK(N82),"",IF(N82>G82,"Yes","No")) -> 
B83: 5 | C83: Station Buildings | D83: Station Buildings | F83: 50 | G83: 75 | J83: 1815 | K83: Transformer Station Equipment - Normally Primary above 50 kV | L83: 50 | M83: 0.02 | N83: 50 | O83: 0.02 | P83: No | Q83: No
D84: Parking | F84: 25 | G84: 30 | J84: 1815 | K84: Transformer Station Equipment - Normally Primary above 50 kV | L84: 25 | M84: 0.04 | N84: 25 | O84: 0.04 | P84: No | Q84: No
D85: Fence | F85: 25 | G85: 60 | J85: 1815 | K85: Transformer Station Equipment - Normally Primary above 50 kV | L85: 35 | M85: 0.02857142857 | N85: 35 | O85: 0.02857142857 | P85: No | Q85: No
D86: Roof | F86: 20 | G86: 30 | J86: 1815 | K86: Transformer Station Equipment - Normally Primary above 50 kV | L86: 20 | M86: 0.05 | N86: 20 | O86: 0.05 | P86: No | Q86: No
B87: 6 | C87: Computer Equipment | D87: Hardware | F87: 3 | G87: 5 | J87: 1920 | K87: Computer Equipment - Hardware | L87: 5 | M87: 0.2 | N87: 5 | O87: 0.2 | P87: No | Q87: No
D88: Software | F88: 2 | G88: 5 | J88: 1611 | K88: Computer Software | L88: 5 | M88: 0.2 | N88: 5 | O88: 0.2 | P88: No | Q88: No
B89: 7 | C89: Equipment | D89: Power Operated | F89: 5 | G89: 10
D90: Stores | F90: 5 | G90: 10 | J90: 1940 | K90: Tools, Shop and Garage Equipment | L90: 10 | M90: 0.1 | N90: 10 | O90: 0.1 | P90: No | Q90: No
D91: Tools, Shop, Garage Equipment | F91: 5 | G91: 10 | J91: 1940 | K91: Tools, Shop and Garage Equipment | L91: 10 | M91: 0.1 | N91: 10 | O91: 0.1 | P91: No | Q91: No
D92: Measurement & Testing Equipment | F92: 5 | G92: 10
B93: 8 | C93: Communication | D93: SCADA | F93: 15 | G93: 30 | J93: 1980 | K93: System Supervisory Equipment | L93: 20 | M93: 0.05 | N93: 20 | O93: 0.05 | P93: No | Q93: No
D94: Wireless | F94: 2 | G94: 10 | J94: 1955 | K94: Communication Equipment | L94: 10 | M94: 0.1 | N94: 10 | O94: 0.1 | P94: No | Q94: No
B95: 9 | C95: Residential Energy Meters | F95: 25 | G95: 35
B96: 10 | C96: Industrial/Commercial Energy Meters | F96: 20 | G96: 35 | J96: 1860 | K96: Meters | L96: 20 | M96: 0.05 | N96: 20 | O96: 0.05 | P96: No | Q96: No
B97: 11 | C97: Wholesale Energy Meters | F97: 15 | G97: 30 | J97: 1860 | K97: Meters | L97: 20 | M97: 0.05 | N97: 20 | O97: 0.05 | P97: No | Q97: No
B98: 12 | C98: Current & Potential Transformer (CT & PT) | F98: 30 | G98: 50 | J98: 1860 | K98: Meters | L98: 45 | M98: 0.02222222222 | N98: 45 | O98: 0.02222222222 | P98: No | Q98: No
B99: 13 | C99: Smart Meters | F99: 5 | G99: 15 | J99: 1860 | K99: Meters | L99: 15 | M99: 0.06666666667 | N99: 15 | O99: 0.06666666667 | P99: No | Q99: No
B100: 14 | C100: Repeaters - Smart Metering | F100: 10 | G100: 15
B101: 15 | C101: Data Collectors - Smart Metering | F101: 15 | G101: 20
A104: * TS & MS = Transformer and Municipal Stations UG = Underground Systems S = Monitoring and Control Systems
A106: Note 1: | B106: Tables F-1 and F-2 above are to be used as a reference in order to complete columns J, K, L and N.
B107: See pages 17-19 of Kinetrics Report

Sheet App.2-C_DepExp
A9: Appendix 2-C (HHHI filed its own schedule in live Excel) | Y9: CGAAP
A10: Depreciation and Amortization Expense | Y10: Revised CGAAP
Y11: MIFRS
A12: This appendix is to be completed in conjunction with the accounting instructions in Appendix 2-B
A14: Scenario that applies | C14: Applicable Years and Accounting Standard | R14: Year Reflected in Schedule Below | S14: Accounting Standard Reflected in Schedule Below | Y14: 2012
A15: Rebasing for the first time with depreciation policy changes made in 2012. | C15: ="This appendix must be duplicated and completed for the years 2012 to " & TestYear & ". The appendix for 2012 is to be completed under CGAAP (prior to changes in depreciation policies)." &" The appendix for 2012 to 2014 must be completed under Revised CGAAP (after changes in depreciation policies). The appendix for 2014 to " & TestYear & " is to be completed under MIFRS (2014 if changes to MIFRS are material)." -> This appendix must be duplicated and completed for the years 2012 to 2021. The appendix for 2012 is to be completed under CGAAP (prior to changes in depreciation policies). The appendix for 2012 to 2014 must be completed under Revised CGAAP (after changes in depreciation policies). The appendix for 2014 to 2021 is to be completed under MIFRS (2014 if changes to MIFRS are material). | Y15: 2013
A16: Rebasing for the first time with depreciation policy changes made in 2013. | C16: ="This appendix must be duplicated and completed for the years 2013 to " & TestYear & ". The appendix for 2013 is to be completed under CGAAP (prior to changes in depreciation policies)."&" The appendix for 2013 to 2014 must be completed under Revised CGAAP (after changes in depreciation policies). The appendix for 2014 to " & TestYear & " is to be completed under MIFRS (2014 if changes to MIFRS are material)." -> This appendix must be duplicated and completed for the years 2013 to 2021. The appendix for 2013 is to be completed under CGAAP (prior to changes in depreciation policies). The appendix for 2013 to 2014 must be completed under Revised CGAAP (after changes in depreciation policies). The appendix for 2014 to 2021 is to be completed under MIFRS (2014 if changes to MIFRS are material). | Y16: 2014
A17: Already rebased with depreciation policy changes in a prior rate application and rebasing MIFRS for the first time. | C17: This appendix must be completed for 2014 to the test year. The appendix for 2014 is to be completed under Revised CGAAP (after changes in depreciation policies). The appendix for 2014 to the test year is to be completed under MIFRS (2014 if changes to MIFRS are material). | Y17: 2015
A18: Already rebased under MIFRS in a prior rate application | C18: ="This appendix must be completed under MIFRS for each year for the earlier of: 1) all historical years back to its last rebasing; or 2) at least three years of historical actuals, in addition to Bridge Year and Test Year forecasts." -> This appendix must be completed under MIFRS for each year for the earlier of: 1) all historical years back to its last rebasing; or 2) at least three years of historical actuals, in addition to Bridge Year and Test Year forecasts. | Y18: 2016
Y19: 2017
C20: Book Values | J20: Service Lives | N20: Depreciation Expense | Y20: 2018
A21: Account | B21: Description | C21: Opening Net Book Value of Existing Assets as at Date of Policy Change (Jan. 1) 1 | D21: Less Fully Depreciated 7 | E21: Net Amount of Existing Assets Before Policy Change to be Depreciated | F21: Opening Gross Book Value of Assets Acquired After Policy Change 2 | G21: Less Fully Depreciated 8 | H21: Net Amount of Assets Acquired After Policy Change to be Depreciated | I21: Current Year Additions | J21: Average Remaining Life of Assets Existing Before Policy Change 3 | K21: Depreciation Rate Assets Acquired After Policy Change | L21: Life of Assets Acquired After Policy Change 4 | M21: Depreciation Rate on New Additions | N21: Depreciation Expense on Assets Existing Before Policy Change | O21: Depreciation Expense on Assets Acquired After Policy Change | P21: Depreciation Expense on Current Year Additions 5 | Q21: Total Current Year Depreciation Expense | R21: Depreciation Expense per Appendix 2-BA Fixed Assets, Column J | S21: Variance 6
C22: a | D22: b | E22: c = a-b | F22: d | G22: e | H22: f = d- e | I22: g | J22: h | K22: i = 1/h | L22: j | M22: k = 1/j | N22: l = c/h | O22: m = f/j | P22: n = g*0.5/j | Q22: o = l+m+n | R22: p | S22: q = p-o
A23: 1611 | B23: Computer Software (Formally known as Account 1925) | C23: HHHI filed own Excel doc | E23: =C23-D23 ->  | H23: =F23-G23 -> 0 | K23: =IF(J23=0,0,1/J23) -> 0 | M23: =IF(L23=0,0,1/L23) -> 0 | N23: =IF(J23=0,0,+E23/J23) -> 0 | O23: =IF(L23=0,0,+H23/L23) -> 0 | P23: =IF(L23=0,0,+(I23*0.5)/L23) -> 0 | Q23: =IF(ISERROR(+N23+O23+P23), 0, +N23+O23+P23) -> 0 | S23: =IF(ISERROR(+R23-Q23), 0, +R23-Q23) -> 0
A24: 1612 | B24: Land Rights (Formally known as Account 1906) | E24: =C24-D24 -> 0 | H24: =F24-G24 -> 0 | K24: =IF(J24=0,0,1/J24) -> 0 | M24: =IF(L24=0,0,1/L24) -> 0 | N24: =IF(J24=0,0,+E24/J24) -> 0 | O24: =IF(L24=0,0,+H24/L24) -> 0 | P24: =IF(L24=0,0,+(I24*0.5)/L24) -> 0 | Q24: =IF(ISERROR(+N24+O24+P24), 0, +N24+O24+P24) -> 0 | S24: =IF(ISERROR(+R24-Q24), 0, +R24-Q24) -> 0
A25: 1805 | B25: Land | E25: 0 | H25: 0 | K25: 0 | M25: 0 | N25: 0 | O25: =IF(L25=0,0,+H25/L25) -> 0 | P25: 0 | Q25: 0 | S25: 0
A26: 1808 | B26: Buildings | E26: 0 | H26: 0 | K26: 0 | M26: 0 | N26: 0 | O26: 0 | P26: 0 | Q26: 0 | S26: 0
A27: 1810 | B27: Leasehold Improvements | E27: 0 | H27: 0 | K27: 0 | M27: 0 | N27: 0 | O27: 0 | P27: 0 | Q27: 0 | S27: 0
A28: 1815 | B28: Transformer Station Equipment >50 kV | E28: 0 | H28: 0 | K28: 0 | M28: 0 | N28: 0 | O28: 0 | P28: 0 | Q28: 0 | S28: 0
A29: 1820 | B29: Distribution Station Equipment <50 kV | E29: 0 | H29: 0 | K29: 0 | M29: 0 | N29: 0 | O29: 0 | P29: 0 | Q29: 0 | S29: 0
A30: 1825 | B30: Storage Battery Equipment | E30: 0 | H30: 0 | K30: 0 | M30: 0 | N30: 0 | O30: 0 | P30: 0 | Q30: 0 | S30: 0
A31: 1830 | B31: Poles, Towers & Fixtures | E31: 0 | H31: 0 | K31: 0 | M31: 0 | N31: 0 | O31: 0 | P31: 0 | Q31: 0 | S31: 0
A32: 1835 | B32: Overhead Conductors & Devices | E32: 0 | H32: 0 | K32: 0 | M32: 0 | N32: 0 | O32: 0 | P32: 0 | Q32: 0 | S32: 0
A33: 1840 | B33: Underground Conduit | E33: 0 | H33: 0 | K33: 0 | M33: 0 | N33: 0 | O33: 0 | P33: 0 | Q33: 0 | S33: 0
A34: 1845 | B34: Underground Conductors & Devices | E34: 0 | H34: 0 | K34: 0 | M34: 0 | N34: 0 | O34: 0 | P34: 0 | Q34: 0 | S34: 0
A35: 1850 | B35: Line Transformers | E35: 0 | H35: 0 | K35: 0 | M35: 0 | N35: 0 | O35: 0 | P35: 0 | Q35: 0 | S35: 0
A36: 1855 | B36: Services (Overhead & Underground) | E36: 0 | H36: 0 | K36: 0 | M36: 0 | N36: 0 | O36: 0 | P36: 0 | Q36: 0 | S36: 0
A37: 1860 | B37: Meters | E37: 0 | H37: 0 | K37: 0 | M37: 0 | N37: 0 | O37: 0 | P37: 0 | Q37: 0 | S37: 0
A38: 1860 | B38: Meters (Smart Meters) | E38: 0 | H38: 0 | K38: 0 | M38: 0 | N38: 0 | O38: 0 | P38: 0 | Q38: 0 | S38: 0
A39: 1905 | B39: Land | E39: 0 | H39: 0 | K39: 0 | M39: 0 | N39: 0 | O39: 0 | P39: 0 | Q39: 0 | S39: 0
A40: 1908 | B40: Buildings & Fixtures | E40: 0 | H40: 0 | K40: 0 | M40: 0 | N40: 0 | O40: 0 | P40: 0 | Q40: 0 | S40: 0
A41: 1910 | B41: Leasehold Improvements | E41: 0 | H41: 0 | K41: 0 | M41: 0 | N41: 0 | O41: 0 | P41: 0 | Q41: 0 | S41: 0
A42: 1915 | B42: Office Furniture & Equipment (10 years) | E42: 0 | H42: 0 | K42: 0 | M42: 0 | N42: 0 | O42: 0 | P42: 0 | Q42: 0 | S42: 0
A43: 1915 | B43: Office Furniture & Equipment (5 years) | E43: 0 | H43: 0 | K43: 0 | M43: 0 | N43: 0 | O43: 0 | P43: 0 | Q43: 0 | S43: 0
A44: 1920 | B44: Computer Equipment - Hardware | E44: 0 | H44: 0 | K44: 0 | M44: 0 | N44: 0 | O44: 0 | P44: 0 | Q44: 0 | S44: 0
A45: 1920 | B45: Computer Equip.-Hardware(Post Mar. 22/04) | E45: 0 | H45: 0 | K45: 0 | M45: 0 | N45: 0 | O45: 0 | P45: 0 | Q45: 0 | S45: 0
A46: 1920 | B46: Computer Equip.-Hardware(Post Mar. 19/07) | E46: 0 | H46: 0 | K46: 0 | M46: 0 | N46: 0 | O46: 0 | P46: 0 | Q46: 0 | S46: 0
A47: 1930 | B47: Transportation Equipment | E47: 0 | H47: 0 | K47: 0 | M47: 0 | N47: 0 | O47: 0 | P47: 0 | Q47: 0 | S47: 0
A48: 1935 | B48: Stores Equipment | E48: 0 | H48: 0 | K48: 0 | M48: 0 | N48: 0 | O48: 0 | P48: 0 | Q48: 0 | S48: 0
A49: 1940 | B49: Tools, Shop & Garage Equipment | E49: 0 | H49: 0 | K49: 0 | M49: 0 | N49: 0 | O49: 0 | P49: 0 | Q49: 0 | S49: 0
A50: 1945 | B50: Measurement & Testing Equipment | E50: 0 | H50: 0 | K50: 0 | M50: 0 | N50: 0 | O50: 0 | P50: 0 | Q50: 0 | S50: 0
A51: 1950 | B51: Power Operated Equipment | E51: 0 | H51: 0 | K51: 0 | M51: 0 | N51: 0 | O51: 0 | P51: 0 | Q51: 0 | S51: 0
A52: 1955 | B52: Communications Equipment | E52: 0 | H52: 0 | K52: 0 | M52: 0 | N52: 0 | O52: 0 | P52: 0 | Q52: 0 | S52: 0
A53: 1955 | B53: Communication Equipment (Smart Meters) | E53: 0 | H53: 0 | K53: 0 | M53: 0 | N53: 0 | O53: 0 | P53: 0 | Q53: 0 | S53: 0
A54: 1960 | B54: Miscellaneous Equipment | E54: 0 | H54: 0 | K54: 0 | M54: 0 | N54: 0 | O54: 0 | P54: 0 | Q54: 0 | S54: 0
A55: 1970 | B55: Load Management Controls Customer Premises | E55: 0 | H55: 0 | K55: 0 | M55: 0 | N55: 0 | O55: 0 | P55: 0 | Q55: 0 | S55: 0
A56: 1975 | B56: Load Management Controls Utility Premises | E56: 0 | H56: 0 | K56: 0 | M56: 0 | N56: 0 | O56: 0 | P56: 0 | Q56: 0 | S56: 0
A57: 1980 | B57: System Supervisor Equipment | E57: 0 | H57: 0 | K57: 0 | M57: 0 | N57: 0 | O57: 0 | P57: 0 | Q57: 0 | S57: 0
A58: 1985 | B58: Miscellaneous Fixed Assets | E58: 0 | H58: 0 | K58: 0 | M58: 0 | N58: 0 | O58: 0 | P58: 0 | Q58: 0 | S58: 0
A59: 1990 | B59: Other Tangible Property | E59: 0 | H59: 0 | K59: 0 | M59: 0 | N59: 0 | O59: 0 | P59: 0 | Q59: 0 | S59: 0
A60: 1995 | B60: Contributions & Grants | E60: 0 | H60: 0 | K60: 0 | M60: 0 | N60: 0 | O60: 0 | P60: 0 | Q60: 0 | S60: 0
A61: 2005 | B61: Property Under Finance Lease | E61: 0 | H61: 0 | K61: 0 | M61: 0 | N61: 0 | O61: =IF(L61=0,0,+H61/L61) -> 0 | P61: =IF(L61=0,0,+(I61*0.5)/L61) -> 0 | Q61: =IF(ISERROR(+N61+O61+P61), 0, +N61+O61+P61) -> 0 | S61: 0
B62: Total | C62: =SUM(C23:C61) -> 0 | D62: =SUM(D23:D61) -> 0 | E62: =SUM(E23:E61) ->  | F62: 0 | G62: 0 | H62: 0 | I62: 0 | N62: =SUM(N23:N61) -> 0 | O62: =SUM(O23:O61) -> 0 | P62: 0 | Q62: 0 | R62: 0 | S62: 0
A65: General: | B65: Applicants are to complete this appendix to show the reasonability of the depreciation expense that is included in rate base via. Accumulated depreciation and the revenue requirement.
B66: Applicants must provide a breakdown of depreciation and amortization expense in the above format for all relevant accounts. Balances presented in the table should exclude asset retirement obligations (AROs) and the related depreciation and accretion expense. These should be disclosed separately consistent with the Notes of historical Audited Financial Statements.
A69: Notes:
A70: 1 | B70: This is the net book value of assets that existed as at the date of the utility's change in depreciation policies (i.e. as at Jan. 1, 2012 or Jan. 1, 2013). These assets are to be depreciated at the average remaining service life. This amount will not change in years subsequent to the date of the utility's change in depreciation policies. This column is expected to be used until the assets that existed as at the date of the utility's change in depreciation policies are fully depreciated.
A71: 2 | B71: This is the opening gross book value of assets that have been acquired after the date of the utility's change in depreciation policies (i.e. additions starting in 2012/2013 for those who changed policies Jan. 1, 2012/2013). These assets are to be depreciated at the revised service life. The amount is expected to be equal to the opening gross book value of the prior year plus the prior year's additions.
A72: 3 | B72: A recalculation should be performed to determine the average remaining life of opening balance of assets (i.e. excluding current year's additions) under the change in policies under CGAAP. For example, Asset A had a useful life of 20 years under CGAAP without the change in policies. On January 1 of the year of policy changes, Asset A was 3 years depreciated. As a result, Asset A would have a remaining service life of 17 years (20 years less 3 years) as at January 1 of the year of policy changes. Due to making the change in policies under CGAAP, management re-assessed the asset useful lives and concluded that the revised useful life of Asset A is now 30 years. Therefore, the average remaining useful life of the opening balance of Asset A is determined to be 27 years (30 years less 3 years) under the revised CGAAP as at January 1 of the year of policy changes.
A73: 4 | B73: The useful life used should be consistent with the OEB's regulatory accounting policies as set out in the Accounting Procedures Handbook for Electricity Distributors, effective Jan. 1, 2012 and also with the Report of the Board, Transition to International Financial Reporting Standards, EB-2008-0408, and the Kinectrics Report.
A74: 5 | B74: OEB policy of the "half-year" rule - the applicant must ensure that additions in the year attract a half-year depreciation expense in the first year. Deviations from this standard practice must be supported in the application.
A75: 6 | B75: The applicant must provide an explanation of material variances in evidence.
A76: 7 | B76: This should include assets in column A (excel column C) that become fully depreciated since the date of the policy change. The amount input in b (excel column D) should equal the net book value of the asset as at the date of depreciation policy change
A77: 8 | B77: This should include assets in column D (excel column F) that have become fully depreciated. The amount input in e (excel column G) should equal the gross book value of the asset

Sheet App.2-D_Overhead
G1: File Number: | H1: =EBNUMBER -> EB-2020-0026
G2: Exhibit:
G3: Tab:
G4: Schedule:
G5: Page: | H5: Settlement
G7: Date: | H7: 2021-02-08
A9: Appendix 2-D
A10: Overhead Expense
A12: Applicants are to provide a breakdown of OM&A before capitalization in the below table. OM&A before capitalization may be broken down by cost center, program, drivers or another format best suited to focus on capitalized vs. uncapitalized OM&A.
A14: OM&A Before Capitalization
B15: =F15-4 -> 2017 | C15: =F15-3 -> 2018 | D15: =F15-2 -> 2019 | E15: =F15-1 -> 2020 | F15: =TestYear -> 2021
B16: Historical Year | C16: Historical Year | D16: Historical Year | E16: Bridge Year | F16: Test Year
A17: Distribution Expenses - Operation and Maintenance | B17: 3061155.031 | C17: 2895187.813 | D17: 2986038.526 | E17: 3051527.372 | F17: 3267050.531
A18: Billings and Collections | B18: 1130881.54 | C18: 1148641.51 | D18: 1125654 | E18: 1171162 | F18: 1165728.917
A19: Administrative and General Expenses | B19: 3187855.5 | C19: 3302510.32 | D19: 3592638.56 | E19: 3608611 | F19: 4046507.758
A27: Total OM&A Before Capitalization (B) | B27: =SUM(B17:B26) -> 7379892.071 | C27: =SUM(C17:C26) -> 7346339.643 | D27: =SUM(D17:D26) -> 7704331.086 | E27: =SUM(E17:E26) -> 7831300.372 | F27: =SUM(F17:F26) -> 8479287.207
A29: Applicants are to provide a breakdown of capitalized OM&A in the below table. Capitalized OM&A may be broken down using the categories listed in the table below if possible. Otherwise, applicants are to provide its own break down of capitalized OM&A.
A31: Capitalized OM&A | G31: Directly | H31: Explanation for Change in Overhead Capitalized
B32: =F32-4 -> 2017 | C32: =F32-3 -> 2018 | D32: =F32-2 -> 2019 | E32: =F32-1 -> 2020 | F32: =TestYear -> 2021 | G32: Attributable?
B33: Historical Year | C33: Historical Year | D33: Historical Year | E33: Bridge Year | F33: Test Year | G33: (Yes/No)
A34: Labour Overhead | B34: 463604.0214 | C34: 482954.8825 | D34: 499827.3563 | E34: 544927.9985 | F34: 575074.6216 | G34: Yes | H34: Directly attributable to capital projects
A35: Trucking Overhead | B35: 564648.05 | C35: 526757 | D35: 523435.19 | E35: 577492.3751 | F35: 616307.169 | G35: Yes | H35: Directly attributable to capital projects
A36: Material Overhead | B36: 375293.74 | C36: 284402.51 | D36: 392885.53 | E36: 302509.9988 | F36: 306532.7405 | G36: Yes | H36: Directly attributable to capital projects
A47: Total Capitalized OM&A (A) | B47: =SUM(B34:B46) -> 1403545.811 | C47: =SUM(C34:C46) -> 1294114.393 | D47: =SUM(D34:D46) -> 1416148.076 | E47: =SUM(E34:E46) -> 1424930.372 | F47: =SUM(F34:F46) -> 1497914.531
A49: % of Capitalized OM&A (=A/B) | B49: =IF(ISERROR(B47/B27),"0%",B47/B27) -> 0.1901851406 | C49: =IF(ISERROR(C47/C27),"0%",C47/C27) -> 0.1761577133 | D49: =IF(ISERROR(D47/D27),"0%",D47/D27) -> 0.1838119443 | E49: =IF(ISERROR(E47/E27),"0%",E47/E27) -> 0.1819532268 | F49: =IF(ISERROR(F47/F27),"0%",F47/F27) -> 0.1766557134

Sheet App.2-EA_Account 1575 (2015) (hidden)
H1: File Number: | I1: =EBNUMBER -> EB-2020-0026
H2: Exhibit:
H3: Tab:
H4: Schedule:
H5: Page:
H7: Date:
A9: Appendix 2-EA
A10: Account 1575 - IFRS-CGAAP Transitional PP&E Amounts
A11: 2015 Adopters of IFRS for Financial Reporting Purposes
A13: For applicants that adopted IFRS on January 1, 2015 for financial reporting purposes
B17: 2014 | C17: =TestYear-3 -> 2018 | D17: =TestYear-2 -> 2019 | E17: =CONCATENATE(TestYear-1," Bridge Year") -> 2020 Bridge Year | F17: =CONCATENATE(TestYear," Rebasing Year") -> 2021 Rebasing Year
A18: Reporting Basis | B18: CGAAP | C18: CGAAP | D18: CGAAP | E18: MIFRS | F18: MIFRS
B19: Actual | C19: Actual | D19: Actual | E19: Forecast | F19: Forecast
D20: $ | E20: $
A21: PP&E Values under CGAAP
A22: Opening net PP&E - Note 1 | C22: =+B25 -> 0 | D22: =+C25 -> 0 | E22: =+D25 -> 0
A23: Net Additions - Note 4
A24: Net Depreciation (amounts should be negative) - Note 4
A25: Closing net PP&E (1) | B25: =SUM(B22:B24) -> 0 | C25: =SUM(C22:C24) -> 0 | D25: =SUM(D22:D24) -> 0 | E25: =SUM(E22:E24) -> 0
A27: PP&E Values under MIFRS (Starts from 2014, the transition year)
A28: Opening net PP&E - Note 1 | C28: =+B31 -> 0 | D28: =+C31 -> 0 | E28: =+D31 -> 0
A29: Net Additions - Note 4
A30: Net Depreciation (amounts should be negative) - Note 4
A31: Closing net PP&E (2) | B31: =SUM(B28:B30) -> 0 | C31: =SUM(C28:C30) -> 0 | D31: =SUM(D28:D30) -> 0 | E31: =SUM(E28:E30) -> 0
A33: Difference in Closing net PP&E, former CGAAP vs. revised CGAAP | B33: =B25-B31 -> 0 | C33: =C25-C31 -> 0 | D33: =D25-D31 -> 0 | E33: =E25-E31 -> 0
A36: Effect on Deferral and Variance Account Rate Riders
A37: Closing balance in Account 1575 | F37: =IF(ISERROR(E33), 0, E33) -> 0 | H37: WACC
A38: Return on Rate Base Associated with Account 1575 balance at WACC - Note 2 | F38: =E33*I37*I38 -> 0 | G38: # of years of rate rider disposition period
A39: Amount included in Deferral and Variance Account Rate Rider Calculation | F39: =F37+F38 -> 0
A41: Notes:
A42: 1 For an applicant that adopted IFRS on January 1, 2015, the PP&E values as of January 1, 2014 under both CGAAP and MIFRS should be the same.
A43: 2 Return on rate base associated with deferred balance is calculated as:
A44: the deferral account closing balance as of 2017 x WACC X # of years of rate rider disposition period
A45: * Please note that the calculation should be adjusted once WACC is updated and finalized in the rate application.
A46: 3 The PP&E deferral account is cleared by including the total balance in the deferral and variance account rate rider calculation.
A47: 4 Net additions are additions net of disposals; Net depreciation is additions to depreciation net of disposals.

Sheet App.2-EB_Account 1576 (2012) (hidden)
K1: File Number: | L1: =EBNUMBER -> EB-2020-0026
K2: Exhibit:
K3: Tab:
K4: Schedule:
K5: Page:
K7: Date:
A9: Appendix 2-EB
A10: Account 1576 - Accounting Changes under CGAAP
A11: 2012 Changes in Accounting Policies under CGAAP
A13: For applicants with a balance in Account 1576 and made capitalization and depreciation expense accounting policy changes under CGAAP effective January 1, 2012. This is the first time the applicant is rebasing with changes in these accounting policies.
B17: Prior Years Rebasing | C17: 2012 | D17: 2013 | E17: 2014 | F17: 2015 | G17: 2016 | H17: 2017 | I17: 2018 Rebasing Year
A18: Reporting Basis | B18: CGAAP | C18: CGAAP | D18: CGAAP | E18: CGAAP | F18: MIFRS - Note 5 | G18: MIFRS | H18: MIFRS | I18: MIFRS
B19: Forecast | C19: Actual | D19: Actual | E19: Actual | F19: Actual | G19: Actual | H19: Forecast | I19: Forecast
C20: $ | D20: $ | E20: $ | F20: $ | G20: $ | H20: $
A21: PP&E Values under former CGAAP
A22: Opening net PP&E - Note 1 | D22: =+C25 -> 0 | E22: =+D25 -> 0 | F22: =+E25 -> 0 | G22: =+F25 -> 0 | H22: =+G25 -> 0
A23: Net Additions - Note 4
A24: Net Depreciation (amounts should be negative) - Note 4
A25: Closing net PP&E (1) | C25: =C22+C23+C24 -> 0 | D25: 0 | E25: 0 | F25: 0 | G25: 0 | H25: 0
A27: PP&E Values under revised CGAAP (Starts from 2012)
A28: Opening net PP&E - Note 1 | D28: =+C31 -> 0 | E28: =+D31 -> 0 | F28: =+E31 -> 0 | G28: =+F31 -> 0 | H28: =+G31 -> 0
A29: Net Additions - Note 4
A30: Net Depreciation (amounts should be negative) - Note 4
A31: Closing net PP&E (2) | C31: =SUM(C28:C30) -> 0 | D31: 0 | E31: 0 | F31: 0 | G31: 0 | H31: 0
A33: Difference in Closing net PP&E, former CGAAP vs. revised CGAAP | C33: =C25-C31 -> 0 | D33: 0 | E33: 0 | F33: 0 | G33: 0 | H33: 0
A36: Effect on Deferral and Variance Account Rate Riders
A37: Closing balance in Account 1576 | I37: =IF(ISERROR(H33), 0, H33) -> 0 | K37: WACC
A38: Return on Rate Base Associated with Account 1576 balance at WACC - Note 2 | I38: =H33*L37*L38 -> 0 | J38: # of years of rate rider disposition period
A39: Amount included in Deferral and Variance Account Rate Rider Calculation | I39: =I37+I38 -> 0
A41: Notes:
A42: 1 For an applicant that made the capitalization and depreciation expense accounting policy changes on January 1, 2012, the PP&E values as of January 1, 2012 under both former CGAAP and revised CGAAP should be the same.
A43: 2 Return on rate base associated with Account 1576 balance is calculated as:
A44: the variance account ending balance as of 2017 x WACC X # of years of rate rider disposition period
A45: * Please note that the calculation should be adjusted once WACC is updated and finalized in the rate application.
A46: 3 Account 1576 is cleared by including the total balance in the deferral and variance account rate rider calculation.
A47: 4 Net additions are additions net of disposals; Net depreciation is additions to depreciation net of disposals.
A48: 5 Differences due to the adoption of MIFRS are to be shown separately in Account 1575 in Appendix 2-EA as Accounts 1575 and 1576 cannot be used interchangably.

Sheet App.2-EC_Account 1576 (2013) (hidden)
J1: File Number: | K1: =EBNUMBER -> EB-2020-0026
J2: Exhibit:
J3: Tab:
J4: Schedule:
J5: Page:
J7: Date:
A9: Appendix 2-EC
A10: Account 1576 - Accounting Changes under CGAAP
A11: 2013 Changes in Accounting Policies under CGAAP
A13: For applicants with a balance in Account 1576 and made capitalization and depreciation expense accounting policy changes under CGAAP effective January 1, 2013. This is the first time the applicant is rebasing with changes in these accounting policies.
B17: Prior Years Rebasing | C17: 2013 | D17: 2014 | E17: 2015 | F17: 2016 | G17: 2017 | H17: 2018 Rebasing Year
A18: Reporting Basis | B18: CGAAP | C18: CGAAP | D18: CGAAP | E18: MIFRS - Note 5 | F18: MIFRS | G18: MIFRS | H18: MIFRS
B19: Actual | C19: Actual | D19: Actual | E19: Actual | F19: Actual | G19: Forecast | H19: Forecast
C20: $ | D20: $ | F20: $
A21: PP&E Values under former CGAAP
A22: Opening net PP&E - Note 1 | D22: =+C25 -> 0 | E22: =+D25 -> 0 | F22: =+E25 -> 0 | G22: =+F25 -> 0
A23: Net Additions - Note 4
A24: Net Depreciation (amounts should be negative) - Note 4
A25: Closing net PP&E (1) | C25: =C22+C23+C24 -> 0 | D25: =D22+D23+D24 -> 0 | E25: =E22+E23+E24 -> 0 | F25: =F22+F23+F24 -> 0 | G25: =G22+G23+G24 -> 0
A27: PP&E Values under revised CGAAP (Starts from 2012)
A28: Opening net PP&E - Note 1 | D28: =+C31 -> 0 | E28: =+D31 -> 0 | F28: =+E31 -> 0 | G28: =+F31 -> 0
A29: Net Additions - Note 4
A30: Net Depreciation (amounts should be negative) - Note 4
A31: Closing net PP&E (2) | C31: =SUM(C28:C30) -> 0 | D31: =SUM(D28:D30) -> 0 | E31: =SUM(E28:E30) -> 0 | F31: =SUM(F28:F30) -> 0 | G31: =SUM(G28:G30) -> 0
A33: Difference in Closing net PP&E, former CGAAP vs. revised CGAAP | C33: =C25-C31 -> 0 | D33: =D25-D31 -> 0 | E33: =E25-E31 -> 0 | F33: =F25-F31 -> 0 | G33: =G25-G31 -> 0
A36: Effect on Deferral and Variance Account Rate Riders
A37: Closing balance in Account 1576 | H37: =IF(ISERROR(G33), 0, G33) -> 0 | J37: WACC
A38: Return on Rate Base Associated with Account 1576 balance at WACC - Note 2 | H38: =G33*K37*K38 -> 0 | I38: # of years of rate rider disposition period
A39: Amount included in Deferral and Variance Account Rate Rider Calculation | H39: =H37+H38 -> 0
A41: Notes:
A42: 1 For an applicant that made the capitalization and depreciation expense accounting policy changes on January 1, 2013, the PP&E values as of January 1, 2013 under both former CGAAP and revised CGAAP should be the same.
A43: 2 Return on rate base associated with Account 1576 balance is calculated as:
A44: the variance account ending balance as of 2017 x WACC X # of years of rate rider disposition period
A45: * Please note that the calculation should be adjusted once WACC is updated and finalized in the rate application.
A46: 3 Account 1576 is cleared by including the total balance in the deferral and variance account rate rider calculation.
A47: 4 Net additions are additions net of disposals; Net depreciation is additions to depreciation net of disposals.
A48: 5 Differences due to the adoption of MIFRS are to be shown separately in Account 1575 in Appendix 2-EA as Accounts 1575 and 1576 cannot be used interchangably.

Sheet Hidden_REG Invest. (hidden)
A1: Utility Name | B1: EB Number | C1: Test Year | D1: Bridge Year | E1: Last Rebasing Year | F1: Renewable Generation Connection Investment Summary | G1: Year | H1: Amount
A2: ='LDC Info'!$E$14 -> Halton Hills Hydro Inc. | B2: =EBNUMBER -> EB-2020-0026 | C2: =TestYear -> 2021 | D2: =BridgeYear -> 2020 | E2: =RebaseYear -> 2016 | F2: REI Investments_A_Total Capital Costs | G2: ='App.2-FA Proposed REG Invest.'!$C$31 -> 2016 | H2: ='App.2-FA Proposed REG Invest.'!C62 -> 0
A3: ='LDC Info'!$E$14 -> Halton Hills Hydro Inc. | B3: EB-2020-0026 | C3: 2021 | D3: 2020 | E3: 2016 | F3: REI Investments_A_Total OM&A Start-Up | G3: ='App.2-FA Proposed REG Invest.'!$C$31 -> 2016 | H3: ='App.2-FA Proposed REG Invest.'!$C63 -> 0
A4: ='LDC Info'!$E$14 -> Halton Hills Hydro Inc. | B4: EB-2020-0026 | C4: 2021 | D4: 2020 | E4: 2016 | F4: REI Investments_A_Total OM&A Ongoing | G4: ='App.2-FA Proposed REG Invest.'!$C$31 -> 2016 | H4: ='App.2-FA Proposed REG Invest.'!$C64 -> 0
A5: ='LDC Info'!$E$14 -> Halton Hills Hydro Inc. | B5: EB-2020-0026 | C5: 2021 | D5: 2020 | E5: 2016 | F5: REI Investments_A_Total Capital Costs | G5: ='App.2-FA Proposed REG Invest.'!$D$31 -> 2017 | H5: ='App.2-FA Proposed REG Invest.'!D62 -> 0
A6: ='LDC Info'!$E$14 -> Halton Hills Hydro Inc. | B6: EB-2020-0026 | C6: 2021 | D6: 2020 | E6: 2016 | F6: REI Investments_A_Total OM&A Start-Up | G6: ='App.2-FA Proposed REG Invest.'!$D$31 -> 2017 | H6: ='App.2-FA Proposed REG Invest.'!D63 -> 0
A7: ='LDC Info'!$E$14 -> Halton Hills Hydro Inc. | B7: EB-2020-0026 | C7: 2021 | D7: 2020 | E7: 2016 | F7: REI Investments_A_Total OM&A Ongoing | G7: ='App.2-FA Proposed REG Invest.'!$D$31 -> 2017 | H7: ='App.2-FA Proposed REG Invest.'!D64 -> 0
A8: ='LDC Info'!$E$14 -> Halton Hills Hydro Inc. | B8: EB-2020-0026 | C8: 2021 | D8: 2020 | E8: 2016 | F8: REI Investments_A_Total Capital Costs | G8: ='App.2-FA Proposed REG Invest.'!$E$31 -> 2018 | H8: ='App.2-FA Proposed REG Invest.'!E62 -> 0
A9: ='LDC Info'!$E$14 -> Halton Hills Hydro Inc. | B9: EB-2020-0026 | C9: 2021 | D9: 2020 | E9: 2016 | F9: REI Investments_A_Total OM&A Start-Up | G9: ='App.2-FA Proposed REG Invest.'!$E$31 -> 2018 | H9: ='App.2-FA Proposed REG Invest.'!E63 -> 0
A10: ='LDC Info'!$E$14 -> Halton Hills Hydro Inc. | B10: EB-2020-0026 | C10: 2021 | D10: 2020 | E10: 2016 | F10: REI Investments_A_Total OM&A Ongoing | G10: ='App.2-FA Proposed REG Invest.'!$E$31 -> 2018 | H10: ='App.2-FA Proposed REG Invest.'!E64 -> 0
A11: ='LDC Info'!$E$14 -> Halton Hills Hydro Inc. | B11: EB-2020-0026 | C11: 2021 | D11: 2020 | E11: 2016 | F11: REI Investments_A_Total Capital Costs | G11: ='App.2-FA Proposed REG Invest.'!$F$31 -> 2019 | H11: ='App.2-FA Proposed REG Invest.'!F62 -> 0
A12: ='LDC Info'!$E$14 -> Halton Hills Hydro Inc. | B12: EB-2020-0026 | C12: 2021 | D12: 2020 | E12: 2016 | F12: REI Investments_A_Total OM&A Start-Up | G12: ='App.2-FA Proposed REG Invest.'!$F$31 -> 2019 | H12: ='App.2-FA Proposed REG Invest.'!F63 -> 0
A13: ='LDC Info'!$E$14 -> Halton Hills Hydro Inc. | B13: EB-2020-0026 | C13: 2021 | D13: 2020 | E13: 2016 | F13: REI Investments_A_Total OM&A Ongoing | G13: ='App.2-FA Proposed REG Invest.'!$F$31 -> 2019 | H13: ='App.2-FA Proposed REG Invest.'!F64 -> 0
A14: ='LDC Info'!$E$14 -> Halton Hills Hydro Inc. | B14: EB-2020-0026 | C14: 2021 | D14: 2020 | E14: 2016 | F14: REI Investments_A_Total Capital Costs | G14: ='App.2-FA Proposed REG Invest.'!$G$31 -> 2020 | H14: ='App.2-FA Proposed REG Invest.'!G62 -> 0
A15: ='LDC Info'!$E$14 -> Halton Hills Hydro Inc. | B15: EB-2020-0026 | C15: 2021 | D15: 2020 | E15: 2016 | F15: REI Investments_A_Total OM&A Start-Up | G15: ='App.2-FA Proposed REG Invest.'!$G$31 -> 2020 | H15: ='App.2-FA Proposed REG Invest.'!G63 -> 0
A16: ='LDC Info'!$E$14 -> Halton Hills Hydro Inc. | B16: EB-2020-0026 | C16: 2021 | D16: 2020 | E16: 2016 | F16: REI Investments_A_Total OM&A Ongoing | G16: ='App.2-FA Proposed REG Invest.'!$G$31 -> 2020 | H16: ='App.2-FA Proposed REG Invest.'!G64 -> 0
A17: ='LDC Info'!$E$14 -> Halton Hills Hydro Inc. | B17: EB-2020-0026 | C17: 2021 | D17: 2020 | E17: 2016 | F17: REI Investments_A_Total Capital Costs | G17: ='App.2-FA Proposed REG Invest.'!$H$31 -> 2021 | H17: ='App.2-FA Proposed REG Invest.'!H62 -> 0
A18: ='LDC Info'!$E$14 -> Halton Hills Hydro Inc. | B18: EB-2020-0026 | C18: 2021 | D18: 2020 | E18: 2016 | F18: REI Investments_A_Total OM&A Start-Up | G18: ='App.2-FA Proposed REG Invest.'!$H$31 -> 2021 | H18: ='App.2-FA Proposed REG Invest.'!H63 -> 0
A19: ='LDC Info'!$E$14 -> Halton Hills Hydro Inc. | B19: EB-2020-0026 | C19: 2021 | D19: 2020 | E19: 2016 | F19: REI Investments_A_Total OM&A Ongoing | G19: ='App.2-FA Proposed REG Invest.'!$H$31 -> 2021 | H19: ='App.2-FA Proposed REG Invest.'!H64 -> 0
A20: ='LDC Info'!$E$14 -> Halton Hills Hydro Inc. | B20: EB-2020-0026 | C20: 2021 | D20: 2020 | E20: 2016 | F20: REI Investments_A_Total Capital Costs | G20: ='App.2-FA Proposed REG Invest.'!$I$31 -> 2022 | H20: ='App.2-FA Proposed REG Invest.'!I62 -> 0
A21: ='LDC Info'!$E$14 -> Halton Hills Hydro Inc. | B21: EB-2020-0026 | C21: 2021 | D21: 2020 | E21: 2016 | F21: REI Investments_A_Total OM&A Start-Up | G21: ='App.2-FA Proposed REG Invest.'!$I$31 -> 2022 | H21: ='App.2-FA Proposed REG Invest.'!I63 -> 0
A22: ='LDC Info'!$E$14 -> Halton Hills Hydro Inc. | B22: EB-2020-0026 | C22: 2021 | D22: 2020 | E22: 2016 | F22: REI Investments_A_Total OM&A Ongoing | G22: ='App.2-FA Proposed REG Invest.'!$I$31 -> 2022 | H22: ='App.2-FA Proposed REG Invest.'!I64 -> 0
A23: ='LDC Info'!$E$14 -> Halton Hills Hydro Inc. | B23: EB-2020-0026 | C23: 2021 | D23: 2020 | E23: 2016 | F23: REI Investments_A_Total Capital Costs | G23: ='App.2-FA Proposed REG Invest.'!$J$31 -> 2023 | H23: ='App.2-FA Proposed REG Invest.'!J62 -> 0
A24: ='LDC Info'!$E$14 -> Halton Hills Hydro Inc. | B24: EB-2020-0026 | C24: 2021 | D24: 2020 | E24: 2016 | F24: REI Investments_A_Total OM&A Start-Up | G24: ='App.2-FA Proposed REG Invest.'!$J$31 -> 2023 | H24: ='App.2-FA Proposed REG Invest.'!J63 -> 0
A25: ='LDC Info'!$E$14 -> Halton Hills Hydro Inc. | B25: EB-2020-0026 | C25: 2021 | D25: 2020 | E25: 2016 | F25: REI Investments_A_Total OM&A Ongoing | G25: ='App.2-FA Proposed REG Invest.'!$J$31 -> 2023 | H25: ='App.2-FA Proposed REG Invest.'!J64 -> 0
A26: ='LDC Info'!$E$14 -> Halton Hills Hydro Inc. | B26: EB-2020-0026 | C26: 2021 | D26: 2020 | E26: 2016 | F26: REI Investments_A_Total Capital Costs | G26: ='App.2-FA Proposed REG Invest.'!$K$31 -> 2024 | H26: ='App.2-FA Proposed REG Invest.'!K62 -> 0
A27: ='LDC Info'!$E$14 -> Halton Hills Hydro Inc. | B27: EB-2020-0026 | C27: 2021 | D27: 2020 | E27: 2016 | F27: REI Investments_A_Total OM&A Start-Up | G27: ='App.2-FA Proposed REG Invest.'!$K$31 -> 2024 | H27: ='App.2-FA Proposed REG Invest.'!K63 -> 0
A28: ='LDC Info'!$E$14 -> Halton Hills Hydro Inc. | B28: EB-2020-0026 | C28: 2021 | D28: 2020 | E28: 2016 | F28: REI Investments_A_Total OM&A Ongoing | G28: ='App.2-FA Proposed REG Invest.'!$K$31 -> 2024 | H28: ='App.2-FA Proposed REG Invest.'!K64 -> 0
A29: ='LDC Info'!$E$14 -> Halton Hills Hydro Inc. | B29: EB-2020-0026 | C29: 2021 | D29: 2020 | E29: 2016 | F29: REI Investments_A_Total Capital Costs | G29: ='App.2-FA Proposed REG Invest.'!$L$31 -> 2025 | H29: ='App.2-FA Proposed REG Invest.'!L62 -> 0
A30: ='LDC Info'!$E$14 -> Halton Hills Hydro Inc. | B30: EB-2020-0026 | C30: 2021 | D30: 2020 | E30: 2016 | F30: REI Investments_A_Total OM&A Start-Up | G30: ='App.2-FA Proposed REG Invest.'!$L$31 -> 2025 | H30: ='App.2-FA Proposed REG Invest.'!L63 -> 0
A31: ='LDC Info'!$E$14 -> Halton Hills Hydro Inc. | B31: EB-2020-0026 | C31: 2021 | D31: 2020 | E31: 2016 | F31: REI Investments_A_Total OM&A Ongoing | G31: ='App.2-FA Proposed REG Invest.'!$L$31 -> 2025 | H31: ='App.2-FA Proposed REG Invest.'!L64 -> 0
A32: ='LDC Info'!$E$14 -> Halton Hills Hydro Inc. | B32: EB-2020-0026 | C32: 2021 | D32: 2020 | E32: 2016 | F32: Expansion Investments_B_Total Capital Costs | G32: ='App.2-FA Proposed REG Invest.'!$C$31 -> 2016 | H32: ='App.2-FA Proposed REG Invest.'!C99 -> 0
A33: ='LDC Info'!$E$14 -> Halton Hills Hydro Inc. | B33: EB-2020-0026 | C33: 2021 | D33: 2020 | E33: 2016 | F33: Expansion Investments_B_Total OM&A Start-Up | G33: ='App.2-FA Proposed REG Invest.'!$C$31 -> 2016 | H33: ='App.2-FA Proposed REG Invest.'!C100 -> 0
A34: ='LDC Info'!$E$14 -> Halton Hills Hydro Inc. | B34: EB-2020-0026 | C34: 2021 | D34: 2020 | E34: 2016 | F34: Expansion Investments_B_Total OM&A Ongoing | G34: ='App.2-FA Proposed REG Invest.'!$C$31 -> 2016 | H34: ='App.2-FA Proposed REG Invest.'!C101 -> 0
A35: ='LDC Info'!$E$14 -> Halton Hills Hydro Inc. | B35: EB-2020-0026 | C35: 2021 | D35: 2020 | E35: 2016 | F35: Expansion Investments_B_Total Capital Costs | G35: ='App.2-FA Proposed REG Invest.'!$D$31 -> 2017 | H35: ='App.2-FA Proposed REG Invest.'!D99 -> 0
A36: ='LDC Info'!$E$14 -> Halton Hills Hydro Inc. | B36: EB-2020-0026 | C36: 2021 | D36: 2020 | E36: 2016 | F36: Expansion Investments_B_Total OM&A Start-Up | G36: ='App.2-FA Proposed REG Invest.'!$D$31 -> 2017 | H36: ='App.2-FA Proposed REG Invest.'!D100 -> 0
A37: ='LDC Info'!$E$14 -> Halton Hills Hydro Inc. | B37: EB-2020-0026 | C37: 2021 | D37: 2020 | E37: 2016 | F37: Expansion Investments_B_Total OM&A Ongoing | G37: ='App.2-FA Proposed REG Invest.'!$D$31 -> 2017 | H37: ='App.2-FA Proposed REG Invest.'!D101 -> 0
A38: ='LDC Info'!$E$14 -> Halton Hills Hydro Inc. | B38: EB-2020-0026 | C38: 2021 | D38: 2020 | E38: 2016 | F38: Expansion Investments_B_Total Capital Costs | G38: ='App.2-FA Proposed REG Invest.'!$E$31 -> 2018 | H38: ='App.2-FA Proposed REG Invest.'!E99 -> 0
A39: ='LDC Info'!$E$14 -> Halton Hills Hydro Inc. | B39: EB-2020-0026 | C39: 2021 | D39: 2020 | E39: 2016 | F39: Expansion Investments_B_Total OM&A Start-Up | G39: ='App.2-FA Proposed REG Invest.'!$E$31 -> 2018 | H39: ='App.2-FA Proposed REG Invest.'!E100 -> 0
A40: ='LDC Info'!$E$14 -> Halton Hills Hydro Inc. | B40: EB-2020-0026 | C40: 2021 | D40: 2020 | E40: 2016 | F40: Expansion Investments_B_Total OM&A Ongoing | G40: ='App.2-FA Proposed REG Invest.'!$E$31 -> 2018 | H40: ='App.2-FA Proposed REG Invest.'!E101 -> 0
A41: ='LDC Info'!$E$14 -> Halton Hills Hydro Inc. | B41: EB-2020-0026 | C41: 2021 | D41: 2020 | E41: 2016 | F41: Expansion Investments_B_Total Capital Costs | G41: ='App.2-FA Proposed REG Invest.'!$F$31 -> 2019 | H41: ='App.2-FA Proposed REG Invest.'!F99 -> 0
A42: ='LDC Info'!$E$14 -> Halton Hills Hydro Inc. | B42: EB-2020-0026 | C42: 2021 | D42: 2020 | E42: 2016 | F42: Expansion Investments_B_Total OM&A Start-Up | G42: ='App.2-FA Proposed REG Invest.'!$F$31 -> 2019 | H42: ='App.2-FA Proposed REG Invest.'!F100 -> 0
A43: ='LDC Info'!$E$14 -> Halton Hills Hydro Inc. | B43: EB-2020-0026 | C43: 2021 | D43: 2020 | E43: 2016 | F43: Expansion Investments_B_Total OM&A Ongoing | G43: ='App.2-FA Proposed REG Invest.'!$F$31 -> 2019 | H43: ='App.2-FA Proposed REG Invest.'!F101 -> 0
A44: ='LDC Info'!$E$14 -> Halton Hills Hydro Inc. | B44: EB-2020-0026 | C44: 2021 | D44: 2020 | E44: 2016 | F44: Expansion Investments_B_Total Capital Costs | G44: ='App.2-FA Proposed REG Invest.'!$G$31 -> 2020 | H44: ='App.2-FA Proposed REG Invest.'!G99 -> 0
A45: ='LDC Info'!$E$14 -> Halton Hills Hydro Inc. | B45: EB-2020-0026 | C45: 2021 | D45: 2020 | E45: 2016 | F45: Expansion Investments_B_Total OM&A Start-Up | G45: ='App.2-FA Proposed REG Invest.'!$G$31 -> 2020 | H45: ='App.2-FA Proposed REG Invest.'!G100 -> 0
A46: ='LDC Info'!$E$14 -> Halton Hills Hydro Inc. | B46: EB-2020-0026 | C46: 2021 | D46: 2020 | E46: 2016 | F46: Expansion Investments_B_Total OM&A Ongoing | G46: ='App.2-FA Proposed REG Invest.'!$G$31 -> 2020 | H46: ='App.2-FA Proposed REG Invest.'!G101 -> 0
A47: ='LDC Info'!$E$14 -> Halton Hills Hydro Inc. | B47: EB-2020-0026 | C47: 2021 | D47: 2020 | E47: 2016 | F47: Expansion Investments_B_Total Capital Costs | G47: ='App.2-FA Proposed REG Invest.'!$H$31 -> 2021 | H47: ='App.2-FA Proposed REG Invest.'!H99 -> 0
A48: ='LDC Info'!$E$14 -> Halton Hills Hydro Inc. | B48: EB-2020-0026 | C48: 2021 | D48: 2020 | E48: 2016 | F48: Expansion Investments_B_Total OM&A Start-Up | G48: ='App.2-FA Proposed REG Invest.'!$H$31 -> 2021 | H48: ='App.2-FA Proposed REG Invest.'!H100 -> 0
A49: ='LDC Info'!$E$14 -> Halton Hills Hydro Inc. | B49: EB-2020-0026 | C49: 2021 | D49: 2020 | E49: 2016 | F49: Expansion Investments_B_Total OM&A Ongoing | G49: ='App.2-FA Proposed REG Invest.'!$H$31 -> 2021 | H49: ='App.2-FA Proposed REG Invest.'!H101 -> 0
A50: ='LDC Info'!$E$14 -> Halton Hills Hydro Inc. | B50: EB-2020-0026 | C50: 2021 | D50: 2020 | E50: 2016 | F50: Expansion Investments_B_Total Capital Costs | G50: ='App.2-FA Proposed REG Invest.'!$I$31 -> 2022 | H50: ='App.2-FA Proposed REG Invest.'!I99 -> 0
A51: ='LDC Info'!$E$14 -> Halton Hills Hydro Inc. | B51: EB-2020-0026 | C51: 2021 | D51: 2020 | E51: 2016 | F51: Expansion Investments_B_Total OM&A Start-Up | G51: ='App.2-FA Proposed REG Invest.'!$I$31 -> 2022 | H51: ='App.2-FA Proposed REG Invest.'!I100 -> 0
A52: ='LDC Info'!$E$14 -> Halton Hills Hydro Inc. | B52: EB-2020-0026 | C52: 2021 | D52: 2020 | E52: 2016 | F52: Expansion Investments_B_Total OM&A Ongoing | G52: ='App.2-FA Proposed REG Invest.'!$I$31 -> 2022 | H52: ='App.2-FA Proposed REG Invest.'!I101 -> 0
A53: ='LDC Info'!$E$14 -> Halton Hills Hydro Inc. | B53: EB-2020-0026 | C53: 2021 | D53: 2020 | E53: 2016 | F53: Expansion Investments_B_Total Capital Costs | G53: ='App.2-FA Proposed REG Invest.'!$J$31 -> 2023 | H53: ='App.2-FA Proposed REG Invest.'!J99 -> 0
A54: ='LDC Info'!$E$14 -> Halton Hills Hydro Inc. | B54: EB-2020-0026 | C54: 2021 | D54: 2020 | E54: 2016 | F54: Expansion Investments_B_Total OM&A Start-Up | G54: ='App.2-FA Proposed REG Invest.'!$J$31 -> 2023 | H54: ='App.2-FA Proposed REG Invest.'!J100 -> 0
A55: ='LDC Info'!$E$14 -> Halton Hills Hydro Inc. | B55: EB-2020-0026 | C55: 2021 | D55: 2020 | E55: 2016 | F55: Expansion Investments_B_Total OM&A Ongoing | G55: ='App.2-FA Proposed REG Invest.'!$J$31 -> 2023 | H55: ='App.2-FA Proposed REG Invest.'!J101 -> 0
A56: ='LDC Info'!$E$14 -> Halton Hills Hydro Inc. | B56: EB-2020-0026 | C56: 2021 | D56: 2020 | E56: 2016 | F56: Expansion Investments_B_Total Capital Costs | G56: ='App.2-FA Proposed REG Invest.'!$K$31 -> 2024 | H56: ='App.2-FA Proposed REG Invest.'!K99 -> 0
A57: ='LDC Info'!$E$14 -> Halton Hills Hydro Inc. | B57: EB-2020-0026 | C57: 2021 | D57: 2020 | E57: 2016 | F57: Expansion Investments_B_Total OM&A Start-Up | G57: ='App.2-FA Proposed REG Invest.'!$K$31 -> 2024 | H57: ='App.2-FA Proposed REG Invest.'!K100 -> 0
A58: ='LDC Info'!$E$14 -> Halton Hills Hydro Inc. | B58: EB-2020-0026 | C58: 2021 | D58: 2020 | E58: 2016 | F58: Expansion Investments_B_Total OM&A Ongoing | G58: ='App.2-FA Proposed REG Invest.'!$K$31 -> 2024 | H58: ='App.2-FA Proposed REG Invest.'!K101 -> 0
A59: ='LDC Info'!$E$14 -> Halton Hills Hydro Inc. | B59: EB-2020-0026 | C59: 2021 | D59: 2020 | E59: 2016 | F59: Expansion Investments_B_Total Capital Costs | G59: ='App.2-FA Proposed REG Invest.'!$L$31 -> 2025 | H59: ='App.2-FA Proposed REG Invest.'!L99 -> 0
A60: ='LDC Info'!$E$14 -> Halton Hills Hydro Inc. | B60: EB-2020-0026 | C60: 2021 | D60: 2020 | E60: 2016 | F60: Expansion Investments_B_Total OM&A Start-Up | G60: ='App.2-FA Proposed REG Invest.'!$L$31 -> 2025 | H60: ='App.2-FA Proposed REG Invest.'!L100 -> 0
A61: ='LDC Info'!$E$14 -> Halton Hills Hydro Inc. | B61: EB-2020-0026 | C61: 2021 | D61: 2020 | E61: 2016 | F61: Expansion Investments_B_Total OM&A Ongoing | G61: ='App.2-FA Proposed REG Invest.'!$L$31 -> 2025 | H61: ='App.2-FA Proposed REG Invest.'!L101 -> 0

Sheet Hidden_REG Improvement (hidden)
A1: Utility Name | B1: EB Number | C1: Test Year | D1: Bridge Year | E1: Last Rebasing Year | F1: Renewable Generation Connection Direct Benefits/Provincial Amount Renewable Enabling Improvement Investments | G1: Year | H1: Amount
A2: ='LDC Info'!$E$14 -> Halton Hills Hydro Inc. | B2: =EBNUMBER -> EB-2020-0026 | C2: =TestYear -> 2021 | D2: =BridgeYear -> 2020 | E2: =RebaseYear -> 2016 | F2: Provincial Rate Protection | G2: ='App.2-FB Calc of REG Improvemnt'!D17 -> 2016 | H2: ='App.2-FB Calc of REG Improvemnt'!F$44 -> 0
A3: ='LDC Info'!$E$14 -> Halton Hills Hydro Inc. | B3: EB-2020-0026 | C3: 2021 | D3: 2020 | E3: 2016 | F3: Provincial Rate Protection | G3: ='App.2-FB Calc of REG Improvemnt'!G17 -> 2017 | H3: ='App.2-FB Calc of REG Improvemnt'!I$44 -> 0
A4: ='LDC Info'!$E$14 -> Halton Hills Hydro Inc. | B4: EB-2020-0026 | C4: 2021 | D4: 2020 | E4: 2016 | F4: Provincial Rate Protection | G4: ='App.2-FB Calc of REG Improvemnt'!J17 -> 2018 | H4: ='App.2-FB Calc of REG Improvemnt'!L$44 -> 0
A5: ='LDC Info'!$E$14 -> Halton Hills Hydro Inc. | B5: EB-2020-0026 | C5: 2021 | D5: 2020 | E5: 2016 | F5: Provincial Rate Protection | G5: ='App.2-FB Calc of REG Improvemnt'!M17 -> 2019 | H5: ='App.2-FB Calc of REG Improvemnt'!O$44 -> 0
A6: ='LDC Info'!$E$14 -> Halton Hills Hydro Inc. | B6: EB-2020-0026 | C6: 2021 | D6: 2020 | E6: 2016 | F6: Provincial Rate Protection | G6: ='App.2-FB Calc of REG Improvemnt'!P17 -> 2020 | H6: ='App.2-FB Calc of REG Improvemnt'!R$44 -> 0
A7: ='LDC Info'!$E$14 -> Halton Hills Hydro Inc. | B7: EB-2020-0026 | C7: 2021 | D7: 2020 | E7: 2016 | F7: Provincial Rate Protection | G7: ='App.2-FB Calc of REG Improvemnt'!S17 -> 2021 | H7: ='App.2-FB Calc of REG Improvemnt'!U$44 -> 0
A8: ='LDC Info'!$E$14 -> Halton Hills Hydro Inc. | B8: EB-2020-0026 | C8: 2021 | D8: 2020 | E8: 2016 | F8: Provincial Rate Protection | G8: ='App.2-FB Calc of REG Improvemnt'!V17 -> 2022 | H8: ='App.2-FB Calc of REG Improvemnt'!X$44 -> 0
A9: ='LDC Info'!$E$14 -> Halton Hills Hydro Inc. | B9: EB-2020-0026 | C9: 2021 | D9: 2020 | E9: 2016 | F9: Provincial Rate Protection | G9: ='App.2-FB Calc of REG Improvemnt'!Y17 -> 2023 | H9: ='App.2-FB Calc of REG Improvemnt'!AA$44 -> 0
A10: ='LDC Info'!$E$14 -> Halton Hills Hydro Inc. | B10: EB-2020-0026 | C10: 2021 | D10: 2020 | E10: 2016 | F10: Provincial Rate Protection | G10: ='App.2-FB Calc of REG Improvemnt'!AB17 -> 2024 | H10: ='App.2-FB Calc of REG Improvemnt'!AD$44 -> 0
A11: ='LDC Info'!$E$14 -> Halton Hills Hydro Inc. | B11: EB-2020-0026 | C11: 2021 | D11: 2020 | E11: 2016 | F11: Provincial Rate Protection | G11: ='App.2-FB Calc of REG Improvemnt'!AE17 -> 2025 | H11: ='App.2-FB Calc of REG Improvemnt'!AG$44 -> 0

Sheet Hidden_REG Expansion (hidden)
A1: Utility Name | B1: EB Number | C1: Test Year | D1: Bridge Year | E1: Last Rebasing Year | F1: Calculation of Renewable Generation Connection Direct Benefits/Provincial Amount Renewable Expansion Investments | G1: Year | H1: Amount
A2: ='LDC Info'!$E$14 -> Halton Hills Hydro Inc. | B2: =EBNUMBER -> EB-2020-0026 | C2: =TestYear -> 2021 | D2: =BridgeYear -> 2020 | E2: =RebaseYear -> 2016 | F2: Provincial Rate Protection | G2: ='App.2-FC Calc of REG Expansion'!D$17 -> 2016 | H2: ='App.2-FC Calc of REG Expansion'!F$44 -> 0
A3: ='LDC Info'!$E$14 -> Halton Hills Hydro Inc. | B3: EB-2020-0026 | C3: 2021 | D3: 2020 | E3: 2016 | F3: Provincial Rate Protection | G3: ='App.2-FC Calc of REG Expansion'!G$17 -> 2017 | H3: ='App.2-FC Calc of REG Expansion'!I$44 -> 0
A4: ='LDC Info'!$E$14 -> Halton Hills Hydro Inc. | B4: EB-2020-0026 | C4: 2021 | D4: 2020 | E4: 2016 | F4: Provincial Rate Protection | G4: ='App.2-FC Calc of REG Expansion'!J$17 -> 2018 | H4: ='App.2-FC Calc of REG Expansion'!L$44 -> 0
A5: ='LDC Info'!$E$14 -> Halton Hills Hydro Inc. | B5: EB-2020-0026 | C5: 2021 | D5: 2020 | E5: 2016 | F5: Provincial Rate Protection | G5: ='App.2-FC Calc of REG Expansion'!M$17 -> 2019 | H5: ='App.2-FC Calc of REG Expansion'!O$44 -> 0
A6: ='LDC Info'!$E$14 -> Halton Hills Hydro Inc. | B6: EB-2020-0026 | C6: 2021 | D6: 2020 | E6: 2016 | F6: Provincial Rate Protection | G6: ='App.2-FC Calc of REG Expansion'!P$17 -> 2020 | H6: ='App.2-FC Calc of REG Expansion'!R$44 -> 0
A7: ='LDC Info'!$E$14 -> Halton Hills Hydro Inc. | B7: EB-2020-0026 | C7: 2021 | D7: 2020 | E7: 2016 | F7: Provincial Rate Protection | G7: ='App.2-FC Calc of REG Expansion'!S$17 -> 2021 | H7: ='App.2-FC Calc of REG Expansion'!U$44 -> 0
A8: ='LDC Info'!$E$14 -> Halton Hills Hydro Inc. | B8: EB-2020-0026 | C8: 2021 | D8: 2020 | E8: 2016 | F8: Provincial Rate Protection | G8: ='App.2-FC Calc of REG Expansion'!V$17 -> 2022 | H8: ='App.2-FC Calc of REG Expansion'!X$44 -> 0
A9: ='LDC Info'!$E$14 -> Halton Hills Hydro Inc. | B9: EB-2020-0026 | C9: 2021 | D9: 2020 | E9: 2016 | F9: Provincial Rate Protection | G9: ='App.2-FC Calc of REG Expansion'!Y$17 -> 2023 | H9: ='App.2-FC Calc of REG Expansion'!AA$44 -> 0
A10: ='LDC Info'!$E$14 -> Halton Hills Hydro Inc. | B10: EB-2020-0026 | C10: 2021 | D10: 2020 | E10: 2016 | F10: Provincial Rate Protection | G10: ='App.2-FC Calc of REG Expansion'!AB$17 -> 2024 | H10: ='App.2-FC Calc of REG Expansion'!AD$44 -> 0
A11: ='LDC Info'!$E$14 -> Halton Hills Hydro Inc. | B11: EB-2020-0026 | C11: 2021 | D11: 2020 | E11: 2016 | F11: Provincial Rate Protection | G11: ='App.2-FC Calc of REG Expansion'!AE$17 -> 2025 | H11: ='App.2-FC Calc of REG Expansion'!AG$44 -> 0

Sheet App.2-FA Proposed REG Invest.
K1: File Number: | L1: 0
K2: Exhibit:
K3: Tab:
A4: TO BE UPDATED AT DRAFT RATE ORDER STAGE | K4: Schedule:
K5: Page: | L5: Not applicable
K7: Date: | L7: 2021-02-08
A9: Appendix 2-FA (Not applicable to this application)
A10: Renewable Generation Connection Investment Summary (past investments or over the future rate setting period)
A12: Enter the details of the Renewable Generation Connection projects as described in the appropriate section of the Filing Requirements.
A13: All costs entered on this page will be transferred to the appropriate cells in the appendices that follow.
A14: For Part A, Renewable Enabling Improvements (REI), these amounts will be transferred to Appendix 2 - FB
A15: For Part B, Expansions, these amounts will be transferred to Appendix 2 - FC
A17: If there are more than five projects proposed to be in-service in a certain year, please amend the tables below and ensure that the formulae for the Total Amounts in any given rate year are updated.
A18: Based on the current methodology and allocation, amounts allocated represent 6% for REI Connection Investments and 17% for Expansion Investments. (EB-2009-0349, 6-10-2010, p. 15, note 9)
A19: Ensure that OM&A costs below are not included in Recoverable OM&A (App. 2-JA)
A20: There are two scenarios described below. Separate sets of spreadsheets (2-FA, 2-FB, 2-FC) should be submited for each scenario as required.
A21: Scenario 1: | B21: Past Investments with No Recovery. The distributor has made investments in the past (during the IRM Years), but has not received approval for these projects and therefore did not receive
B22: revenue from the IESO under Regulation 330/09 and did not receive ratepayer revenue for the direct benefit portion of the investment.
B23: The WCA percentage, debt percentages, interest rates, kWh, tax rates, amortization period, CCA Class and percentage should correspond to the distributor's last Cost of Service approval.
B24: The Direct Benefit portion of the calculated Revenue Requirement for each year should be summed and can be applied for recovery from the distributor's ratepayers through a rate rider.
B25: The Provincial Recovery portion of the calculated Revenue Requirement for each year should be summed and can be applied for recovery from the IESO through a separate order.
A27: Scenario 2: | B27: Investments in the Test Year and Beyond. Distributor plans to make investments in 2021 and/or beyond. These investments should be added to 2-FA in the appropriate year.
B28: The WCA percentage, debt percentages, interest rates, kWh, tax rates, amortization period, CCA Class and percentage should correspond to the distributor's current application.
A30: Part A | H30: Test Year
A31: REI Investments (Direct Benefit at 6%) | C31: =D31-1 -> 2016 | D31: =E31-1 -> 2017 | E31: =F31-1 -> 2018 | F31: =G31-1 -> 2019 | G31: =H31-1 -> 2020 | H31: ='LDC Info'!$E$24 -> 2021 | I31: =H31+1 -> 2022 | J31: =I31+1 -> 2023 | K31: =J31+1 -> 2024 | L31: =K31+1 -> 2025
A32: Project 1
A33: Name: REI Connection Project
A34: Capital Costs | C34: 0 | D34: 0 | E34: 0 | F34: 0 | G34: 0 | H34: 0 | I34: 0 | J34: 0 | K34: 0 | L34: 0
A35: Incremental OM&A (Start-Up) | C35: 0 | D35: 0 | E35: 0 | F35: 0 | G35: 0 | H35: 0 | I35: 0 | J35: 0 | K35: 0 | L35: 0
A36: Incremental OM&A (Ongoing) | C36: 0 | D36: 0 | E36: 0 | F36: 0 | G36: 0 | H36: 0 | I36: 0 | J36: 0 | K36: 0 | L36: 0
A38: Project 2
A39: Name: REI Connection Project
A40: Capital Costs | C40: 0 | D40: 0 | E40: 0 | F40: 0 | G40: 0 | H40: 0 | I40: 0 | J40: 0 | K40: 0 | L40: 0
A41: Incremental OM&A (Start-Up) | C41: 0 | D41: 0 | E41: 0 | F41: 0 | G41: 0 | H41: 0 | I41: 0 | J41: 0 | K41: 0 | L41: 0
A42: Incremental OM&A (Ongoing) | C42: 0 | D42: 0 | E42: 0 | F42: 0 | G42: 0 | H42: 0 | I42: 0 | J42: 0 | K42: 0 | L42: 0
A44: Project 3
A45: Name: REI Connection Project
A46: Capital Costs | C46: 0 | D46: 0 | E46: 0 | F46: 0 | G46: 0 | H46: 0 | I46: 0 | J46: 0 | K46: 0 | L46: 0
A47: Incremental OM&A (Start-Up) | C47: 0 | D47: 0 | E47: 0 | F47: 0 | G47: 0 | H47: 0 | I47: 0 | J47: 0 | K47: 0 | L47: 0
A48: Incremental OM&A (Ongoing) | C48: 0 | D48: 0 | E48: 0 | F48: 0 | G48: 0 | H48: 0 | I48: 0 | J48: 0 | K48: 0 | L48: 0
A50: Project 4
A51: Name: REI Connection Project
A52: Capital Costs | C52: 0 | D52: 0 | E52: 0 | F52: 0 | G52: 0 | H52: 0 | I52: 0 | J52: 0 | K52: 0 | L52: 0
A53: Incremental OM&A (Start-Up) | C53: 0 | D53: 0 | E53: 0 | F53: 0 | G53: 0 | H53: 0 | I53: 0 | J53: 0 | K53: 0 | L53: 0
A54: Incremental OM&A (Ongoing) | C54: 0 | D54: 0 | E54: 0 | F54: 0 | G54: 0 | H54: 0 | I54: 0 | J54: 0 | K54: 0 | L54: 0
A56: Project 5
A57: Name: REI Connection Project
A58: Capital Costs | C58: 0 | D58: 0 | E58: 0 | F58: 0 | G58: 0 | H58: 0 | I58: 0 | J58: 0 | K58: 0 | L58: 0
A59: Incremental OM&A (Start-Up) | C59: 0 | D59: 0 | E59: 0 | F59: 0 | G59: 0 | H59: 0 | I59: 0 | J59: 0 | K59: 0 | L59: 0
A60: Incremental OM&A (Ongoing) | C60: 0 | D60: 0 | E60: 0 | F60: 0 | G60: 0 | H60: 0 | I60: 0 | J60: 0 | K60: 0 | L60: 0
A62: Total Capital Costs | C62: =SUM(C58,C52,C46,C40,C34) -> 0 | D62: 0 | E62: 0 | F62: 0 | G62: 0 | H62: 0 | I62: 0 | J62: 0 | K62: 0 | L62: 0
A63: Total Incremental OM&A (Start-Up) | C63: 0 | D63: 0 | E63: 0 | F63: 0 | G63: 0 | H63: 0 | I63: 0 | J63: 0 | K63: 0 | L63: 0
A64: Total Incremental OM&A (Ongoing) | C64: 0 | D64: 0 | E64: 0 | F64: 0 | G64: 0 | H64: 0 | I64: 0 | J64: 0 | K64: 0 | L64: 0
A67: Part B | H67: Test Year
A68: Expansion Investments (Direct Benefit at 17%) | C68: =D68-1 -> 2016 | D68: =E68-1 -> 2017 | E68: =F68-1 -> 2018 | F68: =G68-1 -> 2019 | G68: =H68-1 -> 2020 | H68: =H31 -> 2021 | I68: =H68+1 -> 2022 | J68: =I68+1 -> 2023 | K68: =J68+1 -> 2024 | L68: =K68+1 -> 2025
A69: Project 1
A70: Name: Expansion Connection Project
A71: Capital Costs | C71: 0 | D71: 0 | E71: 0 | F71: 0 | G71: 0 | H71: 0 | I71: 0 | J71: 0 | K71: 0 | L71: 0
A72: Incremental OM&A (Start-Up) | C72: 0 | D72: 0 | E72: 0 | F72: 0 | G72: 0 | H72: 0 | I72: 0 | J72: 0 | K72: 0 | L72: 0
A73: Incremental OM&A (Ongoing) | C73: 0 | D73: 0 | E73: 0 | F73: 0 | G73: 0 | H73: 0 | I73: 0 | J73: 0 | K73: 0 | L73: 0
A75: Project 2
A76: Name: Expansion Connection Project
A77: Capital Costs | C77: 0 | D77: 0 | E77: 0 | F77: 0 | G77: 0 | H77: 0 | I77: 0 | J77: 0 | K77: 0 | L77: 0
A78: Incremental OM&A (Start-Up) | C78: 0 | D78: 0 | E78: 0 | F78: 0 | G78: 0 | H78: 0 | I78: 0 | J78: 0 | K78: 0 | L78: 0
A79: Incremental OM&A (Ongoing) | C79: 0 | D79: 0 | E79: 0 | F79: 0 | G79: 0 | H79: 0 | I79: 0 | J79: 0 | K79: 0 | L79: 0
A81: Project 3
A82: Name: Expansion Connection Project
A83: Capital Costs | C83: 0 | D83: 0 | E83: 0 | F83: 0 | G83: 0 | H83: 0 | I83: 0 | J83: 0 | K83: 0 | L83: 0
A84: Incremental OM&A (Start-Up) | C84: 0 | D84: 0 | E84: 0 | F84: 0 | G84: 0 | H84: 0 | I84: 0 | J84: 0 | K84: 0 | L84: 0
A85: Incremental OM&A (Ongoing) | C85: 0 | D85: 0 | E85: 0 | F85: 0 | G85: 0 | H85: 0 | I85: 0 | J85: 0 | K85: 0 | L85: 0
A87: Project 4
A88: Name: Expansion Connection Project
A89: Capital Costs | C89: 0 | D89: 0 | E89: 0 | F89: 0 | G89: 0 | H89: 0 | I89: 0 | J89: 0 | K89: 0 | L89: 0
A90: Incremental OM&A (Start-Up) | C90: 0 | D90: 0 | E90: 0 | F90: 0 | G90: 0 | H90: 0 | I90: 0 | J90: 0 | K90: 0 | L90: 0
A91: Incremental OM&A (Ongoing) | C91: 0 | D91: 0 | E91: 0 | F91: 0 | G91: 0 | H91: 0 | I91: 0 | J91: 0 | K91: 0 | L91: 0
A93: Project 5
A94: Name: Expansion Connection Project
A95: Capital Costs | C95: 0 | D95: 0 | E95: 0 | F95: 0 | G95: 0 | H95: 0 | I95: 0 | J95: 0 | K95: 0 | L95: 0
A96: Incremental OM&A (Start-Up) | C96: 0 | D96: 0 | E96: 0 | F96: 0 | G96: 0 | H96: 0 | I96: 0 | J96: 0 | K96: 0 | L96: 0
A97: Incremental OM&A (Ongoing) | C97: 0 | D97: 0 | E97: 0 | F97: 0 | G97: 0 | H97: 0 | I97: 0 | J97: 0 | K97: 0 | L97: 0
A99: Total Capital Costs | C99: =SUM(C95,C89,C83,C77,C71) -> 0 | D99: 0 | E99: 0 | F99: 0 | G99: 0 | H99: 0 | I99: 0 | J99: 0 | K99: 0 | L99: 0
A100: Total Incremental OM&A (Start-Up) | C100: 0 | D100: 0 | E100: 0 | F100: 0 | G100: 0 | H100: 0 | I100: 0 | J100: 0 | K100: 0 | L100: 0
A101: Total Incremental OM&A (Ongoing) | C101: 0 | D101: 0 | E101: 0 | F101: 0 | G101: 0 | H101: 0 | I101: 0 | J101: 0 | K101: 0 | L101: 0

Sheet App.2-FB Calc of REG Improvemnt
R1: File Number: | S1: 0
R2: Exhibit:
R3: Tab:
A4: TO BE UPDATED AT DRAFT RATE ORDER STAGE | R4: Schedule:
R5: Page: | S5: Not applicable
R7: Date: | S7: 2021-02-08
A9: Appendix 2-FB (Not applicable to this application)
A10: Calculation of Renewable Generation Connection Direct Benefits/Provincial Amount: Renewable Enabling Improvement Investments
A12: This table will calculate the distributor/provincial shares of the investments entered in Part A of Appendix 2-FA.
A13: Enter values in green shaded cells: WCA percentage, debt percentages, interest rates, kWh, tax rates, amortization period, CCA Class and percentage.
A14: For historical investments, enter these variables that were approved in your last cost of service test year. For 2021 and beyond, enter variables as in the application.
A15: Rate Riders related to the direct benefit portion of the renewable investments are not calculated for the Test Year as these assets and costs are already in the distributor's rate base/revenue requirement.
S16: Test Year
D17: =G17-1 -> 2016 | G17: =J17-1 -> 2017 | J17: =M17-1 -> 2018 | M17: =P17-1 -> 2019 | P17: =S17-1 -> 2020 | S17: ='LDC Info'!$E$24 -> 2021 | V17: =S17+1 -> 2022 | Y17: =V17+1 -> 2023 | Z17: 2016 | AB17: =Y17+1 -> 2024 | AE17: =AB17+1 -> 2025 | AH17: =AE17+1 -> 2026
E18: Direct Benefit | F18: Provincial | H18: Direct Benefit | I18: Provincial | K18: Direct Benefit | L18: Provincial | N18: Direct Benefit | O18: Provincial | Q18: Direct Benefit | R18: Provincial | T18: Direct Benefit | U18: Provincial | W18: Direct Benefit | X18: Provincial | Z18: Direct Benefit | AA18: Provincial | AC18: Direct Benefit | AD18: Provincial | AF18: Direct Benefit | AG18: Provincial | AI18: Direct Benefit | AJ18: Provincial
D19: Total | E19: 0.06 | F19: 0.94 | G19: Total | H19: 0.06 | I19: 0.94 | J19: Total | K19: 0.06 | L19: 0.94 | M19: Total | N19: 0.06 | O19: 0.94 | P19: Total | Q19: 0.06 | R19: 0.94 | S19: Total | T19: 0.06 | U19: 0.94 | V19: Total | W19: 0.06 | X19: 0.94 | Y19: Total | Z19: 0.06 | AA19: 0.94 | AB19: Total | AC19: 0.06 | AD19: 0.94 | AE19: Total | AF19: 0.06 | AG19: 0.94 | AH19: Total | AI19: 0.06 | AJ19: 0.94
A20: Net Fixed Assets (average) | D20: =E83 -> 0 | E20: =D20*E19 -> 0 | F20: =D20*F19 -> 0 | G20: =F83 -> 0 | H20: =G20*H19 -> 0 | I20: =G20*I19 -> 0 | J20: =G83 -> 0 | K20: =J20*K19 -> 0 | L20: =J20*L19 -> 0 | M20: =H83 -> 0 | N20: =M20*N19 -> 0 | O20: =M20*O19 -> 0 | P20: =I83 -> 0 | Q20: =P20*Q19 -> 0 | R20: =P20*R19 -> 0 | S20: =J83 -> 0 | T20: =S20*T19 -> 0 | U20: =S20*U19 -> 0 | V20: =K83 -> 0 | W20: =V20*W19 -> 0 | X20: =V20*X19 -> 0 | Y20: =L83 -> 0 | Z20: =Y20*Z19 -> 0 | AA20: =Y20*AA19 -> 0 | AB20: =M83 -> 0 | AC20: =AB20*AC19 -> 0 | AD20: =AB20*AD19 -> 0 | AE20: =N83 -> 0 | AF20: =AE20*AF19 -> 0 | AG20: =AE20*AG19 -> 0 | AH20: =O83 -> 0 | AI20: =AH20*AI19 -> 0 | AJ20: =AH20*AJ19 -> 0
A21: Incremental OM&A (on-going, N/A for Provincial Recovery) | D21: 0 | E21: =D21*E19 -> 0 | F21: =D21*F19 -> 0 | G21: 0 | H21: =G21*H19 -> 0 | I21: =G21*I19 -> 0 | J21: 0 | K21: =J21*K19 -> 0 | L21: =J21*L19 -> 0 | M21: 0 | N21: =M21*N19 -> 0 | O21: =M21*O19 -> 0 | P21: 0 | Q21: =P21*Q19 -> 0 | R21: =P21*R19 -> 0 | S21: 0 | T21: =S21*T19 -> 0 | U21: =S21*U19 -> 0 | V21: 0 | W21: =V21*W19 -> 0 | X21: =V21*X19 -> 0 | Y21: 0 | Z21: =Y21*Z19 -> 0 | AA21: =Y21*AA19 -> 0 | AB21: 0 | AC21: =AB21*AC19 -> 0 | AD21: =AB21*AD19 -> 0 | AE21: 0 | AF21: =AE21*AF19 -> 0 | AG21: =AE21*AG19 -> 0 | AH21: 0 | AI21: =AH21*AI19 -> 0 | AJ21: =AH21*AJ19 -> 0
A22: Incremental OM&A (start-up, applicable for Provincial Recovery) | D22: 0 | E22: =D22*E19 -> 0 | F22: =D22*F19 -> 0 | G22: 0 | H22: =G22*H19 -> 0 | I22: =G22*I19 -> 0 | J22: 0 | K22: =J22*K19 -> 0 | L22: =J22*L19 -> 0 | M22: 0 | N22: =M22*N19 -> 0 | O22: =M22*O19 -> 0 | P22: 0 | Q22: =P22*Q19 -> 0 | R22: =P22*R19 -> 0 | S22: 0 | T22: =S22*T19 -> 0 | U22: =S22*U19 -> 0 | V22: 0 | W22: =V22*W19 -> 0 | X22: =V22*X19 -> 0 | Y22: 0 | Z22: =Y22*Z19 -> 0 | AA22: =Y22*AA19 -> 0 | AB22: 0 | AC22: =AB22*AC19 -> 0 | AD22: =AB22*AD19 -> 0 | AE22: 0 | AF22: =AE22*AF19 -> 0 | AG22: =AE22*AG19 -> 0 | AH22: 0 | AI22: =AH22*AI19 -> 0 | AJ22: =AH22*AJ19 -> 0
A23: Rebasing Year vs. Test Year | B23: ='LDC Info'!E28 -> 2016 | C23: ='LDC Info'!E24 -> 2021
A24: Allowance for Working Capital (enter rate) | E24: =IF(AND(D$17>=$B$23, D$17<$C$23),(E21+E22)*$B$24,(E21+E22)*$C$24) -> 0 | F24: =IF(AND(D$17>=$B$23, D$17<$C$23),(F22)*$B$24,(F22)*$C$24) -> 0 | H24: =IF(AND(G$17>=$B$23, G$17<$C$23),(H21+H22)*$B$24,(H21+H22)*$C$24) -> 0 | I24: =IF(AND(G$17>=$B$23, G$17<$C$23),(I22)*$B$24,(I22)*$C$24) -> 0 | K24: =IF(AND(J$17>=$B$23, J$17<$C$23),(K21+K22)*$B$24,(K21+K22)*$C$24) -> 0 | L24: =IF(AND(J$17>=$B$23, J$17<$C$23),(L22)*$B$24,(L22)*$C$24) -> 0 | N24: =IF(AND(M$17>=$B$23, M$17<$C$23),(N21+N22)*$B$24,(N21+N22)*$C$24) -> 0 | O24: =IF(AND(M$17>=$B$23, M$17<$C$23),(O22)*$B$24,(O22)*$C$24) -> 0 | Q24: =IF(AND(P$17>=$B$23, P$17<$C$23),(Q21+Q22)*$B$24,(Q21+Q22)*$C$24) -> 0 | R24: =IF(AND(P$17>=$B$23, P$17<$C$23),(R22)*$B$24,(R22)*$C$24) -> 0 | T24: =IF(AND(S$17>=$B$23, S$17<$C$23),(T21+T22)*$B$24,(T21+T22)*$C$24) -> 0 | U24: =IF(AND(S$17>=$B$23, S$17<$C$23),(U22)*$B$24,(U22)*$C$24) -> 0 | W24: =IF(AND(V$17>=$B$23, V$17<$C$23),(W21+W22)*$B$24,(W21+W22)*$C$24) -> 0 | X24: =IF(AND(V$17>=$B$23, V$17<$C$23),(X22)*$B$24,(X22)*$C$24) -> 0 | Z24: =IF(AND(Y$17>=$B$23, Y$17<$C$23),(Z21+Z22)*$B$24,(Z21+Z22)*$C$24) -> 0 | AA24: =IF(AND(Y$17>=$B$23, Y$17<$C$23),(AA22)*$B$24,(AA22)*$C$24) -> 0 | AC24: =IF(AND(AB$17>=$B$23, AB$17<$C$23),(AC21+AC22)*$B$24,(AC21+AC22)*$C$24) -> 0 | AD24: =IF(AND(AB$17>=$B$23, AB$17<$C$23),(AD22)*$B$24,(AD22)*$C$24) -> 0 | AF24: =IF(AND(AE$17>=$B$23, AE$17<$C$23),(AF21+AF22)*$B$24,(AF21+AF22)*$C$24) -> 0 | AG24: =IF(AND(AE$17>=$B$23, AE$17<$C$23),(AG22)*$B$24,(AG22)*$C$24) -> 0 | AI24: =IF(AND(AH$17>=$B$23, AH$17<$C$23),(AI21+AI22)*$B$24,(AI21+AI22)*$C$24) -> 0 | AJ24: =IF(AND(AH$17>=$B$23, AH$17<$C$23),(AJ22)*$B$24,(AJ22)*$C$24) -> 0
A25: Rate Base | E25: =SUM(E20+E24) -> 0 | F25: =SUM(F20+F24) -> 0 | H25: =SUM(H20+H24) -> 0 | I25: =SUM(I20+I24) -> 0 | K25: =SUM(K20+K24) -> 0 | L25: =SUM(L20+L24) -> 0 | N25: =SUM(N20+N24) -> 0 | O25: =SUM(O20+O24) -> 0 | Q25: =SUM(Q20+Q24) -> 0 | R25: =SUM(R20+R24) -> 0 | T25: =SUM(T20+T24) -> 0 | U25: =SUM(U20+U24) -> 0 | W25: =SUM(W20+W24) -> 0 | X25: =SUM(X20+X24) -> 0 | Z25: =SUM(Z20+Z24) -> 0 | AA25: =SUM(AA20+AA24) -> 0 | AC25: =SUM(AC20+AC24) -> 0 | AD25: =SUM(AD20+AD24) -> 0 | AF25: =SUM(AF20+AF24) -> 0 | AG25: =SUM(AG20+AG24) -> 0 | AI25: =SUM(AI20+AI24) -> 0 | AJ25: =SUM(AJ20+AJ24) -> 0
A27: Rebasing Year vs. Test Year | B27: =B23 -> 2016 | C27: =C23 -> 2021
A28: Deemed ST Debt | B28: 0.04 | C28: 0.04 | E28: =E25*$B$28 -> 0 | F28: =F25*$B$28 -> 0 | H28: =H25*$B$28 -> 0 | I28: =I25*$B$28 -> 0 | K28: =K25*$B$28 -> 0 | L28: =L25*$B$28 -> 0 | N28: =N25*$B$28 -> 0 | O28: =O25*$B$28 -> 0 | Q28: =Q25*$B$28 -> 0 | R28: =R25*$B$28 -> 0 | T28: =T25*$C$28 -> 0 | U28: =U25*$C$28 -> 0 | W28: =W25*$C$28 -> 0 | X28: =X25*$C$28 -> 0 | Z28: =Z25*$C$28 -> 0 | AA28: =AA25*$C$28 -> 0 | AC28: =AC25*$C$28 -> 0 | AD28: =AD25*$C$28 -> 0 | AF28: =AF25*$C$28 -> 0 | AG28: =AG25*$C$28 -> 0 | AI28: =AI25*$C$28 -> 0 | AJ28: =AJ25*$C$28 -> 0
A29: Deemed LT Debt | B29: 0.56 | C29: 0.56 | E29: =E25*$B$29 -> 0 | F29: =F25*$B$29 -> 0 | H29: =H25*$B$29 -> 0 | I29: =I25*$B$29 -> 0 | K29: =K25*$B$29 -> 0 | L29: =L25*$B$29 -> 0 | N29: =N25*$B$29 -> 0 | O29: =O25*$B$29 -> 0 | Q29: =Q25*$B$29 -> 0 | R29: =R25*$B$29 -> 0 | T29: =T25*$C$29 -> 0 | U29: =U25*$C$29 -> 0 | W29: =W25*$C$29 -> 0 | X29: =X25*$C$29 -> 0 | Z29: =Z25*$C$29 -> 0 | AA29: =AA25*$C$29 -> 0 | AC29: =AC25*$C$29 -> 0 | AD29: =AD25*$C$29 -> 0 | AF29: =AF25*$C$29 -> 0 | AG29: =AG25*$C$29 -> 0 | AI29: =AI25*$C$29 -> 0 | AJ29: =AJ25*$C$29 -> 0
A30: Deemed Equity | B30: 0.4 | C30: 0.4 | E30: =E25*$B$30 -> 0 | F30: =F25*$B$30 -> 0 | H30: =H25*$B$30 -> 0 | I30: =I25*$B$30 -> 0 | K30: =K25*$B$30 -> 0 | L30: =L25*$B$30 -> 0 | N30: =N25*$B$30 -> 0 | O30: =O25*$B$30 -> 0 | Q30: =Q25*$B$30 -> 0 | R30: =R25*$B$30 -> 0 | T30: =T25*$C$30 -> 0 | U30: =U25*$C$30 -> 0 | W30: =W25*$C$30 -> 0 | X30: =X25*$C$30 -> 0 | Z30: =Z25*$C$30 -> 0 | AA30: =AA25*$C$30 -> 0 | AC30: =AC25*$C$30 -> 0 | AD30: =AD25*$C$30 -> 0 | AF30: =AF25*$C$30 -> 0 | AG30: =AG25*$C$30 -> 0 | AI30: =AI25*$C$30 -> 0 | AJ30: =AJ25*$C$30 -> 0
A32: ST Interest (enter rate) | E32: =E28*$B32 -> 0 | F32: 0 | H32: 0 | I32: 0 | K32: 0 | L32: 0 | N32: 0 | O32: 0 | Q32: 0 | R32: 0 | T32: =T28*$C32 -> 0 | U32: 0 | W32: =W28*$C32 -> 0 | X32: 0 | Z32: =Z28*$C32 -> 0 | AA32: 0 | AC32: =AC28*$C32 -> 0 | AD32: 0 | AF32: =AF28*$C32 -> 0 | AG32: 0 | AI32: =AI28*$C32 -> 0 | AJ32: 0
A33: LT Interest (enter rate) | E33: 0 | F33: 0 | H33: 0 | I33: 0 | K33: 0 | L33: 0 | N33: 0 | O33: 0 | Q33: 0 | R33: 0 | T33: 0 | U33: 0 | W33: 0 | X33: 0 | Z33: 0 | AA33: 0 | AC33: 0 | AD33: 0 | AF33: 0 | AG33: 0 | AI33: =AI29*$C33 -> 0 | AJ33: 0
A34: Return on Equity (enter rate) | E34: 0 | F34: 0 | H34: 0 | I34: 0 | K34: 0 | L34: 0 | N34: 0 | O34: 0 | Q34: 0 | R34: 0 | T34: 0 | U34: 0 | W34: 0 | X34: 0 | Z34: 0 | AA34: 0 | AC34: 0 | AD34: 0 | AF34: 0 | AG34: 0 | AI34: =AI30*$C34 -> 0 | AJ34: 0
A35: Cost of Capital Total | E35: =SUM(E32:E34) -> 0 | F35: =SUM(F32:F34) -> 0 | H35: =SUM(H32:H34) -> 0 | I35: =SUM(I32:I34) -> 0 | K35: =SUM(K32:K34) -> 0 | L35: =SUM(L32:L34) -> 0 | N35: =SUM(N32:N34) -> 0 | O35: =SUM(O32:O34) -> 0 | Q35: =SUM(Q32:Q34) -> 0 | R35: =SUM(R32:R34) -> 0 | T35: =SUM(T32:T34) -> 0 | U35: =SUM(U32:U34) -> 0 | W35: =SUM(W32:W34) -> 0 | X35: =SUM(X32:X34) -> 0 | Z35: =SUM(Z32:Z34) -> 0 | AA35: =SUM(AA32:AA34) -> 0 | AC35: =SUM(AC32:AC34) -> 0 | AD35: =SUM(AD32:AD34) -> 0 | AF35: =SUM(AF32:AF34) -> 0 | AG35: =SUM(AG32:AG34) -> 0 | AI35: =SUM(AI32:AI34) -> 0 | AJ35: =SUM(AJ32:AJ34) -> 0
A37: OM&A | E37: =E21+E22 -> 0 | F37: =F22 -> 0 | H37: =H21+H22 -> 0 | I37: =I22 -> 0 | K37: =K21+K22 -> 0 | L37: =L22 -> 0 | N37: =N21+N22 -> 0 | O37: =O22 -> 0 | Q37: =Q21+Q22 -> 0 | R37: =R22 -> 0 | T37: =T21+T22 -> 0 | U37: =U22 -> 0 | W37: =W21+W22 -> 0 | X37: =X22 -> 0 | Z37: =Z21+Z22 -> 0 | AA37: =AA22 -> 0 | AC37: =AC21+AC22 -> 0 | AD37: =AD22 -> 0 | AF37: =AF21+AF22 -> 0 | AG37: =AG22 -> 0 | AI37: =AI21+AI22 -> 0 | AJ37: =AJ22 -> 0
A38: Amortization | D38: =+E77+E78 -> 0 | E38: =D38*E$19 -> 0 | F38: =D38*F$19 -> 0 | G38: =+F77+F78 -> 0 | H38: =G38*H$19 -> 0 | I38: =G38*I$19 -> 0 | J38: =+G77+G78 -> 0 | K38: =J38*K$19 -> 0 | L38: =J38*L$19 -> 0 | M38: =+H77+H78 -> 0 | N38: =M38*N$19 -> 0 | O38: =M38*O$19 -> 0 | P38: =+I77+I78 -> 0 | Q38: =P38*Q$19 -> 0 | R38: =P38*R$19 -> 0 | S38: =+J77+J78 -> 0 | T38: =S38*T$19 -> 0 | U38: =S38*U$19 -> 0 | V38: =+K77+K78 -> 0 | W38: =V38*W$19 -> 0 | X38: =V38*X$19 -> 0 | Y38: =+L77+L78 -> 0 | Z38: =Y38*Z$19 -> 0 | AA38: =Y38*AA$19 -> 0 | AB38: =+M77+M78 -> 0 | AC38: =AB38*AC$19 -> 0 | AD38: =AB38*AD$19 -> 0 | AE38: =+N77+N78 -> 0 | AF38: =AE38*AF$19 -> 0 | AG38: =AE38*AG$19 -> 0 | AH38: =+O77+O78 -> 0 | AI38: =AH38*AI$19 -> 0 | AJ38: =AH38*AJ$19 -> 0
A39: Grossed-up PILs | E39: =+E66 -> 0 | F39: =+F66 -> 0 | H39: =+H66 -> 0 | I39: =+I66 -> 0 | K39: =+K66 -> 0 | L39: =+L66 -> 0 | N39: =+N66 -> 0 | O39: =+O66 -> 0 | Q39: =+Q66 -> 0 | R39: =+R66 -> 0 | T39: =+T66 -> 0 | U39: =+U66 -> 0 | W39: =+W66 -> 0 | X39: =+X66 -> 0 | Z39: =+Z66 -> 0 | AA39: =+AA66 -> 0 | AC39: =+AC66 -> 0 | AD39: =+AD66 -> 0 | AF39: =+AF66 -> 0 | AG39: =+AG66 -> 0 | AI39: =+AI66 -> 0 | AJ39: =+AJ66 -> 0
A41: Revenue Requirement | E41: =SUM(E35:E39) -> 0 | F41: =SUM(F35:F39) -> 0 | H41: =SUM(H35:H39) -> 0 | I41: 0 | K41: =SUM(K35:K39) -> 0 | L41: 0 | N41: =SUM(N35:N39) -> 0 | O41: 0 | Q41: =SUM(Q35:Q39) -> 0 | R41: 0 | T41: =SUM(T35:T39) -> 0 | U41: 0 | W41: =SUM(W35:W39) -> 0 | X41: 0 | Z41: =SUM(Z35:Z39) -> 0 | AA41: 0 | AC41: =SUM(AC35:AC39) -> 0 | AD41: 0 | AF41: =SUM(AF35:AF39) -> 0 | AG41: 0 | AI41: =SUM(AI35:AI39) -> 0 | AJ41: 0
A44: Provincial Rate Protection | F44: =F41 -> 0 | I44: =I41 -> 0 | L44: =L41 -> 0 | O44: =O41 -> 0 | R44: =R41 -> 0 | U44: =U41 -> 0 | X44: =X41 -> 0 | AA44: =AA41 -> 0 | AD44: =AD41 -> 0 | AG44: =AG41 -> 0 | AJ44: =AJ41 -> 0
A46: Monthly Amount Paid by IESO | F46: =F44/12 -> 0 | I46: =I44/12 -> 0 | L46: =L44/12 -> 0 | O46: =O44/12 -> 0 | R46: =R44/12 -> 0 | U46: =U44/12 -> 0 | X46: =X44/12 -> 0 | AA46: =AA44/12 -> 0 | AD46: =AD44/12 -> 0 | AG46: =AG44/12 -> 0 | AJ46: =AJ44/12 -> 0
A48: Note 1: The distributor should follow the regulatory accounting set out in the Accounting Procedure Handbook Guidance FAQs issued in March 2015. Q10 of the APH FAQs states that: “For approved eligible investments as defined under O.Reg. 330/09 under the OEB Act, a variance account will continue to be used for the purpose of recording variances between the revenue requirement based on actual costs of approved eligible investments and the revenue received from the IESO.” The answer for Q10 provides the accounting guidance for this variance account: “Distributors that have included eligible investments to connect qualifying facilities in their DS plans are to establish the variance Account 1533 Renewable Generation Connection Funding Adder Deferral Account, Sub-account Provincial Rate Protection Payment Variances following OEB approval for investments forecast to enter service beyond the test year for purposes of implementing rate protection pursuant to O.Reg. 330/09. The purpose of this variance account is to track the variance between the distributor’s revenue requirement associated with the portion of the actual capital and/or operating costs that are eligible for rate protection, as incurred by the distributor for eligible renewable enabling and expansion investments, and the rate protection payments collected from the IESO.” The answer further provides the journal entries to record the variances. Distributors should follow the instructions in the answer for recording the journal entries in the variance account 1533.
A50: Note 2: For the Test Year, Costs and Revenues of the Direct Benefit are to be included in the test year applicant Rate Base and Revenues.
A52: PILs Calculation | T52: Test Year
E53: =G17-1 -> 2016 | H53: =G17 -> 2017 | K53: =J17 -> 2018 | N53: =M17 -> 2019 | Q53: =P17 -> 2020 | T53: =S17 -> 2021 | W53: =V17 -> 2022 | Z53: =Y17 -> 2023 | AC53: =AB17 -> 2024 | AF53: =AE17 -> 2025 | AI53: =AH17 -> 2026
A54: Income Tax | E54: Direct Benefit | F54: Provincial | H54: Direct Benefit | I54: Provincial | K54: Direct Benefit | L54: Provincial | N54: Direct Benefit | O54: Provincial | Q54: Direct Benefit | R54: Provincial | T54: Direct Benefit | U54: Provincial | W54: Direct Benefit | X54: Provincial | Z54: Direct Benefit | AA54: Provincial | AC54: Direct Benefit | AD54: Provincial | AF54: Direct Benefit | AG54: Provincial | AI54: Direct Benefit | AJ54: Provincial
AB55: Total | AE55: Total | AH55: Total
A56: Net Income - ROE on Rate Base | E56: =E34 -> 0 | F56: =F34 -> 0 | H56: =H34 -> 0 | I56: =I34 -> 0 | K56: =K34 -> 0 | L56: =L34 -> 0 | N56: =N34 -> 0 | O56: =O34 -> 0 | Q56: =Q34 -> 0 | R56: =R34 -> 0 | T56: =T34 -> 0 | U56: =U34 -> 0 | W56: =W34 -> 0 | X56: =X34 -> 0 | Z56: =Z34 -> 0 | AA56: =AA34 -> 0 | AC56: =AC34 -> 0 | AD56: =AD34 -> 0 | AF56: =AF34 -> 0 | AG56: =AG34 -> 0 | AI56: =AI34 -> 0 | AJ56: =AJ34 -> 0
A57: Amortization (6% DB and 94% P) | E57: =E38 -> 0 | F57: =F38 -> 0 | H57: =H38 -> 0 | I57: =I38 -> 0 | K57: =K38 -> 0 | L57: =L38 -> 0 | N57: =N38 -> 0 | O57: =O38 -> 0 | Q57: =Q38 -> 0 | R57: =R38 -> 0 | T57: =T38 -> 0 | U57: =U38 -> 0 | W57: =W38 -> 0 | X57: =X38 -> 0 | Z57: =Z38 -> 0 | AA57: =AA38 -> 0 | AC57: =AC38 -> 0 | AD57: =AD38 -> 0 | AF57: =AF38 -> 0 | AG57: =AG38 -> 0 | AI57: =AI38 -> 0 | AJ57: =AJ38 -> 0
A58: CCA (6% DB and 94% P) | E58: =-E95*$E$19 -> 0 | F58: =-E95*$F$19 -> 0 | H58: =-F95*$E$19 -> 0 | I58: =-F95*$F$19 -> 0 | K58: =-G95*$E$19 -> 0 | L58: =-G95*$F$19 -> 0 | N58: =-H95*$E$19 -> 0 | O58: =-H95*$F$19 -> 0 | Q58: =-I95*$E$19 -> 0 | R58: =-I95*$F$19 -> 0 | T58: =-J95*$E$19 -> 0 | U58: =-J95*$F$19 -> 0 | W58: =-K95*$E$19 -> 0 | X58: =-K95*$F$19 -> 0 | Z58: =-L95*$E$19 -> 0 | AA58: =-L95*$F$19 -> 0 | AC58: =-M95*$E$19 -> 0 | AD58: =-M95*$F$19 -> 0 | AF58: =-N95*$E$19 -> 0 | AG58: =-N95*$F$19 -> 0 | AI58: =-Q95*$E$19 -> 0 | AJ58: =-Q95*$F$19 -> 0
A59: Taxable income | E59: =SUM(E56:E58) -> 0 | F59: =SUM(F56:F58) -> 0 | H59: =SUM(H56:H58) -> 0 | I59: 0 | K59: =SUM(K56:K58) -> 0 | L59: 0 | N59: =SUM(N56:N58) -> 0 | O59: 0 | Q59: =SUM(Q56:Q58) -> 0 | R59: 0 | T59: =SUM(T56:T58) -> 0 | U59: 0 | W59: =SUM(W56:W58) -> 0 | X59: 0 | Z59: =SUM(Z56:Z58) -> 0 | AA59: =SUM(AA56:AA58) -> 0 | AC59: =SUM(AC56:AC58) -> 0 | AD59: =SUM(AD56:AD58) -> 0 | AF59: =SUM(AF56:AF58) -> 0 | AG59: =SUM(AG56:AG58) -> 0 | AI59: =SUM(AI56:AI58) -> 0 | AJ59: =SUM(AJ56:AJ58) -> 0
B60: =B27 -> 2016 | C60: =C27 -> 2021
A61: Tax Rate (to be entered) | E61: =IF(AND(E$53>=$B$60, E$53<$C$60),$B$61,$C$61) -> 0 | F61: =IF(AND(E$53>=$B$60, E$53<$C$60),$B$61,$C$61) -> 0 | H61: =IF(AND(H$53>=$B$60, H$53<$C$60),$B$61,$C$61) -> 0 | I61: =IF(AND(H$53>=$B$60, H$53<$C$60),$B$61,$C$61) -> 0 | K61: =IF(AND(K$53>=$B$60, K$53<$C$60),$B$61,$C$61) -> 0 | L61: =IF(AND(K$53>=$B$60, K$53<$C$60),$B$61,$C$61) -> 0 | N61: =IF(AND(N$53>=$B$60, N$53<$C$60),$B$61,$C$61) -> 0 | O61: =IF(AND(N$53>=$B$60, N$53<$C$60),$B$61,$C$61) -> 0 | Q61: =IF(AND(Q$53>=$B$60, Q$53<$C$60),$B$61,$C$61) -> 0 | R61: =IF(AND(Q$53>=$B$60, Q$53<$C$60),$B$61,$C$61) -> 0 | T61: =IF(AND(T$53>=$B$60, T$53<$C$60),$B$61,$C$61) -> 0 | U61: =IF(AND(T$53>=$B$60, T$53<$C$60),$B$61,$C$61) -> 0 | W61: =IF(AND(W$53>=$B$60, W$53<$C$60),$B$61,$C$61) -> 0 | X61: =IF(AND(W$53>=$B$60, W$53<$C$60),$B$61,$C$61) -> 0 | Z61: =IF(AND(Z$53>=$B$60, Z$53<$C$60),$B$61,$C$61) -> 0 | AA61: =IF(AND(Z$53>=$B$60, Z$53<$C$60),$B$61,$C$61) -> 0 | AC61: =IF(AND(AC$53>=$B$60, AC$53<$C$60),$B$61,$C$61) -> 0 | AD61: =IF(AND(AC$53>=$B$60, AC$53<$C$60),$B$61,$C$61) -> 0 | AF61: =IF(AND(AF$53>=$B$60, AF$53<$C$60),$B$61,$C$61) -> 0 | AG61: =IF(AND(AF$53>=$B$60, AF$53<$C$60),$B$61,$C$61) -> 0 | AI61: =IF(AND(AI$53>=$B$60, AI$53<$C$60),$B$61,$C$61) -> 0 | AJ61: =IF(AND(AI$53>=$B$60, AI$53<$C$60),$B$61,$C$61) -> 0
A63: Income Taxes Payable | E63: =E59*E61 -> 0 | F63: =F59*F61 -> 0 | H63: =H59*H61 -> 0 | I63: =I59*I61 -> 0 | K63: =K59*K61 -> 0 | L63: =L59*L61 -> 0 | N63: =N59*N61 -> 0 | O63: =O59*O61 -> 0 | Q63: =Q59*Q61 -> 0 | R63: =R59*R61 -> 0 | T63: =T59*T61 -> 0 | U63: =U59*U61 -> 0 | W63: =W59*W61 -> 0 | X63: =X59*X61 -> 0 | Z63: =Z59*Z61 -> 0 | AA63: =AA59*AA61 -> 0 | AC63: =AC59*AC61 -> 0 | AD63: =AD59*AD61 -> 0 | AF63: =AF59*AF61 -> 0 | AG63: =AG59*AG61 -> 0 | AI63: =AI59*AI61 -> 0 | AJ63: =AJ59*AJ61 -> 0
A64: Gross Up
A65: Income Taxes Payable | E65: =E63/(1-E61) -> 0 | F65: =F63/(1-F61) -> 0 | H65: =H63/(1-H61) -> 0 | I65: =I63/(1-I61) -> 0 | K65: =K63/(1-K61) -> 0 | L65: =L63/(1-L61) -> 0 | N65: =N63/(1-N61) -> 0 | O65: =O63/(1-O61) -> 0 | Q65: =Q63/(1-Q61) -> 0 | R65: =R63/(1-R61) -> 0 | T65: =T63/(1-T61) -> 0 | U65: =U63/(1-U61) -> 0 | W65: =W63/(1-W61) -> 0 | X65: =X63/(1-X61) -> 0 | Z65: =Z63/(1-Z61) -> 0 | AA65: =AA63/(1-AA61) -> 0 | AC65: =AC63/(1-AC61) -> 0 | AD65: =AD63/(1-AD61) -> 0 | AF65: =AF63/(1-AF61) -> 0 | AG65: =AG63/(1-AG61) -> 0 | AI65: =AI63/(1-AI61) -> 0 | AJ65: =AJ63/(1-AJ61) -> 0
A66: Grossed Up PILs | E66: =+E65 -> 0 | F66: =+F65 -> 0 | H66: =+H65 -> 0 | I66: =+I65 -> 0 | K66: =+K65 -> 0 | L66: 0 | N66: =+N65 -> 0 | O66: 0 | Q66: =+Q65 -> 0 | R66: 0 | T66: =+T65 -> 0 | U66: 0 | W66: =+W65 -> 0 | X66: 0 | Z66: =+Z65 -> 0 | AA66: 0 | AC66: =+AC65 -> 0 | AD66: 0 | AF66: =+AF65 -> 0 | AG66: 0 | AI66: =+AI65 -> 0 | AJ66: 0
J68: Test Year
E69: =F69-1 -> 2016 | F69: =G69-1 -> 2017 | G69: =H69-1 -> 2018 | H69: =I69-1 -> 2019 | I69: =J69-1 -> 2020 | J69: ='LDC Info'!E24 -> 2021 | K69: =J69+1 -> 2022 | L69: =K69+1 -> 2023 | M69: =L69+1 -> 2024 | N69: =M69+1 -> 2025 | O69: =N69+1 -> 2026
A70: Net Fixed Assets
A71: Enter applicable amortization in years: | B71: 40
A72: Opening Gross Fixed Assets | F72: =E74 -> 0 | G72: 0 | H72: 0 | I72: 0 | J72: 0 | K72: 0 | L72: 0 | M72: 0 | N72: 0 | O72: 0
A73: Capital Additions | E73: ='App.2-FA Proposed REG Invest.'!C62 -> 0 | F73: ='App.2-FA Proposed REG Invest.'!D62 -> 0 | G73: ='App.2-FA Proposed REG Invest.'!E62 -> 0 | H73: ='App.2-FA Proposed REG Invest.'!F62 -> 0 | I73: ='App.2-FA Proposed REG Invest.'!G62 -> 0 | J73: ='App.2-FA Proposed REG Invest.'!H62 -> 0 | K73: ='App.2-FA Proposed REG Invest.'!I62 -> 0 | L73: ='App.2-FA Proposed REG Invest.'!J62 -> 0 | M73: ='App.2-FA Proposed REG Invest.'!K62 -> 0 | N73: ='App.2-FA Proposed REG Invest.'!L62 -> 0 | O73: ='App.2-FA Proposed REG Invest.'!M62 -> 0
A74: Closing Gross Fixed Assets | E74: =SUM(E72:E73) -> 0 | F74: 0 | G74: 0 | H74: 0 | I74: 0 | J74: 0 | K74: 0 | L74: 0 | M74: 0 | N74: 0 | O74: =SUM(O72:O73) -> 0
A76: Opening Accumulated Amortization | F76: =+E79 -> 0 | G76: =+F79 -> 0 | H76: 0 | I76: 0 | J76: 0 | K76: 0 | L76: 0 | M76: 0 | N76: 0 | O76: 0
A77: Current Year Amortization (before additions) | E77: =IF(ISERROR(E72/$B$71), 0, E72/$B$71) -> 0 | F77: =IF(ISERROR(F72/$B$71), 0, F72/$B$71) -> 0 | G77: 0 | H77: 0 | I77: 0 | J77: 0 | K77: 0 | L77: 0 | M77: 0 | N77: 0 | O77: =IF(ISERROR(O72/$B$71), 0, O72/$B$71) -> 0
A78: Capital Additions Amortization (half year) | E78: =E73/$B$71/2 -> 0 | F78: =F73/$B$71/2 -> 0 | G78: 0 | H78: 0 | I78: 0 | J78: 0 | K78: 0 | L78: 0 | M78: 0 | N78: 0 | O78: =O73/$B$71/2 -> 0
A79: Closing Accumulated Amortization | E79: =SUM(E76+E77+E78) -> 0 | F79: 0 | G79: 0 | H79: 0 | I79: 0 | J79: 0 | K79: 0 | L79: 0 | M79: 0 | N79: 0 | O79: =SUM(O76+O77+O78) -> 0
A81: Opening Net Fixed Assets | E81: =E72-E76 -> 0 | F81: 0 | G81: 0 | H81: 0 | I81: 0 | J81: 0 | K81: 0 | L81: 0 | M81: 0 | N81: 0 | O81: =O72-O76 -> 0
A82: Closing Net Fixed Assets | E82: =E74-E79 -> 0 | F82: 0 | G82: 0 | H82: 0 | I82: 0 | J82: 0 | K82: 0 | L82: 0 | M82: 0 | N82: 0 | O82: =O74-O79 -> 0
A83: Average Net Fixed Assets | E83: =SUM(E81:E82)/2 -> 0 | F83: 0 | G83: 0 | H83: 0 | I83: 0 | J83: 0 | K83: 0 | L83: 0 | M83: 0 | N83: 0 | O83: =SUM(O81:O82)/2 -> 0
A85: UCC for PILs Calculation | J85: Test Year
E86: =E69 -> 2016 | F86: =F69 -> 2017 | G86: =G69 -> 2018 | H86: 2019 | I86: 2020 | J86: 2021 | K86: 2022 | L86: 2023 | M86: 2024 | N86: 2025 | O86: =O69 -> 2026
A88: Opening UCC | E88: =E72 -> 0 | F88: =E96 -> 0 | G88: 0 | H88: 0 | I88: 0 | J88: 0 | K88: 0 | L88: 0 | M88: 0 | N88: 0 | O88: 0
A89: Capital Additions | E89: =E73 -> 0 | F89: 0 | G89: 0 | H89: 0 | I89: 0 | J89: 0 | K89: 0 | L89: 0 | M89: 0 | N89: 0 | O89: =O73 -> 0
A90: UCC Before Half Year Rule | E90: =SUM(E88:E89) -> 0 | F90: 0 | G90: 0 | H90: 0 | I90: 0 | J90: 0 | K90: 0 | L90: 0 | M90: 0 | N90: 0 | O90: =SUM(O88:O89) -> 0
A91: Capital Additions (half year) | E91: =E89/2 -> 0 | F91: 0 | G91: 0 | H91: 0 | I91: 0 | J91: 0 | K91: 0 | L91: 0 | M91: 0 | N91: 0 | O91: =O89/2 -> 0
A92: Reduced UCC | E92: =E90-E91 -> 0 | F92: 0 | G92: 0 | H92: 0 | I92: 0 | J92: 0 | K92: 0 | L92: 0 | M92: 0 | N92: 0 | O92: =O90-O91 -> 0
A93: CCA Rate Class (to be entered)
A94: CCA Rate (to be entered)
A95: CCA | E95: =E92*$B$94 -> 0 | F95: =F92*$B$94 -> 0 | G95: 0 | H95: 0 | I95: 0 | J95: 0 | K95: 0 | L95: 0 | M95: 0 | N95: 0 | O95: =O92*$B$94 -> 0
A96: Closing UCC | E96: =E90-E95 -> 0 | F96: 0 | G96: 0 | H96: 0 | I96: 0 | J96: 0 | K96: 0 | L96: 0 | M96: 0 | N96: 0 | O96: =O90-O95 -> 0

Sheet App.2-FC Calc of REG Expansion
R1: File Number: | S1: 0
R2: Exhibit:
R3: Tab:
A4: TO BE UPDATED AT DRAFT RATE ORDER STAGE | R4: Schedule:
R5: Page: | S5: Not applicable
R7: Date: | S7: 2021-02-08
A9: Appendix 2-FC (Not applicable to this application)
A10: Calculation of Renewable Generation Connection Direct Benefits/Provincial Amount: Renewable Expansion Investments
A12: This table will calculate the distributor/provincial shares of the investments entered in Part B of Appendix 2-FA.
A13: Enter values in green shaded cells: WCA percentage, debt percentages, interest rates, kWh, tax rates, amortization period, CCA Class and percentage.
A14: For historical investments, enter these variables that were approved in your last cost of service test year. For 2021 and beyond, enter variables as in the application.
A15: Rate Riders related to the direct benefit portion of the renewable investments are not calculated for the Test Year as these assets and costs are already in the distributor's rate base/revenue requirement.
S16: Test Year
D17: =G17-1 -> 2016 | G17: =J17-1 -> 2017 | J17: =M17-1 -> 2018 | M17: =P17-1 -> 2019 | P17: =S17-1 -> 2020 | S17: ='LDC Info'!$E$24 -> 2021 | V17: =S17+1 -> 2022 | Y17: =V17+1 -> 2023 | Z17: 2016 | AB17: =Y17+1 -> 2024 | AE17: =AB17+1 -> 2025 | AH17: =AE17+1 -> 2026
E18: Direct Benefit | F18: Provincial | H18: Direct Benefit | I18: Provincial | K18: Direct Benefit | L18: Provincial | N18: Direct Benefit | O18: Provincial | Q18: Direct Benefit | R18: Provincial | T18: Direct Benefit | U18: Provincial | W18: Direct Benefit | X18: Provincial | Z18: Direct Benefit | AA18: Provincial | AC18: Direct Benefit | AD18: Provincial | AF18: Direct Benefit | AG18: Provincial | AI18: Direct Benefit | AJ18: Provincial
D19: Total | E19: 0.17 | F19: 0.83 | G19: Total | H19: 0.17 | I19: 0.83 | J19: Total | K19: 0.17 | L19: 0.83 | M19: Total | N19: 0.17 | O19: 0.83 | P19: Total | Q19: 0.17 | R19: 0.83 | S19: Total | T19: 0.17 | U19: 0.83 | V19: Total | W19: 0.17 | X19: 0.83 | Y19: Total | Z19: 0.17 | AA19: 0.83 | AB19: Total | AC19: 0.17 | AD19: 0.83 | AE19: Total | AF19: 0.17 | AG19: 0.83 | AH19: Total | AI19: 0.17 | AJ19: 0.83
A20: Net Fixed Assets (average) | D20: =E83 -> 0 | E20: =D20*E19 -> 0 | F20: =D20*F19 -> 0 | G20: =F83 -> 0 | H20: =G20*H19 -> 0 | I20: =G20*I19 -> 0 | J20: =G83 -> 0 | K20: =J20*K19 -> 0 | L20: =J20*L19 -> 0 | M20: =H83 -> 0 | N20: =M20*N19 -> 0 | O20: =M20*O19 -> 0 | P20: =I83 -> 0 | Q20: =P20*Q19 -> 0 | R20: =P20*R19 -> 0 | S20: =J83 -> 0 | T20: =S20*T19 -> 0 | U20: =S20*U19 -> 0 | V20: =K83 -> 0 | W20: =V20*W19 -> 0 | X20: =V20*X19 -> 0 | Y20: =L83 -> 0 | Z20: =Y20*Z19 -> 0 | AA20: =Y20*AA19 -> 0 | AB20: =M83 -> 0 | AC20: =AB20*AC19 -> 0 | AD20: =AB20*AD19 -> 0 | AE20: =N83 -> 0 | AF20: =AE20*AF19 -> 0 | AG20: =AE20*AG19 -> 0 | AH20: =O83 -> 0 | AI20: =AH20*AI19 -> 0 | AJ20: =AH20*AJ19 -> 0
A21: Incremental OM&A (on-going, N/A for Provincial Recovery) | D21: 0 | E21: =D21*E19 -> 0 | F21: =D21*F19 -> 0 | G21: 0 | H21: =G21*H19 -> 0 | I21: =G21*I19 -> 0 | J21: 0 | K21: =J21*K19 -> 0 | L21: =J21*L19 -> 0 | M21: 0 | N21: =M21*N19 -> 0 | O21: =M21*O19 -> 0 | P21: 0 | Q21: =P21*Q19 -> 0 | R21: =P21*R19 -> 0 | S21: 0 | T21: =S21*T19 -> 0 | U21: =S21*U19 -> 0 | V21: 0 | W21: =V21*W19 -> 0 | X21: =V21*X19 -> 0 | Y21: 0 | Z21: =Y21*Z19 -> 0 | AA21: =Y21*AA19 -> 0 | AB21: 0 | AC21: =AB21*AC19 -> 0 | AD21: =AB21*AD19 -> 0 | AE21: 0 | AF21: =AE21*AF19 -> 0 | AG21: =AE21*AG19 -> 0 | AH21: 0 | AI21: =AH21*AI19 -> 0 | AJ21: =AH21*AJ19 -> 0
A22: Incremental OM&A (start-up, applicable for Provincial Recovery) | D22: 0 | E22: =D22*E19 -> 0 | F22: =D22*F19 -> 0 | G22: 0 | H22: =G22*H19 -> 0 | I22: =G22*I19 -> 0 | J22: 0 | K22: =J22*K19 -> 0 | L22: =J22*L19 -> 0 | M22: 0 | N22: =M22*N19 -> 0 | O22: =M22*O19 -> 0 | P22: 0 | Q22: =P22*Q19 -> 0 | R22: =P22*R19 -> 0 | S22: 0 | T22: =S22*T19 -> 0 | U22: =S22*U19 -> 0 | V22: 0 | W22: =V22*W19 -> 0 | X22: =V22*X19 -> 0 | Y22: 0 | Z22: =Y22*Z19 -> 0 | AA22: =Y22*AA19 -> 0 | AB22: 0 | AC22: =AB22*AC19 -> 0 | AD22: =AB22*AD19 -> 0 | AE22: 0 | AF22: =AE22*AF19 -> 0 | AG22: =AE22*AG19 -> 0 | AH22: 0 | AI22: =AH22*AI19 -> 0 | AJ22: =AH22*AJ19 -> 0
A23: Rebasing Year vs. Test Year | B23: ='LDC Info'!E28 -> 2016 | C23: ='LDC Info'!E24 -> 2021
A24: Allowance for Working Capital (enter rate) | E24: =IF(AND(D$17>=$B$23, D$17<$C$23),(E21+E22)*$B$24,(E21+E22)*$C$24) -> 0 | F24: =IF(AND(D$17>=$B$23, D$17<$C$23),(F22)*$B$24,(F22)*$C$24) -> 0 | H24: =IF(AND(G$17>=$B$23, G$17<$C$23),(H21+H22)*$B$24,(H21+H22)*$C$24) -> 0 | I24: =IF(AND(G$17>=$B$23, G$17<$C$23),(I22)*$B$24,(I22)*$C$24) -> 0 | K24: =IF(AND(J$17>=$B$23, J$17<$C$23),(K21+K22)*$B$24,(K21+K22)*$C$24) -> 0 | L24: =IF(AND(J$17>=$B$23, J$17<$C$23),(L22)*$B$24,(L22)*$C$24) -> 0 | N24: =IF(AND(M$17>=$B$23, M$17<$C$23),(N21+N22)*$B$24,(N21+N22)*$C$24) -> 0 | O24: =IF(AND(M$17>=$B$23, M$17<$C$23),(O22)*$B$24,(O22)*$C$24) -> 0 | Q24: =IF(AND(P$17>=$B$23, P$17<$C$23),(Q21+Q22)*$B$24,(Q21+Q22)*$C$24) -> 0 | R24: =IF(AND(P$17>=$B$23, P$17<$C$23),(R22)*$B$24,(R22)*$C$24) -> 0 | T24: =IF(AND(S$17>=$B$23, S$17<$C$23),(T21+T22)*$B$24,(T21+T22)*$C$24) -> 0 | U24: =IF(AND(S$17>=$B$23, S$17<$C$23),(U22)*$B$24,(U22)*$C$24) -> 0 | W24: =IF(AND(V$17>=$B$23, V$17<$C$23),(W21+W22)*$B$24,(W21+W22)*$C$24) -> 0 | X24: =IF(AND(V$17>=$B$23, V$17<$C$23),(X22)*$B$24,(X22)*$C$24) -> 0 | Z24: =IF(AND(Y$17>=$B$23, Y$17<$C$23),(Z21+Z22)*$B$24,(Z21+Z22)*$C$24) -> 0 | AA24: =IF(AND(Y$17>=$B$23, Y$17<$C$23),(AA22)*$B$24,(AA22)*$C$24) -> 0 | AC24: =IF(AND(AB$17>=$B$23, AB$17<$C$23),(AC21+AC22)*$B$24,(AC21+AC22)*$C$24) -> 0 | AD24: =IF(AND(AB$17>=$B$23, AB$17<$C$23),(AD22)*$B$24,(AD22)*$C$24) -> 0 | AF24: =IF(AND(AE$17>=$B$23, AE$17<$C$23),(AF21+AF22)*$B$24,(AF21+AF22)*$C$24) -> 0 | AG24: =IF(AND(AE$17>=$B$23, AE$17<$C$23),(AG22)*$B$24,(AG22)*$C$24) -> 0 | AI24: =IF(AND(AH$17>=$B$23, AH$17<$C$23),(AI21+AI22)*$B$24,(AI21+AI22)*$C$24) -> 0 | AJ24: =IF(AND(AH$17>=$B$23, AH$17<$C$23),(AJ22)*$B$24,(AJ22)*$C$24) -> 0
A25: Rate Base | E25: =SUM(E20+E24) -> 0 | F25: =SUM(F20+F24) -> 0 | H25: =SUM(H20+H24) -> 0 | I25: =SUM(I20+I24) -> 0 | K25: =SUM(K20+K24) -> 0 | L25: =SUM(L20+L24) -> 0 | N25: =SUM(N20+N24) -> 0 | O25: =SUM(O20+O24) -> 0 | Q25: =SUM(Q20+Q24) -> 0 | R25: =SUM(R20+R24) -> 0 | T25: =SUM(T20+T24) -> 0 | U25: =SUM(U20+U24) -> 0 | W25: =SUM(W20+W24) -> 0 | X25: =SUM(X20+X24) -> 0 | Z25: =SUM(Z20+Z24) -> 0 | AA25: =SUM(AA20+AA24) -> 0 | AC25: =SUM(AC20+AC24) -> 0 | AD25: =SUM(AD20+AD24) -> 0 | AF25: =SUM(AF20+AF24) -> 0 | AG25: =SUM(AG20+AG24) -> 0 | AI25: =SUM(AI20+AI24) -> 0 | AJ25: =SUM(AJ20+AJ24) -> 0
B27: =B23 -> 2016 | C27: =C23 -> 2021
A28: Deemed ST Debt | B28: 0.04 | C28: 0.04 | E28: =E25*$B$28 -> 0 | F28: =F25*$B$28 -> 0 | H28: =H25*$B$28 -> 0 | I28: =I25*$B$28 -> 0 | K28: =K25*$B$28 -> 0 | L28: =L25*$B$28 -> 0 | N28: =N25*$B$28 -> 0 | O28: =O25*$B$28 -> 0 | Q28: =Q25*$B$28 -> 0 | R28: =R25*$B$28 -> 0 | T28: =T25*$C$28 -> 0 | U28: =U25*$C$28 -> 0 | W28: =W25*$C$28 -> 0 | X28: =X25*$C$28 -> 0 | Z28: =Z25*$C$28 -> 0 | AA28: =AA25*$C$28 -> 0 | AC28: =AC25*$C$28 -> 0 | AD28: =AD25*$C$28 -> 0 | AF28: =AF25*$C$28 -> 0 | AG28: =AG25*$C$28 -> 0 | AI28: =AI25*$C$28 -> 0 | AJ28: =AJ25*$C$28 -> 0
A29: Deemed LT Debt | B29: 0.56 | C29: 0.56 | E29: =E25*$B$29 -> 0 | F29: =F25*$B$29 -> 0 | H29: =H25*$B$29 -> 0 | I29: =I25*$B$29 -> 0 | K29: =K25*$B$29 -> 0 | L29: =L25*$B$29 -> 0 | N29: =N25*$B$29 -> 0 | O29: =O25*$B$29 -> 0 | Q29: =Q25*$B$29 -> 0 | R29: =R25*$B$29 -> 0 | T29: =T25*$C$29 -> 0 | U29: =U25*$C$29 -> 0 | W29: =W25*$C$29 -> 0 | X29: =X25*$C$29 -> 0 | Z29: =Z25*$C$29 -> 0 | AA29: =AA25*$C$29 -> 0 | AC29: =AC25*$C$29 -> 0 | AD29: =AD25*$C$29 -> 0 | AF29: =AF25*$C$29 -> 0 | AG29: =AG25*$C$29 -> 0 | AI29: =AI25*$C$29 -> 0 | AJ29: =AJ25*$C$29 -> 0
A30: Deemed Equity | B30: 0.4 | C30: 0.4 | E30: =E25*$B$30 -> 0 | F30: =F25*$B$30 -> 0 | H30: =H25*$B$30 -> 0 | I30: =I25*$B$30 -> 0 | K30: =K25*$B$30 -> 0 | L30: =L25*$B$30 -> 0 | N30: =N25*$B$30 -> 0 | O30: =O25*$B$30 -> 0 | Q30: =Q25*$B$30 -> 0 | R30: =R25*$B$30 -> 0 | T30: =T25*$C$30 -> 0 | U30: =U25*$C$30 -> 0 | W30: =W25*$C$30 -> 0 | X30: =X25*$C$30 -> 0 | Z30: =Z25*$C$30 -> 0 | AA30: =AA25*$C$30 -> 0 | AC30: =AC25*$C$30 -> 0 | AD30: =AD25*$C$30 -> 0 | AF30: =AF25*$C$30 -> 0 | AG30: =AG25*$C$30 -> 0 | AI30: =AI25*$C$30 -> 0 | AJ30: =AJ25*$C$30 -> 0
A32: ST Interest (enter rate) | E32: =E28*$B32 -> 0 | F32: 0 | H32: 0 | I32: 0 | K32: 0 | L32: 0 | N32: 0 | O32: 0 | Q32: 0 | R32: 0 | T32: =T28*$C32 -> 0 | U32: 0 | W32: =W28*$C32 -> 0 | X32: 0 | Z32: =Z28*$C32 -> 0 | AA32: 0 | AC32: =AC28*$C32 -> 0 | AD32: 0 | AF32: =AF28*$C32 -> 0 | AG32: 0 | AI32: =AI28*$C32 -> 0 | AJ32: 0
A33: LT Interest (enter rate) | E33: 0 | F33: 0 | H33: 0 | I33: 0 | K33: 0 | L33: 0 | N33: 0 | O33: 0 | Q33: 0 | R33: 0 | T33: 0 | U33: 0 | W33: 0 | X33: 0 | Z33: 0 | AA33: 0 | AC33: 0 | AD33: 0 | AF33: 0 | AG33: 0 | AI33: =AI29*$C33 -> 0 | AJ33: 0
A34: Return on Equity (enter rate) | E34: 0 | F34: 0 | H34: 0 | I34: 0 | K34: 0 | L34: 0 | N34: 0 | O34: 0 | Q34: 0 | R34: 0 | T34: 0 | U34: 0 | W34: 0 | X34: 0 | Z34: 0 | AA34: 0 | AC34: 0 | AD34: 0 | AF34: 0 | AG34: 0 | AI34: =AI30*$C34 -> 0 | AJ34: 0
A35: Cost of Capital Total | E35: =SUM(E32:E34) -> 0 | F35: =SUM(F32:F34) -> 0 | H35: =SUM(H32:H34) -> 0 | I35: =SUM(I32:I34) -> 0 | K35: =SUM(K32:K34) -> 0 | L35: =SUM(L32:L34) -> 0 | N35: =SUM(N32:N34) -> 0 | O35: =SUM(O32:O34) -> 0 | Q35: =SUM(Q32:Q34) -> 0 | R35: =SUM(R32:R34) -> 0 | T35: =SUM(T32:T34) -> 0 | U35: =SUM(U32:U34) -> 0 | W35: =SUM(W32:W34) -> 0 | X35: =SUM(X32:X34) -> 0 | Z35: =SUM(Z32:Z34) -> 0 | AA35: =SUM(AA32:AA34) -> 0 | AC35: =SUM(AC32:AC34) -> 0 | AD35: =SUM(AD32:AD34) -> 0 | AF35: =SUM(AF32:AF34) -> 0 | AG35: =SUM(AG32:AG34) -> 0 | AI35: =SUM(AI32:AI34) -> 0 | AJ35: =SUM(AJ32:AJ34) -> 0
A37: OM&A | E37: =E21+E22 -> 0 | F37: =F22 -> 0 | H37: =H21+H22 -> 0 | I37: =I22 -> 0 | K37: =K21+K22 -> 0 | L37: =L22 -> 0 | N37: =N21+N22 -> 0 | O37: =O22 -> 0 | Q37: =Q21+Q22 -> 0 | R37: =R22 -> 0 | T37: =T21+T22 -> 0 | U37: =U22 -> 0 | W37: =W21+W22 -> 0 | X37: =X22 -> 0 | Z37: =Z21+Z22 -> 0 | AA37: =AA22 -> 0 | AC37: =AC21+AC22 -> 0 | AD37: =AD22 -> 0 | AF37: =AF21+AF22 -> 0 | AG37: =AG22 -> 0 | AI37: =AI21+AI22 -> 0 | AJ37: =AJ22 -> 0
A38: Amortization | D38: =+E77+E78 -> 0 | E38: =D38*E$19 -> 0 | F38: =D38*F$19 -> 0 | G38: =+F77+F78 -> 0 | H38: =G38*H$19 -> 0 | I38: =G38*I$19 -> 0 | J38: =+G77+G78 -> 0 | K38: =J38*K$19 -> 0 | L38: =J38*L$19 -> 0 | M38: =+H77+H78 -> 0 | N38: =M38*N$19 -> 0 | O38: =M38*O$19 -> 0 | P38: =+I77+I78 -> 0 | Q38: =P38*Q$19 -> 0 | R38: =P38*R$19 -> 0 | S38: =+J77+J78 -> 0 | T38: =S38*T$19 -> 0 | U38: =S38*U$19 -> 0 | V38: =+K77+K78 -> 0 | W38: =V38*W$19 -> 0 | X38: =V38*X$19 -> 0 | Y38: =+L77+L78 -> 0 | Z38: =Y38*Z$19 -> 0 | AA38: =Y38*AA$19 -> 0 | AB38: =+M77+M78 -> 0 | AC38: =AB38*AC$19 -> 0 | AD38: =AB38*AD$19 -> 0 | AE38: =+N77+N78 -> 0 | AF38: =AE38*AF$19 -> 0 | AG38: =AE38*AG$19 -> 0 | AH38: =+O77+O78 -> 0 | AI38: =AH38*AI$19 -> 0 | AJ38: =AH38*AJ$19 -> 0
A39: Grossed-up PILs | E39: =+E66 -> 0 | F39: =+F66 -> 0 | H39: =+H66 -> 0 | I39: =+I66 -> 0 | K39: =+K66 -> 0 | L39: =+L66 -> 0 | N39: =+N66 -> 0 | O39: =+O66 -> 0 | Q39: =+Q66 -> 0 | R39: =+R66 -> 0 | T39: =+T66 -> 0 | U39: =+U66 -> 0 | W39: =+W66 -> 0 | X39: =+X66 -> 0 | Z39: =+Z66 -> 0 | AA39: =+AA66 -> 0 | AC39: =+AC66 -> 0 | AD39: =+AD66 -> 0 | AF39: =+AF66 -> 0 | AG39: =+AG66 -> 0 | AI39: =+AI66 -> 0 | AJ39: =+AJ66 -> 0
A41: Revenue Requirement | E41: =SUM(E35:E39) -> 0 | F41: =SUM(F35:F39) -> 0 | H41: =SUM(H35:H39) -> 0 | I41: 0 | K41: =SUM(K35:K39) -> 0 | L41: 0 | N41: =SUM(N35:N39) -> 0 | O41: 0 | Q41: =SUM(Q35:Q39) -> 0 | R41: 0 | T41: =SUM(T35:T39) -> 0 | U41: 0 | W41: =SUM(W35:W39) -> 0 | X41: 0 | Z41: =SUM(Z35:Z39) -> 0 | AA41: 0 | AC41: =SUM(AC35:AC39) -> 0 | AD41: 0 | AF41: =SUM(AF35:AF39) -> 0 | AG41: 0 | AI41: =SUM(AI35:AI39) -> 0 | AJ41: 0
A44: Provincial Rate Protection | F44: =F41 -> 0 | I44: =I41 -> 0 | L44: =L41 -> 0 | O44: =O41 -> 0 | R44: =R41 -> 0 | U44: =U41 -> 0 | X44: =X41 -> 0 | AA44: =AA41 -> 0 | AD44: =AD41 -> 0 | AG44: =AG41 -> 0 | AJ44: =AJ41 -> 0
A46: Monthly Amount Paid by IESO | F46: =F44/12 -> 0 | I46: =I44/12 -> 0 | L46: =L44/12 -> 0 | O46: =O44/12 -> 0 | R46: =R44/12 -> 0 | U46: =U44/12 -> 0 | X46: =X44/12 -> 0 | AA46: =AA44/12 -> 0 | AD46: =AD44/12 -> 0 | AG46: =AG44/12 -> 0 | AJ46: =AJ44/12 -> 0
A48: Note 1: The distributor should follow the regulatory accounting set out in the Accounting Procedure Handbook Guidance FAQs issued in March 2015. Q10 of the APH FAQs states that: “For approved eligible investments as defined under O.Reg. 330/09 under the OEB Act, a variance account will continue to be used for the purpose of recording variances between the revenue requirement based on actual costs of approved eligible investments and the revenue received from the IESO.” The answer for Q10 provides the accounting guidance for this variance account: “Distributors that have included eligible investments to connect qualifying facilities in their DS plans are to establish the variance Account 1533 Renewable Generation Connection Funding Adder Deferral Account, Sub-account Provincial Rate Protection Payment Variances following OEB approval for investments forecast to enter service beyond the test year for purposes of implementing rate protection pursuant to O.Reg. 330/09. The purpose of this variance account is to track the variance between the distributor’s revenue requirement associated with the portion of the actual capital and/or operating costs that are eligible for rate protection, as incurred by the distributor for eligible renewable enabling and expansion investments, and the rate protection payments collected from the IESO.” The answer further provides the journal entries to record the variances. Distributors should follow the instructions in the answer for recording the journal entries in the variance account 1533.
A50: Note 2: For the Test Year, Costs and Revenues of the Direct Benefit are to be included in the test year applicant Rate Base and Revenues.
A52: PILs Calculation | T52: Test Year
E53: =G17-1 -> 2016 | H53: =G17 -> 2017 | K53: =J17 -> 2018 | N53: =M17 -> 2019 | Q53: =P17 -> 2020 | T53: =S17 -> 2021 | W53: =V17 -> 2022 | Z53: =Y17 -> 2023 | AC53: =AB17 -> 2024 | AF53: =AE17 -> 2025 | AI53: =AH17 -> 2026
A54: Income Tax | E54: Direct Benefit | F54: Provincial | H54: Direct Benefit | I54: Provincial | K54: Direct Benefit | L54: Provincial | N54: Direct Benefit | O54: Provincial | Q54: Direct Benefit | R54: Provincial | T54: Direct Benefit | U54: Provincial | W54: Direct Benefit | X54: Provincial | Z54: Direct Benefit | AA54: Provincial | AC54: Direct Benefit | AD54: Provincial | AF54: Direct Benefit | AG54: Provincial | AI54: Direct Benefit | AJ54: Provincial
AB55: Total | AE55: Total | AH55: Total
A56: Net Income - ROE on Rate Base | E56: =E34 -> 0 | F56: =F34 -> 0 | H56: =H34 -> 0 | I56: =I34 -> 0 | K56: =K34 -> 0 | L56: =L34 -> 0 | N56: =N34 -> 0 | O56: =O34 -> 0 | Q56: =Q34 -> 0 | R56: =R34 -> 0 | T56: =T34 -> 0 | U56: =U34 -> 0 | W56: =W34 -> 0 | X56: =X34 -> 0 | Z56: =Z34 -> 0 | AA56: =AA34 -> 0 | AC56: =AC34 -> 0 | AD56: =AD34 -> 0 | AF56: =AF34 -> 0 | AG56: =AG34 -> 0 | AI56: =AI34 -> 0 | AJ56: =AJ34 -> 0
A57: Amortization (6% DB and 94% P) | E57: =E38 -> 0 | F57: =F38 -> 0 | H57: =H38 -> 0 | I57: =I38 -> 0 | K57: =K38 -> 0 | L57: =L38 -> 0 | N57: =N38 -> 0 | O57: =O38 -> 0 | Q57: =Q38 -> 0 | R57: =R38 -> 0 | T57: =T38 -> 0 | U57: =U38 -> 0 | W57: =W38 -> 0 | X57: =X38 -> 0 | Z57: =Z38 -> 0 | AA57: =AA38 -> 0 | AC57: =AC38 -> 0 | AD57: =AD38 -> 0 | AF57: =AF38 -> 0 | AG57: =AG38 -> 0 | AI57: =AI38 -> 0 | AJ57: =AJ38 -> 0
A58: CCA (6% DB and 94% P) | E58: =-E95*$E$19 -> 0 | F58: =-E95*$F$19 -> 0 | H58: =-F95*$E$19 -> 0 | I58: =-F95*$F$19 -> 0 | K58: =-G95*$E$19 -> 0 | L58: =-G95*$F$19 -> 0 | N58: =-H95*$E$19 -> 0 | O58: =-H95*$F$19 -> 0 | Q58: =-I95*$E$19 -> 0 | R58: =-I95*$F$19 -> 0 | T58: =-J95*$E$19 -> 0 | U58: =-J95*$F$19 -> 0 | W58: =-K95*$E$19 -> 0 | X58: =-K95*$F$19 -> 0 | Z58: =-L95*$E$19 -> 0 | AA58: =-L95*$F$19 -> 0 | AC58: =-M95*$E$19 -> 0 | AD58: =-M95*$F$19 -> 0 | AF58: =-N95*$E$19 -> 0 | AG58: =-N95*$F$19 -> 0 | AI58: =-Q95*$E$19 -> 0 | AJ58: =-Q95*$F$19 -> 0
A59: Taxable income | E59: =SUM(E56:E58) -> 0 | F59: =SUM(F56:F58) -> 0 | H59: =SUM(H56:H58) -> 0 | I59: 0 | K59: =SUM(K56:K58) -> 0 | L59: 0 | N59: =SUM(N56:N58) -> 0 | O59: 0 | Q59: =SUM(Q56:Q58) -> 0 | R59: 0 | T59: =SUM(T56:T58) -> 0 | U59: 0 | W59: =SUM(W56:W58) -> 0 | X59: 0 | Z59: =SUM(Z56:Z58) -> 0 | AA59: =SUM(AA56:AA58) -> 0 | AC59: =SUM(AC56:AC58) -> 0 | AD59: =SUM(AD56:AD58) -> 0 | AF59: =SUM(AF56:AF58) -> 0 | AG59: =SUM(AG56:AG58) -> 0 | AI59: =SUM(AI56:AI58) -> 0 | AJ59: =SUM(AJ56:AJ58) -> 0
B60: =B27 -> 2016 | C60: =C27 -> 2021
A61: Tax Rate (to be entered) | E61: =IF(AND(E$53>=$B$60, E$53<$C$60),$B$61,$C$61) -> 0 | F61: =IF(AND(E$53>=$B$60, E$53<$C$60),$B$61,$C$61) -> 0 | H61: =IF(AND(H$53>=$B$60, H$53<$C$60),$B$61,$C$61) -> 0 | I61: =IF(AND(H$53>=$B$60, H$53<$C$60),$B$61,$C$61) -> 0 | K61: =IF(AND(K$53>=$B$60, K$53<$C$60),$B$61,$C$61) -> 0 | L61: =IF(AND(K$53>=$B$60, K$53<$C$60),$B$61,$C$61) -> 0 | N61: =IF(AND(N$53>=$B$60, N$53<$C$60),$B$61,$C$61) -> 0 | O61: =IF(AND(N$53>=$B$60, N$53<$C$60),$B$61,$C$61) -> 0 | Q61: =IF(AND(Q$53>=$B$60, Q$53<$C$60),$B$61,$C$61) -> 0 | R61: =IF(AND(Q$53>=$B$60, Q$53<$C$60),$B$61,$C$61) -> 0 | T61: =IF(AND(T$53>=$B$60, T$53<$C$60),$B$61,$C$61) -> 0 | U61: =IF(AND(T$53>=$B$60, T$53<$C$60),$B$61,$C$61) -> 0 | W61: =IF(AND(W$53>=$B$60, W$53<$C$60),$B$61,$C$61) -> 0 | X61: =IF(AND(W$53>=$B$60, W$53<$C$60),$B$61,$C$61) -> 0 | Z61: =IF(AND(Z$53>=$B$60, Z$53<$C$60),$B$61,$C$61) -> 0 | AA61: =IF(AND(Z$53>=$B$60, Z$53<$C$60),$B$61,$C$61) -> 0 | AC61: =IF(AND(AC$53>=$B$60, AC$53<$C$60),$B$61,$C$61) -> 0 | AD61: =IF(AND(AC$53>=$B$60, AC$53<$C$60),$B$61,$C$61) -> 0 | AF61: =IF(AND(AF$53>=$B$60, AF$53<$C$60),$B$61,$C$61) -> 0 | AG61: =IF(AND(AF$53>=$B$60, AF$53<$C$60),$B$61,$C$61) -> 0 | AI61: =IF(AND(AI$53>=$B$60, AI$53<$C$60),$B$61,$C$61) -> 0 | AJ61: =IF(AND(AI$53>=$B$60, AI$53<$C$60),$B$61,$C$61) -> 0
A63: Income Taxes Payable | E63: =E59*E61 -> 0 | F63: =F59*F61 -> 0 | H63: =H59*H61 -> 0 | I63: =I59*I61 -> 0 | K63: =K59*K61 -> 0 | L63: =L59*L61 -> 0 | N63: =N59*N61 -> 0 | O63: =O59*O61 -> 0 | Q63: =Q59*Q61 -> 0 | R63: =R59*R61 -> 0 | T63: =T59*T61 -> 0 | U63: =U59*U61 -> 0 | W63: =W59*W61 -> 0 | X63: =X59*X61 -> 0 | Z63: =Z59*Z61 -> 0 | AA63: =AA59*AA61 -> 0 | AC63: =AC59*AC61 -> 0 | AD63: =AD59*AD61 -> 0 | AF63: =AF59*AF61 -> 0 | AG63: =AG59*AG61 -> 0 | AI63: =AI59*AI61 -> 0 | AJ63: =AJ59*AJ61 -> 0
A64: Gross Up
A65: Income Taxes Payable | E65: =E63/(1-E61) -> 0 | F65: =F63/(1-F61) -> 0 | H65: =H63/(1-H61) -> 0 | I65: =I63/(1-I61) -> 0 | K65: =K63/(1-K61) -> 0 | L65: =L63/(1-L61) -> 0 | N65: =N63/(1-N61) -> 0 | O65: =O63/(1-O61) -> 0 | Q65: =Q63/(1-Q61) -> 0 | R65: =R63/(1-R61) -> 0 | T65: =T63/(1-T61) -> 0 | U65: =U63/(1-U61) -> 0 | W65: =W63/(1-W61) -> 0 | X65: =X63/(1-X61) -> 0 | Z65: =Z63/(1-Z61) -> 0 | AA65: =AA63/(1-AA61) -> 0 | AC65: =AC63/(1-AC61) -> 0 | AD65: =AD63/(1-AD61) -> 0 | AF65: =AF63/(1-AF61) -> 0 | AG65: =AG63/(1-AG61) -> 0 | AI65: =AI63/(1-AI61) -> 0 | AJ65: =AJ63/(1-AJ61) -> 0
A66: Grossed Up PILs | E66: =+E65 -> 0 | F66: =+F65 -> 0 | H66: =+H65 -> 0 | I66: =+I65 -> 0 | K66: =+K65 -> 0 | L66: 0 | N66: =+N65 -> 0 | O66: 0 | Q66: =+Q65 -> 0 | R66: 0 | T66: =+T65 -> 0 | U66: 0 | W66: =+W65 -> 0 | X66: 0 | Z66: =+Z65 -> 0 | AA66: 0 | AC66: =+AC65 -> 0 | AD66: 0 | AF66: =+AF65 -> 0 | AG66: 0 | AI66: =+AI65 -> 0 | AJ66: 0
J68: Test Year
E69: =F69-1 -> 2016 | F69: =G69-1 -> 2017 | G69: =H69-1 -> 2018 | H69: =I69-1 -> 2019 | I69: =J69-1 -> 2020 | J69: ='LDC Info'!E24 -> 2021 | K69: =J69+1 -> 2022 | L69: =K69+1 -> 2023 | M69: =L69+1 -> 2024 | N69: =M69+1 -> 2025 | O69: =N69+1 -> 2026
A70: Net Fixed Assets
A71: Enter applicable amortization in years: | B71: 40
A72: Opening Gross Fixed Assets | F72: =E74 -> 0 | G72: 0 | H72: 0 | I72: 0 | J72: 0 | K72: 0 | L72: 0 | M72: 0 | N72: 0 | O72: 0
A73: Capital Additions | E73: ='App.2-FA Proposed REG Invest.'!C99 -> 0 | F73: ='App.2-FA Proposed REG Invest.'!D99 -> 0 | G73: ='App.2-FA Proposed REG Invest.'!E99 -> 0 | H73: ='App.2-FA Proposed REG Invest.'!F99 -> 0 | I73: ='App.2-FA Proposed REG Invest.'!G99 -> 0 | J73: ='App.2-FA Proposed REG Invest.'!H99 -> 0 | K73: ='App.2-FA Proposed REG Invest.'!I99 -> 0 | L73: ='App.2-FA Proposed REG Invest.'!J99 -> 0 | M73: ='App.2-FA Proposed REG Invest.'!K99 -> 0 | N73: ='App.2-FA Proposed REG Invest.'!L99 -> 0 | O73: ='App.2-FA Proposed REG Invest.'!M99 -> 0
A74: Closing Gross Fixed Assets | E74: =SUM(E72:E73) -> 0 | F74: 0 | G74: 0 | H74: 0 | I74: 0 | J74: 0 | K74: 0 | L74: 0 | M74: 0 | N74: 0 | O74: =SUM(O72:O73) -> 0
A76: Opening Accumulated Amortization | E76: 0 | F76: =+E79 -> 0 | G76: =+F79 -> 0 | H76: 0 | I76: 0 | J76: 0 | K76: 0 | L76: 0 | M76: 0 | N76: 0 | O76: 0
A77: Current Year Amortization (before additions) | E77: =IF(ISERROR(E72/$B$71), 0, E72/$B$71) -> 0 | F77: =IF(ISERROR(F72/$B$71), 0, F72/$B$71) -> 0 | G77: 0 | H77: 0 | I77: 0 | J77: 0 | K77: 0 | L77: 0 | M77: 0 | N77: 0 | O77: =IF(ISERROR(O72/$B$71), 0, O72/$B$71) -> 0
A78: Capital Additions Amortization (half year) | E78: =E73/$B$71/2 -> 0 | F78: =F73/$B$71/2 -> 0 | G78: 0 | H78: 0 | I78: 0 | J78: 0 | K78: 0 | L78: 0 | M78: 0 | N78: 0 | O78: =O73/$B$71/2 -> 0
A79: Closing Accumulated Amortization | E79: =SUM(E76+E77+E78) -> 0 | F79: 0 | G79: 0 | H79: 0 | I79: 0 | J79: 0 | K79: 0 | L79: 0 | M79: 0 | N79: 0 | O79: =SUM(O76+O77+O78) -> 0
A81: Opening Net Fixed Assets | E81: =E72-E76 -> 0 | F81: 0 | G81: 0 | H81: 0 | I81: 0 | J81: 0 | K81: 0 | L81: 0 | M81: 0 | N81: 0 | O81: =O72-O76 -> 0
A82: Closing Net Fixed Assets | E82: =E74-E79 -> 0 | F82: 0 | G82: 0 | H82: 0 | I82: 0 | J82: 0 | K82: 0 | L82: 0 | M82: 0 | N82: 0 | O82: =O74-O79 -> 0
A83: Average Net Fixed Assets | E83: =SUM(E81:E82)/2 -> 0 | F83: 0 | G83: 0 | H83: 0 | I83: 0 | J83: 0 | K83: 0 | L83: 0 | M83: 0 | N83: 0 | O83: =SUM(O81:O82)/2 -> 0
A85: UCC for PILs Calculation | J85: =J68 -> Test Year
E86: =E69 -> 2016 | F86: =F69 -> 2017 | G86: =G69 -> 2018 | H86: 2019 | I86: 2020 | J86: 2021 | K86: 2022 | L86: 2023 | M86: 2024 | N86: 2025 | O86: =O69 -> 2026
A88: Opening UCC | E88: =E72 -> 0 | F88: =E96 -> 0 | G88: 0 | H88: 0 | I88: 0 | J88: 0 | K88: 0 | L88: 0 | M88: 0 | N88: 0 | O88: 0
A89: Capital Additions | E89: =E73 -> 0 | F89: 0 | G89: 0 | H89: 0 | I89: 0 | J89: 0 | K89: 0 | L89: 0 | M89: 0 | N89: 0 | O89: =O73 -> 0
A90: UCC Before Half Year Rule | E90: =SUM(E88:E89) -> 0 | F90: 0 | G90: 0 | H90: 0 | I90: 0 | J90: 0 | K90: 0 | L90: 0 | M90: 0 | N90: 0 | O90: =SUM(O88:O89) -> 0
A91: Capital Additions (half year) | E91: =E89/2 -> 0 | F91: 0 | G91: 0 | H91: 0 | I91: 0 | J91: 0 | K91: 0 | L91: 0 | M91: 0 | N91: 0 | O91: =O89/2 -> 0
A92: Reduced UCC | E92: =E90-E91 -> 0 | F92: 0 | G92: 0 | H92: 0 | I92: 0 | J92: 0 | K92: 0 | L92: 0 | M92: 0 | N92: 0 | O92: =O90-O91 -> 0
A93: CCA Rate Class (to be entered)
A94: CCA Rate (to be entered)
A95: CCA | E95: =E92*$B$94 -> 0 | F95: =F92*$B$94 -> 0 | G95: 0 | H95: 0 | I95: 0 | J95: 0 | K95: 0 | L95: 0 | M95: 0 | N95: 0 | O95: =O92*$B$94 -> 0
A96: Closing UCC | E96: =E90-E95 -> 0 | F96: 0 | G96: 0 | H96: 0 | I96: 0 | J96: 0 | K96: 0 | L96: 0 | M96: 0 | N96: 0 | O96: =O90-O95 -> 0

Sheet App.2-G SQI
M1: File Number: | O1: =EBNUMBER -> EB-2020-0026
M2: Exhibit:
M3: Tab:
M4: Schedule:
M5: Page: | O5: Settlement
M7: Date: | O7: 2021-02-08
A9: Appendix 2-G
A10: Service Reliability and Quality Indicators
A13: Service Reliability
A15: Index | B15: Including outages caused by loss of supply | G15: Excluding outages caused by loss of supply | L15: Excluding Major Event Days
B16: =TestYear-6 -> 2015 | C16: =TestYear-5 -> 2016 | D16: =TestYear-4 -> 2017 | E16: =TestYear-3 -> 2018 | F16: =TestYear-2 -> 2019 | G16: =B16 -> 2015 | H16: 2016 | I16: 2017 | J16: 2018 | K16: 2019 | L16: 2015 | M16: 2016 | N16: 2017 | O16: 2018 | P16: 2019
A17: SAIDI | B17: 2.58 | C17: 3.48 | D17: 1.68 | E17: 1.54 | F17: 1.61 | G17: 2.58 | H17: 3.11 | I17: 1.65 | J17: 1.48 | K17: 1.6 | L17: 2.58 | M17: 1.38 | N17: 1.65 | O17: 1.48 | P17: 1.6
A18: SAIFI | B18: 3.02 | C18: 3.22 | D18: 1.61 | E18: 1.73 | F18: 1.83 | G18: 3.02 | H18: 2.77 | I18: 1.13 | J18: 1.6 | K18: 1.7 | L18: 3.02 | M18: 1.65 | N18: 1.13 | O18: 1.6 | P18: 1.7
A20: 5 Year Historical Average
A21: SAIDI | F21: =IF(ISERROR(AVERAGE(B17:F17)), "", AVERAGE(B17:F17)) -> 2.178 | K21: =IF(ISERROR(AVERAGE(G17:K17)), "", AVERAGE(G17:K17)) -> 2.084 | P21: =IF(ISERROR(AVERAGE(L17:P17)), "", AVERAGE(L17:P17)) -> 1.738
A22: SAIFI | F22: =IF(ISERROR(AVERAGE(B18:F18)), "", AVERAGE(B18:F18)) -> 2.282 | K22: =IF(ISERROR(AVERAGE(G18:K18)), "", AVERAGE(G18:K18)) -> 2.044 | P22: =IF(ISERROR(AVERAGE(L18:P18)), "", AVERAGE(L18:P18)) -> 1.82
A24: SAIDI = System Average Interruption Duration Index
A25: SAIFI = System Average Interruption Frequency Index
A27: Service Quality
A29: Indicator | E29: OEB Minimum Standard | G29: =B16 -> 2015 | H29: =C16 -> 2016 | I29: =D16 -> 2017 | J29: =E16 -> 2018 | K29: =F16 -> 2019
A30: Low Voltage Connections | E30: 0.9 | G30: 1 | H30: 1 | I30: 1 | J30: 1 | K30: 1
A31: High Voltage Connections | E31: 0.9 | G31: n/a | H31: n/a | I31: n/a | J31: n/a | K31: n/a
A32: Telephone Accessibility | E32: 0.65 | G32: 0.931 | H32: 0.944 | I32: 0.9585 | J32: 0.9663 | K32: 0.9643
A33: Appointments Met | E33: 0.9 | G33: 1 | H33: 1 | I33: 1 | J33: 0.9998 | K33: 0.9766
A34: Written Response to Enquires | E34: 0.8 | G34: 0.999 | H34: 1 | I34: 0.9961 | J34: 0.9984 | K34: 0.9986
A35: Emergency Urban Response | E35: 0.8 | G35: 1 | H35: 1 | I35: 1 | J35: 0.9412 | K35: 1
A36: Emergency Rural Response | E36: 0.8 | G36: 1 | H36: 1 | I36: 1 | J36: 1 | K36: 1
A37: Telephone Call Abandon Rate | E37: 0.1 | G37: 0.011 | H37: 0.014 | I37: 0.011 | J37: 0.0082 | K37: 0.035
A38: Appointment Scheduling | E38: 0.9 | G38: 1 | H38: 1 | I38: 1 | J38: 1 | K38: 1
A39: Rescheduling a Missed Appointment | E39: 1 | G39: 1 | H39: 1 | I39: 1 | J39: 1 | K39: 1
A40: Reconnection Performance Standard | E40: 0.85 | G40: 1 | H40: 1 | I40: 1 | J40: 1 | K40: 1

Sheet App.2-H_Other_Oper_Rev
K1: File Number: | L1: =EBNUMBER -> EB-2020-0026
K2: Exhibit:
K3: Tab:
A4: TO BE UPDATED AT THE DRAFT RATE ORDER STAGE | K4: Schedule:
K5: Page: | L5: Settlement
K7: Date: | L7: 2021-02-08
A9: Appendix 2-H
A10: Other Operating Revenue
A12: USoA # | B12: USoA Description | C12: =D13 - 1 &" Actual"&CHAR(178) -> 2012 Actual² | D12: 2013 Actual² | E12: 2014 Actual² | F12: 2015 Actual² | G12: =H13 - 1 &" Actual"&CHAR(178) -> 2016 Actual² | H12: =I13 - 1 &" Actual"&CHAR(178) -> 2017 Actual² | I12: =I13 & " Actual" & CHAR(178) -> 2018 Actual² | J12: =J13& " Actual" -> 2019 Actual | K12: Bridge Year | L12: Test Year | N12: CGAAP
C13: =D13-1 -> 2012 | D13: =E13-1 -> 2013 | E13: =F13-1 -> 2014 | F13: =G13-1 -> 2015 | G13: =H13-1 -> 2016 | H13: =I13-1 -> 2017 | I13: =J13-1 -> 2018 | J13: 2019 | K13: =BridgeYear -> 2020 | L13: =TestYear -> 2021 | N13: Enter Transition Year
B14: Reporting Basis | G14: MIFRS | H14: MIFRS | I14: MIFRS | J14: MIFRS | K14: MIFRS | L14: MIFRS | N14: CGAAP
A15: 4235 | B15: Specific Service Charges | G15: 437070.93 | H15: 415299.9 | I15: 361730.65 | J15: 289776.46 | K15: 274500 | L15: 266650.73
A16: 4225 | B16: Late Payment Charges | G16: 125310 | H16: 136401 | I16: 131758.74 | J16: 141768.66 | K16: 145000 | L16: 145000
A17: 4082 | B17: Retail Services Revenues
A18: 4210 | B18: Rent from Electric Property | G18: 191536.4 | H18: 167839.59 | I18: 193924.4 | J18: 195051.03 | K18: 171908 | L18: 393625
A19: 4245 | B19: Deferred Revenue | G19: 249423 | H19: 275608 | I19: 306583 | J19: 329196 | K19: 352681 | L19: 380273
A20: 4355 | B20: Gain on Disposition of Utility property | G20: 13898.28 | H20: 45296.44 | I20: 15486.72 | J20: 1000 | K20: 0 | L20: 0
A21: 4375 | B21: Revenues from Non-Utility Operations | G21: 659407.33 | H21: 1738744.89 | I21: 1219755.15 | J21: 1096492.13 | K21: 394143 | L21: 413850.15
A22: 4380 | B22: Expenses of Non-Utility Operations | G22: -631821.43 | H22: -1488660.14 | I22: -1129275.72 | J22: -1042320.75 | K22: -369491 | L22: -387966
A23: 4385 | B23: Rental of Property | G23: 56118.61 | H23: 35874.26 | I23: 38791.43 | J23: 39174.96 | K23: 22000 | L23: 33322.13
A24: 4398 | B24: Foreign Exchange Gains and (Losses) | G24: -402.14 | H24: 3825.72 | I24: 2034.93 | J24: -812.12 | K24: 0 | L24: 0
A25: 4405 | B25: Interest | G25: 29494.08 | H25: 28473.38 | I25: 80372.98 | J25: 24698.64 | K25: 25500 | L25: 25500
A26: 4082 | B26: RS Rev | L26: 11000
A27: 4084 | B27: Serv Tx Requests | L27: 160
A28: 4086 | B28: SSS Administration Revenue | L28: 70000
A29: 4215 | B29: Other Utility Operating Income | L29: 9773
A53: Specific Service Charges | C53: =C15 -> 0 | D53: 0 | E53: 0 | F53: 0 | G53: 437070.93 | H53: 415299.9 | I53: 361730.65 | J53: 289776.46 | K53: 274500 | L53: 266650.73 | N53: =N15 -> 0
A54: Late Payment Charges | C54: =C16 -> 0 | D54: 0 | E54: 0 | F54: 0 | G54: 125310 | H54: 136401 | I54: 131758.74 | J54: 141768.66 | K54: 145000 | L54: 145000 | N54: =N16 -> 0
A55: Other Operating Revenues | G55: 440959.4 | H55: 443447.59 | I55: 500507.4 | J55: 524247.03 | K55: 524589 | L55: 773898
A56: Other Income or Deductions | G56: 126694.28 | H56: 363554.44 | I56: 227165.72 | J56: 118233 | K56: 72152 | L56: 175639
A57: Total | C57: =SUM(C53:C56) -> 0 | D57: =SUM(D53:D56) -> 0 | E57: =SUM(E53:E56) -> 0 | F57: =SUM(F53:F56) -> 0 | G57: =SUM(G53:G56) -> 1130034.61 | H57: 1358702.93 | I57: 1221162.51 | J57: 1074025.15 | K57: 1016241 | L57: 1361187.73 | N57: =SUM(N53:N56) -> 0
A59: Description Account(s)
A60: Specific Service Charges: 4235
A61: Late Payment Charges: 4225
A62: Other Distribution Revenues: 4082, 4084, 4090, 4205, 4210, 4215, 4220, 4230, 4240, 4245
A63: Other Income and Expenses: 4305, 4310, 4315, 4320, 4325, 4330, 4335, 4340, 4345, 4350, 4355, 4357, 4360, 4362, 4365, 4370, 4375, 4380, 4385, 4390, 4395, 4398, 4405, 4410, 4415, 4420
A66: Note: Add all applicable accounts listed above to the table and include all relevant information.
A68: Account Breakdown Details
A70: For each "Other Operating Revenue" and "Other Income or Deductions" Account, a detailed breakdown of the account components is required. See the example below for Account 4405, Interest and Dividend Income. Tables for the detailed breakdowns will be generated after cell B89 is filled in.
A73: Example: Account 4405 - Interest and Dividend Income
C74: =C12 -> 2012 Actual² | D74: 2013 Actual² | E74: 2014 Actual² | F74: 2015 Actual² | G74: 2016 Actual² | H74: 2017 Actual² | I74: 2018 Actual² | J74: 2019 Actual | K74: Bridge Year | L74: Test Year | N74: =N12 -> CGAAP
C75: =C13 -> 2012 | D75: 2013 | E75: 2014 | F75: 2015 | G75: 2016 | H75: 2017 | I75: 2018 | J75: =J13 -> 2019 | K75: =K13 -> 2020 | L75: =L13 -> 2021 | N75: =N13 -> Enter Transition Year
A76: Reporting Basis | C76: =IF(C14=0, "", C14) ->  | G76: MIFRS | H76: MIFRS | I76: MIFRS | J76: MIFRS | K76: MIFRS | L76: MIFRS | N76: =IF(N14=0, "", N14) -> CGAAP
A77: Short-term Investment Interest
A78: Bank Deposit Interest
A79: Miscellaneous Interest Revenue
A80: etc.1
A83: Total | C83: =SUM(C77:C82) -> 0 | D83: 0 | E83: 0 | F83: 0 | G83: 0 | H83: 0 | I83: 0 | J83: 0 | K83: 0 | L83: 0 | N83: =SUM(N77:N82) -> 0
A86: Notes:
A87: 1 | B87: List and specify any other interest revenue.
A88: 2 | B88: For applicants rebasing under IFRS for the first time, in the transition year (2014) to IFRS, the applicant is to present information in both MIFRS and CGAAP. In column N, present CGAAP transition year information.
B89: 15 | C89: Enter the number of "Other Operating Revenue" and "Other Income or Deductions" Accounts that require a detailed breakdown of the account components.
A93: Account 4235 - Specific Service Charges
C94: =C$12 -> 2012 Actual² | D94: 2013 Actual² | E94: 2014 Actual² | F94: 2015 Actual² | G94: 2016 Actual² | H94: 2017 Actual² | I94: 2018 Actual² | J94: 2019 Actual | K94: Bridge Year | L94: Test Year | N94: =N$12 -> CGAAP
C95: =C$13 -> 2012 | D95: 2013 | E95: 2014 | F95: 2015 | G95: 2016 | H95: 2017 | I95: 2018 | J95: 2019 | K95: 2020 | L95: 2021 | N95: =N$13 -> Enter Transition Year
A96: Reporting Basis | C96: =IF(C34=0, "", C34) ->  | N96: =IF(N$14=0, "", N$14) -> CGAAP
A97: NSF | G97: 4707 | H97: 3214 | I97: 2832 | J97: 3210 | K97: 3500 | L97: 3355
A98: Application Fee - Subdivision | G98: -5775.07 | H98: 7500 | I98: 7500 | J98: 0 | K98: 15000 | L98: 7500
A99: Service Layouts | G99: 10000
A100: Sale of Scrap Materials | G100: 27942 | H100: 99158 | I100: 39227 | J100: 45402 | K100: 65000 | L100: 49876
A101: Account set-up | G101: 69840 | H101: 54840 | I101: 49230 | J101: 52050 | K101: 55000 | L101: 53525
A102: Miscellaneous-Specific service charges | G102: 51363 | H102: 8170.9 | I102: 15618.81 | J102: 1375 | K102: 50000 | L102: 66394.73
A103: Miscellaneous-Affordability Trust Fund | J103: 83424.48
A104: Miscellaneous-WSIB rebate | J104: 1087.91
A105: Total | C105: =SUM(C97:C104) -> 0 | D105: 0 | E105: 0 | F105: 0 | G105: 158076.93 | H105: 172882.9 | I105: 114407.81 | J105: 186549.39 | K105: 188500 | L105: 180650.73 | N105: =SUM(N97:N104) -> 0
A107: Account 4235 - Specific Service Charges (cont'd)
C108: =C$12 -> 2012 Actual² | D108: 2013 Actual² | E108: 2014 Actual² | F108: 2015 Actual² | G108: 2016 Actual² | H108: 2017 Actual² | I108: 2018 Actual² | J108: 2019 Actual | K108: Bridge Year | L108: Test Year | N108: =N$12 -> CGAAP
C109: =C$13 -> 2012 | D109: 2013 | E109: 2014 | F109: 2015 | G109: 2016 | H109: 2017 | I109: 2018 | J109: 2019 | K109: 2020 | L109: 2021 | N109: =N$13 -> Enter Transition Year
A110: Reporting Basis | C110: =IF(C48=0, "", C48) ->  | N110: =IF(N$14=0, "", N$14) -> CGAAP
A111: Collection | G111: 108000 | H111: 55745 | I111: 27600 | J111: 20325
A112: Reconnection | G112: 16715 | H112: 8085 | I112: 3795 | J112: 3220 | K112: 6000 | L112: 6000
A113: Fire Department Billings | G113: 49586 | H113: 26451 | I113: 34944.44 | J113: 26661.35 | K113: 30000 | L113: 30000
A114: Other Utility Operating - Recoverable work | G114: 104693 | H114: 96566.61 | I114: 81553.89 | J114: 53020.72 | K114: 50000 | L114: 50000
A115: Other Utility Operating - Recoverable work - Customer owned | H115: 12130
A116: Other Utility Operating - Recoverable work - Customer owned | H116: 29689.39
A117: Other Utility Operating - New York Restoration (March 2018) | I117: 81194.11
A118: Recovery Administrative Costs | H118: 13750 | I118: 18235.4
A119: Total | C119: =SUM(C111:C118) -> 0 | D119: =SUM(D111:D118) -> 0 | E119: =SUM(E111:E118) -> 0 | F119: =SUM(F111:F118) -> 0 | G119: =SUM(G111:G118) -> 278994 | H119: =SUM(H111:H118) -> 242417 | I119: =SUM(I111:I118) -> 247322.84 | J119: =SUM(J111:J118) -> 103227.07 | K119: =SUM(K111:K118) -> 86000 | L119: =SUM(L111:L118) -> 86000 | N119: =SUM(N111:N118) -> 0
A121: UsofA 4210 & 4245
C122: =C$12 -> 2012 Actual² | D122: 2013 Actual² | E122: 2014 Actual² | F122: 2015 Actual² | G122: 2016 Actual² | H122: 2017 Actual² | I122: 2018 Actual² | J122: 2019 Actual | K122: Bridge Year | L122: Test Year | N122: =N$12 -> CGAAP
C123: =C$13 -> 2012 | D123: 2013 | E123: 2014 | F123: 2015 | G123: 2016 | H123: 2017 | I123: 2018 | J123: 2019 | K123: 2020 | L123: 2021 | N123: =N$13 -> Enter Transition Year
A124: Reporting Basis | C124: =IF(C62=0, "", C62) ->  | N124: =IF(N$14=0, "", N$14) -> CGAAP
A125: Rent from Electric Property (4210) -Pole Rental | G125: 191536.4 | H125: 167839.59 | I125: 193924.4 | J125: 195051.03 | K125: 171908 | L125: 335592
A126: Deferred Rev/Contributed Capital (4245) | G126: 249423 | H126: 275608 | I126: 306583 | J126: 329196 | K126: 352681 | L126: 380273
A133: Total | C133: =SUM(C125:C132) -> 0 | D133: =SUM(D125:D132) -> 0 | E133: =SUM(E125:E132) -> 0 | F133: =SUM(F125:F132) -> 0 | G133: =SUM(G125:G132) -> 440959.4 | H133: =SUM(H125:H132) -> 443447.59 | I133: =SUM(I125:I132) -> 500507.4 | J133: =SUM(J125:J132) -> 524247.03 | K133: =SUM(K125:K132) -> 524589 | L133: =SUM(L125:L132) -> 715865 | N133: =SUM(N125:N132) -> 0
A135: USofA 4355, 4380, 4385,4398
C136: =C$12 -> 2012 Actual² | D136: 2013 Actual² | E136: 2014 Actual² | F136: 2015 Actual² | G136: 2016 Actual² | H136: 2017 Actual² | I136: 2018 Actual² | J136: 2019 Actual | K136: Bridge Year | L136: Test Year | N136: =N$12 -> CGAAP
C137: =C$13 -> 2012 | D137: 2013 | E137: 2014 | F137: 2015 | G137: 2016 | H137: 2017 | I137: 2018 | J137: 2019 | K137: 2020 | L137: 2021 | N137: =N$13 -> Enter Transition Year
A138: Reporting Basis | C138: =IF(C76=0, "", C76) ->  | G138: MIFRS | H138: MIFRS | I138: MIFRS | J138: MIFRS | K138: MIFRS | L138: MIFRS | N138: =IF(N$14=0, "", N$14) -> CGAAP
A139: Gain (Loss) on disposition of Utility Property (4355) | G139: 13898.28 | H139: 45296.44 | I139: 15486.72 | J139: 1000 | K139: 0 | L139: 0
A140: OM&A-CDM Costs (4380) | G140: -300125 | H140: -1161766 | I140: -773681 | J140: -686726 | K140: 0 | L140: 0
A141: OM&A-Water billing (4380) | G141: -331697 | H141: -326894 | I141: -355595 | J141: -355595 | K141: -369491 | L141: -387966
A142: Rental of Property (4385) | G142: 56119 | H142: 35874 | I142: 38791 | J142: 39175 | K142: 22000 | L142: 33322
A143: Foreign Exchange Gain (Loss) (4398) | G143: -402 | H143: 3826 | I143: 2035 | J143: -812 | K143: 0 | L143: 0
A147: Total | C147: =SUM(C139:C146) -> 0 | D147: =SUM(D139:D146) -> 0 | E147: =SUM(E139:E146) -> 0 | F147: =SUM(F139:F146) -> 0 | G147: =SUM(G139:G146) -> -562206.72 | H147: =SUM(H139:H146) -> -1403663.56 | I147: =SUM(I139:I146) -> -1072963.28 | J147: =SUM(J139:J146) -> -1002958 | K147: =SUM(K139:K146) -> -347491 | L147: =SUM(L139:L146) -> -354644 | N147: =SUM(N139:N146) -> 0
A149: USofA 4375
C150: =C$12 -> 2012 Actual² | D150: 2013 Actual² | E150: 2014 Actual² | F150: 2015 Actual² | G150: 2016 Actual² | H150: 2017 Actual² | I150: 2018 Actual² | J150: 2019 Actual | K150: Bridge Year | L150: Test Year | N150: =N$12 -> CGAAP
C151: =C$13 -> 2012 | D151: 2013 | E151: 2014 | F151: 2015 | G151: 2016 | H151: 2017 | I151: 2018 | J151: 2019 | K151: 2020 | L151: 2021 | N151: =N$13 -> Enter Transition Year
A152: Reporting Basis | C152: =IF(C90=0, "", C90) ->  | N152: =IF(N$14=0, "", N$14) -> CGAAP
A153: CDM Revenue (4375) | G153: 300125 | H153: 1161766 | I153: 773681 | J153: 686726 | K153: 0 | L153: 0
A154: OPA CDM Consulting (4375) | G154: 27585 | H154: 232050 | I154: 69205 | J154: 32645 | K154: 0 | L154: 0
A155: Inter-Company SWE (4375) | G155: 331697 | H155: 326894 | I155: 355595 | J155: 355595 | K155: 369491 | L155: 387966
A156: Inter-Company QTS (4375) | H156: 12023 | I156: 14184 | J156: 14376 | K156: 16435 | L156: 17256
A157: Inter-Company HHCEC (4375) | H157: 6012 | I157: 7090 | J157: 7151 | K157: 8217 | L157: 8628
A161: Total | C161: =SUM(C153:C160) -> 0 | D161: =SUM(D153:D160) -> 0 | E161: =SUM(E153:E160) -> 0 | F161: =SUM(F153:F160) -> 0 | G161: =SUM(G153:G160) -> 659407 | H161: =SUM(H153:H160) -> 1738745 | I161: =SUM(I153:I160) -> 1219755 | J161: =SUM(J153:J160) -> 1096493 | K161: =SUM(K153:K160) -> 394143 | L161: =SUM(L153:L160) -> 413850 | N161: =SUM(N153:N160) -> 0
A163: USofA 4405
C164: =C$12 -> 2012 Actual² | D164: 2013 Actual² | E164: 2014 Actual² | F164: 2015 Actual² | G164: 2016 Actual² | H164: 2017 Actual² | I164: 2018 Actual² | J164: 2019 Actual | K164: Bridge Year | L164: Test Year | N164: =N$12 -> CGAAP
C165: =C$13 -> 2012 | D165: 2013 | E165: 2014 | F165: 2015 | G165: 2016 | H165: 2017 | I165: 2018 | J165: 2019 | K165: 2020 | L165: 2021 | N165: =N$13 -> Enter Transition Year
A166: Reporting Basis | C166: =IF(C104=0, "", C104) ->  | J166: 1087.91 | N166: =IF(N$14=0, "", N$14) -> CGAAP
A167: Interest Revenue -Deferred Variance Accounts (DVAs) (4405) | G167: 27313 | H167: 27309 | I167: 79721 | J167: 23134 | K167: 24300 | L167: 24300
A168: Miscellaneous Interest Revenue (4405) | G168: 2181 | H168: 1164 | I168: 653 | J168: 1564 | K168: 1200 | L168: 1200
A175: Total | C175: =SUM(C167:C174) -> 0 | D175: =SUM(D167:D174) -> 0 | E175: =SUM(E167:E174) -> 0 | F175: =SUM(F167:F174) -> 0 | G175: =SUM(G167:G174) -> 29494 | H175: =SUM(H167:H174) -> 28473 | I175: =SUM(I167:I174) -> 80374 | J175: =SUM(J167:J174) -> 24698 | K175: =SUM(K167:K174) -> 25500 | L175: =SUM(L167:L174) -> 25500 | N175: =SUM(N167:N174) -> 0
C178: =C$12 -> 2012 Actual² | D178: 2013 Actual² | E178: 2014 Actual² | F178: 2015 Actual² | G178: 2016 Actual² | H178: 2017 Actual² | I178: 2018 Actual² | J178: 2019 Actual | K178: Bridge Year | L178: Test Year | N178: =N$12 -> CGAAP
C179: =C$13 -> 2012 | D179: 2013 | E179: 2014 | F179: 2015 | G179: 2016 | H179: 2017 | I179: 2018 | J179: 2019 | K179: 2020 | L179: 2021 | N179: =N$13 -> Enter Transition Year
A180: Reporting Basis | C180: =IF(C118=0, "", C118) ->  | H180: 13750 | I180: 18235.4 | N180: =IF(N$14=0, "", N$14) -> CGAAP
A189: Total | C189: =SUM(C181:C188) -> 0 | D189: =SUM(D181:D188) -> 0 | E189: =SUM(E181:E188) -> 0 | F189: =SUM(F181:F188) -> 0 | G189: =SUM(G181:G188) -> 0 | H189: =SUM(H181:H188) -> 0 | I189: =SUM(I181:I188) -> 0 | J189: =SUM(J181:J188) -> 0 | K189: =SUM(K181:K188) -> 0 | L189: =SUM(L181:L188) -> 0 | N189: =SUM(N181:N188) -> 0
C192: =C$12 -> 2012 Actual² | D192: 2013 Actual² | E192: 2014 Actual² | F192: 2015 Actual² | G192: 2016 Actual² | H192: 2017 Actual² | I192: 2018 Actual² | J192: 2019 Actual | K192: Bridge Year | L192: Test Year | N192: =N$12 -> CGAAP
C193: =C$13 -> 2012 | D193: 2013 | E193: 2014 | F193: 2015 | G193: 2016 | H193: 2017 | I193: 2018 | J193: 2019 | K193: 2020 | L193: 2021 | N193: =N$13 -> Enter Transition Year
A194: Reporting Basis | C194: =IF(C132=0, "", C132) ->  | N194: =IF(N$14=0, "", N$14) -> CGAAP
A203: Total | C203: =SUM(C195:C202) -> 0 | D203: =SUM(D195:D202) -> 0 | E203: =SUM(E195:E202) -> 0 | F203: =SUM(F195:F202) -> 0 | G203: =SUM(G195:G202) -> 0 | H203: =SUM(H195:H202) -> 0 | I203: =SUM(I195:I202) -> 0 | J203: =SUM(J195:J202) -> 0 | K203: =SUM(K195:K202) -> 0 | L203: =SUM(L195:L202) -> 0 | N203: =SUM(N195:N202) -> 0
C206: =C$12 -> 2012 Actual² | D206: 2013 Actual² | E206: 2014 Actual² | F206: 2015 Actual² | G206: 2016 Actual² | H206: 2017 Actual² | I206: 2018 Actual² | J206: 2019 Actual | K206: Bridge Year | L206: Test Year | N206: =N$12 -> CGAAP
C207: =C$13 -> 2012 | D207: 2013 | E207: 2014 | F207: 2015 | G207: 2016 | H207: 2017 | I207: 2018 | J207: 2019 | K207: 2020 | L207: 2021 | N207: =N$13 -> Enter Transition Year
A208: Reporting Basis | C208: =IF(C146=0, "", C146) ->  | N208: =IF(N$14=0, "", N$14) -> CGAAP
A217: Total | C217: =SUM(C209:C216) -> 0 | D217: =SUM(D209:D216) -> 0 | E217: =SUM(E209:E216) -> 0 | F217: =SUM(F209:F216) -> 0 | G217: =SUM(G209:G216) -> 0 | H217: =SUM(H209:H216) -> 0 | I217: =SUM(I209:I216) -> 0 | J217: =SUM(J209:J216) -> 0 | K217: =SUM(K209:K216) -> 0 | L217: =SUM(L209:L216) -> 0 | N217: =SUM(N209:N216) -> 0
C220: =C$12 -> 2012 Actual² | D220: 2013 Actual² | E220: 2014 Actual² | F220: 2015 Actual² | G220: 2016 Actual² | H220: 2017 Actual² | I220: 2018 Actual² | J220: 2019 Actual | K220: Bridge Year | L220: Test Year | N220: =N$12 -> CGAAP
C221: =C$13 -> 2012 | D221: 2013 | E221: 2014 | F221: 2015 | G221: 2016 | H221: 2017 | I221: 2018 | J221: 2019 | K221: 2020 | L221: 2021 | N221: =N$13 -> Enter Transition Year
A222: Reporting Basis | C222: =IF(C160=0, "", C160) ->  | N222: =IF(N$14=0, "", N$14) -> CGAAP
A231: Total | C231: =SUM(C223:C230) -> 0 | D231: =SUM(D223:D230) -> 0 | E231: =SUM(E223:E230) -> 0 | F231: =SUM(F223:F230) -> 0 | G231: =SUM(G223:G230) -> 0 | H231: =SUM(H223:H230) -> 0 | I231: =SUM(I223:I230) -> 0 | J231: =SUM(J223:J230) -> 0 | K231: =SUM(K223:K230) -> 0 | L231: =SUM(L223:L230) -> 0 | N231: =SUM(N223:N230) -> 0
C234: =C$12 -> 2012 Actual² | D234: 2013 Actual² | E234: 2014 Actual² | F234: 2015 Actual² | G234: 2016 Actual² | H234: 2017 Actual² | I234: 2018 Actual² | J234: 2019 Actual | K234: Bridge Year | L234: Test Year | N234: =N$12 -> CGAAP
C235: =C$13 -> 2012 | D235: 2013 | E235: 2014 | F235: 2015 | G235: 2016 | H235: 2017 | I235: 2018 | J235: 2019 | K235: 2020 | L235: 2021 | N235: =N$13 -> Enter Transition Year
A236: Reporting Basis | C236: =IF(C174=0, "", C174) ->  | N236: =IF(N$14=0, "", N$14) -> CGAAP
A245: Total | C245: =SUM(C237:C244) -> 0 | D245: =SUM(D237:D244) -> 0 | E245: =SUM(E237:E244) -> 0 | F245: =SUM(F237:F244) -> 0 | G245: =SUM(G237:G244) -> 0 | H245: =SUM(H237:H244) -> 0 | I245: =SUM(I237:I244) -> 0 | J245: =SUM(J237:J244) -> 0 | K245: =SUM(K237:K244) -> 0 | L245: =SUM(L237:L244) -> 0 | N245: =SUM(N237:N244) -> 0
C248: =C$12 -> 2012 Actual² | D248: 2013 Actual² | E248: 2014 Actual² | F248: 2015 Actual² | G248: 2016 Actual² | H248: 2017 Actual² | I248: 2018 Actual² | J248: 2019 Actual | K248: Bridge Year | L248: Test Year | N248: =N$12 -> CGAAP
C249: =C$13 -> 2012 | D249: 2013 | E249: 2014 | F249: 2015 | G249: 2016 | H249: 2017 | I249: 2018 | J249: 2019 | K249: 2020 | L249: 2021 | N249: =N$13 -> Enter Transition Year
A250: Reporting Basis | C250: =IF(C188=0, "", C188) ->  | N250: =IF(N$14=0, "", N$14) -> CGAAP
A259: Total | C259: =SUM(C251:C258) -> 0 | D259: =SUM(D251:D258) -> 0 | E259: =SUM(E251:E258) -> 0 | F259: =SUM(F251:F258) -> 0 | G259: =SUM(G251:G258) -> 0 | H259: =SUM(H251:H258) -> 0 | I259: =SUM(I251:I258) -> 0 | J259: =SUM(J251:J258) -> 0 | K259: =SUM(K251:K258) -> 0 | L259: =SUM(L251:L258) -> 0 | N259: =SUM(N251:N258) -> 0
C262: =C$12 -> 2012 Actual² | D262: 2013 Actual² | E262: 2014 Actual² | F262: 2015 Actual² | G262: 2016 Actual² | H262: 2017 Actual² | I262: 2018 Actual² | J262: 2019 Actual | K262: Bridge Year | L262: Test Year | N262: =N$12 -> CGAAP
C263: =C$13 -> 2012 | D263: 2013 | E263: 2014 | F263: 2015 | G263: 2016 | H263: 2017 | I263: 2018 | J263: 2019 | K263: 2020 | L263: 2021 | N263: =N$13 -> Enter Transition Year
A264: Reporting Basis | C264: =IF(C202=0, "", C202) ->  | N264: =IF(N$14=0, "", N$14) -> CGAAP
A273: Total | C273: =SUM(C265:C272) -> 0 | D273: =SUM(D265:D272) -> 0 | E273: =SUM(E265:E272) -> 0 | F273: =SUM(F265:F272) -> 0 | G273: =SUM(G265:G272) -> 0 | H273: =SUM(H265:H272) -> 0 | I273: =SUM(I265:I272) -> 0 | J273: =SUM(J265:J272) -> 0 | K273: =SUM(K265:K272) -> 0 | L273: =SUM(L265:L272) -> 0 | N273: =SUM(N265:N272) -> 0
C276: =C$12 -> 2012 Actual² | D276: 2013 Actual² | E276: 2014 Actual² | F276: 2015 Actual² | G276: 2016 Actual² | H276: 2017 Actual² | I276: 2018 Actual² | J276: 2019 Actual | K276: Bridge Year | L276: Test Year | N276: =N$12 -> CGAAP
C277: =C$13 -> 2012 | D277: 2013 | E277: 2014 | F277: 2015 | G277: 2016 | H277: 2017 | I277: 2018 | J277: 2019 | K277: 2020 | L277: 2021 | N277: =N$13 -> Enter Transition Year
A278: Reporting Basis | C278: =IF(C216=0, "", C216) ->  | N278: =IF(N$14=0, "", N$14) -> CGAAP
A287: Total | C287: =SUM(C279:C286) -> 0 | D287: =SUM(D279:D286) -> 0 | E287: =SUM(E279:E286) -> 0 | F287: =SUM(F279:F286) -> 0 | G287: =SUM(G279:G286) -> 0 | H287: =SUM(H279:H286) -> 0 | I287: =SUM(I279:I286) -> 0 | J287: =SUM(J279:J286) -> 0 | K287: =SUM(K279:K286) -> 0 | L287: =SUM(L279:L286) -> 0 | N287: =SUM(N279:N286) -> 0
C290: =C$12 -> 2012 Actual² | D290: 2013 Actual² | E290: 2014 Actual² | F290: 2015 Actual² | G290: 2016 Actual² | H290: 2017 Actual² | I290: 2018 Actual² | J290: 2019 Actual | K290: Bridge Year | L290: Test Year | N290: =N$12 -> CGAAP
C291: =C$13 -> 2012 | D291: 2013 | E291: 2014 | F291: 2015 | G291: 2016 | H291: 2017 | I291: 2018 | J291: 2019 | K291: 2020 | L291: 2021 | N291: =N$13 -> Enter Transition Year
A292: Reporting Basis | C292: =IF(C230=0, "", C230) ->  | N292: =IF(N$14=0, "", N$14) -> CGAAP
A301: Total | C301: =SUM(C293:C300) -> 0 | D301: =SUM(D293:D300) -> 0 | E301: =SUM(E293:E300) -> 0 | F301: =SUM(F293:F300) -> 0 | G301: =SUM(G293:G300) -> 0 | H301: =SUM(H293:H300) -> 0 | I301: =SUM(I293:I300) -> 0 | J301: =SUM(J293:J300) -> 0 | K301: =SUM(K293:K300) -> 0 | L301: =SUM(L293:L300) -> 0 | N301: =SUM(N293:N300) -> 0
C304: =C$12 -> 2012 Actual² | D304: 2013 Actual² | E304: 2014 Actual² | F304: 2015 Actual² | G304: 2016 Actual² | H304: 2017 Actual² | I304: 2018 Actual² | J304: 2019 Actual | K304: Bridge Year | L304: Test Year | N304: =N$12 -> CGAAP
C305: =C$13 -> 2012 | D305: 2013 | E305: 2014 | F305: 2015 | G305: 2016 | H305: 2017 | I305: 2018 | J305: 2019 | K305: 2020 | L305: 2021 | N305: =N$13 -> Enter Transition Year
A306: Reporting Basis | C306: =IF(C244=0, "", C244) ->  | N306: =IF(N$14=0, "", N$14) -> CGAAP
A315: Total | C315: =SUM(C307:C314) -> 0 | D315: =SUM(D307:D314) -> 0 | E315: =SUM(E307:E314) -> 0 | F315: =SUM(F307:F314) -> 0 | G315: =SUM(G307:G314) -> 0 | H315: =SUM(H307:H314) -> 0 | I315: =SUM(I307:I314) -> 0 | J315: =SUM(J307:J314) -> 0 | K315: =SUM(K307:K314) -> 0 | L315: =SUM(L307:L314) -> 0 | N315: =SUM(N307:N314) -> 0
C318: =C$12 -> 2012 Actual² | D318: 2013 Actual² | E318: 2014 Actual² | F318: 2015 Actual² | G318: 2016 Actual² | H318: 2017 Actual² | I318: 2018 Actual² | J318: 2019 Actual | K318: Bridge Year | L318: Test Year | N318: =N$12 -> CGAAP
C319: =C$13 -> 2012 | D319: 2013 | E319: 2014 | F319: 2015 | G319: 2016 | H319: 2017 | I319: 2018 | J319: 2019 | K319: 2020 | L319: 2021 | N319: =N$13 -> Enter Transition Year
A320: Reporting Basis | C320: =IF(C258=0, "", C258) ->  | N320: =IF(N$14=0, "", N$14) -> CGAAP
A329: Total | C329: =SUM(C321:C328) -> 0 | D329: =SUM(D321:D328) -> 0 | E329: =SUM(E321:E328) -> 0 | F329: =SUM(F321:F328) -> 0 | G329: =SUM(G321:G328) -> 0 | H329: =SUM(H321:H328) -> 0 | I329: =SUM(I321:I328) -> 0 | J329: =SUM(J321:J328) -> 0 | K329: =SUM(K321:K328) -> 0 | L329: =SUM(L321:L328) -> 0 | N329: =SUM(N321:N328) -> 0
C332: =C$12 -> 2012 Actual² | D332: 2013 Actual² | E332: 2014 Actual² | F332: 2015 Actual² | G332: 2016 Actual² | H332: 2017 Actual² | I332: 2018 Actual² | J332: 2019 Actual | K332: Bridge Year | L332: Test Year | N332: =N$12 -> CGAAP
C333: =C$13 -> 2012 | D333: 2013 | E333: 2014 | F333: 2015 | G333: 2016 | H333: 2017 | I333: 2018 | J333: 2019 | K333: 2020 | L333: 2021 | N333: =N$13 -> Enter Transition Year
A334: Reporting Basis | C334: =IF(C272=0, "", C272) ->  | N334: =IF(N$14=0, "", N$14) -> CGAAP
A343: Total | C343: =SUM(C335:C342) -> 0 | D343: =SUM(D335:D342) -> 0 | E343: =SUM(E335:E342) -> 0 | F343: =SUM(F335:F342) -> 0 | G343: =SUM(G335:G342) -> 0 | H343: =SUM(H335:H342) -> 0 | I343: =SUM(I335:I342) -> 0 | J343: =SUM(J335:J342) -> 0 | K343: =SUM(K335:K342) -> 0 | L343: =SUM(L335:L342) -> 0 | N343: =SUM(N335:N342) -> 0
C346: =C$12 -> 2012 Actual² | D346: 2013 Actual² | E346: 2014 Actual² | F346: 2015 Actual² | G346: 2016 Actual² | H346: 2017 Actual² | I346: 2018 Actual² | J346: 2019 Actual | K346: Bridge Year | L346: Test Year | N346: =N$12 -> CGAAP
C347: =C$13 -> 2012 | D347: 2013 | E347: 2014 | F347: 2015 | G347: 2016 | H347: 2017 | I347: 2018 | J347: 2019 | K347: 2020 | L347: 2021 | N347: =N$13 -> Enter Transition Year
A348: Reporting Basis | C348: =IF(C286=0, "", C286) ->  | N348: =IF(N$14=0, "", N$14) -> CGAAP
A357: Total | C357: =SUM(C349:C356) -> 0 | D357: =SUM(D349:D356) -> 0 | E357: =SUM(E349:E356) -> 0 | F357: =SUM(F349:F356) -> 0 | G357: =SUM(G349:G356) -> 0 | H357: =SUM(H349:H356) -> 0 | I357: =SUM(I349:I356) -> 0 | J357: =SUM(J349:J356) -> 0 | K357: =SUM(K349:K356) -> 0 | L357: =SUM(L349:L356) -> 0 | N357: =SUM(N349:N356) -> 0
C360: =C$12 -> 2012 Actual² | D360: 2013 Actual² | E360: 2014 Actual² | F360: 2015 Actual² | G360: 2016 Actual² | H360: 2017 Actual² | I360: 2018 Actual² | J360: 2019 Actual | K360: Bridge Year | L360: Test Year | N360: =N$12 -> CGAAP
C361: =C$13 -> 2012 | D361: 2013 | E361: 2014 | F361: 2015 | G361: 2016 | H361: 2017 | I361: 2018 | J361: 2019 | K361: 2020 | L361: 2021 | N361: =N$13 -> Enter Transition Year
A362: Reporting Basis | C362: =IF(C300=0, "", C300) ->  | N362: =IF(N$14=0, "", N$14) -> CGAAP
A371: Total | C371: =SUM(C363:C370) -> 0 | D371: =SUM(D363:D370) -> 0 | E371: =SUM(E363:E370) -> 0 | F371: =SUM(F363:F370) -> 0 | G371: =SUM(G363:G370) -> 0 | H371: =SUM(H363:H370) -> 0 | I371: =SUM(I363:I370) -> 0 | J371: =SUM(J363:J370) -> 0 | K371: =SUM(K363:K370) -> 0 | L371: =SUM(L363:L370) -> 0 | N371: =SUM(N363:N370) -> 0
C374: =C$12 -> 2012 Actual² | D374: 2013 Actual² | E374: 2014 Actual² | F374: 2015 Actual² | G374: 2016 Actual² | H374: 2017 Actual² | I374: 2018 Actual² | J374: 2019 Actual | K374: Bridge Year | L374: Test Year | N374: =N$12 -> CGAAP
C375: =C$13 -> 2012 | D375: 2013 | E375: 2014 | F375: 2015 | G375: 2016 | H375: 2017 | I375: 2018 | J375: 2019 | K375: 2020 | L375: 2021 | N375: =N$13 -> Enter Transition Year
A376: Reporting Basis | C376: =IF(C314=0, "", C314) ->  | N376: =IF(N$14=0, "", N$14) -> CGAAP
A385: Total | C385: =SUM(C377:C384) -> 0 | D385: =SUM(D377:D384) -> 0 | E385: =SUM(E377:E384) -> 0 | F385: =SUM(F377:F384) -> 0 | G385: =SUM(G377:G384) -> 0 | H385: =SUM(H377:H384) -> 0 | I385: =SUM(I377:I384) -> 0 | J385: =SUM(J377:J384) -> 0 | K385: =SUM(K377:K384) -> 0 | L385: =SUM(L377:L384) -> 0 | N385: =SUM(N377:N384) -> 0
C388: =C$12 -> 2012 Actual² | D388: 2013 Actual² | E388: 2014 Actual² | F388: 2015 Actual² | G388: 2016 Actual² | H388: 2017 Actual² | I388: 2018 Actual² | J388: 2019 Actual | K388: Bridge Year | L388: Test Year | N388: =N$12 -> CGAAP
C389: =C$13 -> 2012 | D389: 2013 | E389: 2014 | F389: 2015 | G389: 2016 | H389: 2017 | I389: 2018 | J389: 2019 | K389: 2020 | L389: 2021 | N389: =N$13 -> Enter Transition Year
A390: Reporting Basis | C390: =IF(C328=0, "", C328) ->  | N390: =IF(N$14=0, "", N$14) -> CGAAP
A399: Total | C399: =SUM(C391:C398) -> 0 | D399: =SUM(D391:D398) -> 0 | E399: =SUM(E391:E398) -> 0 | F399: =SUM(F391:F398) -> 0 | G399: =SUM(G391:G398) -> 0 | H399: =SUM(H391:H398) -> 0 | I399: =SUM(I391:I398) -> 0 | J399: =SUM(J391:J398) -> 0 | K399: =SUM(K391:K398) -> 0 | L399: =SUM(L391:L398) -> 0 | N399: =SUM(N391:N398) -> 0
C402: =C$12 -> 2012 Actual² | D402: 2013 Actual² | E402: 2014 Actual² | F402: 2015 Actual² | G402: 2016 Actual² | H402: 2017 Actual² | I402: 2018 Actual² | J402: 2019 Actual | K402: Bridge Year | L402: Test Year | N402: =N$12 -> CGAAP
C403: =C$13 -> 2012 | D403: 2013 | E403: 2014 | F403: 2015 | G403: 2016 | H403: 2017 | I403: 2018 | J403: 2019 | K403: 2020 | L403: 2021 | N403: =N$13 -> Enter Transition Year
A404: Reporting Basis | C404: =IF(C342=0, "", C342) ->  | N404: =IF(N$14=0, "", N$14) -> CGAAP
A413: Total | C413: =SUM(C405:C412) -> 0 | D413: =SUM(D405:D412) -> 0 | E413: =SUM(E405:E412) -> 0 | F413: =SUM(F405:F412) -> 0 | G413: =SUM(G405:G412) -> 0 | H413: =SUM(H405:H412) -> 0 | I413: =SUM(I405:I412) -> 0 | J413: =SUM(J405:J412) -> 0 | K413: =SUM(K405:K412) -> 0 | L413: =SUM(L405:L412) -> 0 | N413: =SUM(N405:N412) -> 0
C416: =C$12 -> 2012 Actual² | D416: 2013 Actual² | E416: 2014 Actual² | F416: 2015 Actual² | G416: 2016 Actual² | H416: 2017 Actual² | I416: 2018 Actual² | J416: 2019 Actual | K416: Bridge Year | L416: Test Year | N416: =N$12 -> CGAAP
C417: =C$13 -> 2012 | D417: 2013 | E417: 2014 | F417: 2015 | G417: 2016 | H417: 2017 | I417: 2018 | J417: 2019 | K417: 2020 | L417: 2021 | N417: =N$13 -> Enter Transition Year
A418: Reporting Basis | C418: =IF(C356=0, "", C356) ->  | N418: =IF(N$14=0, "", N$14) -> CGAAP
A427: Total | C427: =SUM(C419:C426) -> 0 | D427: =SUM(D419:D426) -> 0 | E427: =SUM(E419:E426) -> 0 | F427: =SUM(F419:F426) -> 0 | G427: =SUM(G419:G426) -> 0 | H427: =SUM(H419:H426) -> 0 | I427: =SUM(I419:I426) -> 0 | J427: =SUM(J419:J426) -> 0 | K427: =SUM(K419:K426) -> 0 | L427: =SUM(L419:L426) -> 0 | N427: =SUM(N419:N426) -> 0
C430: =C$12 -> 2012 Actual² | D430: 2013 Actual² | E430: 2014 Actual² | F430: 2015 Actual² | G430: 2016 Actual² | H430: 2017 Actual² | I430: 2018 Actual² | J430: 2019 Actual | K430: Bridge Year | L430: Test Year | N430: =N$12 -> CGAAP
C431: =C$13 -> 2012 | D431: 2013 | E431: 2014 | F431: 2015 | G431: 2016 | H431: 2017 | I431: 2018 | J431: 2019 | K431: 2020 | L431: 2021 | N431: =N$13 -> Enter Transition Year
A432: Reporting Basis | C432: =IF(C370=0, "", C370) ->  | N432: =IF(N$14=0, "", N$14) -> CGAAP
A441: Total | C441: =SUM(C433:C440) -> 0 | D441: =SUM(D433:D440) -> 0 | E441: =SUM(E433:E440) -> 0 | F441: =SUM(F433:F440) -> 0 | G441: =SUM(G433:G440) -> 0 | H441: =SUM(H433:H440) -> 0 | I441: =SUM(I433:I440) -> 0 | J441: =SUM(J433:J440) -> 0 | K441: =SUM(K433:K440) -> 0 | L441: =SUM(L433:L440) -> 0 | N441: =SUM(N433:N440) -> 0
C444: =C$12 -> 2012 Actual² | D444: 2013 Actual² | E444: 2014 Actual² | F444: 2015 Actual² | G444: 2016 Actual² | H444: 2017 Actual² | I444: 2018 Actual² | J444: 2019 Actual | K444: Bridge Year | L444: Test Year | N444: =N$12 -> CGAAP
C445: =C$13 -> 2012 | D445: 2013 | E445: 2014 | F445: 2015 | G445: 2016 | H445: 2017 | I445: 2018 | J445: 2019 | K445: 2020 | L445: 2021 | N445: =N$13 -> Enter Transition Year
A446: Reporting Basis | C446: =IF(C384=0, "", C384) ->  | N446: =IF(N$14=0, "", N$14) -> CGAAP
A455: Total | C455: =SUM(C447:C454) -> 0 | D455: =SUM(D447:D454) -> 0 | E455: =SUM(E447:E454) -> 0 | F455: =SUM(F447:F454) -> 0 | G455: =SUM(G447:G454) -> 0 | H455: =SUM(H447:H454) -> 0 | I455: =SUM(I447:I454) -> 0 | J455: =SUM(J447:J454) -> 0 | K455: =SUM(K447:K454) -> 0 | L455: =SUM(L447:L454) -> 0 | N455: =SUM(N447:N454) -> 0
C458: =C$12 -> 2012 Actual² | D458: 2013 Actual² | E458: 2014 Actual² | F458: 2015 Actual² | G458: 2016 Actual² | H458: 2017 Actual² | I458: 2018 Actual² | J458: 2019 Actual | K458: Bridge Year | L458: Test Year | N458: =N$12 -> CGAAP
C459: =C$13 -> 2012 | D459: 2013 | E459: 2014 | F459: 2015 | G459: 2016 | H459: 2017 | I459: 2018 | J459: 2019 | K459: 2020 | L459: 2021 | N459: =N$13 -> Enter Transition Year
A460: Reporting Basis | C460: =IF(C398=0, "", C398) ->  | N460: =IF(N$14=0, "", N$14) -> CGAAP
A469: Total | C469: =SUM(C461:C468) -> 0 | D469: =SUM(D461:D468) -> 0 | E469: =SUM(E461:E468) -> 0 | F469: =SUM(F461:F468) -> 0 | G469: =SUM(G461:G468) -> 0 | H469: =SUM(H461:H468) -> 0 | I469: =SUM(I461:I468) -> 0 | J469: =SUM(J461:J468) -> 0 | K469: =SUM(K461:K468) -> 0 | L469: =SUM(L461:L468) -> 0 | N469: =SUM(N461:N468) -> 0
C472: =C$12 -> 2012 Actual² | D472: 2013 Actual² | E472: 2014 Actual² | F472: 2015 Actual² | G472: 2016 Actual² | H472: 2017 Actual² | I472: 2018 Actual² | J472: 2019 Actual | K472: Bridge Year | L472: Test Year | N472: =N$12 -> CGAAP
C473: =C$13 -> 2012 | D473: 2013 | E473: 2014 | F473: 2015 | G473: 2016 | H473: 2017 | I473: 2018 | J473: 2019 | K473: 2020 | L473: 2021 | N473: =N$13 -> Enter Transition Year
A474: Reporting Basis | C474: =IF(C412=0, "", C412) ->  | N474: =IF(N$14=0, "", N$14) -> CGAAP
A483: Total | C483: =SUM(C475:C482) -> 0 | D483: =SUM(D475:D482) -> 0 | E483: =SUM(E475:E482) -> 0 | F483: =SUM(F475:F482) -> 0 | G483: =SUM(G475:G482) -> 0 | H483: =SUM(H475:H482) -> 0 | I483: =SUM(I475:I482) -> 0 | J483: =SUM(J475:J482) -> 0 | K483: =SUM(K475:K482) -> 0 | L483: =SUM(L475:L482) -> 0 | N483: =SUM(N475:N482) -> 0
... 24 more rows

Sheet Hidden_Other Revenue (hidden)
A1: Utility Name | B1: EB Number | C1: Test Year | D1: Bridge Year | E1: Last Rebasing Year | F1: Heading | G1: Year | H1: Amount
A2: ='LDC Info'!$E$14 -> Halton Hills Hydro Inc. | B2: =EBNUMBER -> EB-2020-0026 | C2: =TestYear -> 2021 | D2: =BridgeYear -> 2020 | E2: =RebaseYear -> 2016 | F2: Specific Service Charges | G2: ='App.2-H_Other_Oper_Rev'!C13 -> 2012 | H2: ='App.2-H_Other_Oper_Rev'!C53 -> 0
A3: ='LDC Info'!$E$14 -> Halton Hills Hydro Inc. | B3: EB-2020-0026 | C3: 2021 | D3: 2020 | E3: 2016 | F3: Late Payment Charges | G3: ='App.2-H_Other_Oper_Rev'!C13 -> 2012 | H3: ='App.2-H_Other_Oper_Rev'!C54 -> 0
A4: ='LDC Info'!$E$14 -> Halton Hills Hydro Inc. | B4: EB-2020-0026 | C4: 2021 | D4: 2020 | E4: 2016 | F4: Other Operating Revenues | G4: ='App.2-H_Other_Oper_Rev'!C13 -> 2012 | H4: ='App.2-H_Other_Oper_Rev'!C55 -> 0
A5: ='LDC Info'!$E$14 -> Halton Hills Hydro Inc. | B5: EB-2020-0026 | C5: 2021 | D5: 2020 | E5: 2016 | F5: Other Income or Deductions | G5: ='App.2-H_Other_Oper_Rev'!C13 -> 2012 | H5: ='App.2-H_Other_Oper_Rev'!C56 -> 0
A6: ='LDC Info'!$E$14 -> Halton Hills Hydro Inc. | B6: EB-2020-0026 | C6: 2021 | D6: 2020 | E6: 2016 | F6: Specific Service Charges | G6: ='App.2-H_Other_Oper_Rev'!D13 -> 2013 | H6: ='App.2-H_Other_Oper_Rev'!D53 -> 0
A7: ='LDC Info'!$E$14 -> Halton Hills Hydro Inc. | B7: EB-2020-0026 | C7: 2021 | D7: 2020 | E7: 2016 | F7: Late Payment Charges | G7: ='App.2-H_Other_Oper_Rev'!D13 -> 2013 | H7: ='App.2-H_Other_Oper_Rev'!D54 -> 0
A8: ='LDC Info'!$E$14 -> Halton Hills Hydro Inc. | B8: EB-2020-0026 | C8: 2021 | D8: 2020 | E8: 2016 | F8: Other Operating Revenues | G8: ='App.2-H_Other_Oper_Rev'!D13 -> 2013 | H8: ='App.2-H_Other_Oper_Rev'!D55 -> 0
A9: ='LDC Info'!$E$14 -> Halton Hills Hydro Inc. | B9: EB-2020-0026 | C9: 2021 | D9: 2020 | E9: 2016 | F9: Other Income or Deductions | G9: ='App.2-H_Other_Oper_Rev'!D13 -> 2013 | H9: ='App.2-H_Other_Oper_Rev'!D56 -> 0
A10: ='LDC Info'!$E$14 -> Halton Hills Hydro Inc. | B10: EB-2020-0026 | C10: 2021 | D10: 2020 | E10: 2016 | F10: Specific Service Charges | G10: ='App.2-H_Other_Oper_Rev'!E13 -> 2014 | H10: ='App.2-H_Other_Oper_Rev'!E53 -> 0
A11: ='LDC Info'!$E$14 -> Halton Hills Hydro Inc. | B11: EB-2020-0026 | C11: 2021 | D11: 2020 | E11: 2016 | F11: Late Payment Charges | G11: ='App.2-H_Other_Oper_Rev'!E13 -> 2014 | H11: ='App.2-H_Other_Oper_Rev'!E54 -> 0
A12: ='LDC Info'!$E$14 -> Halton Hills Hydro Inc. | B12: EB-2020-0026 | C12: 2021 | D12: 2020 | E12: 2016 | F12: Other Operating Revenues | G12: ='App.2-H_Other_Oper_Rev'!E13 -> 2014 | H12: ='App.2-H_Other_Oper_Rev'!E55 -> 0
A13: ='LDC Info'!$E$14 -> Halton Hills Hydro Inc. | B13: EB-2020-0026 | C13: 2021 | D13: 2020 | E13: 2016 | F13: Other Income or Deductions | G13: ='App.2-H_Other_Oper_Rev'!E13 -> 2014 | H13: ='App.2-H_Other_Oper_Rev'!E56 -> 0
A14: ='LDC Info'!$E$14 -> Halton Hills Hydro Inc. | B14: EB-2020-0026 | C14: 2021 | D14: 2020 | E14: 2016 | F14: Specific Service Charges | G14: ='App.2-H_Other_Oper_Rev'!F13 -> 2015 | H14: ='App.2-H_Other_Oper_Rev'!F53 -> 0
A15: ='LDC Info'!$E$14 -> Halton Hills Hydro Inc. | B15: EB-2020-0026 | C15: 2021 | D15: 2020 | E15: 2016 | F15: Late Payment Charges | G15: ='App.2-H_Other_Oper_Rev'!F13 -> 2015 | H15: ='App.2-H_Other_Oper_Rev'!F54 -> 0
A16: ='LDC Info'!$E$14 -> Halton Hills Hydro Inc. | B16: EB-2020-0026 | C16: 2021 | D16: 2020 | E16: 2016 | F16: Other Operating Revenues | G16: ='App.2-H_Other_Oper_Rev'!F13 -> 2015 | H16: ='App.2-H_Other_Oper_Rev'!F55 -> 0
A17: ='LDC Info'!$E$14 -> Halton Hills Hydro Inc. | B17: EB-2020-0026 | C17: 2021 | D17: 2020 | E17: 2016 | F17: Other Income or Deductions | G17: ='App.2-H_Other_Oper_Rev'!F13 -> 2015 | H17: ='App.2-H_Other_Oper_Rev'!F56 -> 0
A18: ='LDC Info'!$E$14 -> Halton Hills Hydro Inc. | B18: EB-2020-0026 | C18: 2021 | D18: 2020 | E18: 2016 | F18: Specific Service Charges | G18: ='App.2-H_Other_Oper_Rev'!G13 -> 2016 | H18: ='App.2-H_Other_Oper_Rev'!G53 -> 437070.93
A19: ='LDC Info'!$E$14 -> Halton Hills Hydro Inc. | B19: EB-2020-0026 | C19: 2021 | D19: 2020 | E19: 2016 | F19: Late Payment Charges | G19: ='App.2-H_Other_Oper_Rev'!G13 -> 2016 | H19: ='App.2-H_Other_Oper_Rev'!G54 -> 125310
A20: ='LDC Info'!$E$14 -> Halton Hills Hydro Inc. | B20: EB-2020-0026 | C20: 2021 | D20: 2020 | E20: 2016 | F20: Other Operating Revenues | G20: ='App.2-H_Other_Oper_Rev'!G13 -> 2016 | H20: ='App.2-H_Other_Oper_Rev'!G55 -> 440959.4
A21: ='LDC Info'!$E$14 -> Halton Hills Hydro Inc. | B21: EB-2020-0026 | C21: 2021 | D21: 2020 | E21: 2016 | F21: Other Income or Deductions | G21: ='App.2-H_Other_Oper_Rev'!G13 -> 2016 | H21: ='App.2-H_Other_Oper_Rev'!G56 -> 126694.28
A22: ='LDC Info'!$E$14 -> Halton Hills Hydro Inc. | B22: EB-2020-0026 | C22: 2021 | D22: 2020 | E22: 2016 | F22: Specific Service Charges | G22: ='App.2-H_Other_Oper_Rev'!H13 -> 2017 | H22: ='App.2-H_Other_Oper_Rev'!H53 -> 415299.9
A23: ='LDC Info'!$E$14 -> Halton Hills Hydro Inc. | B23: EB-2020-0026 | C23: 2021 | D23: 2020 | E23: 2016 | F23: Late Payment Charges | G23: ='App.2-H_Other_Oper_Rev'!H13 -> 2017 | H23: ='App.2-H_Other_Oper_Rev'!H54 -> 136401
A24: ='LDC Info'!$E$14 -> Halton Hills Hydro Inc. | B24: EB-2020-0026 | C24: 2021 | D24: 2020 | E24: 2016 | F24: Other Operating Revenues | G24: ='App.2-H_Other_Oper_Rev'!H13 -> 2017 | H24: ='App.2-H_Other_Oper_Rev'!H55 -> 443447.59
A25: ='LDC Info'!$E$14 -> Halton Hills Hydro Inc. | B25: EB-2020-0026 | C25: 2021 | D25: 2020 | E25: 2016 | F25: Other Income or Deductions | G25: ='App.2-H_Other_Oper_Rev'!H13 -> 2017 | H25: ='App.2-H_Other_Oper_Rev'!H56 -> 363554.44
A26: ='LDC Info'!$E$14 -> Halton Hills Hydro Inc. | B26: EB-2020-0026 | C26: 2021 | D26: 2020 | E26: 2016 | F26: Specific Service Charges | G26: ='App.2-H_Other_Oper_Rev'!I13 -> 2018 | H26: ='App.2-H_Other_Oper_Rev'!I53 -> 361730.65
A27: ='LDC Info'!$E$14 -> Halton Hills Hydro Inc. | B27: EB-2020-0026 | C27: 2021 | D27: 2020 | E27: 2016 | F27: Late Payment Charges | G27: ='App.2-H_Other_Oper_Rev'!I13 -> 2018 | H27: ='App.2-H_Other_Oper_Rev'!I54 -> 131758.74
A28: ='LDC Info'!$E$14 -> Halton Hills Hydro Inc. | B28: EB-2020-0026 | C28: 2021 | D28: 2020 | E28: 2016 | F28: Other Operating Revenues | G28: ='App.2-H_Other_Oper_Rev'!I13 -> 2018 | H28: ='App.2-H_Other_Oper_Rev'!I55 -> 500507.4
A29: ='LDC Info'!$E$14 -> Halton Hills Hydro Inc. | B29: EB-2020-0026 | C29: 2021 | D29: 2020 | E29: 2016 | F29: Other Income or Deductions | G29: ='App.2-H_Other_Oper_Rev'!I13 -> 2018 | H29: ='App.2-H_Other_Oper_Rev'!I56 -> 227165.72
A30: ='LDC Info'!$E$14 -> Halton Hills Hydro Inc. | B30: EB-2020-0026 | C30: 2021 | D30: 2020 | E30: 2016 | F30: Specific Service Charges | G30: ='App.2-H_Other_Oper_Rev'!J13 -> 2019 | H30: ='App.2-H_Other_Oper_Rev'!J53 -> 289776.46
A31: ='LDC Info'!$E$14 -> Halton Hills Hydro Inc. | B31: EB-2020-0026 | C31: 2021 | D31: 2020 | E31: 2016 | F31: Late Payment Charges | G31: ='App.2-H_Other_Oper_Rev'!J13 -> 2019 | H31: ='App.2-H_Other_Oper_Rev'!J54 -> 141768.66
A32: ='LDC Info'!$E$14 -> Halton Hills Hydro Inc. | B32: EB-2020-0026 | C32: 2021 | D32: 2020 | E32: 2016 | F32: Other Operating Revenues | G32: ='App.2-H_Other_Oper_Rev'!J13 -> 2019 | H32: ='App.2-H_Other_Oper_Rev'!J55 -> 524247.03
A33: ='LDC Info'!$E$14 -> Halton Hills Hydro Inc. | B33: EB-2020-0026 | C33: 2021 | D33: 2020 | E33: 2016 | F33: Other Income or Deductions | G33: ='App.2-H_Other_Oper_Rev'!J13 -> 2019 | H33: ='App.2-H_Other_Oper_Rev'!J56 -> 118233
A34: ='LDC Info'!$E$14 -> Halton Hills Hydro Inc. | B34: EB-2020-0026 | C34: 2021 | D34: 2020 | E34: 2016 | F34: Specific Service Charges | G34: ='App.2-H_Other_Oper_Rev'!K13 -> 2020 | H34: ='App.2-H_Other_Oper_Rev'!K53 -> 274500
A35: ='LDC Info'!$E$14 -> Halton Hills Hydro Inc. | B35: EB-2020-0026 | C35: 2021 | D35: 2020 | E35: 2016 | F35: Late Payment Charges | G35: ='App.2-H_Other_Oper_Rev'!K13 -> 2020 | H35: ='App.2-H_Other_Oper_Rev'!K54 -> 145000
A36: ='LDC Info'!$E$14 -> Halton Hills Hydro Inc. | B36: EB-2020-0026 | C36: 2021 | D36: 2020 | E36: 2016 | F36: Other Operating Revenues | G36: ='App.2-H_Other_Oper_Rev'!K13 -> 2020 | H36: ='App.2-H_Other_Oper_Rev'!K55 -> 524589
A37: ='LDC Info'!$E$14 -> Halton Hills Hydro Inc. | B37: EB-2020-0026 | C37: 2021 | D37: 2020 | E37: 2016 | F37: Other Income or Deductions | G37: ='App.2-H_Other_Oper_Rev'!K13 -> 2020 | H37: ='App.2-H_Other_Oper_Rev'!K56 -> 72152
A38: ='LDC Info'!$E$14 -> Halton Hills Hydro Inc. | B38: EB-2020-0026 | C38: 2021 | D38: 2020 | E38: 2016 | F38: Specific Service Charges | G38: ='App.2-H_Other_Oper_Rev'!L13 -> 2021 | H38: ='App.2-H_Other_Oper_Rev'!L53 -> 266650.73
A39: ='LDC Info'!$E$14 -> Halton Hills Hydro Inc. | B39: EB-2020-0026 | C39: 2021 | D39: 2020 | E39: 2016 | F39: Late Payment Charges | G39: ='App.2-H_Other_Oper_Rev'!L13 -> 2021 | H39: ='App.2-H_Other_Oper_Rev'!L54 -> 145000
A40: ='LDC Info'!$E$14 -> Halton Hills Hydro Inc. | B40: EB-2020-0026 | C40: 2021 | D40: 2020 | E40: 2016 | F40: Other Operating Revenues | G40: ='App.2-H_Other_Oper_Rev'!L13 -> 2021 | H40: ='App.2-H_Other_Oper_Rev'!L55 -> 773898
A41: ='LDC Info'!$E$14 -> Halton Hills Hydro Inc. | B41: EB-2020-0026 | C41: 2021 | D41: 2020 | E41: 2016 | F41: Other Income or Deductions | G41: ='App.2-H_Other_Oper_Rev'!L13 -> 2021 | H41: ='App.2-H_Other_Oper_Rev'!L56 -> 175639

Sheet App_2-I LF_CDM
G1: File Number: | I1: =EBNUMBER -> EB-2020-0026
G2: Exhibit:
G3: Tab:
G4: Schedule:
G5: Page: | I5: Not applicable
G7: Date: | I7: 2021-02-08
A9: Appendix 2-I (Not applicable as HHHI is not claiming any 2019 or 2020 CDM activities in this application)
A10: Load Forecast CDM Adjustment Work Form
